{"text_format":"1","workbook":"xlsx","n_sheets":3,"sheets":["Read Me","Input","Section Data"],"not_rendered":{"charts":0,"images":0,"macros":1,"external_links":0,"defined_names":0,"comments":0,"pivot_tables":0},"unopened":[],"bounds":{"document_bytes":16777216,"sheet_cells":100000,"rows_first":2000,"rows_last":500,"rows_between":2000,"halvings":0,"cell_chars":16384,"cell_head_chars":4096},"cells_cut":0,"cells_raw":0,"read":"whole","date_system":"1900"}

{"sheet":"Read Me","index":0,"n_rows":19,"n_cols":2,"rows_kept":19,"cut":false,"hidden":false,"merged":[[0,1,1,4]]}
[null,"www.auto-excel.com"]
[]
[]
[null,"User Notes:"]
[]
[null,"Disclaimer:  This spreadsheet is a beta version, and all parameters should be checked to ensure accurate transfer into Etabs by "]
[null,"the user. If any issues arise, please contact  admin@auto-excel.com to revise and upgrade the spreadsheet"]
[]
[null,"Licence: This spreadsheet is freely available for unlimited downloads from auto-excel.com. The free license is intended to "]
[null,"prevent the circulation of faulty versions and ensure that users are using the latest version."]
[]
[null,"Data Entry: Use only data entry cells indicated"]
[]
[null,"Fault Report and Suggestions: Our team is open to hearing from you. Feel free to contact us at admin@auto-excel.com if you "]
[null,"have suggestions to enhance this spreadsheet or if you have ideas for other spreadsheets that would be beneficial for your work."]
[]
[null,"Enableing Macros: Copy the file to driver other than C drive (windows installed drive). If the Macros are disabled, follow the below "]
[null,"File>Option> Trust Center> Trust Center Setting…> Macro Settings> Tick \"Trust access to the VBA project object model\" and select Disable VBA macros with notification > restart the spreadsheet"]
[null,"> click \"Enable editing\" and \"Enable Content\""]

{"sheet":"Input","index":1,"n_rows":25,"n_cols":35,"rows_kept":25,"cut":false,"hidden":false,"merged":[[2,2,2,3],[0,1,1,3]]}
[null,"www.auto-excel.com"]
[]
[null,"Contact: ","admin@auto-excel.com"]
[null,null,null,null,null,"Refer to \"Read Me\" tab to acrivate the Macro "]
[]
[null,"Load pattern:",null,null,null,"Steel Sections: ",null,"Concrete Sections:",null,null,null,"Load Combinations:"]
[null,"Load","Type","Self-Weight Multiplier",null,"section types:",null,"Name","Height (mm or in)","Width (mm or in)",null,"name ","factor ","case ","factor ","case ","factor ","case ","factor ","case ","factor ","case ","factor ","case "]
[null,null,"Dead",1,null,"Euro",null,null,null,null,null,"1.35D",1.35,"Dead",null,null,null,null,null,null,null,null,null,null,null,null,null,null,null,null,null,null,{"$f":"OFFSET($AI$7,MATCH(C8,$AH$8:$AH$24,0),0)","v":1},"Dead",1]
[null,null,"Live",0,null,null,null,null,null,null,null,"1.2D+1.5L",1.2,"Dead",1.5,"Live",null,null,null,null,null,null,null,null,null,null,null,null,null,null,null,null,3,"Super Dead",2]
[null,null,"Seismic",0,null,"Import Steel Sections:",null,null,null,null,null,"D+Ex+0.3Ey",1,"Dead",1," Ex",0.3,"Ey",null,null,null,null,null,null,null,null,null,null,null,null,null,null,5,"Live",3]
[null,null,"Seismic",0,null,null,null,null,null,null,null,"D+Ex-0.3Ey",1,"Dead",1," Ex",-0.3,"Ey",null,null,null,null,null,null,null,null,null,null,null,null,null,null,5,"Reducible Live",4]
[null,null,"Wind",0,null,null,null,null,null,null,null,"D-Ex+0.3Ey",1,"Dead",-1," Ex",0.3,"Ey",null,null,null,null,null,null,null,null,null,null,null,null,null,null,6,"Roof Live",11]
[null,null,"Snow",0,null,null,null,null,null,null,null,"D-Ex-0.3Ey",1,"Dead",-1," Ex",-0.3,"Ey",null,null,null,null,null,null,null,null,null,null,null,null,null,null,7,"Pattern Live",13]
[null,null,"Dead",0,null,null,null,null,null,null,null,"D+Ey+0.3Ex",1,"Dead",1,"Ey",0.3," Ex",null,null,null,null,null,null,null,null,null,null,null,null,null,null,1,"Pattern Live - Auto",60]
[null,null,"Dead",0,null,null,null,null,null,null,null,"D+Ey-0.3Ex",1,"Dead",1,"Ey",-0.3," Ex",null,null,null,null,null,null,null,null,null,null,null,null,null,null,1,"Notional",12]
[null,null,"Dead",0,null,null,null,null,null,null,null,"D-Ey+0.3Ex",1,"Dead",-1,"Ey",0.3," Ex",null,null,null,null,null,null,null,null,null,null,null,null,null,null,1,"Seismic",5]
[null,null,"Dead",0,null,null,null,null,null,null,null,"D-Ey-0.3Ex",1,"Dead",-1,"Ey",-0.3," Ex",null,null,null,null,null,null,null,null,null,null,null,null,null,null,1,"Seismic (drift)",61]
[null,null,"Dead",0,null,null,null,null,null,null,null,"D+0.3L+Ex+0.3Ey",1,"Dead",0.3,"Live",1," Ex",0.3,"Ey",null,null,null,null,null,null,null,null,null,null,null,null,1,"Wind",6]
[null,null,"Dead",0,null,null,null,null,null,null,null,"D+0.3L+Ex-0.3Ey",1,"Dead",0.3,"Live",1," Ex",-0.3,"Ey",null,null,null,null,null,null,null,null,null,null,null,null,1,"Snow",7]
[null,null,"Dead",0,null,null,null,null,null,null,null,"D+0.3L-Ex+0.3Ey",1,"Dead",0.3,"Live",-1," Ex",0.3,"Ey",null,null,null,null,null,null,null,null,null,null,null,null,1,"Construction",39]
[null,null,"Dead",0,null,null,null,null,null,null,null,"D+0.3L-Ex-0.3Ey",1,"Dead",0.3,"Live",-1," Ex",-0.3,"Ey",null,null,null,null,null,null,null,null,null,null,null,null,1,"Prestress-Final",34]
[null,null,"Dead",0,null,null,null,null,null,null,null,"D+0.3L+Ey+0.3Ex",1,"Dead",0.3,"Live",1,"Ey",0.3," Ex",null,null,null,null,null,null,null,null,null,null,null,null,1,"Prestress-Transfer",59]
[null,null,null,null,null,null,null,null,null,null,null,"D+0.3L+Ey-0.3Ex",1,"Dead",0.3,"Live",1,"Ey",-0.3," Ex",null,null,null,null,null,null,null,null,null,null,null,null,null,"Temperature",10]
[null,null,null,null,null,null,null,null,null,null,null,"D+0.3L-Ey+0.3Ex",1,"Dead",0.3,"Live",-1,"Ey",0.3," Ex",null,null,null,null,null,null,null,null,null,null,null,null,null,"Other",8]
[null,null,null,null,null,null,null,null,null,null,null,"D+0.3L-Ey-0.3Ex",1,"Dead",0.3,"Live",-1,"Ey",-0.3," Ex"]

{"sheet":"Section Data","index":2,"n_rows":5370,"n_cols":96,"rows_kept":562,"cut":true,"hidden":false,"merged":[],"bounds":{"rows_first":250,"rows_last":62,"rows_between":250,"halvings":3}}
["Australia-NewZealand",null,null,"AISC14",null,null,"AISC14M",null,null,"AISC15",null,null,"AISC15M",null,null,"APL_Steel",null,null,"ArcelorMittal_British",null,null,"ArcelorMittal_BritishHISTAR",null,null,"ArcelorMittal_Europe",null,null,"ArcelorMittal_EuropeHISTAR",null,null,"ArcelorMittal_Japan",null,null,"ArcelorMittal_US_ASTM-A913",null,null,"ArcelorMittal_US_ASTM-A913M",null,null,"ArcelorMittal_US_ASTM-A992",null,null,"ArcelorMittal_US_ASTM-A992M",null,null,"BSShapes2006",null,null,"ChineseGB08",null,null,"CISC9",null,null,"CISC10",null,null,"CoreBraceBRB_2016",null,null,"Euro",null,null,"Indian",null,null,"Jindal_Steel",null,null,"JIS-G-3192-2014",null,null,null,"Korean",null,null,"Nordic",null,null,"Russian",null,null,"Russian2020_en",null,null,"Russian2020_ru",null,null,"TATA_Steel"]
["200X200X26",null,null,"L8X8X1-1/8",null,null,"L203X203X28.6",null,null,"L12X12X1-3/8",null,null,"L305X305X34.9",null,null,"RHS26X13X1.6",null,null,"UB127X76X13",null,null,"UB610X229X125",null,null,"IPEAA80",null,null,"IPE550",null,null,"H 100 X 100 X 6 X 8",null,null,"L12X12X1-3/8",null,null,"W250X250X73",null,null,"W4X4X13",null,null,"W100X100X19.3",null,null,"UKA200X200X24",null,null,"LN25X16X3",null,null,"L203X203X29",null,null,"L203X203X29",null,null,"CoreBRB_0.50_BoltedLug",null,null,"L15X3",null,null,"ISA20X20X3",null,null,"HEAA320",null,null,"H1000X400X19X40",null,null,null,"L 25X3",null,null,"L100X10",null,null,"L20x3",null,null,"L_20x3",null,null,"L_20x3",null,null,"50X25X2.0RHS",null,null,{"$f":"A1","v":"Australia-NewZealand"},null,null,{"$f":"MATCH(Input!$F$8,'Section Data'!$CN$2:$CN$30,0)","v":21},{"$f":"IF(OFFSET($A2,0,($CQ$2-1)*3)=0,\"\",OFFSET($A2,0,($CQ$2-1)*3))","v":"L15X3"}]
["200X200X20",null,null,"L8X8X1",null,null,"L203X203X25.4",null,null,"L12X12X1-1/4",null,null,"L305X305X31.8",null,null,"RHS26X13X1.8",null,null,"UB152X89X16",null,null,"UB610X229X140",null,null,"IPEA80",null,null,"IPEO550",null,null,"H 125 X 125 X 6.5 X 9",null,null,"L12X12X1-1/4",null,null,"W250X250X80",null,null,"W5X5X16",null,null,"W130X130X23.8",null,null,"UKA200X200X20",null,null,"LN25X16X4",null,null,"L203X203X25",null,null,"L203X203X25",null,null,"CoreBRB_0.50_Welded",null,null,"L20X3",null,null,"ISA20X20X4",null,null,"HEA320",null,null,"H1000X400X19X36",null,null,null,"L 30X3",null,null,"L100X12",null,null,"L20x4",null,null,"L_20x4",null,null,"L_20x4",null,null,"50X25X2.6RHS",null,null,{"$f":"D1","v":"AISC14"},null,null,null,{"$f":"IF(OFFSET($A3,0,($CQ$2-1)*3)=0,\"\",OFFSET($A3,0,($CQ$2-1)*3))","v":"L20X3"}]
["200X200X18",null,null,"L8X8X7/8",null,null,"L203X203X22.2",null,null,"L12X12X1-1/8",null,null,"L305X305X28.6",null,null,"RHS26X13X2",null,null,"UB178X102X19",null,null,"UB610X305X149",null,null,"IPE80",null,null,"IPE600",null,null,"H 150 X 75 X 5 X 7",null,null,"L12X12X1-1/8",null,null,"W250X250X89",null,null,"W5X5X19",null,null,"W130X130X28.1",null,null,"UKA200X200X18",null,null,"LN32X20X3",null,null,"L203X203X22",null,null,"L203X203X22",null,null,"CoreBRB_0.50_Pinned",null,null,"L20X4",null,null,"ISA25X25X3",null,null,"HEB320",null,null,"H1000X400X19X32",null,null,null,"L 40X3",null,null,"L100X14",null,null,"L25x3",null,null,"L_25x3",null,null,"L_25x3",null,null,"50X25X3.2RHS",null,null,{"$f":"G1","v":"AISC14M"},null,null,null,"L20X4"]
["200X200X16",null,null,"L8X8X3/4",null,null,"L203X203X19",null,null,"L12X12X1",null,null,"L305X305X25.4",null,null,"RHS30X20X1.6",null,null,"UB203X102X23",null,null,"UB610X305X179",null,null,"IPEAA100",null,null,"IPEO600",null,null,"H 150 X 150 X 7 X 10",null,null,"L12X12X1",null,null,"W250X250X101",null,null,"W6X4X9",null,null,"W150X100X13.5",null,null,"UKA200X200X16",null,null,"LN32X20X4",null,null,"L203X203X19",null,null,"L203X203X19",null,null,"CoreBRB_0.75_BoltedLug",null,null,"L25X3",null,null,"ISA25X25X4",null,null,"HEM320",null,null,"H1000X400X19X28",null,null,null,"L 40X5",null,null,"L100X15",null,null,"L25x4",null,null,"L_25x4",null,null,"L_25x4",null,null,"50X25X4.0RHS",null,null,{"$f":"J1","v":"AISC15"},null,null,null,"L25X3"]
["200X200X13",null,null,"L8X8X5/8",null,null,"L203X203X15.9",null,null,"L10X10X1-3/8",null,null,"L254X254X34.9",null,null,"RHS30X20X1.8",null,null,"UB203X133X25",null,null,"UB610X305X238",null,null,"IPEA100",null,null,"IPE750X173",null,null,"H 175 X 175 X 7.5 X 11",null,null,"L10X10X1-3/8",null,null,"W250X250X115",null,null,"W6X4X12",null,null,"W150X100X18.0",null,null,"UKA150X150X18",null,null,"LN40X25X3",null,null,"L203X203X16",null,null,"L203X203X16",null,null,"CoreBRB_0.75_Welded",null,null,"L25X4",null,null,"ISA25X25X5",null,null,"HEAA600",null,null,"H1000X400X19X25",null,null,null,"L 45X4",null,null,"L100X50X10",null,null,"L25x5",null,null,"L_25x5",null,null,"L_25x5",null,null,"60X40X2.6RHS",null,null,{"$f":"M1","v":"AISC15M"},null,null,null,"L25X4"]
["150X150X19",null,null,"L8X8X9/16",null,null,"L203X203X14.3",null,null,"L10X10X1-1/4",null,null,"L254X254X31.8",null,null,"RHS30X20X2",null,null,"UB203X133X30",null,null,"UB686X254X152",null,null,"IPE100",null,null,"IPE750X196",null,null,"H 200 X 100 X 4.5 X 7",null,null,"L10X10X1-1/4",null,null,"W250X250X131",null,null,"W6X4X16",null,null,"W150X100X24.0",null,null,"UKA150X150X15",null,null,"LN40X25X4",null,null,"L203X203X14",null,null,"L203X203X14",null,null,"CoreBRB_0.75_Pinned",null,null,"L25X5",null,null,"ISA30X30X3",null,null,"HEA600",null,null,"H1000X400X16X32",null,null,null,"L 45X5",null,null,"L100X50X6",null,null,"L28x3",null,null,"L_28x3",null,null,"L_28x3",null,null,"60X40X2.9RHS",null,null,{"$f":"P1","v":"APL_Steel"},null,null,null,"L25X5"]
["150X150X16",null,null,"L8X8X1/2",null,null,"L203X203X12.7",null,null,"L10X10X1-1/8",null,null,"L254X254X28.6",null,null,"RHS30X20X2.2",null,null,"UB254X102X22",null,null,"UB686X254X170",null,null,"IPEAA120",null,null,"HE260A",null,null,"H 200 X 100 X 5.5 X 8",null,null,"L10X10X1-1/8",null,null,"W250X250X149",null,null,"W6X6X15",null,null,"W150X150X22.5",null,null,"UKA150X150X12",null,null,"LN45X28X3",null,null,"L203X203X13",null,null,"L203X203X13",null,null,"CoreBRB_1.00_BoltedLug",null,null,"L30X3",null,null,"ISA30X30X4",null,null,"HEB600",null,null,"H1000X400X16X28",null,null,null,"L 50X4",null,null,"L100X50X7",null,null,"L30x3",null,null,"L_30x3",null,null,"L_30x3",null,null,"60X40X3.6RHS",null,null,{"$f":"S1","v":"ArcelorMittal_British"},null,null,null,"L30X3"]
["150X150X12",null,null,"L8X6X1",null,null,"L203X152X25.4",null,null,"L10X10X1",null,null,"L254X254X25.4",null,null,"RHS30X20X2.5",null,null,"UB254X102X25",null,null,"UB762X267X173",null,null,"IPEA120",null,null,"HE260B",null,null,"H 200 X 150 X 6 X 9",null,null,"L10X10X1",null,null,"W250X250X167",null,null,"W6X6X20",null,null,"W150X150X29.8",null,null,"UKA150X150X10",null,null,"LN45X28X4",null,null,"L203X152X25",null,null,"L203X152X25",null,null,"CoreBRB_1.00_Welded",null,null,"L30X4",null,null,"ISA30X30X5",null,null,"HEM600",null,null,"H1000X400X16X25",null,null,null,"L 50X5",null,null,"L100X50X8",null,null,"L30x4",null,null,"L_30x4",null,null,"L_30x4",null,null,"60X40X4.5RHS",null,null,{"$f":"V1","v":"ArcelorMittal_BritishHISTAR"},null,null,null,"L30X4"]
["150X150X10",null,null,"L8X6X7/8",null,null,"L203X152X22.2",null,null,"L10X10X7/8",null,null,"L254X254X22.2",null,null,"RHS40X10X1.6",null,null,"UB254X102X28",null,null,"UB762X267X197",null,null,"IPE120",null,null,"HE260M",null,null,"H 200 X 200 X 8 X 12",null,null,"L10X10X7/8",null,null,"W310X310X97",null,null,"W6X6X25",null,null,"W150X150X37.1",null,null,"UKA120X120X15",null,null,"LN50X32X3",null,null,"L203X152X22",null,null,"L203X152X22",null,null,"CoreBRB_1.00_Pinned",null,null,"L30X5",null,null,"ISA35X35X3",null,null,"HEAA700",null,null,"H1000X400X16X22",null,null,null,"L 50X6",null,null,"L100X6",null,null,"L30x5",null,null,"L_30x5",null,null,"L_30x5",null,null,"66X33X2.6RHS",null,null,{"$f":"Y1","v":"ArcelorMittal_Europe"},null,null,null,"L30X5"]
["125X125X16",null,null,"L8X6X3/4",null,null,"L203X152X19",null,null,"L10X10X3/4",null,null,"L254X254X19",null,null,"RHS40X10X1.8",null,null,"UB254X146X31",null,null,"UB838X292X194",null,null,"IPEAA140",null,null,"HE280A",null,null,"H 250 X 125 X 5 X 8",null,null,"L10X10X3/4",null,null,"W310X310X107",null,null,"W8X4X10",null,null,"W200X100X15.0",null,null,"UKA120X120X12",null,null,"LN50X32X4",null,null,"L203X152X19",null,null,"L203X152X19",null,null,"CoreBRB_1.25_BoltedLug",null,null,"L30X6",null,null,"ISA35X35X4",null,null,"HEA700",null,null,"H1000X350X19X40",null,null,null,"L 60X4",null,null,"L100X65X10",null,null,"L32x3",null,null,"L_32x3",null,null,"L_32x3",null,null,"66X33X2.9RHS",null,null,{"$f":"AB1","v":"ArcelorMittal_EuropeHISTAR"},null,null,null,"L30X6"]
["125X125X12",null,null,"L8X6X5/8",null,null,"L203X152X15.9",null,null,"L8X8X1-1/8",null,null,"L203X203X28.6",null,null,"RHS40X10X2",null,null,"UB254X146X37",null,null,"UB838X292X226",null,null,"IPEA140",null,null,"HE280B",null,null,"H 250 X 125 X 6 X 9",null,null,"W10X10X49",null,null,"W310X310X117",null,null,"W8X4X13",null,null,"W200X100X19.3",null,null,"UKA120X120X10",null,null,"LN56X36X3",null,null,"L203X152X16",null,null,"L203X152X16",null,null,"CoreBRB_1.25_Welded",null,null,"L35X3",null,null,"ISA35X35X5",null,null,"HEB700",null,null,"H1000X350X19X36",null,null,null,"L 60X5",null,null,"L100X65X11",null,null,"L32x4",null,null,"L_32x4",null,null,"L_32x4",null,null,"66X33X3.6RHS",null,null,{"$f":"AE1","v":"ArcelorMittal_Japan"},null,null,null,"L35X3"]
["125X125X10",null,null,"L8X6X9/16",null,null,"L203X152X14.3",null,null,"L8X8X1",null,null,"L203X203X25.4",null,null,"RHS40X20X1.6",null,null,"UB254X146X43",null,null,"UB914X305X224",null,null,"IPE140",null,null,"HE280M",null,null,"H 250 X 250 X 9 X 14",null,null,"W10X10X54",null,null,"W310X310X129",null,null,"W8X4X15",null,null,"W200X100X22.5",null,null,"UKA120X120X8",null,null,"LN56X36X4",null,null,"L203X152X14",null,null,"L203X152X14",null,null,"CoreBRB_1.25_Pinned",null,null,"L35X3.5",null,null,"ISA35X35X6",null,null,"HEM700",null,null,"H1000X350X19X32",null,null,null,"L 65X5",null,null,"L100X65X7",null,null,"L35x3",null,null,"L_35x3",null,null,"L_35x3",null,null,"66X33X4.5RHS",null,null,{"$f":"AH1","v":"ArcelorMittal_US_ASTM-A913"},null,null,null,"L35X3.5"]
["125X125X8",null,null,"L8X6X1/2",null,null,"L203X152X12.7",null,null,"L8X8X7/8",null,null,"L203X203X22.2",null,null,"RHS40X20X1.8",null,null,"UB305X102X25",null,null,"UB914X305X238",null,null,"IPEAA160",null,null,"HE300A",null,null,"H 300 X 150 X 5.5 X 8",null,null,"W10X10X60",null,null,"W310X310X143",null,null,"W8X5.25X14",null,null,"W200X135X21.4",null,null,"UKA100X100X15",null,null,"LN56X36X5",null,null,"L203X152X13",null,null,"L203X152X13",null,null,"CoreBRB_1.50_BoltedLug",null,null,"L35X4",null,null,"ISA40X40X3",null,null,"HEAA800",null,null,"H1000X350X19X28",null,null,null,"L 65X6",null,null,"L100X65X8",null,null,"L35x4",null,null,"L_35x4",null,null,"L_35x4",null,null,"80X40X2.6RHS",null,null,{"$f":"AK1","v":"ArcelorMittal_US_ASTM-A913M"},null,null,null,"L35X4"]
["100X100X12",null,null,"L8X6X7/16",null,null,"L203X152X11.1",null,null,"L8X8X3/4",null,null,"L203X203X19",null,null,"RHS40X20X2",null,null,"UB305X102X28",null,null,"UB914X305X253",null,null,"IPEA160",null,null,"HE300B",null,null,"H 300 X 150 X 6.5 X 9",null,null,"W10X10X68",null,null,"W310X310X158",null,null,"W8X5.25X18",null,null,"W200X135X26.6",null,null,"UKA100X100X12",null,null,"LN63X40X4",null,null,"L203X102X25",null,null,"L203X102X25",null,null,"CoreBRB_1.50_Welded",null,null,"L35X5",null,null,"ISA40X40X4",null,null,"HEA800",null,null,"H1000X350X19X25",null,null,null,"L 65X8",null,null,"L100X65X9",null,null,"L35x5",null,null,"L_35x5",null,null,"L_35x5",null,null,"80X40X2.9RHS",null,null,{"$f":"AN1","v":"ArcelorMittal_US_ASTM-A992"},null,null,null,"L35X5"]
["100X100X10",null,null,"L8X4X1",null,null,"L203X102X25.4",null,null,"L8X8X5/8",null,null,"L203X203X15.9",null,null,"RHS40X20X2.2",null,null,"UB305X102X33",null,null,"UB914X305X271",null,null,"IPE160",null,null,"HE300M",null,null,"H 300 X 200 X 8 X 12",null,null,"W10X10X77",null,null,"W310X310X179",null,null,"W8X5.25X21",null,null,"W200X135X31.3",null,null,"UKA100X100X10",null,null,"LN63X40X5",null,null,"L203X102X19",null,null,"L203X102X19",null,null,"CoreBRB_1.50_Pinned",null,null,"L35X6",null,null,"ISA40X40X5",null,null,"HEB800",null,null,"H1000X350X16X32",null,null,null,"L 70X6",null,null,"L100X7",null,null,"L40x3",null,null,"L_40x3",null,null,"L_40x3",null,null,"80X40X3.2RHS",null,null,{"$f":"AQ1","v":"ArcelorMittal_US_ASTM-A992M"},null,null,null,"L35X6"]
["100X100X8",null,null,"L8X4X7/8",null,null,"L203X102X22.2",null,null,"L8X8X9/16",null,null,"L203X203X14.3",null,null,"RHS40X20X2.5",null,null,"UB305X127X37",null,null,"UB914X305X289",null,null,"IPEAA180",null,null,"HE320A",null,null,"H 300 X 300 X 10 X 15",null,null,"W10X10X88",null,null,"W310X310X202",null,null,"W8X6.5X24",null,null,"W200X165X35.9",null,null,"UKA100X100X8",null,null,"LN63X40X6",null,null,"L203X102X13",null,null,"L203X102X13",null,null,"CoreBRB_1.75_BoltedLug",null,null,"L40X3",null,null,"ISA40X40X6",null,null,"HEM800",null,null,"H1000X350X16X28",null,null,null,"L 75X6",null,null,"L100X75X10",null,null,"L40x4",null,null,"L_40x4",null,null,"L_40x4",null,null,"80X40X4.0RHS",null,null,{"$f":"AT1","v":"BSShapes2006"},null,null,null,"L40X3"]
["100X100X6",null,null,"L8X4X3/4",null,null,"L203X102X19",null,null,"L8X8X1/2",null,null,"L203X203X12.7",null,null,"RHS40X25X1.6",null,null,"UB305X127X42",null,null,"UB914X305X313",null,null,"IPEA180",null,null,"HE320B",null,null,"H 350 X 175 X 6 X 9",null,null,"W10X10X100",null,null,"W310X310X226",null,null,"W8X6.5X28",null,null,"W200X165X41.7",null,null,"UKA90X90X12",null,null,"LN63X40X7",null,null,"L178X102X19",null,null,"L178X102X19",null,null,"CoreBRB_1.75_Welded",null,null,"L40X4",null,null,"ISA45X45X3",null,null,"HE800X373",null,null,"H1000X350X16X25",null,null,null,"L 75X9",null,null,"L100X75X12",null,null,"L40x5",null,null,"L_40x5",null,null,"L_40x5",null,null,"80X40X4.8RHS",null,null,{"$f":"AW1","v":"ChineseGB08"},null,null,null,"L40X4"]
["90X90X10",null,null,"L8X4X5/8",null,null,"L203X102X15.9",null,null,"L8X6X1",null,null,"L203X152X25.4",null,null,"RHS40X25X1.8",null,null,"UB305X127X48",null,null,"UB914X305X345",null,null,"IPE180",null,null,"HE320M",null,null,"H 350 X 175 X 7 X 11",null,null,"W10X10X112",null,null,"W310X310X253",null,null,"W8X8X31",null,null,"W200X200X46.1",null,null,"UKA90X90X10",null,null,"LN70X45X4",null,null,"L178X102X16",null,null,"L178X102X16",null,null,"CoreBRB_1.75_Pinned",null,null,"L40X5",null,null,"ISA45X45X4",null,null,"HEAA900",null,null,"H1000X350X16X22",null,null,null,"L 75X12",null,null,"L100X75X8",null,null,"L40x6",null,null,"L_40x6",null,null,"L_40x6",null,null,"96X48X3.2RHS",null,null,{"$f":"AZ1","v":"CISC9"},null,null,null,"L40X5"]
["90X90X8",null,null,"L8X4X9/16",null,null,"L203X102X14.3",null,null,"L8X6X7/8",null,null,"L203X152X22.2",null,null,"RHS40X25X2",null,null,"UB305X165X40",null,null,"UB914X305X381",null,null,"IPEO180",null,null,"HE340A",null,null,"H 350 X 350 X 10 X 16",null,null,"W12X12X65",null,null,"W310X310X283",null,null,"W8X8X35",null,null,"W200X200X52",null,null,"UKA90X90X8",null,null,"LN70X45X5",null,null,"L178X102X13",null,null,"L178X102X13",null,null,"CoreBRB_2.00_BoltedLug",null,null,"L40X6",null,null,"ISA45X45X5",null,null,"HEA900",null,null,"H1000X300X19X40",null,null,null,"L 80X6",null,null,"L100X8",null,null,"L45x3",null,null,"L_45x3",null,null,"L_45x3",null,null,"96X48X4.0RHS",null,null,{"$f":"BC1","v":"CISC10"},null,null,null,"L40X6"]
["90X90X6",null,null,"L8X4X1/2",null,null,"L203X102X12.7",null,null,"L8X6X3/4",null,null,"L203X152X19",null,null,"RHS40X25X2.2",null,null,"UB305X165X46",null,null,"UB914X305X425",null,null,"IPEAA200",null,null,"HE340B",null,null,"H 350 X 350 X 12 X 19",null,null,"W12X12X72",null,null,"W310X310X313",null,null,"W8X8X40",null,null,"W200X200X59",null,null,"UKA90X90X7",null,null,"LN70X45X6",null,null,"L178X102X11",null,null,"L178X102X11",null,null,"CoreBRB_2.00_Welded",null,null,"L45X3",null,null,"ISA45X45X6",null,null,"HEB900",null,null,"H1000X300X19X36",null,null,null,"L 90X6",null,null,"L100X9",null,null,"L45x4",null,null,"L_45x4",null,null,"L_45x4",null,null,"96X48X4.8RHS",null,null,{"$f":"BF1","v":"CoreBraceBRB_2016"},null,null,null,"L45X3"]
["75X75X10",null,null,"L8X4X7/16",null,null,"L203X102X11.1",null,null,"L8X6X5/8",null,null,"L203X152X15.9",null,null,"RHS40X25X2.5",null,null,"UB305X165X54",null,null,"UB914X305X474",null,null,"IPEA200",null,null,"HE340M",null,null,"H 400 X 200 X 7 X 11",null,null,"W12X12X79",null,null,"W310X310X342",null,null,"W8X8X48",null,null,"W200X200X71",null,null,"UKA200X150X18",null,null,"LN70X45X7",null,null,"L178X102X9.5",null,null,"L178X102X9.5",null,null,"CoreBRB_2.00_Pinned",null,null,"L45X4",null,null,"ISA50X50X3",null,null,"HEM900",null,null,"H1000X300X19X32",null,null,null,"L 90X7",null,null,"L110X10",null,null,"L45x5",null,null,"L_45x5",null,null,"L_45x5",null,null,"120X60X3.2RHS",null,null,{"$f":"BI1","v":"Euro"},null,null,null,"L45X4"]
["75X75X8",null,null,"L7X4X3/4",null,null,"L178X102X19",null,null,"L8X6X9/16",null,null,"L203X152X14.3",null,null,"RHS40X25X2.9",null,null,"UB356X127X33",null,null,"UB914X305X521",null,null,"IPE200",null,null,"HE360A",null,null,"H 400 X 200 X 8 X 13",null,null,"W12X12X87",null,null,"W360X370X134",null,null,"W8X8X58",null,null,"W200X200X86",null,null,"UKA200X150X15",null,null,"LN75X50X5",null,null,"L152X152X25",null,null,"L152X152X25",null,null,"CoreBRB_2.25_BoltedLug",null,null,"L45X4.5",null,null,"ISA50X50X4",null,null,"IPEA300",null,null,"H1000X300X19X28",null,null,null,"L 90X10",null,null,"L110X12",null,null,"L45x6",null,null,"L_45x6",null,null,"L_45x6",null,null,"120X60X3.6RHS",null,null,{"$f":"BL1","v":"Indian"},null,null,null,"L45X4.5"]
["75X75X6",null,null,"L7X4X5/8",null,null,"L178X102X15.9",null,null,"L8X6X1/2",null,null,"L203X152X12.7",null,null,"RHS50X25X1.6",null,null,"UB356X127X39",null,null,"UB914X305X576",null,null,"IPEO200",null,null,"HE360B",null,null,"H 400 X 300 X 10 X 16",null,null,"W12X12X96",null,null,"W360X370X147",null,null,"W8X8X67",null,null,"W200X200X100",null,null,"UKA200X150X12",null,null,"LN75X50X6",null,null,"L152X152X22",null,null,"L152X152X22",null,null,"CoreBRB_2.25_Welded",null,null,"L45X5",null,null,"ISA50X50X5",null,null,"IPE300",null,null,"H1000X300X19X25",null,null,null,"L 90X13",null,null,"L110X14",null,null,"L50x3",null,null,"L_50x3",null,null,"L_50x3",null,null,"120X60X4.5RHS",null,null,{"$f":"BO1","v":"Jindal_Steel"},null,null,null,"L45X5"]
["75X75X5",null,null,"L7X4X1/2",null,null,"L178X102X12.7",null,null,"L8X6X7/16",null,null,"L203X152X11.1",null,null,"RHS50X25X2",null,null,"UB356X171X45",null,null,"UB914X419X343",null,null,"IPEAA220",null,null,"HE360M",null,null,"H 400 X 400 X 13 X 21",null,null,"W12X12X106",null,null,"W360X370X162",null,null,"W10X4X12",null,null,"W250X100X17.9",null,null,"UKA200X100X15",null,null,"LN75X50X8",null,null,"L152X152X19",null,null,"L152X152X19",null,null,"CoreBRB_2.25_Pinned",null,null,"L45X6",null,null,"ISA50X50X6",null,null,"IPEO300",null,null,"H1000X300X16X32",null,null,null,"L 100X7",null,null,"L110X6",null,null,"L50x4",null,null,"L_50x4",null,null,"L_50x4",null,null,"120X60X5.4RHS",null,null,{"$f":"BR1","v":"JIS-G-3192-2014"},null,null,null,"L45X6"]
["65X65X10",null,null,"L7X4X7/16",null,null,"L178X102X11.1",null,null,"L8X4X1",null,null,"L203X102X25.4",null,null,"RHS50X25X2.2",null,null,"UB356X171X51",null,null,"UB914X419X388",null,null,"IPEA220",null,null,"HE400A",null,null,"H 400 X 400 X 21 X 21",null,null,"W12X12X120",null,null,"W360X370X179",null,null,"W10X4X15",null,null,"W250X100X22.3",null,null,"UKA200X100X12",null,null,"LN75X50X10",null,null,"L152X152X16",null,null,"L152X152X16",null,null,"CoreBRB_2.50_BoltedLug",null,null,"L50X4",null,null,"ISA55X55X5",null,null,"IPEA360",null,null,"H1000X300X16X28",null,null,null,"L 100X10",null,null,"L110X7",null,null,"L50x5",null,null,"L_50x5",null,null,"L_50x5",null,null,"145X82X4.8RHS",null,null,{"$f":"BY1","v":"Nordic"},null,null,null,"L50X4"]
["65X65X8",null,null,"L7X4X3/8",null,null,"L178X102X9.5",null,null,"L8X4X7/8",null,null,"L203X102X22.2",null,null,"RHS50X25X2.5",null,null,"UB356X171X57",null,null,"UB1016X305X249",null,null,"IPE220",null,null,"HE400B",null,null,"H 400 X 400 X 18 X 28",null,null,"W12X12X136",null,null,"W360X370X196",null,null,"W10X4X17",null,null,"W250X100X25.3",null,null,"UKA200X100X10",null,null,"LN80X50X5",null,null,"L152X152X14",null,null,"L152X152X14",null,null,"CoreBRB_2.50_Welded",null,null,"L50X5",null,null,"ISA55X55X6",null,null,"IPE360",null,null,"H1000X300X16X25",null,null,null,"L 100X13",null,null,"L110X75X10",null,null,"L50x6",null,null,"L_50x6",null,null,"L_50x6",null,null,"145X82X5.4RHS",null,null,{"$f":"CB1","v":"Russian"},null,null,null,"L50X5"]
["65X65X6",null,null,"L6X6X1",null,null,"L152X152X25.4",null,null,"L8X4X3/4",null,null,"L203X102X19",null,null,"RHS50X25X2.9",null,null,"UB356X171X67",null,null,"UB1016X305X272",null,null,"IPEO220",null,null,"HE400M",null,null,"H 400 X 400 X 20 X 35",null,null,"W12X12X152",null,null,"W360X410X216",null,null,"W10X4X19",null,null,"W250X100X28.4",null,null,"UKA150X90X15",null,null,"LN80X50X6",null,null,"L152X152X13",null,null,"L152X152X13",null,null,"CoreBRB_2.50_Pinned",null,null,"L50X6",null,null,"ISA55X55X8",null,null,"IPEO360",null,null,"H1000X300X16X22",null,null,null,"L 120X8",null,null,"L110X75X8",null,null,"L50x7",null,null,"L_50x7",null,null,"L_50x7",null,null,"172X92X4.8RHS",null,null,{"$f":"CE1","v":"Russian2020_en"},null,null,null,"L50X6"]
["65X65X5",null,null,"L6X6X7/8",null,null,"L152X152X22.2",null,null,"L8X4X5/8",null,null,"L203X102X15.9",null,null,"RHS50X25X3.2",null,null,"UB406X140X39",null,null,"UB1016X305X314",null,null,"IPEAA240",null,null,"HE450A",null,null,"H 400 X 400 X 30 X 50",null,null,"W12X12X170",null,null,"W360X410X237",null,null,"W10X5.75X22",null,null,"W250X145X32.7",null,null,"UKA150X90X12",null,null,"LN80X50X7",null,null,"L152X152X11",null,null,"L152X152X11",null,null,"CoreBRB_2.75_BoltedLug",null,null,"L50X7",null,null,"ISA55X55X10",null,null,"IPEA400",null,null,"H1000X250X19X36",null,null,null,"L 130X9",null,null,"L110X8",null,null,"L50x8",null,null,"L_50x8",null,null,"L_50x8",null,null,"172X92X5.4RHS",null,null,{"$f":"CH1","v":"Russian2020_ru"},null,null,null,"L50X7"]
["55X55X6",null,null,"L6X6X3/4",null,null,"L152X152X19",null,null,"L8X4X9/16",null,null,"L203X102X14.3",null,null,"RHS50X30X1.6",null,null,"UB406X140X46",null,null,"UB1016X305X350",null,null,"IPEA240",null,null,"HE450B",null,null,"H 500 X 200 X 9 X 14",null,null,"W12X12X190",null,null,"W360X410X262",null,null,"W10X5.75X26",null,null,"W250X145X38.5",null,null,"UKA150X90X10",null,null,"LN80X50X8",null,null,"L152X152X9.5",null,null,"L152X152X9.5",null,null,"CoreBRB_2.75_Welded",null,null,"L50X8",null,null,"ISA60X60X5",null,null,"IPE400",null,null,"H1000X250X19X32",null,null,null,"L 130X12",null,null,"L110X9",null,null,"L56x4",null,null,"L_56x4",null,null,"L_56x4",null,null,"200X100X4.0RHS",null,null,{"$f":"CK1","v":"TATA_Steel"},null,null,null,"L50X8"]
["55X55X5",null,null,"L6X6X5/8",null,null,"L152X152X15.9",null,null,"L8X4X1/2",null,null,"L203X102X12.7",null,null,"RHS50X30X2",null,null,"UB406X178X54",null,null,"UB1016X305X393",null,null,"IPE240",null,null,"HE450M",null,null,"H 500 X 200 X 10 X 16",null,null,"W12X12X210",null,null,"W360X410X287",null,null,"W10X5.75X30",null,null,"W250X145X44.8",null,null,"UKA150X75X15",null,null,"LN90X56X5",null,null,"L152X152X7.9",null,null,"L152X152X7.9",null,null,"CoreBRB_2.75_Pinned",null,null,"L50X9",null,null,"ISA60X60X6",null,null,"IPEO400",null,null,"H1000X250X19X28",null,null,null,"L 130X15",null,null,"L120X10",null,null,"L56x5",null,null,"L_56x5",null,null,"L_56x5",null,null,"200X100X5.0RHS",null,null,null,null,null,null,"L50X9"]
["50X50X8",null,null,"L6X6X9/16",null,null,"L152X152X14.3",null,null,"L8X4X7/16",null,null,"L203X102X11.1",null,null,"RHS50X30X2.2",null,null,"UB406X178X60",null,null,"UB1016X305X415",null,null,"IPEO240",null,null,"HE500A",null,null,"H 500 X 300 X 11 X 15",null,null,"W12X12X230",null,null,"W360X410X314",null,null,"W10X8X33",null,null,"W250X200X49.1",null,null,"UKA150X75X12",null,null,"LN90X56X6",null,null,"L152X152X6.4",null,null,"L152X152X6.4",null,null,"CoreBRB_3.00_BoltedLug",null,null,"L55X4",null,null,"ISA60X60X8",null,null,"IPEA450",null,null,"H1000X250X19X25",null,null,null,"L 150X12",null,null,"L120X11",null,null,"L60x4",null,null,"L_60x4",null,null,"L_60x4",null,null,"200X100X6.0RHS",null,null,null,null,null,null,"L55X4"]
["50X50X6",null,null,"L6X6X1/2",null,null,"L152X152X12.7",null,null,"L7X4X3/4",null,null,"L178X102X19",null,null,"RHS50X30X2.5",null,null,"UB406X178X67",null,null,"UB1016X305X438",null,null,"IPEA270",null,null,"HE500B",null,null,"H 500 X 300 X 11 X 18",null,null,"W14X14.5X90",null,null,"W360X410X347",null,null,"W10X8X39",null,null,"W250X200X58",null,null,"UKA150X75X10",null,null,"LN90X56X7",null,null,"L152X102X22",null,null,"L152X102X22",null,null,"CoreBRB_3.00_Welded",null,null,"L55X5",null,null,"ISA60X60X10",null,null,"IPE450",null,null,"H1000X250X16X32",null,null,null,"L 150X15",null,null,"L120X12",null,null,"L60x5",null,null,"L_60x5",null,null,"L_60x5",null,null,"200X100X8.0RHS",null,null,null,null,null,null,"L55X5"]
["50X50X5",null,null,"L6X6X7/16",null,null,"L152X152X11.1",null,null,"L7X4X5/8",null,null,"L178X102X15.9",null,null,"RHS50X30X2.9",null,null,"UB406X178X74",null,null,"UB1016X305X494",null,null,"IPE270",null,null,"HE500M",null,null,"H 600 X 300 X 12 X 17",null,null,"W14X14.5X99",null,null,"W360X410X382",null,null,"W10X8X45",null,null,"W250X200X67",null,null,"UKA125X75X12",null,null,"LN90X56X8",null,null,"L152X102X19",null,null,"L152X102X19",null,null,"CoreBRB_3.00_Pinned",null,null,"L55X6",null,null,"ISA65X65X5",null,null,"IPEO450",null,null,"H1000X250X16X28",null,null,null,"L 150X19",null,null,"L120X13",null,null,"L60x6",null,null,"L_60x6",null,null,"L_60x6",null,null,"220X140X4.0RHS",null,null,null,null,null,null,"L55X6"]
["50X50X3",null,null,"L6X6X3/8",null,null,"L152X152X9.5",null,null,"L7X4X1/2",null,null,"L178X102X12.7",null,null,"RHS50X30X3.2",null,null,"UB457X152X52",null,null,"UB1016X305X584",null,null,"IPEO270",null,null,"HE550A",null,null,"H 600 X 300 X 12 X 20",null,null,"W14X14.5X109",null,null,"W360X410X421",null,null,"W10X10X49",null,null,"W250X250X73",null,null,"UKA125X75X10",null,null,"LN100X63X6",null,null,"L152X102X16",null,null,"L152X102X16",null,null,"CoreBRB_3.25_BoltedLug",null,null,"L55X8",null,null,"ISA65X65X6",null,null,"IPEA500",null,null,"H1000X250X16X25",null,null,null,"L 175X12",null,null,"L120X15",null,null,"L60x8",null,null,"L_60x8",null,null,"L_60x8",null,null,"220X140X5.0RHS",null,null,null,null,null,null,"L55X8"]
["45X45X6",null,null,"L6X6X5/16",null,null,"L152X152X7.9",null,null,"L7X4X7/16",null,null,"L178X102X11.1",null,null,"RHS50X30X3.6",null,null,"UB457X152X60",null,null,"UB1016X305X642",null,null,"IPEA300",null,null,"HE550B",null,null,"H 600 X 300 X 14 X 23",null,null,"W14X14.5X120",null,null,"W360X410X463",null,null,"W10X10X54",null,null,"W250X250X80",null,null,"UKA125X75X8",null,null,"LN100X63X7",null,null,"L152X102X14",null,null,"L152X102X14",null,null,"CoreBRB_3.25_Welded",null,null,"L60X4",null,null,"ISA65X65X8",null,null,"IPE500",null,null,"H1000X250X16X22",null,null,null,"L 175X15",null,null,"L120X18",null,null,"L60x10",null,null,"L_60x10",null,null,"L_60x10",null,null,"220X140X6.0RHS",null,null,null,null,null,null,"L60X4"]
["45X45X5",null,null,"L6X4X7/8",null,null,"L152X102X22.2",null,null,"L7X4X3/8",null,null,"L178X102X9.5",null,null,"RHS50X30X4",null,null,"UB457X152X67",null,null,"UB1016X305X748",null,null,"IPE300",null,null,"HE550M",null,null,"H 700 X 300 X 13 X 20",null,null,"W14X14.5X132",null,null,"W360X410X509",null,null,"W10X10X60",null,null,"W250X250X89",null,null,"UKA100X75X12",null,null,"LN100X63X8",null,null,"L152X102X13",null,null,"L152X102X13",null,null,"CoreBRB_3.25_Pinned",null,null,"L60X5",null,null,"ISA65X65X10",null,null,"IPEO500",null,null,"H950X400X19X40",null,null,null,"L 200X15",null,null,"L120X60X10",null,null,"L63x4",null,null,"L_63x4",null,null,"L_63x4",null,null,"220X140X8.0RHS",null,null,null,null,null,null,"L60X5"]
["45X45X3",null,null,"L6X4X3/4",null,null,"L152X102X19",null,null,"L6X6X1",null,null,"L152X152X25.4",null,null,"RHS50X30X4.5",null,null,"UB457X152X74",null,null,"UB1016X305X883",null,null,"IPEO300",null,null,"HE600A",null,null,"H 700 X 300 X 13 X 24",null,null,"W14X16X145",null,null,"W360X410X551",null,null,"W10X10X68",null,null,"W250X250X101",null,null,"UKA100X75X10",null,null,"LN100X63X10",null,null,"L152X102X11",null,null,"L152X102X11",null,null,"CoreBRB_3.50_BoltedLug",null,null,"L60X6",null,null,"ISA70X70X5",null,null,"IPEA600",null,null,"H950X400X19X36",null,null,null,"L 200X20",null,null,"L120X60X8",null,null,"L63x5",null,null,"L_63x5",null,null,"L_63x5",null,null,"240X120X4.0RHS",null,null,null,null,null,null,"L60X6"]
["40X40X6",null,null,"L6X4X5/8",null,null,"L152X102X15.9",null,null,"L6X6X7/8",null,null,"L152X152X22.2",null,null,"RHS50X30X5",null,null,"UB457X152X82",null,null,"UB1016X305X976",null,null,"IPEA330",null,null,"HE600B",null,null,"H 800 X 300 X 14 X 22",null,null,"W14X16X159",null,null,"W360X410X592",null,null,"W10X10X77",null,null,"W250X250X115",null,null,"UKA100X75X8",null,null,"LN100X80X6",null,null,"L152X102X9.5",null,null,"L152X102X9.5",null,null,"CoreBRB_3.50_Welded",null,null,"L60X8",null,null,"ISA70X70X6",null,null,"IPE600",null,null,"H950X400X19X32",null,null,null,"L 200X25",null,null,"L120X8",null,null,"L63x6",null,null,"L_63x6",null,null,"L_63x6",null,null,"240X120X5.0RHS",null,null,null,null,null,null,"L60X8"]
["40X40X5",null,null,"L6X4X9/16",null,null,"L152X102X14.3",null,null,"L6X6X3/4",null,null,"L152X152X19",null,null,"RHS50X30X6",null,null,"UB457X191X67",null,null,"UC254X254X73",null,null,"IPE330",null,null,"HE600M",null,null,"H 800 X 300 X 14 X 26",null,null,"W14X16X176",null,null,"W360X410X634",null,null,"W10X10X88",null,null,"W250X250X131",null,null,"UKA100X65X10",null,null,"LN100X80X7",null,null,"L152X102X7.9",null,null,"L152X102X7.9",null,null,"CoreBRB_3.50_Pinned",null,null,"L60X10",null,null,"ISA70X70X8",null,null,"IPEO600",null,null,"H950X400X19X28",null,null,null,"L 250X25",null,null,"L120X80X10",null,null,"L65x6",null,null,"L_65x6",null,null,"L_65x6",null,null,"240X120X6.0RHS",null,null,null,null,null,null,"L60X10"]
["40X40X3",null,null,"L6X4X1/2",null,null,"L152X102X12.7",null,null,"L6X6X5/8",null,null,"L152X152X15.9",null,null,"RHS50X30X8",null,null,"UB457X191X74",null,null,"UC254X254X89",null,null,"IPEO330",null,null,"HE600X337",null,null,"H 900 X 300 X 15 X 23",null,null,"W14X16X193",null,null,"W360X410X677",null,null,"W10X10X100",null,null,"W250X250X149",null,null,"UKA100X65X8",null,null,"LN100X80X8",null,null,"L152X89X16",null,null,"L152X89X16",null,null,"CoreBRB_3.75_BoltedLug",null,null,"L65X5",null,null,"ISA70X70X10",null,null,"IPEA100X55X6.9",null,null,"H950X400X19X25",null,null,null,"L 250X35",null,null,"L120X80X12",null,null,"L65x8",null,null,"L_65x8",null,null,"L_65x8",null,null,"240X120X8.0RHS",null,null,null,null,null,null,"L65X5"]
["30X30X6",null,null,"L6X4X7/16",null,null,"L152X102X11.1",null,null,"L6X6X9/16",null,null,"L152X152X14.3",null,null,"RHS66X33X1.6",null,null,"UB457X191X82",null,null,"UC254X254X107",null,null,"IPEA360",null,null,"HE600X399",null,null,"H 900 X 300 X 16 X 28",null,null,"W14X16X211",null,null,"W360X410X744",null,null,"W10X10X112",null,null,"W250X250X167",null,null,"UKA100X65X7",null,null,"LN100X80X10",null,null,"L152X89X13",null,null,"L152X89X13",null,null,"CoreBRB_3.75_Welded",null,null,"L65X6",null,null,"ISA75X75X5",null,null,"IPE100X55X8.1",null,null,"H950X400X16X32",null,null,null,"L 90X75",null,null,"L120X80X14",null,null,"L70x4",null,null,"L_70x4.5",null,null,"L_70x4.5",null,null,"260X180X6.0RHS",null,null,null,null,null,null,"L65X6"]
["30X30X5",null,null,"L6X4X3/8",null,null,"L152X102X9.5",null,null,"L6X6X1/2",null,null,"L152X152X12.7",null,null,"RHS66X33X2",null,null,"UB457X191X89",null,null,"UC254X254X132",null,null,"IPE360",null,null,"HE650A",null,null,"H 900 X 300 X 18 X 34",null,null,"W14X16X233",null,null,"W360X410X818",null,null,"W12X4X14",null,null,"W310X100X21.0",null,null,"RHHF50X30X3.2",null,null,"LN110X70X6",null,null,"L152X89X9.5",null,null,"L152X89X9.5",null,null,"CoreBRB_3.75_Pinned",null,null,"L65X7",null,null,"ISA75X75X6",null,null,"IPEA120X64X8.7",null,null,"H950X400X16X28",null,null,null,"L 100X75",null,null,"L120X80X8",null,null,"L70x5",null,null,"L_70x5",null,null,"L_70x5",null,null,"260X180X8.0RHS",null,null,null,null,null,null,"L65X7"]
["30X30X3",null,null,"L6X4X5/16",null,null,"L152X102X7.9",null,null,"L6X6X7/16",null,null,"L152X152X11.1",null,null,"RHS66X33X2.2",null,null,"UB457X191X98",null,null,"UC254X254X167",null,null,"IPEO360",null,null,"HE650B",null,null,null,null,null,"W14X16X257",null,null,"W360X410X900",null,null,"W12X4X16",null,null,"W310X100X23.8",null,null,"RHHF60X40X3",null,null,"LN110X70X7",null,null,"L152X89X7.9",null,null,"L152X89X7.9",null,null,"CoreBRB_4.00_BoltedLug",null,null,"L70X5",null,null,"ISA75X75X8",null,null,"IPE120X64X10.4",null,null,"H950X400X16X25",null,null,null,"L 125X75",null,null,"L120X9",null,null,"L70x6",null,null,"L_70x6",null,null,"L_70x6",null,null,"260X180X10.0RHS",null,null,null,null,null,null,"L70X5"]
["25X25X6",null,null,"L6X3-1/2X1/2",null,null,"L152X89X12.7",null,null,"L6X6X3/8",null,null,"L152X152X9.5",null,null,"RHS66X33X2.5",null,null,"UB533X210X82",null,null,"UC305X305X97",null,null,"IPEA400",null,null,"HE650M",null,null,null,null,null,"W14X16X283",null,null,"W360X410X990",null,null,"W12X4X19",null,null,"W310X100X28.3",null,null,"RHHF60X40X4",null,null,"LN110X70X8",null,null,"L127X127X22",null,null,"L127X127X22",null,null,"CoreBRB_4.00_Welded",null,null,"L70X6",null,null,"ISA75X75X10",null,null,"IPEA140X73X10.5",null,null,"H950X400X16X22",null,null,null,"L 125X90",null,null,"L130X65X10",null,null,"L70x7",null,null,"L_70x7",null,null,"L_70x7",null,null,"260X180X12.0RHS",null,null,null,null,null,null,"L70X6"]
["25X25X5",null,null,"L6X3-1/2X3/8",null,null,"L152X89X9.5",null,null,"L6X6X5/16",null,null,"L152X152X7.9",null,null,"RHS66X33X2.9",null,null,"UB533X210X92",null,null,"UC305X305X118",null,null,"IPE400",null,null,"HE650X343",null,null,null,null,null,"W14X16X311",null,null,"W360X410X1086",null,null,"W12X4X22",null,null,"W310X100X32.7",null,null,"RHHF60X40X5",null,null,"LN110X70X10",null,null,"L127X127X19",null,null,"L127X127X19",null,null,"CoreBRB_4.00_Pinned",null,null,"L70X7",null,null,"ISA80X80X6",null,null,"IPE140X73X12.9",null,null,"H950X350X19X40",null,null,null,"L 150X90",null,null,"L130X65X12",null,null,"L70x8",null,null,"L_70x8",null,null,"L_70x8",null,null,"300X150X6.0RHS",null,null,null,null,null,null,"L70X7"]
["25X25X3",null,null,"L6X3-1/2X5/16",null,null,"L152X89X7.9",null,null,"L6X4X7/8",null,null,"L152X102X22.2",null,null,"RHS66X33X3.2",null,null,"UB533X210X101",null,null,"UC305X305X137",null,null,"IPEO400",null,null,"HE650X407",null,null,null,null,null,"W14X16X342",null,null,"W360X410X1202",null,null,"W12X6.5X26",null,null,"W310X165X38.7",null,null,"RHHF80X40X3.2",null,null,"LN125X80X7",null,null,"L127X127X16",null,null,"L127X127X16",null,null,"CoreBRB_4.25_BoltedLug",null,null,"L70X8",null,null,"ISA80X80X8",null,null,"IPEA160X82X12.7",null,null,"H950X350X19X36",null,null,null,"L 150X100",null,null,"L130X65X8",null,null,"L70x10",null,null,"L_70x10",null,null,"L_70x10",null,null,"300X150X8.0RHS",null,null,null,null,null,null,"L70X8"]
["150X100X12",null,null,"L5X5X7/8",null,null,"L127X127X22.2",null,null,"L6X4X3/4",null,null,"L152X102X19",null,null,"RHS60X40X1.6",null,null,"UB533X210X109",null,null,"UC305X305X158",null,null,"IPEA450",null,null,"HE700A",null,null,null,null,null,"W14X16X370",null,null,"W360X410X1299",null,null,"W12X6.5X30",null,null,"W310X165X44.5",null,null,"RHHF80X40X4",null,null,"LN125X80X8",null,null,"L127X127X13",null,null,"L127X127X13",null,null,"CoreBRB_4.25_Welded",null,null,"L70X10",null,null,"ISA80X80X10",null,null,"IPE160X82X15.8",null,null,"H950X350X19X32",null,null,null,"L 200X90",null,null,"L150X100X10",null,null,"L75x5",null,null,"L_75x5",null,null,"L_75x5",null,null,"300X150X10.0RHS",null,null,null,null,null,null,"L70X10"]
["150X100X10",null,null,"L5X5X3/4",null,null,"L127X127X19",null,null,"L6X4X5/8",null,null,"L152X102X15.9",null,null,"RHS60X40X2",null,null,"UB533X210X122",null,null,"UC305X305X198",null,null,"IPE450",null,null,"HE700B",null,null,null,null,null,"W14X16X398",null,null,"W610X230X125",null,null,"W12X6.5X35",null,null,"W310X165X52",null,null,"RHHF80X40X5",null,null,"LN125X80X10",null,null,"L127X127X11",null,null,"L127X127X11",null,null,"CoreBRB_4.25_Pinned",null,null,"L75X5",null,null,"ISA80X80X12",null,null,"IPEA180X91X15.4",null,null,"H950X350X19X28",null,null,null,"L 250X90",null,null,"L150X100X12",null,null,"L75x6",null,null,"L_75x6",null,null,"L_75x6",null,null,"300X150X12.0RHS",null,null,null,null,null,null,"L75X5"]
["150X90X16",null,null,"L5X5X5/8",null,null,"L127X127X15.9",null,null,"L6X4X9/16",null,null,"L152X102X14.3",null,null,"RHS60X40X2.2",null,null,"UB610X229X101",null,null,"UC305X305X240",null,null,"IPEO450",null,null,"HE700M",null,null,null,null,null,"W14X16X426",null,null,"W610X230X140",null,null,"W12X8X40",null,null,"W310X200X60",null,null,"RHHF80X40X6.3",null,null,"LN125X80X12",null,null,"L127X127X9.5",null,null,"L127X127X9.5",null,null,"CoreBRB_4.50_BoltedLug",null,null,"L75X6",null,null,"ISA90X90X6",null,null,"IPE180X91X18.8",null,null,"H950X350X19X25",null,null,null,"L 300X90",null,null,"L150X100X14",null,null,"L75x7",null,null,"L_75x7",null,null,"L_75x7",null,null,"300X200X6.0RHS",null,null,null,null,null,null,"L75X6"]
["150X90X12",null,null,"L5X5X1/2",null,null,"L127X127X12.7",null,null,"L6X4X1/2",null,null,"L152X102X12.7",null,null,"RHS60X40X2.5",null,null,"UB610X229X113",null,null,"UC305X305X283",null,null,"IPEA500",null,null,"HE700X352",null,null,null,null,null,"W14X16X455",null,null,"W610X230X153",null,null,"W12X8X45",null,null,"W310X200X67",null,null,"RHHF80X40X8",null,null,"LN140X90X8",null,null,"L127X127X7.9",null,null,"L127X127X7.9",null,null,"CoreBRB_4.50_Welded",null,null,"L75X7",null,null,"ISA90X90X8",null,null,"IPEO180X92X21.3",null,null,"H950X350X16X32",null,null,null,"L 350X100",null,null,"L150X12",null,null,"L75x8",null,null,"L_75x8",null,null,"L_75x8",null,null,"300X200X8.0RHS",null,null,null,null,null,null,"L75X7"]
["150X90X10",null,null,"L5X5X7/16",null,null,"L127X127X11.1",null,null,"L6X4X7/16",null,null,"L152X102X11.1",null,null,"RHS60X40X2.9",null,null,"UB610X229X125",null,null,"UC356X368X129",null,null,"IPE500",null,null,"HE700X418",null,null,null,null,null,"W14X16X500",null,null,"W610X325X155",null,null,"W12X8X50",null,null,"W310X200X74",null,null,"RHHF90X50X3.6",null,null,"LN140X90X10",null,null,"L127X127X6.4",null,null,"L127X127X6.4",null,null,"CoreBRB_4.50_Pinned",null,null,"L80X6",null,null,"ISA90X90X10",null,null,"IPEA200X100X18.4",null,null,"H950X350X16X28",null,null,null,"L 400X100",null,null,"L150X15",null,null,"L75x9",null,null,"L_75x9",null,null,"L_75x9",null,null,"300X200X10.0RHS",null,null,null,null,null,null,"L80X6"]
["150X90X8",null,null,"L5X5X3/8",null,null,"L127X127X9.5",null,null,"L6X4X3/8",null,null,"L152X102X9.5",null,null,"RHS60X40X3.2",null,null,"UB610X229X140",null,null,"UC356X368X153",null,null,"IPEO500",null,null,"HE800A",null,null,null,null,null,"W14X16X550",null,null,"W610X325X174",null,null,"W12X10X53",null,null,"W310X250X79",null,null,"RHHF90X50X5",null,null,"LN140X90X12",null,null,"L127X89X19",null,null,"L127X89X19",null,null,"CoreBRB_4.75_BoltedLug",null,null,"L80X7",null,null,"ISA90X90X12",null,null,"IPE200X100X22.4",null,null,"H950X350X16X25",null,null,null,"B 40X40X1.6",null,null,"L150X18",null,null,"L80x5",null,null,"L_80x5.5",null,null,"L_80x5.5",null,null,"300X200X12.0RHS",null,null,null,null,null,null,"L80X7"]
["125X75X12",null,null,"L5X5X5/16",null,null,"L127X127X7.9",null,null,"L6X4X5/16",null,null,"L152X102X7.9",null,null,"RHS60X40X3.6",null,null,"UB610X305X149",null,null,"UC356X368X177",null,null,"IPEA550",null,null,"HE800B",null,null,null,null,null,"W14X16X605",null,null,"W610X325X195",null,null,"W12X10X58",null,null,"W310X250X86",null,null,"RHHF90X50X6.3",null,null,"LN140X90X14",null,null,"L127X89X16",null,null,"L127X89X16",null,null,"CoreBRB_4.75_Welded",null,null,"L80X8",null,null,"ISA100X100X6",null,null,"IPEO200X102X25.1",null,null,"H950X350X16X22",null,null,null,"B 40X40X2.3",null,null,"L15X3",null,null,"L80x6",null,null,"L_80x6",null,null,"L_80x6",null,null,"25X25X1.6SHS",null,null,null,null,null,null,"L80X8"]
["125X75X10",null,null,"L5X3-1/2X3/4",null,null,"L127X89X19",null,null,"L6X3-1/2X1/2",null,null,"L152X89X12.7",null,null,"RHS60X40X4",null,null,"UB610X305X179",null,null,"UC356X368X202",null,null,"IPE550",null,null,"HE800M",null,null,null,null,null,"W14X16X665",null,null,"W610X325X217",null,null,"W12X12X65",null,null,"W310X310X97",null,null,"RHHF100X50X3",null,null,"LN150X90X8",null,null,"L127X89X13",null,null,"L127X89X13",null,null,"CoreBRB_4.75_Pinned",null,null,"L80X10",null,null,"ISA100X100X8",null,null,"IPEA220X110X22.2",null,null,"H950X300X19X40",null,null,null,"B 50X50X1.6",null,null,"L180X15",null,null,"L80x7",null,null,"L_80x7",null,null,"L_80x7",null,null,"25X25X2.0SHS",null,null,null,null,null,null,"L80X10"]
["125X75X8",null,null,"L5X3-1/2X5/8",null,null,"L127X89X15.9",null,null,"L6X3-1/2X3/8",null,null,"L152X89X9.5",null,null,"RHS60X40X4.5",null,null,"UB610X305X238",null,null,"UC356X406X235",null,null,"IPEO550",null,null,"HE800X373",null,null,null,null,null,"W14X16X730",null,null,"W610X325X241",null,null,"W12X12X72",null,null,"W310X310X107",null,null,"RHHF100X50X3.2",null,null,"LN150X90X10",null,null,"L127X89X9.5",null,null,"L127X89X9.5",null,null,"CoreBRB_5.00_BoltedLug",null,null,"L80X12",null,null,"ISA100X100X10",null,null,"IPE220X110X26.2",null,null,"H950X300X19X36",null,null,null,"B 50X50X2.3",null,null,"L180X18",null,null,"L80x8",null,null,"L_80x8",null,null,"L_80x8",null,null,"25X25X2.6SHS",null,null,null,null,null,null,"L80X12"]
["125X75X6",null,null,"L5X3-1/2X1/2",null,null,"L127X89X12.7",null,null,"L6X3-1/2X5/16",null,null,"L152X89X7.9",null,null,"RHS60X40X5",null,null,"UB686X254X125",null,null,"UC356X406X287",null,null,"IPEA600",null,null,"HE800X444",null,null,null,null,null,"W14X16X808",null,null,"W610X325X262",null,null,"W12X12X79",null,null,"W310X310X117",null,null,"RHHF100X50X4",null,null,"LN150X90X12",null,null,"L127X89X7.9",null,null,"L127X89X7.9",null,null,"CoreBRB_5.00_Welded",null,null,"L90X6",null,null,"ISA100X100X12",null,null,"IPEO220X112X29.3",null,null,"H950X300X19X32",null,null,null,"B 50X50X3.2",null,null,"L180X20",null,null,"L80x10",null,null,"L_80x10",null,null,"L_80x10",null,null,"25X25X3.2SHS",null,null,null,null,null,null,"L90X6"]
["100X75X10",null,null,"L5X3-1/2X3/8",null,null,"L127X89X9.5",null,null,"L5X5X7/8",null,null,"L127X127X22.2",null,null,"RHS60X40X6",null,null,"UB686X254X140",null,null,"UC356X406X340",null,null,"IPE600",null,null,"HE900A",null,null,null,null,null,"W14X16X873",null,null,"W610X325X285",null,null,"W12X12X87",null,null,"W310X310X129",null,null,"RHHF100X50X5",null,null,"LN150X90X14",null,null,"L127X89X6.4",null,null,"L127X89X6.4",null,null,"CoreBRB_5.00_Pinned",null,null,"L90X7",null,null,"ISA110X110X8",null,null,"IPEA240X120X26.1",null,null,"H950X300X19X28",null,null,null,"B 60X60X1.6",null,null,"L200X16",null,null,"L80x12",null,null,"L_80x12",null,null,"L_80x12",null,null,"30X30X2.0SHS",null,null,null,null,null,null,"L90X7"]
["100X75X8",null,null,"L5X3-1/2X5/16",null,null,"L127X89X7.9",null,null,"L5X5X3/4",null,null,"L127X127X19",null,null,"RHS75X25X1.6",null,null,"UB686X254X152",null,null,"UC356X406X393",null,null,"IPEO600",null,null,"HE900B",null,null,null,null,null,"W24X9X84",null,null,"W610X325X307",null,null,"W12X12X96",null,null,"W310X310X143",null,null,"RHHF100X50X6.3",null,null,"LN150X90X15",null,null,"L127X76X13",null,null,"L127X76X13",null,null,"CoreBRB_5.50_BoltedLug",null,null,"L90X8",null,null,"ISA110X110X10",null,null,"IPE240X120X30.7",null,null,"H950X300X19X25",null,null,null,"B 60X60X2.3",null,null,"L200X18",null,null,"L90x6",null,null,"L_90x6",null,null,"L_90x6",null,null,"30X30X2.6SHS",null,null,null,null,null,null,"L90X8"]
["100X75X6",null,null,"L5X3-1/2X1/4",null,null,"L127X89X6.4",null,null,"L5X5X5/8",null,null,"L127X127X15.9",null,null,"RHS75X25X2",null,null,"UB686X254X170",null,null,"UC356X406X467",null,null,"IPE750X137",null,null,"HE900M",null,null,null,null,null,"W24X9X94",null,null,"W610X325X341",null,null,"W12X12X106",null,null,"W310X310X158",null,null,"RHHF100X50X8",null,null,"LN150X90X16",null,null,"L127X76X11",null,null,"L127X76X11",null,null,"CoreBRB_5.50_Welded",null,null,"L90X9",null,null,"ISA110X110X12",null,null,"IPEO240X122X34.3",null,null,"H950X300X16X32",null,null,null,"B 60X60X3.2",null,null,"L200X20",null,null,"L90x7",null,null,"L_90x7",null,null,"L_90x7",null,null,"30X30X3.2SHS",null,null,null,null,null,null,"L90X9"]
["75X50X8",null,null,"L5X3X1/2",null,null,"L127X76X12.7",null,null,"L5X5X1/2",null,null,"L127X127X12.7",null,null,"RHS75X25X2.5",null,null,"UB762X267X134",null,null,"UC356X406X509",null,null,"IPE750X147",null,null,"HE900X391",null,null,null,null,null,"W24X9X103",null,null,"W610X325X415",null,null,"W12X12X120",null,null,"W310X310X179",null,null,"RHHF100X60X3.6",null,null,"LN160X100X10",null,null,"L127X76X9.5",null,null,"L127X76X9.5",null,null,"CoreBRB_5.50_Pinned",null,null,"L90X10",null,null,"ISA110X110X15",null,null,"IPEA270X135X30.7",null,null,"H950X300X16X28",null,null,null,"B 75X75X1.6",null,null,"L200X24",null,null,"L90x8",null,null,"L_90x8",null,null,"L_90x8",null,null,"38X38X2.0SHS",null,null,null,null,null,null,"L90X10"]
["75X50X6",null,null,"L5X3X7/16",null,null,"L127X76X11.1",null,null,"L5X5X7/16",null,null,"L127X127X11.1",null,null,"RHS75X25X2.9",null,null,"UB762X267X147",null,null,"UC356X406X551",null,null,"IPE750X173",null,null,"HE900X466",null,null,null,null,null,"W24X12.75X104",null,null,"W610X325X455",null,null,"W12X12X136",null,null,"W310X310X202",null,null,"RHHF100X60X5",null,null,"LN160X100X12",null,null,"L127X76X7.9",null,null,"L127X76X7.9",null,null,"CoreBRB_6.00_BoltedLug",null,null,"L90X12",null,null,"ISA130X130X8",null,null,"IPE270X135X36.1",null,null,"H950X300X16X25",null,null,null,"B 75X75X2.3",null,null,"L20X3",null,null,"L90x9",null,null,"L_90x9",null,null,"L_90x9",null,null,"38X38X2.6SHS",null,null,null,null,null,null,"L90X12"]
["75X50X5",null,null,"L5X3X3/8",null,null,"L127X76X9.5",null,null,"L5X5X3/8",null,null,"L127X127X9.5",null,null,"RHS75X25X3.2",null,null,"UB762X267X173",null,null,"UC356X406X592",null,null,"IPE750X196",null,null,"HE1000X249",null,null,null,null,null,"W24X12.75X117",null,null,"W610X325X498",null,null,"W12X12X152",null,null,"W310X310X226",null,null,"RHHF100X60X6.3",null,null,"LN160X100X14",null,null,"L127X76X6.4",null,null,"L127X76X6.4",null,null,"CoreBRB_6.00_Welded",null,null,"L100X6",null,null,"ISA130X130X10",null,null,"IPEO270X136X42.3",null,null,"H950X300X16X22",null,null,null,"B 75X75X3.2",null,null,"L20X4",null,null,"L90x10",null,null,"L_90x10",null,null,"L_90x10",null,null,"38X38X3.2SHS",null,null,null,null,null,null,"L100X6"]
["65X50X8",null,null,"L5X3X5/16",null,null,"L127X76X7.9",null,null,"L5X5X5/16",null,null,"L127X127X7.9",null,null,"RHS70X30X3",null,null,"UB762X267X197",null,null,"UC356X406X634",null,null,"HE100AA",null,null,"HE1000A",null,null,null,null,null,"W24X12.75X131",null,null,"W610X325X551",null,null,"W12X12X170",null,null,"W310X310X253",null,null,"RHHF100X60X8",null,null,"LN160X100X16",null,null,"L102X102X19",null,null,"L102X102X19",null,null,"CoreBRB_6.00_Pinned",null,null,"L100X7",null,null,"ISA130X130X12",null,null,"IPEA300X150X36.5",null,null,"H950X250X19X36",null,null,null,"B 75X75X4.5",null,null,"L25X3",null,null,"L90x12",null,null,"L_90x12",null,null,"L_90x12",null,null,"38X38X4.0SHS",null,null,null,null,null,null,"L100X7"]
["65X50X6",null,null,"L5X3X1/4",null,null,"L127X76X6.4",null,null,"L5X3-1/2X3/4",null,null,"L127X89X19",null,null,"RHS70X30X3.2",null,null,"UB838X292X176",null,null,"UC356X406X677",null,null,"HE100A",null,null,"HE1000B",null,null,null,null,null,"W24X12.75X146",null,null,"W690X250X152",null,null,"W12X12X190",null,null,"W310X310X283",null,null,"RHHF120X60X3.6",null,null,"LN180X110X10",null,null,"L102X102X16",null,null,"L102X102X16",null,null,"CoreBRB_6.50_BoltedLug",null,null,"L100X8",null,null,"ISA130X130X15",null,null,"IPE300X150X42.2",null,null,"H950X250X19X32",null,null,null,"B 80X80X2.3",null,null,"L25X4",null,null,"L100x6.5",null,null,"L_100x6,5",null,null,"L_100x6,5",null,null,"40X40X2.6SHS",null,null,null,null,null,null,"L100X8"]
["65X50X5",null,null,"L4X4X3/4",null,null,"L102X102X19",null,null,"L5X3-1/2X5/8",null,null,"L127X89X15.9",null,null,"RHS70X30X3.6",null,null,"UB838X292X194",null,null,"UC356X406X744",null,null,"HE100B",null,null,"HE1000M",null,null,null,null,null,"W24X12.75X162",null,null,"W690X250X170",null,null,"W12X12X210",null,null,"W310X310X313",null,null,"RHHF120X60X5",null,null,"LN180X110X12",null,null,"L102X102X13",null,null,"L102X102X13",null,null,"CoreBRB_6.50_Welded",null,null,"L100X9",null,null,"ISA150X150X10",null,null,"IPEO300X152X49.3",null,null,"H950X250X19X28",null,null,null,"B 80X80X3.2",null,null,"L25X5",null,null,"L100x7",null,null,"L_100x7",null,null,"L_100x7",null,null,"40X40X2.9SHS",null,null,null,null,null,null,"L100X9"]
["250X150X9RHS",null,null,"L4X4X5/8",null,null,"L102X102X15.9",null,null,"L5X3-1/2X1/2",null,null,"L127X89X12.7",null,null,"RHS70X30X4",null,null,"UB838X292X226",null,null,"UC356X406X818",null,null,"HE100C",null,null,"HE1000X393",null,null,null,null,null,"W24X12.75X176",null,null,"W690X250X192",null,null,"W12X12X230",null,null,"W310X310X342",null,null,"RHHF120X60X6.3",null,null,"LN180X110X14",null,null,"L102X102X11",null,null,"L102X102X11",null,null,"CoreBRB_6.50_Pinned",null,null,"L100X10",null,null,"ISA150X150X12",null,null,"NPB300X150X36.5",null,null,"H950X250X19X25",null,null,null,"B 80X80X4.5",null,null,"L30X20X3",null,null,"L100x8",null,null,"L_100x8",null,null,"L_100x8",null,null,"40X40X3.2SHS",null,null,null,null,null,null,{"$f":"IF(OFFSET($A67,0,($CQ$2-1)*3)=0,\"\",OFFSET($A67,0,($CQ$2-1)*3))","v":"L100X10"}]
["250X150X6RHS",null,null,"L4X4X1/2",null,null,"L102X102X12.7",null,null,"L5X3-1/2X3/8",null,null,"L127X89X9.5",null,null,"RHS70X30X4.5",null,null,"UB914X305X201",null,null,"UC356X406X900",null,null,"HE100M",null,null,"HE1000X415",null,null,null,null,null,"W24X12.75X192",null,null,"W760X265X161",null,null,"W14X5X22",null,null,"W360X130X32.9",null,null,"RHHF120X60X8",null,null,"LN180X110X16",null,null,"L102X102X9.5",null,null,"L102X102X9.5",null,null,"CoreBRB_7.00_BoltedLug",null,null,"L100X12",null,null,"ISA150X150X15",null,null,"NPB300X150X42.2",null,null,"H950X250X16X32",null,null,null,"B 90X90X2.3",null,null,"L30X20X4",null,null,"L100x10",null,null,"L_100x10",null,null,"L_100x10",null,null,"40X40X4.0SHS",null,null,null,null,null,null,"L100X12"]
["250X150X5RHS",null,null,"L4X4X7/16",null,null,"L102X102X11.1",null,null,"L5X3-1/2X5/16",null,null,"L127X89X7.9",null,null,"RHS70X30X5",null,null,"UB914X305X224",null,null,"UC356X406X990",null,null,"HE120AA",null,null,"HE1000X438",null,null,null,null,null,"W24X12.75X207",null,null,"W760X265X173",null,null,"W14X5X26",null,null,"W360X130X39.0",null,null,"RHHF120X80X5",null,null,"LN200X125X12",null,null,"L102X102X7.9",null,null,"L102X102X7.9",null,null,"CoreBRB_7.00_Welded",null,null,"L100X14",null,null,"ISA150X150X18",null,null,"NPB300X150X49.3",null,null,"H950X250X16X28",null,null,null,"B 90X90X3.2",null,null,"L30X20X5",null,null,"L100x12",null,null,"L_100x12",null,null,"L_100x12",null,null,"50X50X2.6SHS",null,null,null,null,null,null,"L100X14"]
["200X100X9RHS",null,null,"L4X4X3/8",null,null,"L102X102X9.5",null,null,"L5X3-1/2X1/4",null,null,"L127X89X6.4",null,null,"RHS70X30X5.4",null,null,"UB914X305X238",null,null,"UC356X406X1086",null,null,"HE120A",null,null,"HE1000X494",null,null,null,null,null,"W24X12.75X229",null,null,"W760X265X185",null,null,"W14X6.75X30",null,null,"W360X170X44.6",null,null,"RHHF120X80X6.3",null,null,"LN200X125X14",null,null,"L102X102X6.4",null,null,"L102X102X6.4",null,null,"CoreBRB_7.00_Pinned",null,null,"L100X15",null,null,"ISA200X200X12",null,null,"NPB350X170X50.2",null,null,"H950X250X16X25",null,null,null,"B 100X100X2.3",null,null,"L30X3",null,null,"L100x14",null,null,"L_100x14",null,null,"L_100x14",null,null,"50X50X2.9SHS",null,null,null,null,null,null,"L100X15"]
["200X100X6RHS",null,null,"L4X4X5/16",null,null,"L102X102X7.9",null,null,"L5X3X1/2",null,null,"L127X76X12.7",null,null,"RHS70X30X6",null,null,"UB914X305X253",null,null,"UC356X406X1202",null,null,"HE120B",null,null,"HE1000X584",null,null,null,null,null,"W24X12.75X279",null,null,"W760X265X196",null,null,"W14X6.75X34",null,null,"W360X170X51",null,null,"RHHF120X80X8",null,null,"LN200X125X16",null,null,"L102X89X13",null,null,"L102X89X13",null,null,"CoreBRB_7.50_BoltedLug",null,null,"L110X6",null,null,"ISA200X200X15",null,null,"NPB350X170X57.1",null,null,"H950X250X16X22",null,null,null,"B 100X100X3.2",null,null,"L30X4",null,null,"L100x15",null,null,"L_100x15",null,null,"L_100x15",null,null,"50X50X3.6SHS",null,null,null,null,null,null,"L110X6"]
["200X100X5RHS",null,null,"L4X4X1/4",null,null,"L102X102X6.4",null,null,"L5X3X7/16",null,null,"L127X76X11.1",null,null,"RHS70X30X8",null,null,"UB914X305X271",null,null,"UC356X406X1299",null,null,"HE120C",null,null,"HL920X344",null,null,null,null,null,"W24X12.75X306",null,null,"W760X265X220",null,null,"W14X6.75X38",null,null,"W360X170X58",null,null,"RHHF120X80X10",null,null,"LN200X125X18",null,null,"L102X89X11",null,null,"L102X89X11",null,null,"CoreBRB_7.50_Welded",null,null,"L110X7",null,null,"ISA200X200X18",null,null,"NPB350X170X66",null,null,"H900X400X19X40",null,null,null,"B 100X100X4",null,null,"L30X5",null,null,"L100x16",null,null,"L_100x16",null,null,"L_100x16",null,null,"50X50X4.5SHS",null,null,null,null,null,null,"L110X7"]
["200X100X4RHS",null,null,"L4X3-1/2X1/2",null,null,"L102X89X12.7",null,null,"L5X3X3/8",null,null,"L127X76X9.5",null,null,"RHS70X50X3",null,null,"UB914X305X289",null,null,"UBP254X254X85",null,null,"HE120M",null,null,"HL920X368",null,null,null,null,null,"W24X12.75X335",null,null,"W840X295X193",null,null,"W14X8X43",null,null,"W360X200X64",null,null,"RHHF150X100X5",null,null,"L20X3",null,null,"L102X89X9.5",null,null,"L102X89X9.5",null,null,"CoreBRB_7.50_Pinned",null,null,"L110X8",null,null,"ISA200X200X25",null,null,"NPB400X180X57.4",null,null,"H900X400X19X36",null,null,null,"B 100X100X4.5",null,null,"L30X6",null,null,"L110x7",null,null,"L_110x7",null,null,"L_110x7",null,null,"60X60X2.6SHS",null,null,null,null,null,null,"L110X8"]
["200X100X3RHS",null,null,"L4X3-1/2X3/8",null,null,"L102X89X9.5",null,null,"L5X3X5/16",null,null,"L127X76X7.9",null,null,"RHS70X50X3.2",null,null,"UB914X305X313",null,null,"UBP305X305X110",null,null,"HE140AA",null,null,"HL920X390",null,null,null,null,null,"W24X12.75X370",null,null,"W840X295X210",null,null,"W14X8X48",null,null,"W360X200X72",null,null,"RHHF150X100X6.3",null,null,"L20X4",null,null,"L102X89X7.9",null,null,"L102X89X7.9",null,null,"CoreBRB_8.00_BoltedLug",null,null,"L110X9",null,null,"ISA30X20X3",null,null,"NPB400X180X66.3",null,null,"H900X400X19X32",null,null,null,"B 100X100X6",null,null,"L35X20X4",null,null,"L110x8",null,null,"L_110x8",null,null,"L_110x8",null,null,"60X60X2.9SHS",null,null,null,null,null,null,"L110X9"]
["185X65X6RHS",null,null,"L4X3-1/2X5/16",null,null,"L102X89X7.9",null,null,"L5X3X1/4",null,null,"L127X76X6.4",null,null,"RHS70X50X3.6",null,null,"UB914X305X345",null,null,"UBP305X305X126",null,null,"HE140A",null,null,"HL920X420",null,null,null,null,null,"W27X10X102",null,null,"W840X295X226",null,null,"W14X8X53",null,null,"W360X200X79",null,null,"RHHF150X100X8",null,null,"L25X3",null,null,"L102X89X6.4",null,null,"L102X89X6.4",null,null,"CoreBRB_8.00_Welded",null,null,"L110X10",null,null,"ISA30X20X4",null,null,"NPB400X180X75.7",null,null,"H900X400X19X28",null,null,null,"B 100X100X9",null,null,"L35X20X5",null,null,"L120x8",null,null,"L_120x8",null,null,"L_120x8",null,null,"60X60X3.2SHS",null,null,null,null,null,null,"L110X10"]
["185X65X5RHS",null,null,"L4X3-1/2X1/4",null,null,"L102X89X6.4",null,null,"L4X4X3/4",null,null,"L102X102X19",null,null,"RHS70X50X4",null,null,"UB914X305X381",null,null,"UBP305X305X149",null,null,"HE140B",null,null,"HL920X449",null,null,null,null,null,"W27X10X114",null,null,"W840X295X251",null,null,"W14X10X61",null,null,"W360X250X91",null,null,"RHHF150X100X10",null,null,"L25X4",null,null,"L102X76X16",null,null,"L102X76X16",null,null,"CoreBRB_8.00_Pinned",null,null,"L110X12",null,null,"ISA30X20X5",null,null,"NPB450X190X67.1",null,null,"H900X400X16X32",null,null,null,"B 100X100X12",null,null,"L35X3",null,null,"L120x10",null,null,"L_120x10",null,null,"L_120x10",null,null,"60X60X4.0SHS",null,null,null,null,null,null,"L110X12"]
["185X65X4RHS",null,null,"L4X3X5/8",null,null,"L102X76X15.9",null,null,"L4X4X5/8",null,null,"L102X102X15.9",null,null,"RHS70X50X5",null,null,"UB914X305X425",null,null,"UBP305X305X186",null,null,"HE140C",null,null,"HL920X491",null,null,null,null,null,"W27X10X129",null,null,"W920X310X223",null,null,"W14X10X68",null,null,"W360X250X101",null,null,"RHHF150X100X12.5",null,null,"L30X3",null,null,"L102X76X13",null,null,"L102X76X13",null,null,"CoreBRB_8.50_BoltedLug",null,null,"L110X14",null,null,"ISA40X25X3",null,null,"NPB450X190X77.6",null,null,"H900X400X16X28",null,null,null,"B 125X125X3.2",null,null,"L35X3.5",null,null,"L120x12",null,null,"L_120x12",null,null,"L_120x12",null,null,"60X60X4.8SHS",null,null,null,null,null,null,"L110X14"]
["185X65X3RHS",null,null,"L4X3X1/2",null,null,"L102X76X12.7",null,null,"L4X4X1/2",null,null,"L102X102X12.7",null,null,"RHS70X50X5.4",null,null,"UB914X305X474",null,null,"UBP305X305X223",null,null,"HE140M",null,null,"HL920X537",null,null,null,null,null,"W30X10.5X108",null,null,"W920X310X238",null,null,"W14X10X74",null,null,"W360X250X110",null,null,"RHHF150X125X4",null,null,"L30X4",null,null,"L102X76X11",null,null,"L102X76X11",null,null,"CoreBRB_8.50_Welded",null,null,"L120X8",null,null,"ISA40X25X4",null,null,"NPB450X190X92.4",null,null,"H900X400X16X25",null,null,null,"B 125X125X4.5",null,null,"L35X4",null,null,"L120x15",null,null,"L_120x15",null,null,"L_120x15",null,null,"72X72X3.2SHS",null,null,null,null,null,null,"L120X8"]
["152X76X6RHS",null,null,"L4X3X3/8",null,null,"L102X76X9.5",null,null,"L4X4X7/16",null,null,"L102X102X11.1",null,null,"RHS70X50X6",null,null,"UB914X305X521",null,null,"UBP356X368X109",null,null,"HE160AA",null,null,"HL920X588",null,null,null,null,null,"W30X10.5X116",null,null,"W920X310X253",null,null,"W14X10X82",null,null,"W360X250X122",null,null,"RHHF150X125X5",null,null,"L36X3",null,null,"L102X76X9.5",null,null,"L102X76X9.5",null,null,"CoreBRB_8.50_Pinned",null,null,"L120X9",null,null,"ISA40X25X5",null,null,"NPB500X200X79.4",null,null,"H900X350X19X40",null,null,null,"B 125X125X5",null,null,"L35X5",null,null,"L125x8",null,null,"L_125x8",null,null,"L_125x8",null,null,"72X72X4.0SHS",null,null,null,null,null,null,"L120X9"]
["152X76X5RHS",null,null,"L4X3X5/16",null,null,"L102X76X7.9",null,null,"L4X4X3/8",null,null,"L102X102X9.5",null,null,"RHS70X50X8",null,null,"UB914X305X576",null,null,"UBP356X368X133",null,null,"HE160A",null,null,"HL920X656",null,null,null,null,null,"W30X10.5X124",null,null,"W920X310X271",null,null,"W14X14.5X90",null,null,"W360X370X134",null,null,"RHHF150X125X6.3",null,null,"L36X4",null,null,"L102X76X7.9",null,null,"L102X76X7.9",null,null,"CoreBRB_9.00_BoltedLug",null,null,"L120X10",null,null,"ISA40X25X6",null,null,"NPB500X200X90.7",null,null,"H900X350X19X36",null,null,null,"B 125X125X6",null,null,"L35X6",null,null,"L125x9",null,null,"L_125x9",null,null,"L_125x9",null,null,"72X72X4.8SHS",null,null,null,null,null,null,"L120X10"]
["150X100X9RHS",null,null,"L4X3X1/4",null,null,"L102X76X6.4",null,null,"L4X4X5/16",null,null,"L102X102X7.9",null,null,"RHS75X25X1.6",null,null,"UB914X419X343",null,null,"UBP356X368X152",null,null,"HE160B",null,null,"HL920X725",null,null,null,null,null,"W30X10.5X132",null,null,"W920X310X289",null,null,"W14X14.5X99",null,null,"W360X370X147",null,null,"RHHF150X125X8",null,null,"L36X5",null,null,"L102X76X6.4",null,null,"L102X76X6.4",null,null,"CoreBRB_9.00_Welded",null,null,"L120X11",null,null,"ISA45X30X3",null,null,"NPB500X200X107.3",null,null,"H900X350X19X32",null,null,null,"B 125X125X9",null,null,"L40X20X3",null,null,"L125x10",null,null,"L_125x10",null,null,"L_125x10",null,null,"80X80X3.2SHS",null,null,null,null,null,null,"L120X11"]
["150X100X6RHS",null,null,"L3-1/2X3-1/2X1/2",null,null,"L89X89X12.7",null,null,"L4X4X1/4",null,null,"L102X102X6.4",null,null,"RHS75X25X2",null,null,"UB914X419X388",null,null,"UBP356X368X174",null,null,"HE160C",null,null,"HL920X787",null,null,null,null,null,"W30X10.5X148",null,null,"W920X310X313",null,null,"W14X14.5X109",null,null,"W360X370X162",null,null,"RHHF150X125X10",null,null,"L40X3",null,null,"L89X89X13",null,null,"L89X89X13",null,null,"CoreBRB_9.00_Pinned",null,null,"L120X12",null,null,"ISA45X30X4",null,null,"NPB600X220X107.6",null,null,"H900X350X19X28",null,null,null,"B 125X125X12",null,null,"L40X20X4",null,null,"L125x12",null,null,"L_125x12",null,null,"L_125x12",null,null,"80X80X4.0SHS",null,null,null,null,null,null,"L120X12"]
["150X100X5RHS",null,null,"L3-1/2X3-1/2X7/16",null,null,"L89X89X11.1",null,null,"L4X3-1/2X1/2",null,null,"L102X89X12.7",null,null,"RHS75X25X2.2",null,null,"UB1016X305X222",null,null,null,null,null,"HE160M",null,null,"HL920X970",null,null,null,null,null,"W33X11.5X130",null,null,"W920X310X345",null,null,"W14X14.5X120",null,null,"W360X370X179",null,null,"RHHF150X125X12.5",null,null,"L40X4",null,null,"L89X89X11",null,null,"L89X89X11",null,null,"CoreBRB_9.50_BoltedLug",null,null,"L120X13",null,null,"ISA45X30X5",null,null,"NPB600X220X122.4",null,null,"H900X350X19X25",null,null,null,"B 150X150X4.5",null,null,"L40X20X5",null,null,"L125x14",null,null,"L_125x14",null,null,"L_125x14",null,null,"80X80X4.8SHS",null,null,null,null,null,null,"L120X13"]
["150X100X4RHS",null,null,"L3-1/2X3-1/2X3/8",null,null,"L89X89X9.5",null,null,"L4X3-1/2X3/8",null,null,"L102X89X9.5",null,null,"RHS75X25X2.6",null,null,"UB1016X305X249",null,null,null,null,null,"HE180AA",null,null,"HL920X1077",null,null,null,null,null,"W33X11.5X141",null,null,"W920X310X381",null,null,"W14X14.5X132",null,null,"W360X370X196",null,null,"RHHF160X80X4",null,null,"L40X5",null,null,"L89X89X9.5",null,null,"L89X89X9.5",null,null,"CoreBRB_9.50_Welded",null,null,"L120X15",null,null,"ISA45X30X6",null,null,"NPB600X220X154.5",null,null,"H900X350X16X32",null,null,null,"B 150X150X5",null,null,"L40X25X4",null,null,"L125x16",null,null,"L_125x16",null,null,"L_125x16",null,null,"91.5X91.5X3.6SHS",null,null,null,null,null,null,"L120X15"]
["150X50X6RHS",null,null,"L3-1/2X3-1/2X5/16",null,null,"L89X89X7.9",null,null,"L4X3-1/2X5/16",null,null,"L102X89X7.9",null,null,"RHS75X50X1.6",null,null,"UB1016X305X272",null,null,null,null,null,"HE180A",null,null,"HL920X1194",null,null,null,null,null,"W33X11.5X152",null,null,"W920X310X425",null,null,"W14X16X145",null,null,"W360X410X216",null,null,"RHHF160X80X5",null,null,"L45X3",null,null,"L89X89X7.9",null,null,"L89X89X7.9",null,null,"CoreBRB_9.50_Pinned",null,null,"L120X18",null,null,"ISA50X30X3",null,null,"NPB100X55X8.1",null,null,"H900X350X16X28",null,null,null,"B 150X150X6",null,null,"L40X25X5",null,null,"L140x9",null,null,"L_140x9",null,null,"L_140x9",null,null,"91.5X91.5X4.5SHS",null,null,null,null,null,null,"L120X18"]
["150X50X5RHS",null,null,"L3-1/2X3-1/2X1/4",null,null,"L89X89X6.4",null,null,"L4X3-1/2X1/4",null,null,"L102X89X6.4",null,null,"RHS75X50X2",null,null,"UB1016X305X314",null,null,null,null,null,"HE180B",null,null,"HL920X1269",null,null,null,null,null,"W33X11.5X169",null,null,"W920X310X474",null,null,"W14X16X159",null,null,"W360X410X237",null,null,"RHHF160X80X6.3",null,null,"L45X4",null,null,"L89X89X6.4",null,null,"L89X89X6.4",null,null,"CoreBRB_10.00_BoltedLug",null,null,"L150X12",null,null,"ISA50X30X4",null,null,"NPB120X60X10.4",null,null,"H900X350X16X25",null,null,null,"B 150X150X9",null,null,"L40X3",null,null,"L140x10",null,null,"L_140x10",null,null,"L_140x10",null,null,"91.5X91.5X5.4SHS",null,null,null,null,null,null,"L150X12"]
["150X50X4RHS",null,null,"L3-1/2X3X1/2",null,null,"L89X76X12.7",null,null,"L4X3X5/8",null,null,"L102X76X15.9",null,null,"RHS75X50X2.2",null,null,"UB1016X305X350",null,null,null,null,null,"HE180C",null,null,"HL920X1377",null,null,null,null,null,"W36X12X150",null,null,"W920X310X521",null,null,"W14X16X176",null,null,"W360X410X262",null,null,"RHHF160X80X8",null,null,"L45X5",null,null,"L89X76X13",null,null,"L89X76X13",null,null,"CoreBRB_10.00_Welded",null,null,"L150X15",null,null,"ISA50X30X5",null,null,"NPB140X70X12.9",null,null,"H900X300X19X32",null,null,null,"B 175X175X4.5",null,null,"L40X4",null,null,"L140x12",null,null,"L_140x12",null,null,"L_140x12",null,null,"100X100X4.0SHS",null,null,null,null,null,null,"L150X15"]
["150X50X3RHS",null,null,"L3-1/2X3X7/16",null,null,"L89X76X11.1",null,null,"L4X3X1/2",null,null,"L102X76X12.7",null,null,"RHS75X50X2.5",null,null,"UB1016X305X393",null,null,null,null,null,"HE180M",null,null,"HL1000AA",null,null,null,null,null,"W36X12X160",null,null,"W920X310X576",null,null,"W14X16X193",null,null,"W360X410X287",null,null,"RHHF160X80X10",null,null,"L45X6",null,null,"L89X76X9.5",null,null,"L89X76X9.5",null,null,"CoreBRB_10.00_Pinned",null,null,"L150X18",null,null,"ISA50X30X6",null,null,"NPB160X80X15.8",null,null,"H900X300X19X28",null,null,null,"B 175X175X5",null,null,"L40X5",null,null,"L150x10",null,null,"L_150x10",null,null,"L_150x10",null,null,"100X100X5.0SHS",null,null,null,null,null,null,"L150X18"]
["150X50X2.5RHS",null,null,"L3-1/2X3X3/8",null,null,"L89X76X9.5",null,null,"L4X3X3/8",null,null,"L102X76X9.5",null,null,"RHS75X50X2.9",null,null,"UB1016X305X415",null,null,null,null,null,"HE200AA",null,null,"HL1000A",null,null,null,null,null,"W36X12X170",null,null,"W920X420X344",null,null,"W14X16X211",null,null,"W360X410X314",null,null,"RHHF200X100X5",null,null,"L50X3",null,null,"L89X76X7.9",null,null,"L89X76X7.9",null,null,"CoreBRB_11.00_BoltedLug",null,null,"L180X15",null,null,"ISA60X40X5",null,null,"NPB180X90X15.4",null,null,"H900X300X19X25",null,null,null,"B 175X175X6",null,null,"L40X6",null,null,"L150x12",null,null,"L_150x12",null,null,"L_150x12",null,null,"100X100X6.0SHS",null,null,null,null,null,null,"L180X15"]
["150X50X2RHS",null,null,"L3-1/2X3X5/16",null,null,"L89X76X7.9",null,null,"L4X3X5/16",null,null,"L102X76X7.9",null,null,"RHS75X50X3.2",null,null,"UB1016X305X438",null,null,null,null,null,"HE200A",null,null,"HL1000B",null,null,null,null,null,"W36X12X182",null,null,"W920X420X368",null,null,"W14X16X233",null,null,"W360X410X347",null,null,"RHHF200X100X6.3",null,null,"L50X4",null,null,"L89X76X6.4",null,null,"L89X76X6.4",null,null,"CoreBRB_11.00_Welded",null,null,"L180X18",null,null,"ISA60X40X6",null,null,"NPB180X90X18.8",null,null,"H900X300X19X22",null,null,null,"B 200X200X4.5",null,null,"L45X3",null,null,"L150x15",null,null,"L_150x15",null,null,"L_150x15",null,null,"113.5X113.5X4.8SHS",null,null,null,null,null,null,"L180X18"]
["125X75X6RHS",null,null,"L3-1/2X3X1/4",null,null,"L89X76X6.4",null,null,"L4X3X1/4",null,null,"L102X76X6.4",null,null,"RHS75X50X3.6",null,null,"UB1016X305X494",null,null,null,null,null,"HE200B",null,null,"HL1000M",null,null,null,null,null,"W36X12X194",null,null,"W920X420X390",null,null,"W14X16X257",null,null,"W360X410X382",null,null,"RHHF200X100X8",null,null,"L50X5",null,null,"L89X64X13",null,null,"L89X64X13",null,null,"CoreBRB_11.00_Pinned",null,null,"L180X20",null,null,"ISA60X40X8",null,null,"NPB180X90X21.3",null,null,"H900X300X16X32",null,null,null,"B 200X200X6",null,null,"L45X30X4",null,null,"L150x18",null,null,"L_150x18",null,null,"L_150x18",null,null,"113.5X113.5X5.4SHS",null,null,null,null,null,null,"L180X20"]
["125X75X5RHS",null,null,"L3-1/2X2-1/2X1/2",null,null,"L89X64X12.7",null,null,"L3-1/2X3-1/2X1/2",null,null,"L89X89X12.7",null,null,"RHS75X50X4",null,null,"UB1016X305X584",null,null,null,null,null,"HE200C",null,null,"HL1000X443",null,null,null,null,null,"W36X12X210",null,null,"W920X420X420",null,null,"W14X16X283",null,null,"W360X410X421",null,null,"RHHF200X100X10",null,null,"L50X6",null,null,"L89X64X9.5",null,null,"L89X64X9.5",null,null,"CoreBRB_12.00_BoltedLug",null,null,"L200X16",null,null,"ISA65X45X5",null,null,"NPB200X100X18.4",null,null,"H900X300X16X28",null,null,null,"B 200X200X8",null,null,"L45X30X5",null,null,"L160x10",null,null,"L_160x10",null,null,"L_160x10",null,null,"132X132X4.8SHS",null,null,null,null,null,null,"L200X16"]
["125X75X4RHS",null,null,"L3-1/2X2-1/2X3/8",null,null,"L89X64X9.5",null,null,"L3-1/2X3-1/2X7/16",null,null,"L89X89X11.1",null,null,"RHS80X40X1.6",null,null,"UB1016X305X642",null,null,null,null,null,"HE200M",null,null,"HL1000X483",null,null,null,null,null,"W36X12X232",null,null,"W920X420X449",null,null,"W14X16X311",null,null,"W360X410X463",null,null,"RHHF200X100X12.5",null,null,"L56X3",null,null,"L89X64X7.9",null,null,"L89X64X7.9",null,null,"CoreBRB_12.00_Welded",null,null,"L200X18",null,null,"ISA65X45X6",null,null,"NPB200X100X22.4",null,null,"H900X300X16X25",null,null,null,"B 200X200X9",null,null,"L45X30X6",null,null,"L160x11",null,null,"L_160x11",null,null,"L_160x11",null,null,"132X132X5.4SHS",null,null,null,null,null,null,"L200X18"]
["125X75X3RHS",null,null,"L3-1/2X2-1/2X5/16",null,null,"L89X64X7.9",null,null,"L3-1/2X3-1/2X3/8",null,null,"L89X89X9.5",null,null,"RHS80X40X1.8",null,null,"UB1016X305X748",null,null,null,null,null,"HE220AA",null,null,"HL1000X539",null,null,null,null,null,"W36X12X256",null,null,"W920X420X491",null,null,"W14X16X342",null,null,"W360X410X509",null,null,"RHHF200X120X5",null,null,"L56X4",null,null,"L89X64X6.4",null,null,"L89X64X6.4",null,null,"CoreBRB_12.00_Pinned",null,null,"L200X20",null,null,"ISA65X45X8",null,null,"NPB200X100X25.1",null,null,"H900X300X16X22",null,null,null,"B 200X200X12",null,null,"L45X4",null,null,"L160x12",null,null,"L_160x12",null,null,"L_160x12",null,null,"150X150X4.0SHS",null,null,null,null,null,null,"L200X20"]
["125X75X2.8RHS",null,null,"L3-1/2X2-1/2X1/4",null,null,"L89X64X6.4",null,null,"L3-1/2X3-1/2X5/16",null,null,"L89X89X7.9",null,null,"RHS80X40X2",null,null,"UB1016X305X883",null,null,null,null,null,"HE220A",null,null,"HL1000X554",null,null,null,null,null,"W36X12X286",null,null,"W920X420X537",null,null,"W14X16X370",null,null,"W360X410X551",null,null,"RHHF200X120X6.3",null,null,"L56X5",null,null,"L76X76X13",null,null,"L76X76X13",null,null,"CoreBRB_13.00_BoltedLug",null,null,"L200X24",null,null,"ISA70X45X5",null,null,"NPB200X130X27.2",null,null,"H900X300X16X19",null,null,null,"B 250X250X5",null,null,"L45X4.5",null,null,"L160x14",null,null,"L_160x14",null,null,"L_160x14",null,null,"150X150X5.0SHS",null,null,null,null,null,null,"L200X24"]
["125X75X2.5RHS",null,null,"L3X3X1/2",null,null,"L76X76X12.7",null,null,"L3-1/2X3-1/2X1/4",null,null,"L89X89X6.4",null,null,"RHS80X40X2.2",null,null,"UB1016X305X976",null,null,null,null,null,"HE220B",null,null,"HL1000X591",null,null,null,null,null,"W36X12X318",null,null,"W920X420X588",null,null,"W14X16X398",null,null,"W360X410X592",null,null,"RHHF200X120X8",null,null,"L56X6",null,null,"L76X76X11",null,null,"L76X76X11",null,null,"CoreBRB_13.00_Welded",null,null,"L30X20X3",null,null,"ISA70X45X6",null,null,"NPB200X130X32",null,null,"H900X250X16X28",null,null,null,"B 250X250X6",null,null,"L45X5",null,null,"L160x16",null,null,"L_160x16",null,null,"L_160x16",null,null,"150X150X6.0SHS",null,null,null,null,null,null,"L30X20X3"]
["125X75X2.3RHS",null,null,"L3X3X7/16",null,null,"L76X76X11.1",null,null,"L3-1/2X3X1/2",null,null,"L89X76X12.7",null,null,"RHS80X40X2.5",null,null,"UC152X152X23",null,null,null,null,null,"HE220C",null,null,"HL1000X642",null,null,null,null,null,"W36X12X350",null,null,"W920X420X656",null,null,"W14X16X426",null,null,"W360X410X634",null,null,"RHHF200X120X10",null,null,"L56X7",null,null,"L76X76X9.5",null,null,"L76X76X9.5",null,null,"CoreBRB_13.00_Pinned",null,null,"L30X20X4",null,null,"ISA70X45X8",null,null,"NPB220X110X22.2",null,null,"H900X250X16X25",null,null,null,"B 250X250X8",null,null,"L45X6",null,null,"L160x18",null,null,"L_160x18",null,null,"L_160x18",null,null,"150X150X7.0SHS",null,null,null,null,null,null,"L30X20X4"]
["125X75X2RHS",null,null,"L3X3X3/8",null,null,"L76X76X9.5",null,null,"L3-1/2X3X7/16",null,null,"L89X76X11.1",null,null,"RHS80X40X2.9",null,null,"UC152X152X30",null,null,null,null,null,"HE220M",null,null,"HL1000X748",null,null,null,null,null,"W36X12X387",null,null,"W920X420X725",null,null,"W14X16X455",null,null,"W360X410X677",null,null,"RHHF200X120X14.2",null,null,"L56X8",null,null,"L76X76X7.9",null,null,"L76X76X7.9",null,null,"CoreBRB_14.00_BoltedLug",null,null,"L30X20X5",null,null,"ISA70X45X10",null,null,"NPB220X110X26.2",null,null,"H900X250X16X22",null,null,null,"B 250X250X9",null,null,"L50X4",null,null,"L160x20",null,null,"L_160x20",null,null,"L_160x20",null,null,"150X150X8.0SHS",null,null,null,null,null,null,"L30X20X5"]
["100X50X6RHS",null,null,"L3X3X5/16",null,null,"L76X76X7.9",null,null,"L3-1/2X3X3/8",null,null,"L89X76X9.5",null,null,"RHS80X40X3.2",null,null,"UC152X152X37",null,null,null,null,null,"HE240AA",null,null,"HL1000X883",null,null,null,null,null,"W36X16.5X231",null,null,"W920X420X787",null,null,"W14X16X500",null,null,"W360X410X744",null,null,"RHHF200X150X8",null,null,"L60X5",null,null,"L76X76X6.4",null,null,"L76X76X6.4",null,null,"CoreBRB_14.00_Welded",null,null,"L35X20X4",null,null,"ISA75X50X5",null,null,"NPB220X110X29.3",null,null,"H900X250X16X19",null,null,null,"B 250X250X12",null,null,"L50X5",null,null,"L180x11",null,null,"L_180x11",null,null,"L_180x11",null,null,"180X180X4.0SHS",null,null,null,null,null,null,"L35X20X4"]
["100X50X5RHS",null,null,"L3X3X1/4",null,null,"L76X76X6.4",null,null,"L3-1/2X3X5/16",null,null,"L89X76X7.9",null,null,"RHS80X40X3.6",null,null,"UC203X203X46",null,null,null,null,null,"HE240A",null,null,"HL1000X976",null,null,null,null,null,"W36X16.5X247",null,null,"W920X420X970",null,null,"W14X16X550",null,null,"W360X410X818",null,null,"RHHF200X150X10",null,null,"L60X6",null,null,"L76X76X4.8",null,null,"L76X76X4.8",null,null,"CoreBRB_14.00_Pinned",null,null,"L35X20X5",null,null,"ISA75X50X6",null,null,"NPB240X120X26.1",null,null,"H850X400X19X40",null,null,null,"B 300X300X4.5",null,null,"L50X6",null,null,"L180x12",null,null,"L_180x12",null,null,"L_180x12",null,null,"180X180X5.0SHS",null,null,null,null,null,null,"L35X20X5"]
["100X50X4RHS",null,null,"L3X3X3/16",null,null,"L76X76X4.8",null,null,"L3-1/2X3X1/4",null,null,"L89X76X6.4",null,null,"RHS80X40X4",null,null,"UC203X203X52",null,null,null,null,null,"HE240B",null,null,"HL1100A",null,null,null,null,null,"W36X16.5X262",null,null,"W920X420X1077",null,null,"W14X16X605",null,null,"W360X410X900",null,null,"RHHF250X120X10",null,null,"L60X7",null,null,"L76X64X13",null,null,"L76X64X13",null,null,"CoreBRB_15.00_BoltedLug",null,null,"L40X20X3",null,null,"ISA75X50X8",null,null,"NPB240X120X30.7",null,null,"H850X400X19X36",null,null,null,"B 300X300X6",null,null,"L50X7",null,null,"L180x15",null,null,"L_180x15",null,null,"L_180x15",null,null,"180X180X6.0SHS",null,null,null,null,null,null,"L40X20X3"]
["100X50X3.5RHS",null,null,"L3X2-1/2X1/2",null,null,"L76X64X12.7",null,null,"L3-1/2X2-1/2X1/2",null,null,"L89X64X12.7",null,null,"RHS80X40X5",null,null,"UC203X203X60",null,null,null,null,null,"HE240C",null,null,"HL1100B",null,null,null,null,null,"W36X16.5X282",null,null,"W920X420X1194",null,null,"W14X16X665",null,null,"W360X410X990",null,null,"RHHF250X120X12.5",null,null,"L60X8",null,null,"L76X64X9.5",null,null,"L76X64X9.5",null,null,"CoreBRB_15.00_Welded",null,null,"L40X20X4",null,null,"ISA75X50X10",null,null,"NPB240X120X34.3",null,null,"H850X400X19X32",null,null,null,"B 300X300X9",null,null,"L50X8",null,null,"L180x18",null,null,"L_180x18",null,null,"L_180x18",null,null,"180X180X7.0SHS",null,null,null,null,null,null,"L40X20X4"]
["100X50X3RHS",null,null,"L3X2-1/2X7/16",null,null,"L76X64X11.1",null,null,"L3-1/2X2-1/2X3/8",null,null,"L89X64X9.5",null,null,"RHS96X48X1.6",null,null,"UC203X203X71",null,null,null,null,null,"HE240M",null,null,"HL1100M",null,null,null,null,null,"W36X16.5X302",null,null,"W920X420X1269",null,null,"W14X16X730",null,null,"W360X410X1086",null,null,"RHHF250X120X14.2",null,null,"L63X4",null,null,"L76X64X7.9",null,null,"L76X64X7.9",null,null,"CoreBRB_15.00_Pinned",null,null,"L40X20X5",null,null,"ISA80X50X5",null,null,"NPB270X135X30.7",null,null,"H850X400X19X28",null,null,null,"B 300X300X12",null,null,"L50X9",null,null,"L180x20",null,null,"L_180x20",null,null,"L_180x20",null,null,"180X180X8.0SHS",null,null,null,null,null,null,"L40X20X5"]
["100X50X2.8RHS",null,null,"L3X2-1/2X3/8",null,null,"L76X64X9.5",null,null,"L3-1/2X2-1/2X5/16",null,null,"L89X64X7.9",null,null,"RHS96X48X2",null,null,"UC203X203X86",null,null,null,null,null,"HE260AA",null,null,"HL1100R",null,null,null,null,null,"W36X16.5X330",null,null,"W920X420X1377",null,null,"W14X16X808",null,null,"W360X410X1202",null,null,"RHHF250X150X5",null,null,"L63X5",null,null,"L76X64X6.4",null,null,"L76X64X6.4",null,null,"CoreBRB_16.00_BoltedLug",null,null,"L40X25X4",null,null,"ISA80X50X6",null,null,"NPB270X135X36.1",null,null,"H850X400X16X32",null,null,null,"B 350X350X9",null,null,"L55X4",null,null,"L200x12",null,null,"L_200x12",null,null,"L_200x12",null,null,"220X220X6.0SHS",null,null,null,null,null,null,"L40X25X4"]
["100X50X2.5RHS",null,null,"L3X2-1/2X5/16",null,null,"L76X64X7.9",null,null,"L3-1/2X2-1/2X1/4",null,null,"L89X64X6.4",null,null,"RHS96X48X2.2",null,null,"UC254X254X73",null,null,null,null,null,"HE260A",null,null,"HD260X68.2",null,null,null,null,null,"W36X16.5X361",null,null,"W1000X300X249",null,null,"W14X16X873",null,null,"W360X410X1299",null,null,"RHHF250X150X6.3",null,null,"L63X6",null,null,"L76X64X4.8",null,null,"L76X64X4.8",null,null,"CoreBRB_16.00_Welded",null,null,"L40X25X5",null,null,"ISA80X50X8",null,null,"NPB270X135X42.3",null,null,"H850X400X16X28",null,null,null,"B 350X350X12",null,null,"L55X5",null,null,"L200x13",null,null,"L_200x13",null,null,"L_200x13",null,null,"220X220X8.0SHS",null,null,null,null,null,null,"L40X25X5"]
["100X50X2.3RHS",null,null,"L3X2-1/2X1/4",null,null,"L76X64X6.4",null,null,"L3X3X1/2",null,null,"L76X76X12.7",null,null,"RHS96X48X2.5",null,null,"UC254X254X89",null,null,null,null,null,"HE260B",null,null,"HD260X93.0",null,null,null,null,null,"W36X16.5X395",null,null,"W1000X300X272",null,null,"W16X5.5X26",null,null,"W410X140X38.8",null,null,"RHHF250X150X8",null,null,"L63X7",null,null,"L76X51X13",null,null,"L76X51X13",null,null,"CoreBRB_16.00_Pinned",null,null,"L45X30X4",null,null,"ISA80X50X10",null,null,"UB203X133X25",null,null,"H850X400X16X25",null,null,null,"B 50X20X1.6",null,null,"L55X6",null,null,"L200x14",null,null,"L_200x14",null,null,"L_200x14",null,null,"220X220X10.0SHS",null,null,null,null,null,null,"L45X30X4"]
["100X50X2RHS",null,null,"L3X2-1/2X3/16",null,null,"L76X64X4.8",null,null,"L3X3X7/16",null,null,"L76X76X11.1",null,null,"RHS96X48X2.9",null,null,"UC254X254X107",null,null,null,null,null,"HE260C",null,null,"HD260X114",null,null,null,null,null,"W36X16.5X441",null,null,"W1000X300X314",null,null,"W16X5.5X31",null,null,"W410X140X46.1",null,null,"RHHF250X150X10",null,null,"L63X8",null,null,"L76X51X9.5",null,null,"L76X51X9.5",null,null,"CoreBRB_17.00_BoltedLug",null,null,"L45X30X5",null,null,"ISA90X60X6",null,null,"UB203X133X30",null,null,"H850X350X19X40",null,null,null,"B 50X20X2.3",null,null,"L55X8",null,null,"L200x16",null,null,"L_200x16",null,null,"L_200x16",null,null,"220X220X12.0SHS",null,null,null,null,null,null,"L45X30X5"]
["100X50X1.6RHS",null,null,"L3X2X1/2",null,null,"L76X51X12.7",null,null,"L3X3X3/8",null,null,"L76X76X9.5",null,null,"RHS96X48X3.2",null,null,"UC254X254X132",null,null,null,null,null,"HE260M",null,null,"HD260X142",null,null,null,null,null,"W36X16.5X487",null,null,"W1000X300X350",null,null,"W16X7X36",null,null,"W410X180X53",null,null,"RHHF250X150X12.5",null,null,"L63X10",null,null,"L76X51X7.9",null,null,"L76X51X7.9",null,null,"CoreBRB_17.00_Welded",null,null,"L45X30X6",null,null,"ISA90X60X8",null,null,"UB254X146X31",null,null,"H850X350X19X36",null,null,null,"B 50X30X1.6",null,null,"L60X10",null,null,"L200x18",null,null,"L_200x18",null,null,"L_200x18",null,null,"250X250X6.0SHS",null,null,null,null,null,null,"L45X30X6"]
["75X50X6RHS",null,null,"L3X2X3/8",null,null,"L76X51X9.5",null,null,"L3X3X5/16",null,null,"L76X76X7.9",null,null,"RHS96X48X3.6",null,null,"UC254X254X167",null,null,null,null,null,"HE280AA",null,null,"HD260X172",null,null,null,null,null,"W36X16.5X529",null,null,"W1000X300X393",null,null,"W16X7X40",null,null,"W410X180X60",null,null,"RHHF250X150X14.2",null,null,"L70X4",null,null,"L76X51X6.4",null,null,"L76X51X6.4",null,null,"CoreBRB_17.00_Pinned",null,null,"L60X30X5",null,null,"ISA90X60X10",null,null,"UB254X146X37",null,null,"H850X350X19X32",null,null,null,"B 50X30X2.3",null,null,"L60X30X5",null,null,"L200x20",null,null,"L_200x20",null,null,"L_200x20",null,null,"250X250X8.0SHS",null,null,null,null,null,null,"L60X30X5"]
["75X50X5RHS",null,null,"L3X2X5/16",null,null,"L76X51X7.9",null,null,"L3X3X1/4",null,null,"L76X76X6.4",null,null,"RHS96X48X4",null,null,"UC305X305X97",null,null,null,null,null,"HE280A",null,null,"HD320X97.6",null,null,null,null,null,"W36X16.5X652",null,null,"W1000X300X415",null,null,"W16X7X45",null,null,"W410X180X67",null,null,"RHHF250X150X16",null,null,"L70X5",null,null,"L76X51X4.8",null,null,"L76X51X4.8",null,null,"CoreBRB_18.00_BoltedLug",null,null,"L60X30X6",null,null,"ISA90X60X12",null,null,"UB254X146X43",null,null,"H850X350X19X28",null,null,null,"B 60X30X1.6",null,null,"L60X30X6",null,null,"L200x24",null,null,"L_200x24",null,null,"L_200x24",null,null,"250X250X10.0SHS",null,null,null,null,null,null,"L60X30X6"]
["75X50X4RHS",null,null,"L3X2X1/4",null,null,"L76X51X6.4",null,null,"L3X3X3/16",null,null,"L76X76X4.8",null,null,"RHS96X48X4.5",null,null,"UC305X305X118",null,null,null,null,null,"HE280B",null,null,"HD320X127",null,null,null,null,null,"W36X16.5X723",null,null,"W1000X300X438",null,null,"W16X7X50",null,null,"W410X180X75",null,null,"RHHF250X200X10",null,null,"L70X6",null,null,"L64X64X13",null,null,"L64X64X13",null,null,"CoreBRB_18.00_Welded",null,null,"L60X40X5",null,null,"ISA100X65X6",null,null,"UB305X165X40",null,null,"H850X350X16X32",null,null,null,"B 60X30X2.3",null,null,"L60X4",null,null,"L200x25",null,null,"L_200x25",null,null,"L_200x25",null,null,"250X250X12.0SHS",null,null,null,null,null,null,"L60X40X5"]
["75X50X3RHS",null,null,"L3X2X3/16",null,null,"L76X51X4.8",null,null,"L3X2-1/2X1/2",null,null,"L76X64X12.7",null,null,"RHS96X48X5",null,null,"UC305X305X137",null,null,null,null,null,"HE280C",null,null,"HD320X158",null,null,null,null,null,"W36X16.5X802",null,null,"W1000X300X494",null,null,"W16X7X57",null,null,"W410X180X85",null,null,"RHHF250X200X12.5",null,null,"L70X7",null,null,"L64X64X9.5",null,null,"L64X64X9.5",null,null,"CoreBRB_18.00_Pinned",null,null,"L60X40X6",null,null,"ISA100X65X8",null,null,"UB305X165X46",null,null,"H850X350X16X28",null,null,null,"B 60X30X3.2",null,null,"L60X40X5",null,null,"L200x30",null,null,"L_200x30",null,null,"L_200x30",null,null,"21.3X2CHS",null,null,null,null,null,null,"L60X40X6"]
["75X50X2.8RHS",null,null,"L2-1/2X2-1/2X1/2",null,null,"L64X64X12.7",null,null,"L3X2-1/2X7/16",null,null,"L76X64X11.1",null,null,"RHS100X50X1.6",null,null,"UC305X305X158",null,null,null,null,null,"HE280M",null,null,"HD320X198",null,null,null,null,null,"W36X16.5X853",null,null,"W1000X300X584",null,null,"W16X10.25X67",null,null,"W410X260X100",null,null,"RHHF250X200X14.2",null,null,"L70X8",null,null,"L64X64X7.9",null,null,"L64X64X7.9",null,null,"CoreBRB_19.00_BoltedLug",null,null,"L60X40X7",null,null,"ISA100X65X10",null,null,"UB305X165X54",null,null,"H850X350X16X25",null,null,null,"B 75X20X1.6",null,null,"L60X40X6",null,null,"L220x14",null,null,"L_220x14",null,null,"L_220x14",null,null,"21.3X2.6CHS",null,null,null,null,null,null,"L60X40X7"]
["75X50X2.5RHS",null,null,"L2-1/2X2-1/2X3/8",null,null,"L64X64X9.5",null,null,"L3X2-1/2X3/8",null,null,"L76X64X9.5",null,null,"RHS100X50X2",null,null,"UC305X305X198",null,null,null,null,null,"HE300AA",null,null,"HD320X245",null,null,null,null,null,"W36X16.5X925",null,null,"W1000X400X296",null,null,"W16X10.25X77",null,null,"W410X260X114",null,null,"RHHF260X140X5",null,null,"L75X5",null,null,"L64X64X6.4",null,null,"L64X64X6.4",null,null,"CoreBRB_19.00_Welded",null,null,"L65X50X5",null,null,"ISA100X75X6",null,null,"UB356X171X45",null,null,"H850X300X16X32",null,null,null,"B 75X20X2.3",null,null,"L60X40X7",null,null,"L220x16",null,null,"L_220x16",null,null,"L_220x16",null,null,"21.3X3.2CHS",null,null,null,null,null,null,"L65X50X5"]
["75X50X2.3RHS",null,null,"L2-1/2X2-1/2X5/16",null,null,"L64X64X7.9",null,null,"L3X2-1/2X5/16",null,null,"L76X64X7.9",null,null,"RHS100X50X2.2",null,null,"UC305X305X240",null,null,null,null,null,"HE300A",null,null,"HD320X300",null,null,null,null,null,"W40X12X167",null,null,"W1000X400X321",null,null,"W16X10.25X89",null,null,"W410X260X132",null,null,"RHHF260X140X6.3",null,null,"L75X6",null,null,"L64X64X4.8",null,null,"L64X64X4.8",null,null,"CoreBRB_19.00_Pinned",null,null,"L65X50X6",null,null,"ISA100X75X8",null,null,"UB356X171X51",null,null,"H850X300X16X28",null,null,null,"B 75X45X1.6",null,null,"L60X5",null,null,"L250x16",null,null,"L_250x16",null,null,"L_250x16",null,null,"26.9X2.3CHS",null,null,null,null,null,null,"L65X50X6"]
["75X50X2RHS",null,null,"L2-1/2X2-1/2X1/4",null,null,"L64X64X6.4",null,null,"L3X2-1/2X1/4",null,null,"L76X64X6.4",null,null,"RHS100X50X2.5",null,null,"UC305X305X283",null,null,null,null,null,"HE300B",null,null,"HD360X134",null,null,null,null,null,"W40X12X183",null,null,"W1000X400X371",null,null,"W16X10.25X100",null,null,"W410X260X149",null,null,"RHHF260X140X8",null,null,"L75X7",null,null,"L64X51X9.5",null,null,"L64X51X9.5",null,null,"CoreBRB_20.00_BoltedLug",null,null,"L65X50X7",null,null,"ISA100X75X10",null,null,"UB356X171X57",null,null,"H850X300X16X25",null,null,null,"B 75X45X2.3",null,null,"L60X6",null,null,"L250x18",null,null,"L_250x18",null,null,"L_250x18",null,null,"26.9X2.6CHS",null,null,null,null,null,null,"L65X50X7"]
["75X50X1.6RHS",null,null,"L2-1/2X2-1/2X3/16",null,null,"L64X64X4.8",null,null,"L3X2-1/2X3/16",null,null,"L76X64X4.8",null,null,"RHS100X50X2.9",null,null,"UC356X368X129",null,null,null,null,null,"HE300C",null,null,"HD360X147",null,null,null,null,null,"W40X12X211",null,null,"W1000X400X412",null,null,"W18X6X35",null,null,"W460X150X52",null,null,"RHHF260X140X10",null,null,"L75X8",null,null,"L64X51X7.9",null,null,"L64X51X7.9",null,null,"CoreBRB_20.00_Welded",null,null,"L65X50X8",null,null,"ISA100X75X12",null,null,"UB356X171X67",null,null,"H850X300X16X22",null,null,null,"B 75X45X3.2",null,null,"L60X8",null,null,"L250x20",null,null,"L_250x20",null,null,"L_250x20",null,null,"26.9X3.2CHS",null,null,null,null,null,null,"L65X50X8"]
["75X25X2.5RHS",null,null,"L2-1/2X2X3/8",null,null,"L64X51X9.5",null,null,"L3X2X1/2",null,null,"L76X51X12.7",null,null,"RHS100X50X3.2",null,null,"UC356X368X153",null,null,null,null,null,"HE300M",null,null,"HD360X162",null,null,null,null,null,"W40X12X235",null,null,"W1000X400X443",null,null,"W18X6X40",null,null,"W460X150X60",null,null,"RHHF260X140X12.5",null,null,"L75X9",null,null,"L64X51X6.4",null,null,"L64X51X6.4",null,null,"CoreBRB_20.00_Pinned",null,null,"L75X50X5",null,null,"ISA125X75X6",null,null,"UB406X178X54",null,null,"H850X250X16X28",null,null,null,"B 80X40X1.6",null,null,"L65X5",null,null,"L250x22",null,null,"L_250x22",null,null,"L_250x22",null,null,"33.7X2.6CHS",null,null,null,null,null,null,"L75X50X5"]
["75X25X2RHS",null,null,"L2-1/2X2X5/16",null,null,"L64X51X7.9",null,null,"L3X2X3/8",null,null,"L76X51X9.5",null,null,"RHS100X50X3.6",null,null,"UC356X368X177",null,null,null,null,null,"HE320AA",null,null,"HD360X179",null,null,null,null,null,"W40X12X264",null,null,"W1000X400X483",null,null,"W18X6X46",null,null,"W460X150X68",null,null,"RHHF260X140X14.2",null,null,"L75X10",null,null,"L64X51X4.8",null,null,"L64X51X4.8",null,null,"CoreBRB_22.00_BoltedLug",null,null,"L75X50X6",null,null,"ISA125X75X8",null,null,"UB406X178X60",null,null,"H850X250X16X25",null,null,null,"B 80X40X2.3",null,null,"L65X50X5",null,null,"L250x25",null,null,"L_250x25",null,null,"L_250x25",null,null,"33.7X3.2CHS",null,null,null,null,null,null,"L75X50X6"]
["75X25X1.6RHS",null,null,"L2-1/2X2X1/4",null,null,"L64X51X6.4",null,null,"L3X2X5/16",null,null,"L76X51X7.9",null,null,"RHS100X50X4",null,null,"UC356X368X202",null,null,null,null,null,"HE320A",null,null,"HD360X196",null,null,null,null,null,"W40X12X278",null,null,"W1000X400X539",null,null,"W18X7.5X50",null,null,"W460X190X74",null,null,"RHHF260X140X16",null,null,"L80X5",null,null,"L51X51X9.5",null,null,"L51X51X9.5",null,null,"CoreBRB_22.00_Pinned",null,null,"L75X50X7",null,null,"ISA125X75X10",null,null,"UB406X178X67",null,null,"H850X250X14X25",null,null,null,"B 80X40X3.2",null,null,"L65X50X6",null,null,"L250x28",null,null,"L_250x28",null,null,"L_250x28",null,null,"33.7X4CHS",null,null,null,null,null,null,"L75X50X7"]
["65X35X4RHS",null,null,"L2-1/2X2X3/16",null,null,"L64X51X4.8",null,null,"L3X2X1/4",null,null,"L76X51X6.4",null,null,"RHS100X50X5",null,null,"UC356X406X235",null,null,null,null,null,"HE320B",null,null,"HD400X187",null,null,null,null,null,"W40X12X294",null,null,"W1000X400X554",null,null,"W18X7.5X55",null,null,"W460X190X82",null,null,"RHHF300X100X8",null,null,"L80X6",null,null,"L51X51X7.9",null,null,"L51X51X7.9",null,null,"CoreBRB_24.00_BoltedLug",null,null,"L75X50X8",null,null,"ISA125X95X6",null,null,"UB406X178X74",null,null,"H850X250X14X22",null,null,null,"B 90X45X2.3",null,null,"L65X50X7",null,null,"L250x30",null,null,"L_250x30",null,null,"L_250x30",null,null,"42.4X2.6CHS",null,null,null,null,null,null,"L75X50X8"]
["65X35X3RHS",null,null,"L2-1/2X1-1/2X1/4",null,null,"L64X38X6.4",null,null,"L3X2X3/16",null,null,"L76X51X4.8",null,null,"RHS100X50X5.4",null,null,"UC356X406X287",null,null,null,null,null,"HE320C",null,null,"HD400X216",null,null,null,null,null,"W40X12X331",null,null,"W1000X400X591",null,null,"W18X7.5X60",null,null,"W460X190X89",null,null,"RHHF300X100X10",null,null,"L80X7",null,null,"L51X51X6.4",null,null,"L51X51X6.4",null,null,"CoreBRB_24.00_Pinned",null,null,"L80X40X5",null,null,"ISA125X95X8",null,null,"UB457X152X52",null,null,"H800X400X19X40",null,null,null,"B 90X45X3.2",null,null,"L65X50X8",null,null,"L250x35",null,null,"L_250x35",null,null,"L_250x35",null,null,"42.4X3.2CHS",null,null,null,null,null,null,"L80X40X5"]
["65X35X2.8RHS",null,null,"L2-1/2X1-1/2X3/16",null,null,"L64X38X4.8",null,null,"L2-1/2X2-1/2X1/2",null,null,"L64X64X12.7",null,null,"RHS100X50X6",null,null,"UC356X406X340",null,null,null,null,null,"HE320M",null,null,"HD400X237",null,null,null,null,null,"W40X12X392",null,null,"W1000X400X642",null,null,"W18X7.5X65",null,null,"W460X190X97",null,null,"RHHF300X100X14.2",null,null,"L80X8",null,null,"L51X51X4.8",null,null,"L51X51X4.8",null,null,"CoreBRB_26.00_BoltedLug",null,null,"L80X40X6",null,null,"ISA125X95X10",null,null,"UB457X152X60",null,null,"H800X400X19X36",null,null,null,"B 100X20X1.6",null,null,"L65X6",null,null,"Lн25x16x3",null,null,"Ln_25x16x3",null,null,"Lн_25x16x3",null,null,"42.4X4CHS",null,null,null,null,null,null,"L80X40X6"]
["65X35X2.5RHS",null,null,"L2X2X3/8",null,null,"L51X51X9.5",null,null,"L2-1/2X2-1/2X3/8",null,null,"L64X64X9.5",null,null,"RHS100X50X8",null,null,"UC356X406X393",null,null,null,null,null,"HE340AA",null,null,"HD400X262",null,null,null,null,null,"W40X16X199",null,null,"W1000X400X748",null,null,"W18X7.5X71",null,null,"W460X190X106",null,null,"RHHF300X150X8",null,null,"L80X9",null,null,"L51X51X3.2",null,null,"L51X51X3.2",null,null,"CoreBRB_26.00_Pinned",null,null,"L80X40X7",null,null,"ISA125X95X12",null,null,"UB457X152X67",null,null,"H800X400X19X32",null,null,null,"B 100X20X2.3",null,null,"L65X7",null,null,"Lн30x20x3",null,null,"Ln_30x20x3",null,null,"Lн_30x20x3",null,null,"48.3X2.9CHS",null,null,null,null,null,null,"L80X40X7"]
["65X35X2.3RHS",null,null,"L2X2X5/16",null,null,"L51X51X7.9",null,null,"L2-1/2X2-1/2X5/16",null,null,"L64X64X7.9",null,null,"RHS120X60X1.6",null,null,"UC356X406X467",null,null,null,null,null,"HE340A",null,null,"HD400X287",null,null,null,null,null,"W40X16X215",null,null,"W1000X400X883",null,null,"W18X11X76",null,null,"W460X280X113",null,null,"RHHF300X150X10",null,null,"L80X10",null,null,"L51X38X6.4",null,null,"L51X38X6.4",null,null,"CoreBRB_28.00_BoltedLug",null,null,"L80X40X8",null,null,"ISA150X75X8",null,null,"UB457X152X74",null,null,"H800X400X19X28",null,null,null,"B 100X40X1.6",null,null,"L70X10",null,null,"Lн30x20x4",null,null,"Ln_30x20x4",null,null,"Lн_30x20x4",null,null,"48.3X3.2CHS",null,null,null,null,null,null,"L80X40X8"]
["65X35X2RHS",null,null,"L2X2X1/4",null,null,"L51X51X6.4",null,null,"L2-1/2X2-1/2X1/4",null,null,"L64X64X6.4",null,null,"RHS120X60X2",null,null,"UC356X406X509",null,null,null,null,null,"HE340B",null,null,"HD400X314",null,null,null,null,null,"W40X16X249",null,null,"W1000X400X976",null,null,"W18X11X86",null,null,"W460X280X128",null,null,"RHHF300X150X12.5",null,null,"L90X6",null,null,"L51X38X4.8",null,null,"L51X38X4.8",null,null,"CoreBRB_28.00_Pinned",null,null,"L80X60X6",null,null,"ISA150X75X10",null,null,"UB457X152X82",null,null,"H800X400X16X36",null,null,null,"B 100X40X2.3",null,null,"L70X5",null,null,"Lн32x20x3",null,null,"Ln_32x20x3",null,null,"Lн_32x20x3",null,null,"48.3X4CHS",null,null,null,null,null,null,"L80X60X6"]
["50X25X3RHS",null,null,"L2X2X3/16",null,null,"L51X51X4.8",null,null,"L2-1/2X2-1/2X3/16",null,null,"L64X64X4.8",null,null,"RHS120X60X2.2",null,null,"UC356X406X551",null,null,null,null,null,"HE340M",null,null,"HD400X347",null,null,null,null,null,"W40X16X277",null,null,"W1100X400X343",null,null,"W18X11X97",null,null,"W460X280X144",null,null,"RHHF300X150X14.2",null,null,"L90X7",null,null,"L51X38X3.2",null,null,"L51X38X3.2",null,null,"CoreBRB_30.00_BoltedLug",null,null,"L80X60X7",null,null,"ISA150X75X12",null,null,"UB457X191X67",null,null,"H800X400X16X32",null,null,null,"B 100X40X4.2",null,null,"L70X6",null,null,"Lн32x20x4",null,null,"Ln_32x20x4",null,null,"Lн_32x20x4",null,null,"60.3X2.9CHS",null,null,null,null,null,null,"L80X60X7"]
["50X25X2.8RHS",null,null,"L2X2X1/8",null,null,"L51X51X3.2",null,null,"L2-1/2X2X3/8",null,null,"L64X51X9.5",null,null,"RHS120X60X2.5",null,null,"UC356X406X592",null,null,null,null,null,"HE360AA",null,null,"HD400X382",null,null,null,null,null,"W40X16X297",null,null,"W1100X400X390",null,null,"W18X11X106",null,null,"W460X280X158",null,null,"RHHF300X150X16",null,null,"L90X8",null,null,"L44X44X6.4",null,null,"L44X44X6.4",null,null,"CoreBRB_30.00_Pinned",null,null,"L80X60X8",null,null,"ISA150X115X8",null,null,"UB457X191X74",null,null,"H800X400X16X28",null,null,null,"B 100X50X1.6",null,null,"L70X7",null,null,"Lн40x25x3",null,null,"Ln_40x25x3",null,null,"Lн_40x25x3",null,null,"60.3X3.6CHS",null,null,null,null,null,null,"L80X60X8"]
["50X25X2.5RHS",null,null,"HSS20X12X5/8",null,null,"HSS508X304.8X15.9",null,null,"L2-1/2X2X5/16",null,null,"L64X51X7.9",null,null,"RHS120X60X2.9",null,null,"UC356X406X634",null,null,null,null,null,"HE360A",null,null,"HD400X421",null,null,null,null,null,"W40X16X324",null,null,"W1100X400X433",null,null,"W18X11X119",null,null,"W460X280X177",null,null,"RHHF300X200X6.3",null,null,"L90X9",null,null,"L44X44X4.8",null,null,"L44X44X4.8",null,null,"CoreBRB_32.00_BoltedLug",null,null,"L80X60X10",null,null,"ISA150X115X10",null,null,"UB457X191X82",null,null,"H800X400X16X25",null,null,null,"B 100X50X2.3",null,null,"L70X8",null,null,"Lн40x25x4",null,null,"Ln_40x25x4",null,null,"Lн_40x25x4",null,null,"60.3X4.5CHS",null,null,null,null,null,null,"L80X60X10"]
["50X25X2.3RHS",null,null,"HSS20X12X1/2",null,null,"HSS508X304.8X12.7",null,null,"L2-1/2X2X1/4",null,null,"L64X51X6.4",null,null,"RHS120X60X3.2",null,null,"UC356X406X677",null,null,null,null,null,"HE360B",null,null,"HD400X463",null,null,null,null,null,"W40X16X362",null,null,"W1100X400X499",null,null,"W18X11X130",null,null,"W460X280X193",null,null,"RHHF300X200X8",null,null,"L90X10",null,null,"L44X44X3.2",null,null,"L44X44X3.2",null,null,"CoreBRB_32.00_Pinned",null,null,"L100X50X6",null,null,"ISA150X115X12",null,null,"UB457X191X89",null,null,"H800X400X14X28",null,null,null,"B 100X50X3.2",null,null,"L75X5",null,null,"Lн40x25x5",null,null,"Ln_40x25x5",null,null,"Lн_40x25x5",null,null,"76.1X3.2CHS",null,null,null,null,null,null,"L100X50X6"]
["50X25X2RHS",null,null,"HSS20X12X3/8",null,null,"HSS508X304.8X9.5",null,null,"L2-1/2X2X3/16",null,null,"L64X51X4.8",null,null,"RHS120X60X3.6",null,null,"UC356X406X744",null,null,null,null,null,"HE360M",null,null,"HD400X509",null,null,null,null,null,"W40X16X372",null,null,"HP250X85",null,null,"W18X11X143",null,null,"W460X280X213",null,null,"RHHF300X200X10",null,null,"L90X12",null,null,"L38X38X6.4",null,null,"L38X38X6.4",null,null,"CoreBRB_34.00_BoltedLug",null,null,"L100X50X7",null,null,"ISA150X115X15",null,null,"UB457X191X98",null,null,"H800X400X14X25",null,null,null,"B 100X50X4.5",null,null,"L75X50X5",null,null,"Lн40x30x4",null,null,"Ln_40x30x4",null,null,"Lн_40x30x4",null,null,"76.1X3.6CHS",null,null,null,null,null,null,{"$f":"IF(OFFSET($A131,0,($CQ$2-1)*3)=0,\"\",OFFSET($A131,0,($CQ$2-1)*3))","v":"L100X50X7"}]
["50X25X1.6RHS",null,null,"HSS20X12X5/16",null,null,"HSS508X304.8X7.9",null,null,"L2-1/2X1-1/2X1/4",null,null,"L64X38X6.4",null,null,"RHS120X60X4",null,null,"UC356X406X818",null,null,null,null,null,"HE400AA",null,null,"HD400X551",null,null,null,null,null,"W40X16X397",null,null,"HP310X110",null,null,"W18X11X158",null,null,"W460X280X235",null,null,"RHHF300X200X12.5",null,null,"L100X6",null,null,"L38X38X4.8",null,null,"L38X38X4.8",null,null,"CoreBRB_34.00_Pinned",null,null,"L100X50X8",null,null,"ISA200X100X10",null,null,"UB533X210X82",null,null,"H800X350X19X40",null,null,null,"B 125X40X1.6",null,null,"L75X50X6",null,null,"Lн40x30x5",null,null,"Ln_40x30x5",null,null,"Lн_40x30x5",null,null,"76.1X4.5CHS",null,null,null,null,null,null,"L100X50X8"]
["50X20X3RHS",null,null,"HSS20X8X5/8",null,null,"HSS508X203.2X15.9",null,null,"L2-1/2X1-1/2X3/16",null,null,"L64X38X4.8",null,null,"RHS120X60X4.5",null,null,"UC356X406X900",null,null,null,null,null,"HE400A",null,null,"HD400X592",null,null,null,null,null,"W40X16X431",null,null,"HP310X125",null,null,"W18X11X175",null,null,"W460X280X260",null,null,"RHHF300X200X14.2",null,null,"L100X7",null,null,"L38X38X3.2",null,null,"L38X38X3.2",null,null,"CoreBRB_36.00_BoltedLug",null,null,"L100X50X10",null,null,"ISA200X100X12",null,null,"UB533X210X92",null,null,"H800X350X19X36",null,null,null,"B 125X40X2.3",null,null,"L75X50X7",null,null,"Lн45x28x3",null,null,"Ln_45x28x3",null,null,"Lн_45x28x3",null,null,"88.9X3.2CHS",null,null,null,null,null,null,"L100X50X10"]
["50X20X2.8RHS",null,null,"HSS20X8X1/2",null,null,"HSS508X203.2X12.7",null,null,"L2X2X3/8",null,null,"L51X51X9.5",null,null,"RHS120X60X5",null,null,"UC356X406X990",null,null,null,null,null,"HE400B",null,null,"HD400X634",null,null,null,null,null,"W40X16X503",null,null,"HP310X132",null,null,"W21X6.5X44",null,null,"W530X165X66",null,null,"RHHF300X200X16",null,null,"L100X8",null,null,"L32X32X6.4",null,null,"L32X32X6.4",null,null,"CoreBRB_36.00_Pinned",null,null,"L100X65X7",null,null,"ISA200X100X15",null,null,"UB533X210X101",null,null,"H800X350X19X32",null,null,null,"B 125X75X2.3",null,null,"L75X50X8",null,null,"Lн45x28x4",null,null,"Ln_45x28x4",null,null,"Lн_45x28x4",null,null,"88.9X4CHS",null,null,null,null,null,null,"L100X65X7"]
["50X20X2.5RHS",null,null,"HSS20X8X3/8",null,null,"HSS508X203.2X9.5",null,null,"L2X2X5/16",null,null,"L51X51X7.9",null,null,"RHS120X60X6",null,null,"UC356X406X1086",null,null,null,null,null,"HE400M",null,null,"HD400X677",null,null,null,null,null,"W40X16X593",null,null,"HP360X132",null,null,"W21X6.5X50",null,null,"W530X165X74",null,null,"RHHF300X250X5",null,null,"L100X9",null,null,"L32X32X4.8",null,null,"L32X32X4.8",null,null,"CoreBRB_38.00_BoltedLug",null,null,"L100X65X8",null,null,"ISA200X150X10",null,null,"UB533X210X109.8",null,null,"H800X350X19X28",null,null,null,"B 125X75X3.2",null,null,"L75X6",null,null,"Lн50x32x3",null,null,"Ln_50x32x3",null,null,"Lн_50x32x3",null,null,"88.9X4.8CHS",null,null,null,null,null,null,"L100X65X8"]
["50X20X2.3RHS",null,null,"HSS20X8X5/16",null,null,"HSS508X203.2X7.9",null,null,"L2X2X1/4",null,null,"L51X51X6.4",null,null,"RHS150X25X1.6",null,null,"UC356X406X1202",null,null,null,null,null,"HE450AA",null,null,"HD400X744",null,null,null,null,null,"W40X16X655",null,null,"HP360X152",null,null,"W21X6.5X57",null,null,"W530X165X85",null,null,"RHHF300X250X6.3",null,null,"L100X10",null,null,"L32X32X3.2",null,null,"L32X32X3.2",null,null,"CoreBRB_38.00_Pinned",null,null,"L100X65X9",null,null,"ISA200X150X12",null,null,"UB533X210X122",null,null,"H800X350X19X25",null,null,null,"B 125X75X4",null,null,"L75X7",null,null,"Lн50x32x4",null,null,"Ln_50x32x4",null,null,"Lн_50x32x4",null,null,"114.3X3.6CHS",null,null,null,null,null,null,"L100X65X9"]
["50X20X2RHS",null,null,"HSS20X4X1/2",null,null,"HSS508X101.6X12.7",null,null,"L2X2X3/16",null,null,"L51X51X4.8",null,null,"RHS150X25X2",null,null,"UC356X406X1299",null,null,null,null,null,"HE450A",null,null,"HD400X818",null,null,null,null,null,"W44X16X230",null,null,"HP360X174",null,null,"W21X8.25X48",null,null,"W530X210X72",null,null,"RHHF300X250X8",null,null,"L100X12",null,null,"L25X25X6.4",null,null,"L25X25X6.4",null,null,"CoreBRB_40.00_BoltedLug",null,null,"L100X65X10",null,null,"ISA200X150X15",null,null,"UB610X229X101",null,null,"H800X350X16X36",null,null,null,"B 125X75X4.5",null,null,"L80X10",null,null,"Lн56x36x4",null,null,"Ln_56x36x4",null,null,"Lн_56x36x4",null,null,"114.3X4.5CHS",null,null,null,null,null,null,"L100X65X10"]
["50X20X1.6RHS",null,null,"HSS20X4X3/8",null,null,"HSS508X101.6X9.5",null,null,"L2X2X1/8",null,null,"L51X51X3.2",null,null,"RHS150X25X2.2",null,null,"UBP203X203X45",null,null,null,null,null,"HE450B",null,null,"HD400X900",null,null,null,null,null,"W44X16X262",null,null,null,null,null,"W 21X8.25X55",null,null,"W530X210X82",null,null,"RHHF300X250X10",null,null,"L100X14",null,null,"L25X25X4.8",null,null,"L25X25X4.8",null,null,"CoreBRB_40.00_Pinned",null,null,"L100X65X11",null,null,"ISA200X150X18",null,null,"UB610X229X113",null,null,"H800X350X16X32",null,null,null,"B 125X75X6",null,null,"L80X12",null,null,"Lн56x36x5",null,null,"Ln_56x36x5",null,null,"Lн_56x36x5",null,null,"114.3X5.4CHS",null,null,null,null,null,null,"L100X65X11"]
["250X250X9SHS",null,null,"HSS20X4X5/16",null,null,"HSS508X101.6X7.9",null,null,"HSS24X12X3/4",null,null,"HSS609.6X304.8X19",null,null,"RHS150X25X2.6",null,null,"UBP203X203X54",null,null,null,null,null,"HE450M",null,null,"HD400X990",null,null,null,null,null,"W44X16X290",null,null,null,null,null,"W21X8.25X62",null,null,"W530X210X92",null,null,"RHHF300X250X12.5",null,null,"L100X16",null,null,"L25X25X3.2",null,null,"L25X25X3.2",null,null,null,null,null,"L100X75X8",null,null,"ISB25X25X2.6",null,null,"UB610X229X125.1",null,null,"H800X350X16X28",null,null,null,"B 150X75X3.2",null,null,"L80X40X5",null,null,"Lн63x40x4",null,null,"Ln_63x40x4",null,null,"Lн_63x40x4",null,null,"139.7X4.5CHS",null,null,null,null,null,null,"L100X75X8"]
["250X250X6SHS",null,null,"HSS20X4X1/4",null,null,"HSS508X101.6X6.4",null,null,"HSS24X12X5/8",null,null,"HSS609.6X304.8X15.9",null,null,"RHS150X30X1.6",null,null,"UBP254X254X63",null,null,null,null,null,"HE500AA",null,null,"HD400X1086",null,null,null,null,null,"W44X16X335",null,null,null,null,null,"W21X8.25X68",null,null,"W530X210X101",null,null,"RHHF300X250X14.2",null,null,"L110X7",null,null,"L19X19X3.2",null,null,"L19X19X3.2",null,null,null,null,null,"L100X75X10",null,null,"ISB25X25X3.2",null,null,"UB610X229X139.9",null,null,"H800X350X16X25",null,null,null,"B 150X80X4.5",null,null,"L80X40X6",null,null,"Lн63x40x5",null,null,"Ln_63x40x5",null,null,"Lн_63x40x5",null,null,"139.7X4.8CHS",null,null,null,null,null,null,"L100X75X10"]
["200X200X9SHS",null,null,"HSS18X6X5/8",null,null,"HSS457.2X152.4X15.9",null,null,"HSS24X12X1/2",null,null,"HSS609.6X304.8X12.7",null,null,"RHS150X30X1.8",null,null,"UBP254X254X71",null,null,null,null,null,"HE500A",null,null,"HD400X1202",null,null,null,null,null,"HP10X57",null,null,null,null,null,"W21X8.25X73",null,null,"W530X210X109",null,null,"RHHF300X250X16",null,null,"L110X8",null,null,"HS305X305X16",null,null,"HS305X305X16",null,null,null,null,null,"L100X75X12",null,null,"ISB38X38X2.6",null,null,"UC152X152X23",null,null,"H800X350X14X28",null,null,null,"B 150X80X5",null,null,"L80X40X7",null,null,"Lн63x40x6",null,null,"Ln_63x40x6",null,null,"Lн_63x40x6",null,null,"139.7X5.4CHS",null,null,null,null,null,null,"L100X75X12"]
["200X200X6SHS",null,null,"HSS18X6X1/2",null,null,"HSS457.2X152.4X12.7",null,null,"HSS22X22X7/8",null,null,"HSS558.8X558.8X22.2",null,null,"RHS150X30X2",null,null,"UBP254X254X85",null,null,null,null,null,"HE500B",null,null,"HD400X1299",null,null,null,null,null,"HP12X74",null,null,null,null,null,"W21X8.25X83",null,null,"W530X210X123",null,null,"RHHF350X150X5",null,null,"L110X10",null,null,"HS305X305X13",null,null,"HS305X305X13",null,null,null,null,null,"L110X75X8",null,null,"ISB38X38X3.2",null,null,"UC152X152X30",null,null,"H800X350X14X25",null,null,null,"B 150X80X6",null,null,"L80X40X8",null,null,"Lн63x40x8",null,null,"Ln_63x40x8",null,null,"Lн_63x40x8",null,null,"165.1X4.5CHS",null,null,null,null,null,null,"L110X75X8"]
["200X200X5SHS",null,null,"HSS18X6X3/8",null,null,"HSS457.2X152.4X9.5",null,null,"HSS22X22X3/4",null,null,"HSS558.8X558.8X19",null,null,"RHS150X30X2.5",null,null,"UBP305X305X79",null,null,null,null,null,"HE500M",null,null,"HP305X110",null,null,null,null,null,"HP12X84",null,null,null,null,null,"W21X8.25X93",null,null,"W530X210X138",null,null,"RHHF350X150X6.3",null,null,"L110X12",null,null,"HS305X305X9.5",null,null,"HS305X305X9.5",null,null,null,null,null,"L110X75X10",null,null,"ISB38X38X4.0",null,null,"UC152X152X37",null,null,"H800X300X16X32",null,null,null,"B 150X100X3.2",null,null,"L80X6",null,null,"Lн65x50x5",null,null,"Ln_65x50x5",null,null,"Lн_65x50x5",null,null,"165.1X6CHS",null,null,null,null,null,null,"L110X75X10"]
["150X150X9SHS",null,null,"HSS18X6X5/16",null,null,"HSS457.2X152.4X7.9",null,null,"HSS20X20X7/8",null,null,"HSS508X508X22.2",null,null,"RHS150X30X2.9",null,null,"UBP305X305X88",null,null,null,null,null,"HE550AA",null,null,"HP305X126",null,null,null,null,null,"HP12X89",null,null,null,null,null,"W24X7X55",null,null,"W610X180X82",null,null,"RHHF350X150X8",null,null,"L110X14",null,null,"HS305X305X8.0",null,null,"HS305X305X8.0",null,null,null,null,null,"L120X60X8",null,null,"ISB49.5X49.5X2.6",null,null,"UC203X203X46.1",null,null,"H800X300X16X28",null,null,null,"B 150X100X4.5",null,null,"L80X60X10",null,null,"Lн65x50x6",null,null,"Ln_65x50x6",null,null,"Lн_65x50x6",null,null,"165.1X8CHS",null,null,null,null,null,null,"L120X60X8"]
["150X150X6SHS",null,null,"HSS18X6X1/4",null,null,"HSS457.2X152.4X6.4",null,null,"HSS20X20X3/4",null,null,"HSS508X508X19",null,null,"RHS150X50X1.6",null,null,"UBP305X305X95",null,null,null,null,null,"HE550A",null,null,"HP305X149",null,null,null,null,null,"HP14X89",null,null,null,null,null,"W24X7X62",null,null,"W610X180X92",null,null,"RHHF350X150X10",null,null,"L125X8",null,null,"HS305X305X6.4",null,null,"HS305X305X6.4",null,null,null,null,null,"L120X60X10",null,null,"ISB49.5X49.5X2.9",null,null,"UC203X203X52",null,null,"H800X300X16X25",null,null,null,"B 150X100X6",null,null,"L80X60X6",null,null,"Lн65x50x7",null,null,"Ln_65x50x7",null,null,"Lн_65x50x7",null,null,"165.1X10CHS",null,null,null,null,null,null,"L120X60X10"]
["150X150X5SHS",null,null,"HSS16X16X5/8",null,null,"HSS406.4X406.4X15.9",null,null,"HSS20X20X5/8",null,null,"HSS508X508X15.9",null,null,"RHS150X50X2",null,null,"UBP305X305X110",null,null,null,null,null,"HE550B",null,null,"HP305X180",null,null,null,null,null,"HP14X102",null,null,null,null,null,"W24X9X68",null,null,"W610X230X101",null,null,"RHHF350X150X12.5",null,null,"L125X10",null,null,"HS254X254X16",null,null,"HS254X254X16",null,null,null,null,null,"L120X80X8",null,null,"ISB49.5X49.5X3.6",null,null,"UC203X203X60",null,null,"H800X300X16X22",null,null,null,"B 150X100X9",null,null,"L80X60X7",null,null,"Lн65x50x8",null,null,"Ln_65x50x8",null,null,"Lн_65x50x8",null,null,"219.1X5CHS",null,null,null,null,null,null,"L120X80X8"]
["150X150X4SHS",null,null,"HSS16X16X1/2",null,null,"HSS406.4X406.4X12.7",null,null,"HSS20X20X1/2",null,null,"HSS508X508X12.7",null,null,"RHS150X50X2.2",null,null,"UBP305X305X126",null,null,null,null,null,"HE550M",null,null,"HP305X186",null,null,null,null,null,"HP14X117",null,null,null,null,null,"W24X9X76",null,null,"W610X230X113",null,null,"RHHF350X150X14.2",null,null,"L125X12",null,null,"HS254X254X13",null,null,"HS254X254X13",null,null,null,null,null,"L120X80X10",null,null,"ISB49.5X49.5X4.5",null,null,"UC203X203X71",null,null,"H800X300X14X28",null,null,null,"B 200X100X4.5",null,null,"L80X60X8",null,null,"Lн70x45x5",null,null,"Ln_70x45x5",null,null,"Lн_70x45x5",null,null,"219.1X6CHS",null,null,null,null,null,null,"L120X80X10"]
["150X150X3SHS",null,null,"HSS16X16X3/8",null,null,"HSS406.4X406.4X9.5",null,null,"HSS20X12X3/4",null,null,"HSS508X304.8X19",null,null,"RHS150X50X2.5",null,null,"UBP305X305X149",null,null,null,null,null,"HE600AA",null,null,"HP305X223",null,null,null,null,null,null,null,null,null,null,null,"W24X9X84",null,null,"W610X230X125",null,null,"RHHF350X150X16",null,null,"L125X14",null,null,"HS254X254X9.5",null,null,"HS254X254X9.5",null,null,null,null,null,"L120X80X12",null,null,"ISB72X72X3.2",null,null,"UC203X203X86.1",null,null,"H800X300X14X25",null,null,null,"B 200X100X6",null,null,"L80X7",null,null,"Lн75x50x5",null,null,"Ln_75x50x5",null,null,"Lн_75x50x5",null,null,"219.1X8CHS",null,null,null,null,null,null,"L120X80X12"]
["125X125X9SHS",null,null,"HSS16X16X5/16",null,null,"HSS406.4X406.4X7.9",null,null,"HSS20X12X5/8",null,null,"HSS508X304.8X15.9",null,null,"RHS150X50X2.8",null,null,"UBP305X305X186",null,null,null,null,null,"HE600A",null,null,"HP320X103",null,null,null,null,null,null,null,null,null,null,null,"W24X9X94",null,null,"W610X230X140",null,null,"RHHF350X250X5",null,null,"L125X16",null,null,"HS254X254X8.0",null,null,"HS254X254X8.0",null,null,null,null,null,"L120X80X14",null,null,"ISB72X72X4.0",null,null,"UC254X254X73.1",null,null,"H800X300X14X22",null,null,null,"B 200X100X9",null,null,"L80X8",null,null,"Lн75x50x6",null,null,"Ln_75x50x6",null,null,"Lн_75x50x6",null,null,"219.1X10CHS",null,null,null,null,null,null,"L120X80X14"]
["125X125X6SHS",null,null,"HSS16X12X5/8",null,null,"HSS406.4X304.8X15.9",null,null,"HSS20X12X1/2",null,null,"HSS508X304.8X12.7",null,null,"RHS150X50X3.2",null,null,"UBP305X305X223",null,null,null,null,null,"HE600B",null,null,"HP320X117",null,null,null,null,null,null,null,null,null,null,null,"W24X9X103",null,null,"W610X230X153",null,null,"RHHF350X250X6.3",null,null,"L140X10",null,null,"HS254X254X6.4",null,null,"HS254X254X6.4",null,null,null,null,null,"L130X65X8",null,null,"ISB72X72X4.8",null,null,"UC254X254X89.5",null,null,"H800X250X16X32",null,null,null,"B 200X150X4.5",null,null,"L90X10",null,null,"Lн75x50x7",null,null,"Ln_75x50x7",null,null,"Lн_75x50x7",null,null,"219.1X12CHS",null,null,null,null,null,null,"L130X65X8"]
["125X125X5SHS",null,null,"HSS16X12X1/2",null,null,"HSS406.4X304.8X12.7",null,null,"HSS20X12X3/8",null,null,"HSS508X304.8X9.5",null,null,"RHS150X50X3.6",null,null,"UBP356X368X109",null,null,null,null,null,"HE600M",null,null,"HP320X147",null,null,null,null,null,null,null,null,null,null,null,"W24X12.75X104",null,null,"W610X325X155",null,null,"RHHF350X250X8",null,null,"L140X12",null,null,"HS203X203X16",null,null,"HS203X203X16",null,null,null,null,null,"L130X65X10",null,null,"ISB91.5X91.5X3.6",null,null,"UC254X254X107.1",null,null,"H800X250X16X28",null,null,null,"B 200X150X6",null,null,"L90X12",null,null,"Lн75x50x8",null,null,"Ln_75x50x8",null,null,"Lн_75x50x8",null,null,"273X6CHS",null,null,null,null,null,null,"L130X65X10"]
["125X125X4SHS",null,null,"HSS16X12X3/8",null,null,"HSS406.4X304.8X9.5",null,null,"HSS20X12X5/16",null,null,"HSS508X304.8X7.9",null,null,"RHS150X50X4",null,null,"UBP356X368X133",null,null,null,null,null,"HE600X337",null,null,"HP320X184",null,null,null,null,null,null,null,null,null,null,null,"W24X12.75X117",null,null,"W610X325X174",null,null,"RHHF350X250X10",null,null,"L140X14",null,null,"HS203X203X13",null,null,"HS203X203X13",null,null,null,null,null,"L130X65X12",null,null,"ISB91.5X91.5X4.5",null,null,"UC254X254X132",null,null,"H800X250X16X25",null,null,null,"B 200X150X9",null,null,"L90X6",null,null,"Lн80x50x5",null,null,"Ln_80x50x5",null,null,"Lн_80x50x5",null,null,"273X8CHS",null,null,null,null,null,null,"L130X65X12"]
["100X100X9SHS",null,null,"HSS16X12X5/16",null,null,"HSS406.4X304.8X7.9",null,null,"HSS20X8X5/8",null,null,"HSS508X203.2X15.9",null,null,"RHS150X50X4.5",null,null,"UBP356X368X152",null,null,null,null,null,"HE600X399",null,null,"HP360X133",null,null,null,null,null,null,null,null,null,null,null,"W24X12.75X131",null,null,"W610X325X195",null,null,"RHHF350X250X12.5",null,null,"L140X16",null,null,"HS203X203X9.5",null,null,"HS203X203X9.5",null,null,null,null,null,"L150X100X10",null,null,"ISB91.5X91.5X5.4",null,null,"UC254X254X167.1",null,null,"H800X250X14X25",null,null,null,"B 250X150X6",null,null,"L90X7",null,null,"Lн80x50x6",null,null,"Ln_80x50x6",null,null,"Lн_80x50x6",null,null,"273X10CHS",null,null,null,null,null,null,"L150X100X10"]
["100X100X6SHS",null,null,"HSS16X8X5/8",null,null,"HSS406.4X203.2X15.9",null,null,"HSS20X8X1/2",null,null,"HSS508X203.2X12.7",null,null,"RHS150X50X5",null,null,"UBP356X368X174",null,null,null,null,null,"HE650AA",null,null,"HP360X152",null,null,null,null,null,null,null,null,null,null,null,"W24X12.75X146",null,null,"W610X325X217",null,null,"RHHF350X250X14.2",null,null,"L150X8",null,null,"HS203X203X8.0",null,null,"HS203X203X8.0",null,null,null,null,null,"L150X100X12",null,null,"ISB113.5X113.5X4.8",null,null,"UC305X305X96.9",null,null,"H800X250X14X22",null,null,null,"B 250X150X9",null,null,"L90X8",null,null,"Lн80x60x6",null,null,"Ln_80x60x6",null,null,"Lн_80x60x6",null,null,"273X12CHS",null,null,null,null,null,null,"L150X100X12"]
["100X100X5SHS",null,null,"HSS16X8X1/2",null,null,"HSS406.4X203.2X12.7",null,null,"HSS20X8X3/8",null,null,"HSS508X203.2X9.5",null,null,"RHS150X75X2.5",null,null,null,null,null,null,null,null,"HE650A",null,null,"HP360X174",null,null,null,null,null,null,null,null,null,null,null,"W24X12.75X162",null,null,"W610X325X241",null,null,"RHHF350X250X16",null,null,"L150X10",null,null,"HS203X203X6.4",null,null,"HS203X203X6.4",null,null,null,null,null,"L150X100X14",null,null,"ISB113.5X113.5X5.4",null,null,"UC305X305X117.9",null,null,"H750X350X16X36",null,null,null,"B 250X150X12",null,null,"L90X9",null,null,"Lн80x60x7",null,null,"Ln_80x60x7",null,null,"Lн_80x60x7",null,null,"323.9X6.3CHS",null,null,null,null,null,null,"L150X100X14"]
["100X100X4SHS",null,null,"HSS16X8X3/8",null,null,"HSS406.4X203.2X9.5",null,null,"HSS20X8X5/16",null,null,"HSS508X203.2X7.9",null,null,"RHS150X75X2.9",null,null,null,null,null,null,null,null,"HE650B",null,null,"HP360X180",null,null,null,null,null,null,null,null,null,null,null,"W24X12.75X176",null,null,"W610X325X262",null,null,"RHHF400X120X5",null,null,"L150X12",null,null,"HS178X178X16",null,null,"HS178X178X16",null,null,null,null,null,"TUBO60X60X3.6",null,null,"ISB132X132X4.8",null,null,"UC305X305X136.9",null,null,"H750X350X16X32",null,null,null,"B 300X200X6",null,null,"SHS40X40X2.5",null,null,"Lн80x60x8",null,null,"Ln_80x60x8",null,null,"Lн_80x60x8",null,null,"323.9X8CHS",null,null,null,null,null,null,"TUBO60X60X3.6"]
["100X100X3SHS",null,null,"HSS16X8X5/16",null,null,"HSS406.4X203.2X7.9",null,null,"HSS20X4X1/2",null,null,"HSS508X101.6X12.7",null,null,"RHS150X75X3.2",null,null,null,null,null,null,null,null,"HE650M",null,null,"HP400X140",null,null,null,null,null,null,null,null,null,null,null,"W24X12.75X192",null,null,"W610X325X285",null,null,"RHHF400X120X6.3",null,null,"L150X14",null,null,"HS178X178X13",null,null,"HS178X178X13",null,null,null,null,null,"TUBO60X60X4",null,null,"ISB132X132X5.4",null,null,"UC305X305X158.1",null,null,"H750X350X16X28",null,null,null,"B 300X200X9",null,null,"SHS40X40X3",null,null,"Lн90x56x5",null,null,"Ln_90x56x5",null,null,"Lн_90x56x5",null,null,"323.9X10CHS",null,null,null,null,null,null,"TUBO60X60X4"]
["100X100X2.8SHS",null,null,"HSS16X8X1/4",null,null,"HSS406.4X203.2X6.4",null,null,"HSS20X4X3/8",null,null,"HSS508X101.6X9.5",null,null,"RHS150X75X3.6",null,null,null,null,null,null,null,null,"HE650X343",null,null,"HP400X158",null,null,null,null,null,null,null,null,null,null,null,"W24X12.75X207",null,null,"W610X325X307",null,null,"RHHF400X120X8",null,null,"L150X15",null,null,"HS178X178X9.5",null,null,"HS178X178X9.5",null,null,null,null,null,"TUBO60X60X4.5",null,null,"ISB50X25X2.6",null,null,"UC305X305X198.1",null,null,"H750X350X14X32",null,null,null,"B 300X200X12",null,null,"SHS40X40X3.2",null,null,"Lн90x56x6",null,null,"Ln_90x56x6",null,null,"Lн_90x56x6",null,null,"323.9X12CHS",null,null,null,null,null,null,"TUBO60X60X4.5"]
["100X100X2.5SHS",null,null,"HSS16X4X5/8",null,null,"HSS406.4X101.6X15.9",null,null,"HSS20X4X5/16",null,null,"HSS508X101.6X7.9",null,null,"RHS150X75X4",null,null,null,null,null,null,null,null,"HE650X407",null,null,"HP400X176",null,null,null,null,null,null,null,null,null,null,null,"W24X12.75X229",null,null,"W610X325X341",null,null,"RHHF400X120X10",null,null,"L150X16",null,null,"HS178X178X8.0",null,null,"HS178X178X8.0",null,null,null,null,null,"TUBO60X60X5",null,null,"ISB50X25X3.2",null,null,"UC305X305X240",null,null,"H750X350X14X28",null,null,null,"B 350X150X6",null,null,"SHS40X40X3.6",null,null,"Lн90x56x8",null,null,"Ln_90x56x8",null,null,"Lн_90x56x8",null,null,"355.6X8CHS",null,null,null,null,null,null,"TUBO60X60X5"]
["100X100X2.3SHS",null,null,"HSS16X4X1/2",null,null,"HSS406.4X101.6X12.7",null,null,"HSS20X4X1/4",null,null,"HSS508X101.6X6.4",null,null,"RHS150X75X5",null,null,null,null,null,null,null,null,"HE700AA",null,null,"HP400X194",null,null,null,null,null,null,null,null,null,null,null,"W24X12.75X279",null,null,"W610X325X415",null,null,"RHHF400X120X12.5",null,null,"L160X10",null,null,"HS178X178X6.4",null,null,"HS178X178X6.4",null,null,null,null,null,"TUBO60X60X5.4",null,null,"ISB66X33X2.6",null,null,"UC305X305X282.9",null,null,"H750X350X14X25",null,null,null,"B 350X150X9",null,null,"SHS40X40X4",null,null,"Lн100x63x6",null,null,"Ln_100x63x6",null,null,"Lн_100x63x6",null,null,"355.6X10CHS",null,null,null,null,null,null,"TUBO60X60X5.4"]
["100X100X2SHS",null,null,"HSS16X4X3/8",null,null,"HSS406.4X101.6X9.5",null,null,"HSS18X18X7/8",null,null,"HSS457.2X457.2X22.2",null,null,"RHS150X75X6",null,null,null,null,null,null,null,null,"HE700A",null,null,"HP400X213",null,null,null,null,null,null,null,null,null,null,null,"W24X12.75X306",null,null,"W610X325X455",null,null,"RHHF400X120X14.2",null,null,"L160X12",null,null,"HS178X178X4.8",null,null,"HS178X178X4.8",null,null,null,null,null,"TUBO60X60X5.9",null,null,"ISB66X33X2.9",null,null,"UC368X368X129",null,null,"H750X300X16X32",null,null,null,"B 350X150X12",null,null,"SHS40X40X5",null,null,"Lн100x63x7",null,null,"Ln_100x63x7",null,null,"Lн_100x63x7",null,null,"355.6X12CHS",null,null,null,null,null,null,"TUBO60X60X5.9"]
["89X89X6SHS",null,null,"HSS16X4X5/16",null,null,"HSS406.4X101.6X7.9",null,null,"HSS18X18X3/4",null,null,"HSS457.2X457.2X19",null,null,"RHS150X100X2.9",null,null,null,null,null,null,null,null,"HE700B",null,null,"HP400X231",null,null,null,null,null,null,null,null,null,null,null,"W24X12.75X335",null,null,"W610X325X498",null,null,"RHHF400X120X16",null,null,"L160X14",null,null,"HS152X152X13",null,null,"HS152X152X13",null,null,null,null,null,"TUBO60X60X7.1",null,null,"ISB66X33X3.6",null,null,"UC368X368X152.9",null,null,"H750X300X16X28",null,null,null,"B 400X200X6",null,null,"SHS50X50X2.5",null,null,"Lн100x63x8",null,null,"Ln_100x63x8",null,null,"Lн_100x63x8",null,null,null,null,null,null,null,null,null,"TUBO60X60X7.1"]
["89X89X5SHS",null,null,"HSS16X4X1/4",null,null,"HSS406.4X101.6X6.4",null,null,"HSS18X18X5/8",null,null,"HSS457.2X457.2X15.9",null,null,"RHS150X100X3.2",null,null,null,null,null,null,null,null,"HE700M",null,null,null,null,null,null,null,null,null,null,null,null,null,null,"W24X12.75X370",null,null,"W610X325X551",null,null,"RHHF400X150X5",null,null,"L160X16",null,null,"HS152X152X9.5",null,null,"HS152X152X9.5",null,null,null,null,null,"TUBO60X60X8",null,null,"ISB66X33X4.5",null,null,"UC368X368X177",null,null,"H750X300X16X25",null,null,null,"B 400X200X9",null,null,"SHS50X50X3",null,null,"Lн100x63x10",null,null,"Ln_100x63x10",null,null,"Lн_100x63x10",null,null,null,null,null,null,null,null,null,"TUBO60X60X8"]
["89X89X3.5SHS",null,null,"HSS16X4X3/16",null,null,"HSS406.4X101.6X4.8",null,null,"HSS18X18X1/2",null,null,"HSS457.2X457.2X12.7",null,null,"RHS150X100X3.6",null,null,null,null,null,null,null,null,"HE700X352",null,null,null,null,null,null,null,null,null,null,null,null,null,null,"W27X10X84",null,null,"W690X250X125",null,null,"RHHF400X150X6.3",null,null,"L180X12",null,null,"HS152X152X8.0",null,null,"HS152X152X8.0",null,null,null,null,null,"TUBO60X60X10",null,null,"ISB96X48X3.2",null,null,"UC368X368X201.9",null,null,"H750X300X14X28",null,null,null,"B 400X200X12",null,null,"SHS50X50X3.2",null,null,"Lн100x65x7",null,null,"Ln_100x65x7",null,null,"Lн_100x65x7",null,null,null,null,null,null,null,null,null,"TUBO60X60X10"]
["75X75X6SHS",null,null,"HSS14X14X5/8",null,null,"HSS355.6X355.6X15.9",null,null,"HSS18X6X5/8",null,null,"HSS457.2X152.4X15.9",null,null,"RHS150X100X4",null,null,null,null,null,null,null,null,"HE700X418",null,null,null,null,null,null,null,null,null,null,null,null,null,null,"W27X10X94",null,null,"W690X250X140",null,null,"RHHF400X150X8",null,null,"L180X14",null,null,"HS152X152X6.4",null,null,"HS152X152X6.4",null,null,null,null,null,"TUBO60X42X3.6",null,null,"ISB96X48X4.0",null,null,"WPB150X150X23",null,null,"H750X300X14X25",null,null,null,"C 75X40X5/7",null,null,"SHS50X50X3.6",null,null,"Lн100x65x8",null,null,"Ln_100x65x8",null,null,"Lн_100x65x8",null,null,null,null,null,null,null,null,null,"TUBO60X42X3.6"]
["75X75X5SHS",null,null,"HSS14X14X1/2",null,null,"HSS355.6X355.6X12.7",null,null,"HSS18X6X1/2",null,null,"HSS457.2X152.4X12.7",null,null,"RHS150X100X5",null,null,null,null,null,null,null,null,"HE800AA",null,null,null,null,null,null,null,null,null,null,null,null,null,null,"W27X10X102",null,null,"W690X250X152",null,null,"RHHF400X150X10",null,null,"L180X16",null,null,"HS152X152X4.8",null,null,"HS152X152X4.8",null,null,null,null,null,"TUBO60X42X4",null,null,"ISB96X48X4.8",null,null,"WPB150X150X30",null,null,"H750X300X14X22",null,null,null,"C 100X50X5/7.5",null,null,"SHS50X50X4",null,null,"Lн100x65x10",null,null,"Ln_100x65x10",null,null,"Lн_100x65x10",null,null,null,null,null,null,null,null,null,"TUBO60X42X4"]
["75X75X4SHS",null,null,"HSS14X14X3/8",null,null,"HSS355.6X355.6X9.5",null,null,"HSS18X6X3/8",null,null,"HSS457.2X152.4X9.5",null,null,"RHS150X100X6",null,null,null,null,null,null,null,null,"HE800A",null,null,null,null,null,null,null,null,null,null,null,null,null,null,"W27X10X114",null,null,"W690X250X170",null,null,"RHHF400X150X12.5",null,null,"L180X18",null,null,"HS127X127X13",null,null,"HS127X127X13",null,null,null,null,null,"TUBO60X42X4.5",null,null,"ISB122X61X3.6",null,null,"WPB150X150X37",null,null,"H750X250X14X28",null,null,null,"C 125X65X6/8",null,null,"SHS50X50X5",null,null,"Lн110x70x6",null,null,"Ln_110x70x6",null,null,"Lн_110x70x6",null,null,null,null,null,null,null,null,null,"TUBO60X42X4.5"]
["75X75X3.5SHS",null,null,"HSS14X14X5/16",null,null,"HSS355.6X355.6X7.9",null,null,"HSS18X6X5/16",null,null,"HSS457.2X152.4X7.9",null,null,"RHS150X100X8",null,null,null,null,null,null,null,null,"HE800B",null,null,null,null,null,null,null,null,null,null,null,null,null,null,"W27X10X129",null,null,"W690X250X192",null,null,"RHHF400X150X14.2",null,null,"L200X14",null,null,"HS127X127X9.5",null,null,"HS127X127X9.5",null,null,null,null,null,"TUBO60X42X5",null,null,"ISB122X61X4.5",null,null,"WPB320X300X74.2",null,null,"H750X250X14X25",null,null,null,"C 150X75X6.5/10",null,null,"SHS50X50X6",null,null,"Lн110x70x8",null,null,"Ln_110x70x8",null,null,"Lн_110x70x8",null,null,null,null,null,null,null,null,null,"TUBO60X42X5"]
["75X75X3SHS",null,null,"HSS14X10X5/8",null,null,"HSS355.6X254X15.9",null,null,"HSS18X6X1/4",null,null,"HSS457.2X152.4X6.4",null,null,"RHS200X100X2.9",null,null,null,null,null,null,null,null,"HE800M",null,null,null,null,null,null,null,null,null,null,null,null,null,null,"W30X10.5X90",null,null,"W760X265X134",null,null,"RHHF400X150X16",null,null,"L200X16",null,null,"HS127X127X8.0",null,null,"HS127X127X8.0",null,null,null,null,null,"TUBO60X42X5.4",null,null,"ISB122X61X5.4",null,null,"WPB320X300X97.6",null,null,"H750X250X12X25",null,null,null,"C 150X75X9/12.5",null,null,"SHS50X50X6.3",null,null,"Lн125x80x7",null,null,"Ln_125x80x7",null,null,"Lн_125x80x7",null,null,null,null,null,null,null,null,null,"TUBO60X42X5.4"]
["75X75X2.8SHS",null,null,"HSS14X10X1/2",null,null,"HSS355.6X254X12.7",null,null,"HSS16X16X7/8",null,null,"HSS406.4X406.4X22.2",null,null,"RHS200X100X3.2",null,null,null,null,null,null,null,null,"HE800X373",null,null,null,null,null,null,null,null,null,null,null,null,null,null,"W30X10.5X99",null,null,"W760X265X147",null,null,"RHHF400X200X8",null,null,"L200X18",null,null,"HS127X127X6.4",null,null,"HS127X127X6.4",null,null,null,null,null,"TUBO60X42X5.9",null,null,"ISB145X82X4.8",null,null,"WPB320X300X126.6",null,null,"H750X250X12X22",null,null,null,"C 180X75X7/10.5",null,null,"SHS60X60X3",null,null,"Lн125x80x8",null,null,"Ln_125x80x8",null,null,"Lн_125x80x8",null,null,null,null,null,null,null,null,null,"TUBO60X42X5.9"]
["75X75X2.5SHS",null,null,"HSS14X10X3/8",null,null,"HSS355.6X254X9.5",null,null,"HSS16X16X3/4",null,null,"HSS406.4X406.4X19.0",null,null,"RHS200X100X3.6",null,null,null,null,null,null,null,null,"HE800X444",null,null,null,null,null,null,null,null,null,null,null,null,null,null,"W30X10.5X108",null,null,"W760X265X161",null,null,"RHHF400X200X10",null,null,"L200X20",null,null,"HS127X127X4.8",null,null,"HS127X127X4.8",null,null,null,null,null,"TUBO60X42X7.1",null,null,"ISB145X82X5.4",null,null,"WPB320X300X245",null,null,"H750X250X12X19",null,null,null,"C 200X80X7.5/11",null,null,"SHS60X60X3.2",null,null,"Lн125x80x10",null,null,"Ln_125x80x10",null,null,"Lн_125x80x10",null,null,null,null,null,null,null,null,null,"TUBO60X42X7.1"]
["75X75X2.3SHS",null,null,"HSS14X10X5/16",null,null,"HSS355.6X254X7.9",null,null,"HSS16X16X5/8",null,null,"HSS406.4X406.4X15.9",null,null,"RHS200X100X4",null,null,null,null,null,null,null,null,"HE900AA",null,null,null,null,null,null,null,null,null,null,null,null,null,null,"W30X10.5X116",null,null,"W760X265X173",null,null,"RHHF400X200X12.5",null,null,"L200X24",null,null,"HS114X114X13",null,null,"HS114X114X13",null,null,null,null,null,"TUBO60X42X8",null,null,"ISB172X92X4.8",null,null,"WPB600X300X128.8",null,null,"H700X350X16X36",null,null,null,"C 200X90X8/13.5",null,null,"SHS60X60X3.6",null,null,"Lн125x80x12",null,null,"Ln_125x80x12",null,null,"Lн_125x80x12",null,null,null,null,null,null,null,null,null,"TUBO60X42X8"]
["75X75X2SHS",null,null,"HSS14X10X1/4",null,null,"HSS355.6X254X6.4",null,null,"HSS16X16X1/2",null,null,"HSS406.4X406.4X12.7",null,null,"RHS200X100X5",null,null,null,null,null,null,null,null,"HE900A",null,null,null,null,null,null,null,null,null,null,null,null,null,null,"W30X10.5X124",null,null,"W760X265X185",null,null,"RHHF400X200X14.2",null,null,"L220X16",null,null,"HS114X114X9.5",null,null,"HS114X114X9.5",null,null,null,null,null,"TUBO60X30X3.6",null,null,"ISB172X92X5.4",null,null,"WPB600X300X177.8",null,null,"H700X350X16X32",null,null,null,"C 250X90X9/13",null,null,"SHS60X60X4",null,null,"Lн140x90x8",null,null,"Ln_140x90x8",null,null,"Lн_140x90x8",null,null,null,null,null,null,null,null,null,"TUBO60X30X3.6"]
["65X65X6SHS",null,null,"HSS14X6X5/8",null,null,"HSS355.6X152.4X15.9",null,null,"HSS16X16X3/8",null,null,"HSS406.4X406.4X9.5",null,null,"RHS200X100X6",null,null,null,null,null,null,null,null,"HE900B",null,null,null,null,null,null,null,null,null,null,null,null,null,null,"W30X10.5X132",null,null,"W760X265X196",null,null,"RHHF400X200X16",null,null,"L220X18",null,null,"HS114X114X8.0",null,null,"HS114X114X8.0",null,null,null,null,null,"TUBO60X30X4",null,null,"ISJC100",null,null,"WPB600X300X211.9",null,null,"H700X350X16X28",null,null,null,"C 250X90X11/14.5",null,null,"SHS60X60X5",null,null,"Lн140x90x10",null,null,"Ln_140x90x10",null,null,"Lн_140x90x10",null,null,null,null,null,null,null,null,null,"TUBO60X30X4"]
["65X65X5SHS",null,null,"HSS14X6X1/2",null,null,"HSS355.6X152.4X12.7",null,null,"HSS16X16X5/16",null,null,"HSS406.4X406.4X7.9",null,null,"RHS200X100X8",null,null,null,null,null,null,null,null,"HE900M",null,null,null,null,null,null,null,null,null,null,null,null,null,null,"W30X10.5X148",null,null,"W760X265X220",null,null,"RHHF400X300X8",null,null,"L220X20",null,null,"HS114X114X6.4",null,null,"HS114X114X6.4",null,null,null,null,null,"TUBO60X30X4.5",null,null,"ISJC125",null,null,"WPB600X300X285.5",null,null,"H700X350X16X25",null,null,null,"C 300X90X9/13",null,null,"SHS60X60X6",null,null,"Lн160x100x9",null,null,"Ln_160x100x9",null,null,"Lн_160x100x9",null,null,null,null,null,null,null,null,null,"TUBO60X30X4.5"]
["65X65X4SHS",null,null,"HSS14X6X3/8",null,null,"HSS355.6X152.4X9.5",null,null,"HSS16X12X3/4",null,null,"HSS406.4X304.8X19",null,null,"RHS240X120X4",null,null,null,null,null,null,null,null,"HE900X391",null,null,null,null,null,null,null,null,null,null,null,null,null,null,"W33X11.5X118",null,null,"W840X295X176",null,null,"RHHF400X300X10",null,null,"L220X22",null,null,"HS114X114X4.8",null,null,"HS114X114X4.8",null,null,null,null,null,"TUBO60X30X5",null,null,"ISJC150",null,null,"WPB700X300X149.9",null,null,"H700X350X14X32",null,null,null,"C 300X90X10/15.5",null,null,"SHS60X60X6.3",null,null,"Lн160x100x10",null,null,"Ln_160x100x10",null,null,"Lн_160x100x10",null,null,null,null,null,null,null,null,null,"TUBO60X30X5"]
["65X65X3SHS",null,null,"HSS14X6X5/16",null,null,"HSS355.6X152.4X7.9",null,null,"HSS16X12X5/8",null,null,"HSS406.4X304.8X15.9",null,null,"RHS240X120X5",null,null,null,null,null,null,null,null,"HE900X466",null,null,null,null,null,null,null,null,null,null,null,null,null,null,"W33X11.5X130",null,null,"W840X295X193",null,null,"RHHF400X300X12.5",null,null,"L220X24",null,null,"HS114X114X3.2",null,null,"HS114X114X3.2",null,null,null,null,null,"TUBO60X30X5.4",null,null,"ISJC175",null,null,"WPB700X300X204.5",null,null,"H700X350X14X28",null,null,null,"C 300X90X12/16",null,null,"SHS60X60X8",null,null,"Lн160x100x12",null,null,"Ln_160x100x12",null,null,"Lн_160x100x12",null,null,null,null,null,null,null,null,null,"TUBO60X30X5.4"]
["65X65X2.5SHS",null,null,"HSS14X6X1/4",null,null,"HSS355.6X152.4X6.4",null,null,"HSS16X12X1/2",null,null,"HSS406.4X304.8X12.7",null,null,"RHS240X120X5.4",null,null,null,null,null,null,null,null,"HE1000AA",null,null,null,null,null,null,null,null,null,null,null,null,null,null,"W33X11.5X141",null,null,"W840X295X210",null,null,"RHHF400X300X14.2",null,null,"L220X26",null,null,"HS102X102X13",null,null,"HS102X102X13",null,null,null,null,null,"TUBO60X30X5.9",null,null,"ISJC200",null,null,"WPB700X300X240.5",null,null,"H700X350X14X25",null,null,null,"C 380X100X10.5/16",null,null,"SHS70X70X3",null,null,"Lн160x100x14",null,null,"Ln_160x100x14",null,null,"Lн_160x100x14",null,null,null,null,null,null,null,null,null,"TUBO60X30X5.9"]
["65X65X2.3SHS",null,null,"HSS14X6X3/16",null,null,"HSS355.6X152.4X4.8",null,null,"HSS16X12X3/8",null,null,"HSS406.4X304.8X9.5",null,null,"RHS240X120X6",null,null,null,null,null,null,null,null,"HE1000X249",null,null,null,null,null,null,null,null,null,null,null,null,null,null,"W33X11.5X152",null,null,"W840X295X226",null,null,"RHHF400X300X16",null,null,"L250X18",null,null,"HS102X102X9.5",null,null,"HS102X102X9.5",null,null,null,null,null,"TUBO70X70X3.6",null,null,"ISLC75",null,null,"WPB700X300X300.7",null,null,"H700X350X12X25",null,null,null,"C 380X100X13/16.5",null,null,"SHS70X70X3.2",null,null,"Lн180x110x10",null,null,"Ln_180x110x10",null,null,"Lн_180x110x10",null,null,null,null,null,null,null,null,null,"TUBO70X70X3.6"]
["65X65X2SHS",null,null,"HSS14X4X5/8",null,null,"HSS355.6X101.6X15.9",null,null,"HSS16X12X5/16",null,null,"HSS406.4X304.8X7.9",null,null,"RHS240X120X8",null,null,null,null,null,null,null,null,"HE1000A",null,null,null,null,null,null,null,null,null,null,null,null,null,null,"W33X11.5X169",null,null,"W840X295X251",null,null,"RHHF450X250X8",null,null,"L250X20",null,null,"HS102X102X8.0",null,null,"HS102X102X8.0",null,null,null,null,null,"TUBO70X70X4",null,null,"ISLC100",null,null,"WPB800X300X171.5",null,null,"H700X350X12X22",null,null,null,"C 380X100X13/20",null,null,"SHS70X70X3.6",null,null,"Lн180x110x12",null,null,"Ln_180x110x12",null,null,"Lн_180x110x12",null,null,null,null,null,null,null,null,null,"TUBO70X70X4"]
["65X65X1.6SHS",null,null,"HSS14X4X1/2",null,null,"HSS355.6X101.6X12.7",null,null,"HSS16X8X5/8",null,null,"HSS406.4X203.2X15.9",null,null,"RHS250X100X4",null,null,null,null,null,null,null,null,"HE1000B",null,null,null,null,null,null,null,null,null,null,null,null,null,null,"W36X12X135",null,null,"W920X310X201",null,null,"RHHF450X250X10",null,null,"L250X22",null,null,"HS102X102X6.4",null,null,"HS102X102X6.4",null,null,null,null,null,"TUBO70X70X4.5",null,null,"ISLC125",null,null,"WPB800X300X224.4",null,null,"H700X300X16X32",null,null,null,"H 100X50X5/7",null,null,"SHS70X70X4",null,null,"Lн200x125x11",null,null,"Ln_200x125x11",null,null,"Lн_200x125x11",null,null,null,null,null,null,null,null,null,"TUBO70X70X4.5"]
["50X50X5SHS",null,null,"HSS14X4X3/8",null,null,"HSS355.6X101.6X9.5",null,null,"HSS16X8X1/2",null,null,"HSS406.4X203.2X12.7",null,null,"RHS250X100X5",null,null,null,null,null,null,null,null,"HE1000M",null,null,null,null,null,null,null,null,null,null,null,null,null,null,"W36X12X150",null,null,"W920X310X223",null,null,"RHHF450X250X12.5",null,null,"L250X24",null,null,"HS102X102X4.8",null,null,"HS102X102X4.8",null,null,null,null,null,"TUBO70X70X5",null,null,"ISLC150",null,null,"WPB800X300X262.3",null,null,"H700X300X16X28",null,null,null,"H 100X100X6/8",null,null,"SHS70X70X5",null,null,"Lн200x125x12",null,null,"Ln_200x125x12",null,null,"Lн_200x125x12",null,null,null,null,null,null,null,null,null,"TUBO70X70X5"]
["50X50X4SHS",null,null,"HSS14X4X5/16",null,null,"HSS355.6X101.6X7.9",null,null,"HSS16X8X3/8",null,null,"HSS406.4X203.2X9.5",null,null,"RHS250X100X5.4",null,null,null,null,null,null,null,null,"HE1000X393",null,null,null,null,null,null,null,null,null,null,null,null,null,null,"W36X12X160",null,null,"W920X310X238",null,null,"RHHF450X250X14.2",null,null,"L250X26",null,null,"HS102X102X3.2",null,null,"HS102X102X3.2",null,null,null,null,null,"TUBO70X70X5.4",null,null,"ISLC175",null,null,"WPB800X300X317.3",null,null,"H700X300X16X25",null,null,null,"H 125X60X6/8",null,null,"SHS70X70X6",null,null,"Lн200x125x14",null,null,"Ln_200x125x14",null,null,"Lн_200x125x14",null,null,null,null,null,null,null,null,null,"TUBO70X70X5.4"]
["50X50X3SHS",null,null,"HSS14X4X1/4",null,null,"HSS355.6X101.6X6.4",null,null,"HSS16X8X5/16",null,null,"HSS406.4X203.2X7.9",null,null,"RHS250X100X6",null,null,null,null,null,null,null,null,"HE1000X415",null,null,null,null,null,null,null,null,null,null,null,null,null,null,"W36X12X170",null,null,"W920X310X253",null,null,"RHHF450X250X16",null,null,"L250X28",null,null,"HS89X89X9.5",null,null,"HS89X89X9.5",null,null,null,null,null,"TUBO70X70X5.9",null,null,"ISLC200",null,null,"WPB900X300X198",null,null,"H700X300X14X32",null,null,null,"H 125X125X6.5/9",null,null,"SHS70X70X6.3",null,null,"Lн200x125x16",null,null,"Ln_200x125x16",null,null,"Lн_200x125x16",null,null,null,null,null,null,null,null,null,"TUBO70X70X5.9"]
["50X50X2.8SHS",null,null,"HSS14X4X3/16",null,null,"HSS355.6X101.6X4.8",null,null,"HSS16X8X1/4",null,null,"HSS406.4X203.2X6.4",null,null,"RHS250X100X8",null,null,null,null,null,null,null,null,"HE1000X438",null,null,null,null,null,null,null,null,null,null,null,null,null,null,"W36X12X182",null,null,"W920X310X271",null,null,"RHHF500X200X8",null,null,"L250X30",null,null,"HS89X89X8.0",null,null,"HS89X89X8.0",null,null,null,null,null,"TUBO70X70X7.1",null,null,"ISLC225",null,null,"WPB900X300X251.6",null,null,"H700X300X14X28",null,null,null,"H 150X75X5/7",null,null,"SHS70X70X8",null,null,"Тп50x25x2",null,null,"03_Tk_40x2",null,null,"03_Тк_40х2",null,null,null,null,null,null,null,null,null,"TUBO70X70X7.1"]
["50X50X2.5SHS",null,null,"HSS12X12X5/8",null,null,"HSS304.8X304.8X15.9",null,null,"HSS16X4X5/8",null,null,"HSS406.4X101.6X15.9",null,null,"RHS250X150X4",null,null,null,null,null,null,null,null,"HE1000X494",null,null,null,null,null,null,null,null,null,null,null,null,null,null,"W36X12X194",null,null,"W920X310X289",null,null,"RHHF500X200X10",null,null,"L250X32",null,null,"HS89X89X6.4",null,null,"HS89X89X6.4",null,null,null,null,null,"TUBO70X70X8",null,null,"ISLC250",null,null,"WPB900X300X291.4",null,null,"H700X300X14X25",null,null,null,"H 148X100X6/9",null,null,"SHS80X80X3.2",null,null,"Тп50x25x2,5",null,null,"03_Tk_40x2,5",null,null,"03_Тк_40х2,5",null,null,null,null,null,null,null,null,null,"TUBO70X70X8"]
["50X50X2.3SHS",null,null,"HSS12X12X1/2",null,null,"HSS304.8X304.8X12.7",null,null,"HSS16X4X1/2",null,null,"HSS406.4X101.6X12.7",null,null,"RHS250X150X5",null,null,null,null,null,null,null,null,"HE1000X584",null,null,null,null,null,null,null,null,null,null,null,null,null,null,"W36X12X210",null,null,"W920X310X313",null,null,"RHHF500X200X12.5",null,null,"L250X35",null,null,"HS89X89X4.8",null,null,"HS89X89X4.8",null,null,null,null,null,"TUBO70X70X10",null,null,"ISLC300",null,null,"WPB900X300X333",null,null,"H700X300X12X25",null,null,null,"H 150X150X7/10",null,null,"SHS80X80X3.6",null,null,"Тп50x25x3",null,null,"03_Tk_40x3",null,null,"03_Тк_40х3",null,null,null,null,null,null,null,null,null,"TUBO70X70X10"]
["50X50X2SHS",null,null,"HSS12X12X3/8",null,null,"HSS304.8X304.8X9.5",null,null,"HSS16X4X3/8",null,null,"HSS406.4X101.6X9.5",null,null,"RHS250X150X5.4",null,null,null,null,null,null,null,null,"HL920X344",null,null,null,null,null,null,null,null,null,null,null,null,null,null,"W36X12X232",null,null,"W920X310X345",null,null,"RHHF500X200X14.2",null,null,"GB-C5",null,null,"HS89X89X3.2",null,null,"HS89X89X3.2",null,null,null,null,null,"TUBO70X70X12.5",null,null,"ISLC350",null,null,null,null,null,"H700X300X12X22",null,null,null,"H 175X90X5/8",null,null,"SHS80X80X4",null,null,"Тп50x25x3,5",null,null,"03_Tk_40x3,5",null,null,"03_Тк_40х3,5",null,null,null,null,null,null,null,null,null,"TUBO70X70X12.5"]
["50X50X1.6SHS",null,null,"HSS12X12X5/16",null,null,"HSS304.8X304.8X7.9",null,null,"HSS16X4X5/16",null,null,"HSS406.4X101.6X7.9",null,null,"RHS250X150X6",null,null,null,null,null,null,null,null,"HL920X368",null,null,null,null,null,null,null,null,null,null,null,null,null,null,"W36X12X256",null,null,"W920X310X381",null,null,"RHHF500X200X16",null,null,"GB-C6.3",null,null,"HS76X76X9.5",null,null,"HS76X76X9.5",null,null,null,null,null,"TUBO70X49X3.6",null,null,"ISLC400",null,null,null,null,null,"H700X300X12X19",null,null,null,"H 175X175X7.5/11",null,null,"SHS80X80X5",null,null,"Тп50x25x4",null,null,"03_Tk_40x4",null,null,"03_Тк_40х4",null,null,null,null,null,null,null,null,null,"TUBO70X49X3.6"]
["40X40X4SHS",null,null,"HSS12X12X1/4",null,null,"HSS304.8X304.8X6.4",null,null,"HSS16X4X1/4",null,null,"HSS406.4X101.6X6.4",null,null,"RHS250X150X8",null,null,null,null,null,null,null,null,"HL920X390",null,null,null,null,null,null,null,null,null,null,null,null,null,null,"W36X12X286",null,null,"W920X310X425",null,null,"RHHF500X300X8",null,null,"GB-C6.5",null,null,"HS76X76X8.0",null,null,"HS76X76X8.0",null,null,null,null,null,"TUBO70X49X4",null,null,"ISMC75",null,null,null,null,null,"H700X250X14X28",null,null,null,"H 198X99X4.5/7",null,null,"SHS80X80X6",null,null,"Тп50x30x2",null,null,"03_Tk_50x2",null,null,"03_Тк_50х2",null,null,null,null,null,null,null,null,null,"TUBO70X49X4"]
["40X40X3SHS",null,null,"HSS12X12X3/16",null,null,"HSS304.8X304.8X4.8",null,null,"HSS16X4X3/16",null,null,"HSS406.4X101.6X4.8",null,null,"RHS250X150X10",null,null,null,null,null,null,null,null,"HL920X420",null,null,null,null,null,null,null,null,null,null,null,null,null,null,"W36X12X318",null,null,"W920X310X474",null,null,"RHHF500X300X10",null,null,"GB-C8",null,null,"HS76X76X6.4",null,null,"HS76X76X6.4",null,null,null,null,null,"TUBO70X49X4.5",null,null,"ISMC100",null,null,null,null,null,"H700X250X14X25",null,null,null,"H 200X100X5.5/8",null,null,"SHS80X80X6.3",null,null,"Тп50x30x2,5",null,null,"03_Tk_50x2,5",null,null,"03_Тк_50х2,5",null,null,null,null,null,null,null,null,null,"TUBO70X49X4.5"]
["40X40X2.8SHS",null,null,"HSS12X10X1/2",null,null,"HSS304.8X254X12.7",null,null,"HSS14X14X7/8",null,null,"HSS355.6X355.6X22.2",null,null,"RHS280X100X4",null,null,null,null,null,null,null,null,"HL920X449",null,null,null,null,null,null,null,null,null,null,null,null,null,null,"W36X12X350",null,null,"W920X310X521",null,null,"RHHF500X300X12.5",null,null,"GB-C10",null,null,"HS76X76X4.8",null,null,"HS76X76X4.8",null,null,null,null,null,"TUBO70X49X5",null,null,"ISMC125",null,null,null,null,null,"H700X250X12X25",null,null,null,"H 194X150X6/9",null,null,"SHS80X80X8",null,null,"Тп50x30x3",null,null,"03_Tk_50x3",null,null,"03_Тк_50х3",null,null,null,null,null,null,null,null,null,"TUBO70X49X5"]
["40X40X2.5SHS",null,null,"HSS12X10X3/8",null,null,"HSS304.8X254X9.5",null,null,"HSS14X14X3/4",null,null,"HSS355.6X355.6X19",null,null,"RHS280X100X5",null,null,null,null,null,null,null,null,"HL920X491",null,null,null,null,null,null,null,null,null,null,null,null,null,null,"W36X12X387",null,null,"W920X310X576",null,null,"RHHF500X300X14.2",null,null,"GB-C12",null,null,"HS76X76X3.2",null,null,"HS76X76X3.2",null,null,null,null,null,"TUBO70X49X5.4",null,null,"ISMC150",null,null,null,null,null,"H700X250X12X22",null,null,null,"H 200X200X8/12",null,null,"SHS90X90X3.6",null,null,"Тп50x30x3,5",null,null,"03_Tk_50x3,5",null,null,"03_Тк_50х3,5",null,null,null,null,null,null,null,null,null,"TUBO70X49X5.4"]
["40X40X2.3SHS",null,null,"HSS12X10X5/16",null,null,"HSS304.8X254X7.9",null,null,"HSS14X14X5/8",null,null,"HSS355.6X355.6X15.9",null,null,"RHS280X100X5.4",null,null,null,null,null,null,null,null,"HL920X537",null,null,null,null,null,null,null,null,null,null,null,null,null,null,"W36X16.5X231",null,null,"W920X420X344",null,null,"RHHF500X300X16",null,null,"GB-C12.6",null,null,"HS64X64X8.0",null,null,"HS64X64X8.0",null,null,null,null,null,"TUBO70X49X5.9",null,null,"ISMC175",null,null,null,null,null,"H700X250X12X19",null,null,null,"H 200X204X12/12",null,null,"SHS90X90X4",null,null,"Тп50x30x4",null,null,"03_Tk_50x4",null,null,"03_Тк_50х4",null,null,null,null,null,null,null,null,null,"TUBO70X49X5.9"]
["40X40X2SHS",null,null,"HSS12X10X1/4",null,null,"HSS304.8X254X6.4",null,null,"HSS14X14X1/2",null,null,"HSS355.6X355.6X12.7",null,null,"RHS280X100X6",null,null,null,null,null,null,null,null,"HL920X588",null,null,null,null,null,null,null,null,null,null,null,null,null,null,"W36X16.5X247",null,null,"W920X420X368",null,null,"RHHF500X300X20",null,null,"GB-C14A",null,null,"HS64X64X6.4",null,null,"HS64X64X6.4",null,null,null,null,null,"TUBO70X49X7.1",null,null,"ISMC200",null,null,null,null,null,"H700X250X9X19",null,null,null,"H 208X202X10/16",null,null,"SHS90X90X5",null,null,"Тп50x30x5",null,null,"03_Tk_50x4,5",null,null,"03_Тк_50х4,5",null,null,null,null,null,null,null,null,null,{"$f":"IF(OFFSET($A195,0,($CQ$2-1)*3)=0,\"\",OFFSET($A195,0,($CQ$2-1)*3))","v":"TUBO70X49X7.1"}]
["40X40X1.6SHS",null,null,"HSS12X8X5/8",null,null,"HSS304.8X203.2X15.9",null,null,"HSS14X14X3/8",null,null,"HSS355.6X355.6X9.5",null,null,"RHS280X100X8",null,null,null,null,null,null,null,null,"HL920X656",null,null,null,null,null,null,null,null,null,null,null,null,null,null,"W36X16.5X262",null,null,"W920X420X390",null,null,"SHHF40X40X3",null,null,"GB-C14B",null,null,"HS64X64X4.8",null,null,"HS64X64X4.8",null,null,null,null,null,"TUBO70X49X8",null,null,"ISMC225",null,null,null,null,null,"H700X250X9X16",null,null,null,"H 248X124X5/8",null,null,"SHS90X90X6",null,null,"Тп50x40x2",null,null,"03_Tk_50x5",null,null,"03_Тк_50х5",null,null,null,null,null,null,null,null,null,"TUBO70X49X8"]
["35X35X3SHS",null,null,"HSS12X8X1/2",null,null,"HSS304.8X203.2X12.7",null,null,"HSS14X14X5/16",null,null,"HSS355.6X355.6X7.9",null,null,"RHS300X150X4",null,null,null,null,null,null,null,null,"HL920X725",null,null,null,null,null,null,null,null,null,null,null,null,null,null,"W36X16.5X282",null,null,"W920X420X420",null,null,"SHHF40X40X3.2",null,null,"GB-C16A",null,null,"HS64X64X3.2",null,null,"HS64X64X3.2",null,null,null,null,null,"TUBO70X35X3.6",null,null,"ISMC250",null,null,null,null,null,"H700X200X12X28",null,null,null,"H 250X125X6/9",null,null,"SHS90X90X6.3",null,null,"Тп50x40x2,5",null,null,"03_Tk_50x5,5",null,null,"03_Тк_50х5,5",null,null,null,null,null,null,null,null,null,"TUBO70X35X3.6"]
["35X35X2.8SHS",null,null,"HSS12X8X3/8",null,null,"HSS304.8X203.2X9.5",null,null,"HSS14X10X5/8",null,null,"HSS355.6X254X15.9",null,null,"RHS300X150X5",null,null,null,null,null,null,null,null,"HL920X787",null,null,null,null,null,null,null,null,null,null,null,null,null,null,"W36X16.5X302",null,null,"W920X420X449",null,null,"SHHF40X40X4",null,null,"GB-C16B",null,null,"HS51X51X6.4",null,null,"HS51X51X6.4",null,null,null,null,null,"TUBO70X35X4",null,null,"ISMC300",null,null,null,null,null,"H700X200X12X25",null,null,null,"H 244X175X7/11",null,null,"SHS90X90X8",null,null,"Тп50x40x3",null,null,"03_Tk_50x6",null,null,"03_Тк_50х6",null,null,null,null,null,null,null,null,null,"TUBO70X35X4"]
["35X35X2.5SHS",null,null,"HSS12X8X5/16",null,null,"HSS304.8X203.2X7.9",null,null,"HSS14X10X1/2",null,null,"HSS355.6X254X12.7",null,null,"RHS300X150X5.4",null,null,null,null,null,null,null,null,"HL920X970",null,null,null,null,null,null,null,null,null,null,null,null,null,null,"W36X16.5X330",null,null,"W920X420X491",null,null,"SHHF40X40X5",null,null,"GB-C18A",null,null,"HS51X51X4.8",null,null,"HS51X51X4.8",null,null,null,null,null,"TUBO70X35X4.5",null,null,"ISMC350",null,null,null,null,null,"H700X200X12X22",null,null,null,"H 244X252X11/11",null,null,"SHS100X100X3.6",null,null,"Тп50x40x3,5",null,null,"03_Tk_60x2",null,null,"03_Тк_60х2",null,null,null,null,null,null,null,null,null,"TUBO70X35X4.5"]
["35X35X2.3SHS",null,null,"HSS12X8X1/4",null,null,"HSS304.8X203.2X6.4",null,null,"HSS14X10X3/8",null,null,"HSS355.6X254X9.5",null,null,"RHS300X150X6",null,null,null,null,null,null,null,null,"HL920X1077",null,null,null,null,null,null,null,null,null,null,null,null,null,null,"W36X16.5X361",null,null,"W920X420X537",null,null,"SHHF50X50X3",null,null,"GB-C18B",null,null,"HS51X51X3.2",null,null,"HS51X51X3.2",null,null,null,null,null,"TUBO70X35X5",null,null,"ISMC400",null,null,null,null,null,"H700X200X9X22",null,null,null,"H 248X249X8/13",null,null,"SHS100X100X4",null,null,"Тп50x40x4",null,null,"03_Tk_60x2,5",null,null,"03_Тк_60х2,5",null,null,null,null,null,null,null,null,null,"TUBO70X35X5"]
["35X35X2SHS",null,null,"HSS12X8X3/16",null,null,"HSS304.8X203.2X4.8",null,null,"HSS14X10X5/16",null,null,"HSS355.6X254X7.9",null,null,"RHS300X150X8",null,null,null,null,null,null,null,null,"HL920X1194",null,null,null,null,null,null,null,null,null,null,null,null,null,null,"W36X16.5X395",null,null,"W920X420X588",null,null,"SHHF50X50X3.2",null,null,"GB-C20A",null,null,"HS38X38X4.8",null,null,"HS38X38X4.8",null,null,null,null,null,"TUBO70X35X5.4",null,null,"ISJB150",null,null,null,null,null,"H700X200X9X19",null,null,null,"H 250X250X9/14",null,null,"SHS100X100X5",null,null,"Тп50x40x4,5",null,null,"03_Tk_60x3",null,null,"03_Тк_60х3",null,null,null,null,null,null,null,null,null,"TUBO70X35X5.4"]
["35X35X1.6SHS",null,null,"HSS12X6X5/8",null,null,"HSS304.8X152.4X15.9",null,null,"HSS14X10X1/4",null,null,"HSS355.6X254X6.4",null,null,"RHS300X150X10",null,null,null,null,null,null,null,null,"HL920X1269",null,null,null,null,null,null,null,null,null,null,null,null,null,null,"W36X16.5X441",null,null,"W920X420X656",null,null,"SHHF50X50X4",null,null,"GB-C20B",null,null,"HS38X38X3.2",null,null,"HS38X38X3.2",null,null,null,null,null,"TUBO70X35X5.9",null,null,"ISJB175",null,null,null,null,null,"H700X200X9X16",null,null,null,"H 250X255X14/14",null,null,"SHS100X100X6",null,null,"Тп50x40x5",null,null,"03_Tk_60x3,5",null,null,"03_Тк_60х3,5",null,null,null,null,null,null,null,null,null,"TUBO70X35X5.9"]
["30X30X3SHS",null,null,"HSS12X6X1/2",null,null,"HSS304.8X152.4X12.7",null,null,"HSS14X6X5/8",null,null,"HSS355.6X152.4X15.9",null,null,"RHS300X200X4",null,null,null,null,null,null,null,null,"HL920X1377",null,null,null,null,null,null,null,null,null,null,null,null,null,null,"W36X16.5X487",null,null,"W920X420X725",null,null,"SHHF50X50X5",null,null,"GB-C22A",null,null,"HS356X254X16",null,null,"HS356X254X16",null,null,null,null,null,"TUBO80X80X4.5",null,null,"ISJB200",null,null,null,null,null,"H700X200X9X12",null,null,null,"H 298X149X5.5/8",null,null,"SHS100X100X6.3",null,null,"Тп60x30x2",null,null,"03_Tk_60x4",null,null,"03_Тк_60х4",null,null,null,null,null,null,null,null,null,"TUBO80X80X4.5"]
["30X30X2.5SHS",null,null,"HSS12X6X3/8",null,null,"HSS304.8X152.4X9.5",null,null,"HSS14X6X1/2",null,null,"HSS355.6X152.4X12.7",null,null,"RHS300X200X5",null,null,null,null,null,null,null,null,"HL1000AA",null,null,null,null,null,null,null,null,null,null,null,null,null,null,"W36X16.5X529",null,null,"W920X420X787",null,null,"SHHF50X50X6.3",null,null,"GB-C22B",null,null,"HS356X254X13",null,null,"HS356X254X13",null,null,null,null,null,"TUBO80X80X5",null,null,"ISJB225",null,null,null,null,null,"H650X300X16X32",null,null,null,"H 300X150X6.5/9",null,null,"SHS100X100X8",null,null,"Тп60x30x2,5",null,null,"03_Tk_60x4,5",null,null,"03_Тк_60х4,5",null,null,null,null,null,null,null,null,null,"TUBO80X80X5"]
["30X30X2SHS",null,null,"HSS12X6X5/16",null,null,"HSS304.8X152.4X7.9",null,null,"HSS14X6X3/8",null,null,"HSS355.6X152.4X9.5",null,null,"RHS300X200X5.4",null,null,null,null,null,null,null,null,"HL1000A",null,null,null,null,null,null,null,null,null,null,null,null,null,null,"W36X16.5X652",null,null,"W920X420X970",null,null,"SHHF60X60X3",null,null,"GB-C24A",null,null,"HS356X254X9.5",null,null,"HS356X254X9.5",null,null,null,null,null,"TUBO80X80X5.4",null,null,"ISLB75",null,null,null,null,null,"H650X300X16X28",null,null,null,"H 294X200X8/12",null,null,"SHS100X100X10",null,null,"Тп60x30x3",null,null,"03_Tk_60x5",null,null,"03_Тк_60х5",null,null,null,null,null,null,null,null,null,"TUBO80X80X5.4"]
["30X30X1.6SHS",null,null,"HSS12X6X1/4",null,null,"HSS304.8X152.4X6.4",null,null,"HSS14X6X5/16",null,null,"HSS355.6X152.4X7.9",null,null,"RHS300X200X6",null,null,null,null,null,null,null,null,"HL1000B",null,null,null,null,null,null,null,null,null,null,null,null,null,null,"W36X16.5X723",null,null,"W920X420X1077",null,null,"SHHF60X60X3.2",null,null,"GB-C24B",null,null,"HS305X203X16",null,null,"HS305X203X16",null,null,null,null,null,"TUBO80X80X5.9",null,null,"ISLB100",null,null,null,null,null,"H650X300X16X25",null,null,null,"H 298X201X9/14",null,null,"SHS120X120X4",null,null,"Тп60x30x3,5",null,null,"03_Tk_60x5,5",null,null,"03_Тк_60х5,5",null,null,null,null,null,null,null,null,null,"TUBO80X80X5.9"]
["25X25X3SHS",null,null,"HSS12X6X3/16",null,null,"HSS304.8X152.4X4.8",null,null,"HSS14X6X1/4",null,null,"HSS355.6X152.4X6.4",null,null,"RHS300X200X8",null,null,null,null,null,null,null,null,"HL1000M",null,null,null,null,null,null,null,null,null,null,null,null,null,null,"W36X16.5X802",null,null,"W920X420X1194",null,null,"SHHF60X60X4",null,null,"GB-C24C",null,null,"HS305X203X13",null,null,"HS305X203X13",null,null,null,null,null,"TUBO80X80X7.1",null,null,"ISLB125",null,null,null,null,null,"H650X300X16X22",null,null,null,"H 294X302X12/12",null,null,"SHS120X120X5",null,null,"Тп60x30x4",null,null,"03_Tk_60x6",null,null,"03_Тк_60х6",null,null,null,null,null,null,null,null,null,"TUBO80X80X7.1"]
["25X25X2.5SHS",null,null,"HSS12X4X5/8",null,null,"HSS304.8X101.6X15.9",null,null,"HSS14X6X3/16",null,null,"HSS355.6X152.4X4.8",null,null,"RHS300X200X10",null,null,null,null,null,null,null,null,"HL1000X443",null,null,null,null,null,null,null,null,null,null,null,null,null,null,"W36X16.5X853",null,null,"W920X420X1269",null,null,"SHHF60X60X5",null,null,"GB-C25A",null,null,"HS305X203X9.5",null,null,"HS305X203X9.5",null,null,null,null,null,"TUBO80X80X8",null,null,"ISLB150",null,null,null,null,null,"H650X300X12X25",null,null,null,"H 298X299X9/14",null,null,"SHS120X120X6",null,null,"Тп60x30x4,5",null,null,"03_Tk_70x2",null,null,"03_Тк_70х2",null,null,null,null,null,null,null,null,null,"TUBO80X80X8"]
["25X25X2SHS",null,null,"HSS12X4X1/2",null,null,"HSS304.8X101.6X12.7",null,null,"HSS14X4X5/8",null,null,"HSS355.6X101.6X15.9",null,null,"RHS300X200X12",null,null,null,null,null,null,null,null,"HL1000X483",null,null,null,null,null,null,null,null,null,null,null,null,null,null,"W36X16.5X925",null,null,"W920X420X1377",null,null,"SHHF60X60X6.3",null,null,"GB-C25B",null,null,"HS305X203X8.0",null,null,"HS305X203X8.0",null,null,null,null,null,"TUBO80X80X10",null,null,"ISLB175",null,null,null,null,null,"H650X300X12X22",null,null,null,"H 300X300X10/15",null,null,"SHS120X120X6.3",null,null,"Тп60x30x5",null,null,"03_Tk_70x2,5",null,null,"03_Тк_70х2,5",null,null,null,null,null,null,null,null,null,"TUBO80X80X10"]
["25X25X1.6SHS",null,null,"HSS12X4X3/8",null,null,"HSS304.8X101.6X9.5",null,null,"HSS14X4X1/2",null,null,"HSS355.6X101.6X12.7",null,null,"RHS300X200X14",null,null,null,null,null,null,null,null,"HL1000X539",null,null,null,null,null,null,null,null,null,null,null,null,null,null,"W40X12X149",null,null,"W1000X300X222",null,null,"SHHF60X60X8",null,null,"GB-C25C",null,null,"HS305X203X6.4",null,null,"HS305X203X6.4",null,null,null,null,null,"TUBO80X80X12.5",null,null,"ISLB200",null,null,null,null,null,"H650X300X12X19",null,null,null,"H 300X305X15/15",null,null,"SHS120X120X8",null,null,"Тп60x30x5,5",null,null,"03_Tk_70x3",null,null,"03_Тк_70х3",null,null,null,null,null,null,null,null,null,"TUBO80X80X12.5"]
["20X20X1.6SHS",null,null,"HSS12X4X5/16",null,null,"HSS304.8X101.6X7.9",null,null,"HSS14X4X3/8",null,null,"HSS355.6X101.6X9.5",null,null,"RHS350X250X5",null,null,null,null,null,null,null,null,"HL1000X554",null,null,null,null,null,null,null,null,null,null,null,null,null,null,"W40X12X167",null,null,"W1000X300X249",null,null,"SHHF70X70X3.6",null,null,"GB-C27A",null,null,"HS254X152X16",null,null,"HS254X152X16",null,null,null,null,null,"TUBO80X80X14.2",null,null,"ISLB225",null,null,null,null,null,"H650X300X12X16",null,null,null,"H 304X301X11/17",null,null,"SHS120X120X10",null,null,"Тп60x30x6",null,null,"03_Tk_70x3,5",null,null,"03_Тк_70х3,5",null,null,null,null,null,null,null,null,null,"TUBO80X80X14.2"]
["15X15X1.8SHS",null,null,"HSS12X4X1/4",null,null,"HSS304.8X101.6X6.4",null,null,"HSS14X4X5/16",null,null,"HSS355.6X101.6X7.9",null,null,"RHS350X250X5.4",null,null,null,null,null,null,null,null,"HL1000X591",null,null,null,null,null,null,null,null,null,null,null,null,null,null,"W40X12X183",null,null,"W1000X300X272",null,null,"SHHF70X70X5",null,null,"GB-C27B",null,null,"HS254X152X13",null,null,"HS254X152X13",null,null,null,null,null,"TUBO80X56X3.6",null,null,"ISLB250",null,null,null,null,null,"H650X250X16X28",null,null,null,"H 310X305X15/20",null,null,"SHS120X120X12",null,null,"Тп60x40x2",null,null,"03_Tk_70x4",null,null,"03_Тк_70х4",null,null,null,null,null,null,null,null,null,"TUBO80X56X3.6"]
["13X13X1.8SHS",null,null,"HSS12X4X3/16",null,null,"HSS304.8X101.6X4.8",null,null,"HSS14X4X1/4",null,null,"HSS355.6X101.6X6.4",null,null,"RHS350X250X6",null,null,null,null,null,null,null,null,"HL1000X642",null,null,null,null,null,null,null,null,null,null,null,null,null,null,"W40X12X211",null,null,"W1000X300X314",null,null,"SHHF70X70X6.3",null,null,"GB-C27C",null,null,"HS254X152X9.5",null,null,"HS254X152X9.5",null,null,null,null,null,"TUBO80X56X4",null,null,"ISLB275",null,null,null,null,null,"H650X250X12X28",null,null,null,"H 310X310X20/20",null,null,"SHS120X120X12.5",null,null,"Тп60x40x2,5",null,null,"03_Tk_70x4,5",null,null,"03_Тк_70х4,5",null,null,null,null,null,null,null,null,null,"TUBO80X56X4"]
["380PFC",null,null,"HSS12X3-1/2X3/8",null,null,"HSS304.8X88.9X9.5",null,null,"HSS14X4X3/16",null,null,"HSS355.6X101.6X4.8",null,null,"RHS350X250X8",null,null,null,null,null,null,null,null,"HL1000X748",null,null,null,null,null,null,null,null,null,null,null,null,null,null,"W40X12X235",null,null,"W1000X300X350",null,null,"SHHF70X70X8",null,null,"GB-C28A",null,null,"HS254X152X8.0",null,null,"HS254X152X8.0",null,null,null,null,null,"TUBO80X56X4.5",null,null,"ISLB300",null,null,null,null,null,"H650X250X12X25",null,null,null,"H 346X174X6/9",null,null,"SHS140X140X5",null,null,"Тп60x40x3",null,null,"03_Tk_70x5",null,null,"03_Тк_70х5",null,null,null,null,null,null,null,null,null,"TUBO80X56X4.5"]
["300PFC",null,null,"HSS12X3-1/2X5/16",null,null,"HSS304.8X88.9X7.9",null,null,"HSS12X12X3/4",null,null,"HSS304.8X304.8X19",null,null,"RHS350X250X10",null,null,null,null,null,null,null,null,"HL1000X883",null,null,null,null,null,null,null,null,null,null,null,null,null,null,"W40X12X264",null,null,"W1000X300X393",null,null,"SHHF80X80X3.6",null,null,"GB-C28B",null,null,"HS254X152X6.4",null,null,"HS254X152X6.4",null,null,null,null,null,"TUBO80X56X5",null,null,"ISLB325",null,null,null,null,null,"H650X250X12X22",null,null,null,"H 350X175X7/11",null,null,"SHS140X140X6",null,null,"Тп60x40x3,5",null,null,"03_Tk_70x5,5",null,null,"03_Тк_70х5,5",null,null,null,null,null,null,null,null,null,"TUBO80X56X5"]
["250PFC",null,null,"HSS12X3X5/16",null,null,"HSS304.8X76.2X7.9",null,null,"HSS12X12X5/8",null,null,"HSS304.8X304.8X15.9",null,null,"RHS350X250X12",null,null,null,null,null,null,null,null,"HL1000X976",null,null,null,null,null,null,null,null,null,null,null,null,null,null,"W40X12X278",null,null,"W1000X300X415",null,null,"SHHF80X80X4",null,null,"GB-C28C",null,null,"HS203X152X13",null,null,"HS203X152X13",null,null,null,null,null,"TUBO80X56X5.4",null,null,"ISLB350",null,null,null,null,null,"H650X250X12X19",null,null,null,"H 354X176X8/13",null,null,"SHS140X140X6.3",null,null,"Тп60x40x4",null,null,"03_Tk_70x6",null,null,"03_Тк_70х6",null,null,null,null,null,null,null,null,null,"TUBO80X56X5.4"]
["230PFC",null,null,"HSS12X3X1/4",null,null,"HSS304.8X76.2X6.4",null,null,"HSS12X12X1/2",null,null,"HSS304.8X304.8X12.7",null,null,"RHS350X250X14",null,null,null,null,null,null,null,null,"HL1100A",null,null,null,null,null,null,null,null,null,null,null,null,null,null,"W40X12X294",null,null,"W1000X300X438",null,null,"SHHF80X80X5",null,null,"GB-C30A",null,null,"HS203X152X9.5",null,null,"HS203X152X9.5",null,null,null,null,null,"TUBO80X56X5.9",null,null,"ISLB400",null,null,null,null,null,"H650X200X12X28",null,null,null,"H 336X249X8/12",null,null,"SHS140X140X8",null,null,"Тп60x40x4,5",null,null,"03_Tk_70x6,5",null,null,"03_Тк_70х6,5",null,null,null,null,null,null,null,null,null,"TUBO80X56X5.9"]
["200PFC",null,null,"HSS12X3X3/16",null,null,"HSS304.8X76.2X4.8",null,null,"HSS12X12X3/8",null,null,"HSS304.8X304.8X9.5",null,null,"RHS400X200X5",null,null,null,null,null,null,null,null,"HL1100B",null,null,null,null,null,null,null,null,null,null,null,null,null,null,"W40X12X331",null,null,"W1000X300X494",null,null,"SHHF80X80X6.3",null,null,"GB-C30B",null,null,"HS203X152X8.0",null,null,"HS203X152X8.0",null,null,null,null,null,"TUBO80X56X7.1",null,null,"ISLB450",null,null,null,null,null,"H650X200X12X25",null,null,null,"H 340X250X9/14",null,null,"SHS140X140X10",null,null,"Тп60x40x5",null,null,"03_Tk_70x7",null,null,"03_Тк_70х7",null,null,null,null,null,null,null,null,null,"TUBO80X56X7.1"]
["180PFC",null,null,"HSS12X2X5/16",null,null,"HSS304.8X50.8X7.9",null,null,"HSS12X12X5/16",null,null,"HSS304.8X304.8X7.9",null,null,"RHS400X200X6",null,null,null,null,null,null,null,null,"HL1100M",null,null,null,null,null,null,null,null,null,null,null,null,null,null,"W40X12X392",null,null,"W1000X300X584",null,null,"SHHF80X80X8",null,null,"GB-C30C",null,null,"HS203X152X6.4",null,null,"HS203X152X6.4",null,null,null,null,null,"TUBO80X56X8",null,null,"ISLB500",null,null,null,null,null,"H650X200X12X22",null,null,null,"H 338X351X13/13",null,null,"SHS140X140X12",null,null,"Тп60x40x5,5",null,null,"03_Tk_80x3",null,null,"03_Тк_80х3",null,null,null,null,null,null,null,null,null,"TUBO80X56X8"]
["150PFC",null,null,"HSS12X2X1/4",null,null,"HSS304.8X50.8X6.4",null,null,"HSS12X12X1/4",null,null,"HSS304.8X304.8X6.4",null,null,"RHS400X200X8",null,null,null,null,null,null,null,null,"HL1100R",null,null,null,null,null,null,null,null,null,null,null,null,null,null,"W40X16X199",null,null,"W1000X400X296",null,null,"SHHF90X90X3.6",null,null,"GB-C32A",null,null,"HS203X152X4.8",null,null,"HS203X152X4.8",null,null,null,null,null,"TUBO80X56X10",null,null,"ISLB550",null,null,null,null,null,"H650X200X12X19",null,null,null,"H 344X348X10/16",null,null,"SHS140X140X12.5",null,null,"Тп60x40x6",null,null,"03_Tk_80x3,5",null,null,"03_Тк_80х3,5",null,null,null,null,null,null,null,null,null,"TUBO80X56X10"]
["125PFC",null,null,"HSS12X2X3/16",null,null,"HSS304.8X50.8X4.8",null,null,"HSS12X12X3/16",null,null,"HSS304.8X304.8X4.8",null,null,"RHS400X200X10",null,null,null,null,null,null,null,null,"HD260X54.1",null,null,null,null,null,null,null,null,null,null,null,null,null,null,"W40X16X215",null,null,"W1000X400X321",null,null,"SHHF90X90X4",null,null,"GB-C32B",null,null,"HS203X102X13",null,null,"HS203X102X13",null,null,null,null,null,"TUBO80X40X3.6",null,null,"ISLB600",null,null,null,null,null,"H650X200X9X22",null,null,null,"H 344X354X16/16",null,null,"SHS150X150X5",null,null,"Тп70x50x2",null,null,"03_Tk_80x4",null,null,"03_Тк_80х4",null,null,null,null,null,null,null,null,null,"TUBO80X40X3.6"]
["100PFC",null,null,"HSS10X10X5/8",null,null,"HSS254X254X15.9",null,null,"HSS12X10X1/2",null,null,"HSS304.8X254X12.7",null,null,"RHS400X200X12",null,null,null,null,null,null,null,null,"HD260X68.2",null,null,null,null,null,null,null,null,null,null,null,null,null,null,"W40X16X249",null,null,"W1000X400X371",null,null,"SHHF90X90X5",null,null,"GB-C32C",null,null,"HS203X102X9.5",null,null,"HS203X102X9.5",null,null,null,null,null,"TUBO80X40X4",null,null,"ISMB100",null,null,null,null,null,"H650X200X9X19",null,null,null,"H 350X350X12/19",null,null,"SHS150X150X6",null,null,"Тп70x50x2,5",null,null,"03_Tk_80x4,5",null,null,"03_Тк_80х4,5",null,null,null,null,null,null,null,null,null,"TUBO80X40X4"]
["75PFC",null,null,"HSS10X10X1/2",null,null,"HSS254X254X12.7",null,null,"HSS12X10X3/8",null,null,"HSS304.8X254X9.5",null,null,"RHS400X200X14",null,null,null,null,null,null,null,null,"HD260X93.0",null,null,null,null,null,null,null,null,null,null,null,null,null,null,"W40X16X277",null,null,"W1000X400X412",null,null,"SHHF90X90X6.3",null,null,"GB-C36A",null,null,"HS203X102X8.0",null,null,"HS203X102X8.0",null,null,null,null,null,"TUBO80X40X4.5",null,null,"ISMB125",null,null,null,null,null,"H650X200X9X16",null,null,null,"H 350X357X19/19",null,null,"SHS150X150X6.3",null,null,"Тп70x50x3",null,null,"03_Tk_80x5",null,null,"03_Тк_80х5",null,null,null,null,null,null,null,null,null,"TUBO80X40X4.5"]
["300X90X8CC",null,null,"HSS10X10X3/8",null,null,"HSS254X254X9.5",null,null,"HSS12X10X5/16",null,null,"HSS304.8X254X7.9",null,null,"RHS400X300X6",null,null,null,null,null,null,null,null,"HD260X114",null,null,null,null,null,null,null,null,null,null,null,null,null,null,"W40X16X297",null,null,"W1000X400X443",null,null,"SHHF90X90X8",null,null,"GB-C36B",null,null,"HS203X102X6.4",null,null,"HS203X102X6.4",null,null,null,null,null,"TUBO80X40X5",null,null,"ISMB150",null,null,null,null,null,"H650X200X9X12",null,null,null,"H 396X199X7/11",null,null,"SHS150X150X8",null,null,"Тп70x50x3,5",null,null,"03_Tk_80x5,5",null,null,"03_Тк_80х5,5",null,null,null,null,null,null,null,null,null,"TUBO80X40X5"]
["300X90X7CC",null,null,"HSS10X10X5/16",null,null,"HSS254X254X7.9",null,null,"HSS12X10X1/4",null,null,"HSS304.8X254X6.4",null,null,"RHS400X300X8",null,null,null,null,null,null,null,null,"HD260X142",null,null,null,null,null,null,null,null,null,null,null,null,null,null,"W40X16X324",null,null,"W1000X400X483",null,null,"SHHF100X100X4",null,null,"GB-C36C",null,null,"HS203X102X4.8",null,null,"HS203X102X4.8",null,null,null,null,null,"TUBO80X40X5.4",null,null,"ISMB175",null,null,null,null,null,"H600X300X16X32",null,null,null,"H 400X200X8/13",null,null,"SHS150X150X10",null,null,"Тп70x50x4",null,null,"03_Tk_80x6",null,null,"03_Тк_80х6",null,null,null,null,null,null,null,null,null,"TUBO80X40X5.4"]
["300X90X6CC",null,null,"HSS10X10X1/4",null,null,"HSS254X254X6.4",null,null,"HSS12X8X5/8",null,null,"HSS304.8X203.2X15.9",null,null,"RHS400X300X10",null,null,null,null,null,null,null,null,"HD260X172",null,null,null,null,null,null,null,null,null,null,null,null,null,null,"W40X16X362",null,null,"W1000X400X539",null,null,"SHHF100X100X5",null,null,"GB-C40A",null,null,"HS178X127X13",null,null,"HS178X127X13",null,null,null,null,null,"TUBO80X40X5.9",null,null,"ISMB200",null,null,null,null,null,"H600X300X16X28",null,null,null,"H 390X300X10/16",null,null,"SHS150X150X12",null,null,"Тп70x50x4,5",null,null,"03_Tk_80x6,5",null,null,"03_Тк_80х6,5",null,null,null,null,null,null,null,null,null,"TUBO80X40X5.9"]
["250X90X6CC",null,null,"HSS10X10X3/16",null,null,"HSS254X254X4.8",null,null,"HSS12X8X1/2",null,null,"HSS304.8X203.2X12.7",null,null,"RHS400X300X12",null,null,null,null,null,null,null,null,"HD320X74.2",null,null,null,null,null,null,null,null,null,null,null,null,null,null,"W40X16X372",null,null,"W1000X400X554",null,null,"SHHF100X100X6.3",null,null,"GB-C40B",null,null,"HS178X127X9.5",null,null,"HS178X127X9.5",null,null,null,null,null,"TUBO80X40X7.1",null,null,"ISMB225",null,null,null,null,null,"H600X300X12X28",null,null,null,"H 388X402X15/15",null,null,"SHS150X150X12.5",null,null,"Тп70x50x5",null,null,"03_Tk_80x7",null,null,"03_Тк_80х7",null,null,null,null,null,null,null,null,null,"TUBO80X40X7.1"]
["230X75X6CC",null,null,"HSS10X8X5/8",null,null,"HSS254X203.2X15.9",null,null,"HSS12X8X3/8",null,null,"HSS304.8X203.2X9.5",null,null,"RHS400X300X14",null,null,null,null,null,null,null,null,"HD320X97.6",null,null,null,null,null,null,null,null,null,null,null,null,null,null,"W40X16X397",null,null,"W1000X400X591",null,null,"SHHF100X100X8",null,null,"GB-C40C",null,null,"HS178X127X8.0",null,null,"HS178X127X8.0",null,null,null,null,null,"TUBO90X90X5",null,null,"ISMB250",null,null,null,null,null,"H600X300X12X25",null,null,null,"H 394X398X11/18",null,null,"SHS150X150X16",null,null,"Тп70x50x5,5",null,null,"03_Tk_80x7,5",null,null,"03_Тк_80х7,5",null,null,null,null,null,null,null,null,null,"TUBO90X90X5"]
["200X75X6CC",null,null,"HSS10X8X1/2",null,null,"HSS254X203.2X12.7",null,null,"HSS12X8X5/16",null,null,"HSS304.8X203.2X7.9",null,null,"RHS400X300X16",null,null,null,null,null,null,null,null,"HD320X127",null,null,null,null,null,null,null,null,null,null,null,null,null,null,"W40X16X431",null,null,"W1000X400X642",null,null,"SHHF100X100X10",null,null,"YB-C5",null,null,"HS178X127X6.4",null,null,"HS178X127X6.4",null,null,null,null,null,"TUBO90X90X5.4",null,null,"ISMB300",null,null,null,null,null,"H600X300X12X22",null,null,null,"H 394X405X18/18",null,null,"SHS160X160X5",null,null,"Тп70x50x6",null,null,"03_Tk_80x8",null,null,"03_Тк_80х8",null,null,null,null,null,null,null,null,null,"TUBO90X90X5.4"]
["200X75X5CC",null,null,"HSS10X8X3/8",null,null,"HSS254X203.2X9.5",null,null,"HSS12X8X1/4",null,null,"HSS304.8X203.2X6.4",null,null,"RHS400X300X18",null,null,null,null,null,null,null,null,"HD320X158",null,null,null,null,null,null,null,null,null,null,null,null,null,null,"W40X16X503",null,null,"W1000X400X748",null,null,"SHHF120X120X5",null,null,"YB-C6.5",null,null,"HS178X127X4.8",null,null,"HS178X127X4.8",null,null,null,null,null,"TUBO90X90X5.9",null,null,"ISMB350",null,null,null,null,null,"H600X300X12X19",null,null,null,"H 400X400X13/21",null,null,"SHS160X160X6",null,null,"Тп80x40x2",null,null,"03_Tk_90x3",null,null,"03_Тк_90х3",null,null,null,null,null,null,null,null,null,"TUBO90X90X5.9"]
["180X75X5CC",null,null,"HSS10X8X5/16",null,null,"HSS254X203.2X7.9",null,null,"HSS12X8X3/16",null,null,"HSS304.8X203.2X4.8",null,null,"RHS400X300X20",null,null,null,null,null,null,null,null,"HD320X198",null,null,null,null,null,null,null,null,null,null,null,null,null,null,"W40X16X593",null,null,"W1000X400X883",null,null,"SHHF120X120X6.3",null,null,"YB-C8",null,null,"HS152X102X13",null,null,"HS152X102X13",null,null,null,null,null,"TUBO90X90X7.1",null,null,"ISMB400",null,null,null,null,null,"H600X250X16X32",null,null,null,"H 400X408X21/21",null,null,"SHS160X160X6.3",null,null,"Тп80x40x2,5",null,null,"03_Tk_90x3,5",null,null,"03_Тк_90х3,5",null,null,null,null,null,null,null,null,null,"TUBO90X90X7.1"]
["150X75X5CC",null,null,"HSS10X8X1/4",null,null,"HSS254X203.2X6.4",null,null,"HSS12X6X5/8",null,null,"HSS304.8X152.4X15.9",null,null,"RHS500X200X6",null,null,null,null,null,null,null,null,"HD320X245",null,null,null,null,null,null,null,null,null,null,null,null,null,null,"W40X16X655",null,null,"W1000X400X976",null,null,"SHHF120X120X8",null,null,"YB-C10",null,null,"HS152X102X9.5",null,null,"HS152X102X9.5",null,null,null,null,null,"TUBO90X90X8",null,null,"ISMB450",null,null,null,null,null,"H600X250X16X28",null,null,null,"H 406X403X16/24",null,null,"SHS160X160X8",null,null,"Тп80x40x3",null,null,"03_Tk_90x4",null,null,"03_Тк_90х4",null,null,null,null,null,null,null,null,null,"TUBO90X90X8"]
["125X65X4CC",null,null,"HSS10X8X3/16",null,null,"HSS254X203.2X4.8",null,null,"HSS12X6X1/2",null,null,"HSS304.8X152.4X12.7",null,null,"RHS500X200X8",null,null,null,null,null,null,null,null,"HD320X300",null,null,null,null,null,null,null,null,null,null,null,null,null,null,"W44X16X230",null,null,"W1100X400X343",null,null,"SHHF120X120X10",null,null,"YB-C12",null,null,"HS152X102X8.0",null,null,"HS152X102X8.0",null,null,null,null,null,"TUBO90X90X10",null,null,"ISMB500",null,null,null,null,null,"H600X250X12X28",null,null,null,"H 414X405X18/28",null,null,"SHS160X160X10",null,null,"Тп80x40x3,5",null,null,"03_Tk_90x4,5",null,null,"03_Тк_90х4,5",null,null,null,null,null,null,null,null,null,"TUBO90X90X10"]
["100X50X4CC",null,null,"HSS10X6X5/8",null,null,"HSS254X152.4X15.9",null,null,"HSS12X6X3/8",null,null,"HSS304.8X152.4X9.5",null,null,"RHS500X200X10",null,null,null,null,null,null,null,null,"HD360X134",null,null,null,null,null,null,null,null,null,null,null,null,null,null,"W44X16X262",null,null,"W1100X400X390",null,null,"SHHF120X120X12.5",null,null,"YB-C14",null,null,"HS152X102X6.4",null,null,"HS152X102X6.4",null,null,null,null,null,"TUBO90X90X12.5",null,null,"ISMB550",null,null,null,null,null,"H600X250X12X25",null,null,null,"H 428X407X20/35",null,null,"SHS160X160X12",null,null,"Тп80x40x4",null,null,"03_Tk_90x5",null,null,"03_Тк_90х5",null,null,null,null,null,null,null,null,null,"TUBO90X90X12.5"]
["75X40X4CC",null,null,"HSS10X6X1/2",null,null,"HSS254X152.4X12.7",null,null,"HSS12X6X5/16",null,null,"HSS304.8X152.4X7.9",null,null,"RHS500X200X12",null,null,null,null,null,null,null,null,"HD360X147",null,null,null,null,null,null,null,null,null,null,null,null,null,null,"W44X16X290",null,null,"W1100X400X433",null,null,"SHHF140X140X5",null,null,"YB-C14A",null,null,"HS152X102X4.8",null,null,"HS152X102X4.8",null,null,null,null,null,"TUBO90X90X14.2",null,null,"ISMB600",null,null,null,null,null,"H600X250X12X22",null,null,null,"H 458X417X30/50",null,null,"SHS160X160X12.5",null,null,"Тп80x40x4,5",null,null,"03_Tk_90x5,5",null,null,"03_Тк_90х5,5",null,null,null,null,null,null,null,null,null,"TUBO90X90X14.2"]
["610UB125",null,null,"HSS10X6X3/8",null,null,"HSS254X152.4X9.5",null,null,"HSS12X6X1/4",null,null,"HSS304.8X152.4X6.4",null,null,"RHS500X200X14",null,null,null,null,null,null,null,null,"HD360X162",null,null,null,null,null,null,null,null,null,null,null,null,null,null,"W44X16X335",null,null,"W1100X400X499",null,null,"SHHF140X140X6.3",null,null,"YB-C16",null,null,"HS152X76X13",null,null,"HS152X76X13",null,null,null,null,null,"TUBO90X90X16",null,null,"ISWB150",null,null,null,null,null,"H600X250X12X19",null,null,null,"H 498X432X45/70",null,null,"SHS160X160X16",null,null,"Тп80x40x5",null,null,"03_Tk_90x6",null,null,"03_Тк_90х6",null,null,null,null,null,null,null,null,null,"TUBO90X90X16"]
["610UB113",null,null,"HSS10X6X5/16",null,null,"HSS254X152.4X7.9",null,null,"HSS12X6X3/16",null,null,"HSS304.8X152.4X4.8",null,null,"RHS500X200X16",null,null,null,null,null,null,null,null,"HD360X179",null,null,null,null,null,null,null,null,null,null,null,null,null,null,"HP8X29",null,null,"HP200X43",null,null,"SHHF140X140X8",null,null,"YB-C16A",null,null,"HS152X76X9.5",null,null,"HS152X76X9.5",null,null,null,null,null,"TUBO90X90X17.5",null,null,"ISWB175",null,null,null,null,null,"H600X250X9X19",null,null,null,"H 446X199X8/12",null,null,"SHS180X180X5",null,null,"Тп80x40x5,5",null,null,"03_Tk_90x6,5",null,null,"03_Тк_90х6,5",null,null,null,null,null,null,null,null,null,"TUBO90X90X17.5"]
["610UB101",null,null,"HSS10X6X1/4",null,null,"HSS254X152.4X6.4",null,null,"HSS12X4X5/8",null,null,"HSS304.8X101.6X15.9",null,null,"RHS500X300X8",null,null,null,null,null,null,null,null,"HD360X196",null,null,null,null,null,null,null,null,null,null,null,null,null,null,"HP8X36",null,null,"HP200X53",null,null,"SHHF140X140X10",null,null,"YB-C18",null,null,"HS152X76X8.0",null,null,"HS152X76X8.0",null,null,null,null,null,"TUBO90X63X3.6",null,null,"ISWB200",null,null,null,null,null,"H600X250X9X16",null,null,null,"H 450X200X9/14",null,null,"SHS180X180X6",null,null,"Тп80x40x6",null,null,"03_Tk_90x7",null,null,"03_Тк_90х7",null,null,null,null,null,null,null,null,null,"TUBO90X63X3.6"]
["530UB92.4",null,null,"HSS10X6X3/16",null,null,"HSS254X152.4X4.8",null,null,"HSS12X4X1/2",null,null,"HSS304.8X101.6X12.7",null,null,"RHS500X300X10",null,null,null,null,null,null,null,null,"HD400X187",null,null,null,null,null,null,null,null,null,null,null,null,null,null,"HP10X42",null,null,"HP250X62",null,null,"SHHF140X140X12.5",null,null,"YB-C18A",null,null,"HS152X76X6.4",null,null,"HS152X76X6.4",null,null,null,null,null,"TUBO90X63X4",null,null,"ISWB225",null,null,null,null,null,"H600X200X12X28",null,null,null,"H 434X299X10/15",null,null,"SHS180X180X6.3",null,null,"Тп80x60x2",null,null,"03_Tk_90x7,5",null,null,"03_Тк_90х7,5",null,null,null,null,null,null,null,null,null,"TUBO90X63X4"]
["530UB82.0",null,null,"HSS10X5X3/8",null,null,"HSS254X127X9.5",null,null,"HSS12X4X3/8",null,null,"HSS304.8X101.6X9.5",null,null,"RHS500X300X12",null,null,null,null,null,null,null,null,"HD400X216",null,null,null,null,null,null,null,null,null,null,null,null,null,null,"HP10X57",null,null,"HP250X85",null,null,"SHHF150X150X5",null,null,"YB-C20",null,null,"HS152X76X4.8",null,null,"HS152X76X4.8",null,null,null,null,null,"TUBO90X63X4.5",null,null,"ISWB250",null,null,null,null,null,"H600X200X12X25",null,null,null,"H 440X300X11/18",null,null,"SHS180X180X8",null,null,"Тп80x60x2,5",null,null,"03_Tk_90x8",null,null,"03_Тк_90х8",null,null,null,null,null,null,null,null,null,"TUBO90X63X4.5"]
["460UB82.1",null,null,"HSS10X5X5/16",null,null,"HSS254X127X7.9",null,null,"HSS12X4X5/16",null,null,"HSS304.8X101.6X7.9",null,null,"RHS500X300X14",null,null,null,null,null,null,null,null,"HD400X237",null,null,null,null,null,null,null,null,null,null,null,null,null,null,"HP12X53",null,null,"HP310X79",null,null,"SHHF150X150X6.3",null,null,"YB-C20A",null,null,"HS127X76X9.5",null,null,"HS127X76X9.5",null,null,null,null,null,"TUBO90X63X5",null,null,"ISWB300",null,null,null,null,null,"H600X200X12X22",null,null,null,"H 496X199X9/14",null,null,"SHS180X180X10",null,null,"Тп80x60x3",null,null,"03_Tk_100x3",null,null,"03_Тк_100х3",null,null,null,null,null,null,null,null,null,"TUBO90X63X5"]
["460UB74.6",null,null,"HSS10X5X1/4",null,null,"HSS254X127X6.4",null,null,"HSS12X4X1/4",null,null,"HSS304.8X101.6X6.4",null,null,"RHS500X300X16",null,null,null,null,null,null,null,null,"HD400X262",null,null,null,null,null,null,null,null,null,null,null,null,null,null,"HP12X63",null,null,"HP310X93",null,null,"SHHF150X150X8",null,null,"YB-C22",null,null,"HS127X76X8.0",null,null,"HS127X76X8.0",null,null,null,null,null,"TUBO90X63X5.4",null,null,"ISWB350",null,null,null,null,null,"H600X200X12X19",null,null,null,"H 500X200X10/16",null,null,"SHS180X180X12",null,null,"Тп80x60x3,5",null,null,"03_Tk_100x3,5",null,null,"03_Тк_100х3,5",null,null,null,null,null,null,null,null,null,"TUBO90X63X5.4"]
["460UB67.1",null,null,"HSS10X5X3/16",null,null,"HSS254X127X4.8",null,null,"HSS12X4X3/16",null,null,"HSS304.8X101.6X4.8",null,null,"RHS500X300X18",null,null,null,null,null,null,null,null,"HD400X287",null,null,null,null,null,null,null,null,null,null,null,null,null,null,"HP12X74",null,null,"HP310X110",null,null,"SHHF150X150X10",null,null,"YB-C22A",null,null,"HS127X76X6.4",null,null,"HS127X76X6.4",null,null,null,null,null,"TUBO90X63X5.9",null,null,"ISWB400",null,null,null,null,null,"H600X200X9X22",null,null,null,"H 506X201X11/19",null,null,"SHS180X180X12.5",null,null,"Тп80x60x4",null,null,"03_Tk_100x4",null,null,"03_Тк_100х4",null,null,null,null,null,null,null,null,null,"TUBO90X63X5.9"]
["410UB59.7",null,null,"HSS10X4X5/8",null,null,"HSS254X101.6X15.9",null,null,"HSS12X3-1/2X3/8",null,null,"HSS304.8X88.9X9.5",null,null,"RHS500X300X20",null,null,null,null,null,null,null,null,"HD400X314",null,null,null,null,null,null,null,null,null,null,null,null,null,null,"HP12X84",null,null,"HP310X125",null,null,"SHHF150X150X12.5",null,null,"YB-C24",null,null,"HS127X76X4.8",null,null,"HS127X76X4.8",null,null,null,null,null,"TUBO90X63X7.1",null,null,"ISWB450",null,null,null,null,null,"H600X200X9X19",null,null,null,"H 482X300X11/15",null,null,"SHS180X180X16",null,null,"Тп80x60x4,5",null,null,"03_Tk_100x4,5",null,null,"03_Тк_100х4,5",null,null,null,null,null,null,null,null,null,"TUBO90X63X7.1"]
["410UB53.7",null,null,"HSS10X4X1/2",null,null,"HSS254X101.6X12.7",null,null,"HSS12X3-1/2X5/16",null,null,"HSS304.8X88.9X7.9",null,null,"RHS600X200X6",null,null,null,null,null,null,null,null,"HD400X347",null,null,null,null,null,null,null,null,null,null,null,null,null,null,"HP12X89",null,null,"HP310X132",null,null,"SHHF160X160X5",null,null,"YB-C24A",null,null,"HS102X76X9.5",null,null,"HS102X76X9.5",null,null,null,null,null,"TUBO90X63X8",null,null,"ISWB500",null,null,null,null,null,"H600X200X9X16",null,null,null,"H 488X300X11/18",null,null,"SHS200X200X5",null,null,"Тп80x60x5",null,null,"03_Tk_100x5",null,null,"03_Тк_100х5",null,null,null,null,null,null,null,null,null,"TUBO90X63X8"]
["360UB56.7",null,null,"HSS10X4X3/8",null,null,"HSS254X101.6X9.5",null,null,"HSS12X3X5/16",null,null,"HSS304.8X76.2X7.9",null,null,"RHS600X200X8",null,null,null,null,null,null,null,null,"HD400X382",null,null,null,null,null,null,null,null,null,null,null,null,null,null,"HP14X73",null,null,"HP360X108",null,null,"SHHF160X160X6.3",null,null,"YB-C27",null,null,"HS102X76X8.0",null,null,"HS102X76X8.0",null,null,null,null,null,"TUBO90X63X10",null,null,"ISWB550",null,null,null,null,null,"H600X200X9X12",null,null,null,"H 596X199X10/15",null,null,"SHS200X200X6",null,null,"Тп80x60x5,5",null,null,"03_Tk_100x5,5",null,null,"03_Тк_100х5,5",null,null,null,null,null,null,null,null,null,"TUBO90X63X10"]
["360UB50.7",null,null,"HSS10X4X5/16",null,null,"HSS254X101.6X7.9",null,null,"HSS12X3X1/4",null,null,"HSS304.8X76.2X6.4",null,null,"RHS600X200X10",null,null,null,null,null,null,null,null,"HD400X421",null,null,null,null,null,null,null,null,null,null,null,null,null,null,"HP14X89",null,null,"HP360X132",null,null,"SHHF160X160X8",null,null,"YB-C30",null,null,"HS102X76X6.4",null,null,"HS102X76X6.4",null,null,null,null,null,"TUBO90X63X12.5",null,null,"ISWB600-1",null,null,null,null,null,"H550X300X16X28",null,null,null,"H 600X200X11/17",null,null,"SHS200X200X6.3",null,null,"Тп80x60x6",null,null,"03_Tk_100x6",null,null,"03_Тк_100х6",null,null,null,null,null,null,null,null,null,"TUBO90X63X12.5"]
["360UB44.7",null,null,"HSS10X4X1/4",null,null,"HSS254X101.6X6.4",null,null,"HSS12X3X3/16",null,null,"HSS304.8X76.2X4.8",null,null,"RHS600X200X12",null,null,null,null,null,null,null,null,"HD400X463",null,null,null,null,null,null,null,null,null,null,null,null,null,null,"HP14X102",null,null,"HP360X152",null,null,"SHHF160X160X10",null,null,"YB-C33",null,null,"HS102X76X4.8",null,null,"HS102X76X4.8",null,null,null,null,null,"TUBO90X45X3.6",null,null,"ISWB600-2",null,null,null,null,null,"H550X300X16X25",null,null,null,"H 606X201X12/20",null,null,"SHS200X200X8",null,null,"Тп80x60x6,5",null,null,"03_Tk_100x6,5",null,null,"03_Тк_100х6,5",null,null,null,null,null,null,null,null,null,"TUBO90X45X3.6"]
["310UB46.2",null,null,"HSS10X4X3/16",null,null,"HSS254X101.6X4.8",null,null,"HSS12X2X5/16",null,null,"HSS304.8X50.8X7.9",null,null,"RHS600X200X14",null,null,null,null,null,null,null,null,"HD400X509",null,null,null,null,null,null,null,null,null,null,null,null,null,null,"HP14X117",null,null,"HP360X174",null,null,"SHHF160X160X12.5",null,null,"YB-C36",null,null,"HS102X76X3.2",null,null,"HS102X76X3.2",null,null,null,null,null,"TUBO90X45X4",null,null,"ISHB150-1",null,null,null,null,null,"H550X300X16X22",null,null,null,"H 612X202X13/23",null,null,"SHS200X200X10",null,null,"Тп80x60x7",null,null,"03_Tk_100x7",null,null,"03_Тк_100х7",null,null,null,null,null,null,null,null,null,"TUBO90X45X4"]
["310UB40.4",null,null,"HSS10X4X1/8",null,null,"HSS254X101.6X3.2",null,null,"HSS12X2X1/4",null,null,"HSS304.8X50.8X6.4",null,null,"RHS600X200X16",null,null,null,null,null,null,null,null,"HD400X551",null,null,null,null,null,null,null,null,null,null,null,null,null,null,null,null,null,null,null,null,"SHHF160X160X14.2",null,null,"YB-C40",null,null,"HS102X51X9.5",null,null,"HS102X51X9.5",null,null,null,null,null,"TUBO90X45X4.5",null,null,"ISHB150-2",null,null,null,null,null,"H550X300X12X25",null,null,null,"H 582X300X12/17",null,null,"SHS200X200X12",null,null,"Тп80x70x3",null,null,"03_Tk_100x7,5",null,null,"03_Тк_100х7,5",null,null,null,null,null,null,null,null,null,"TUBO90X45X4.5"]
["200UB25.4",null,null,"HSS10X3-1/2X1/8",null,null,"HSS254X88.9X3.2",null,null,"HSS10X10X5/16",null,null,"HSS254X254X7.9",null,null,"RHS600X300X18",null,null,null,null,null,null,null,null,"HD400X900",null,null,null,null,null,null,null,null,null,null,null,null,null,null,null,null,null,null,null,null,"SHHF180X180X16",null,null,"HW200X200X12X12",null,null,"HS89X64X6.4",null,null,"HS89X64X6.4",null,null,null,null,null,"TUBO100X100X5.4",null,null,"ISHB250-1",null,null,null,null,null,"H550X250X12X22",null,null,null,"H 792X300X14/22",null,null,"SHS250X250X8",null,null,"Тп80x70x6",null,null,"03_Tk_120x5",null,null,"03_Тк_120х5",null,null,null,null,null,null,null,null,null,"TUBO100X100X5.4"]
["150UC37.2",null,null,"HSS9X7X5/16",null,null,"HSS228.6X177.8X7.9",null,null,"HSS10X4X3/8",null,null,"HSS254X101.6X9.5",null,null,"SHS25X25X1.6",null,null,null,null,null,null,null,null,"HP320X117",null,null,null,null,null,null,null,null,null,null,null,null,null,null,null,null,null,null,null,null,"SHHF300X300X8",null,null,"HW500X500X15X20",null,null,"HA203X203X9.5",null,null,"HA203X203X9.5",null,null,null,null,null,"TUBO100X50X4.5",null,null,"ISNB32H",null,null,null,null,null,"H500X250X9X22",null,null,null,"LH 125X100X2.3/4.5",null,null,"SHS400X400X16",null,null,"Тп100x40x3,5",null,null,"03_Tk_150x6,5",null,null,"03_Тк_150х6,5",null,null,null,null,null,null,null,null,null,"TUBO100X50X4.5"]
["700WB130",null,null,"HSS8X6X1/4",null,null,"HSS203.2X152.4X6.4",null,null,"HSS9X9X1/4",null,null,"HSS228.6X228.6X6.4",null,null,"SHS32X32X3.2",null,null,null,null,null,null,null,null,null,null,null,null,null,null,null,null,null,null,null,null,null,null,null,null,null,null,null,null,null,"RHCF70X40X3",null,null,"HN250X125X6X9",null,null,"HA102X102X13",null,null,"HA102X102X13",null,null,null,null,null,"TUBO120X60X3.6",null,null,"ISNB135L",null,null,null,null,null,"H400X200X9X19",null,null,null,"LH 200X125X3.2/6",null,null,"CFRHS100X60X4",null,null,"Тп100x60x7",null,null,"03_Tk_200x6,5",null,null,"03_Тк_200х6,5",null,null,null,null,null,null,null,null,null,"TUBO120X60X3.6"]
["475LB47",null,null,"HSS7X7X1/2",null,null,"HSS177.8X177.8X12.7",null,null,"HSS8X8X1/2",null,null,"HSS203.2X203.2X12.7",null,null,"SHS45X45X1.6",null,null,null,null,null,null,null,null,null,null,null,null,null,null,null,null,null,null,null,null,null,null,null,null,null,null,null,null,null,"RHCF100X50X5",null,null,"HN550X200X9X14",null,null,"HA51X51X4.8",null,null,"HA51X51X4.8",null,null,null,null,null,"TUBO140X98X5.9",null,null,"ISNT30",null,null,null,null,null,null,null,null,null,"LH 300X175X4.5/6",null,null,"CFRHS160X80X6",null,null,"Тп120x80x4",null,null,"03_Tk_250x10,5",null,null,"03_Тк_250х10,5",null,null,null,null,null,null,null,null,null,{"$f":"IF(OFFSET($A323,0,($CQ$2-1)*3)=0,\"\",OFFSET($A323,0,($CQ$2-1)*3))","v":"TUBO140X98X5.9"}]
["725LB83",null,null,"HSS7X5X3/16",null,null,"HSS177.8X127X4.8",null,null,"HSS8X6X1/4",null,null,"HSS203.2X152.4X6.4",null,null,"SHS50X50X2",null,null,null,null,null,null,null,null,null,null,null,null,null,null,null,null,null,null,null,null,null,null,null,null,null,null,null,null,null,"RHCF120X40X3",null,null,"HN650X300X12X20",null,null,"HA305X203X8.0",null,null,"HA305X203X8.0",null,null,null,null,null,"TUBO140X70X4.5",null,null,"ISHT150",null,null,null,null,null,null,null,null,null,"LH 400X200X6/12",null,null,"CFRHS250X100X8",null,null,"Тп140x60x4,5",null,null,"03_Tk_300x9",null,null,"03_Тк_300х9",null,null,null,null,null,null,null,null,null,"TUBO140X70X4.5"]
["725SB116",null,null,"HSS6X6X1/4",null,null,"HSS152.4X152.4X6.4",null,null,"HSS7X7X1/2",null,null,"HSS177.8X177.8X12.7",null,null,"SHS60X60X5.4",null,null,null,null,null,null,null,null,null,null,null,null,null,null,null,null,null,null,null,null,null,null,null,null,null,null,null,null,null,"RHCF150X100X6",null,null,"HN100X75X6X8",null,null,"HA178X127X4.8",null,null,"HA178X127X4.8",null,null,null,null,null,"TUBO160X112X10",null,null,null,null,null,null,null,null,null,null,null,null,"I 450X175X11/20",null,null,"CFSHS40X40X3",null,null,"Тп140x120x8",null,null,"03_Tp_50x40x3,5",null,null,"03_Тп_50х40х3,5",null,null,null,null,null,null,null,null,null,"TUBO160X112X10"]
["675HB122",null,null,"HSS6X2X3/8",null,null,"HSS152.4X50.8X9.5",null,null,"HSS7X3X1/4",null,null,"HSS177.8X76.2X6.4",null,null,"SHS75X75X4",null,null,null,null,null,null,null,null,null,null,null,null,null,null,null,null,null,null,null,null,null,null,null,null,null,null,null,null,null,"RHCF200X100X10",null,null,"HT150X150X5X7",null,null,"HA102X51X8.0",null,null,"HA102X51X8.0",null,null,null,null,null,"TUBO180X180X20",null,null,null,null,null,null,null,null,null,null,null,null,"P 89.1X4",null,null,"CFSHS90X90X4",null,null,"Тп160x80x6",null,null,"03_Tp_60x40x6",null,null,"03_Тп_60х40х6",null,null,null,null,null,null,null,null,null,"TUBO180X180X20"]
["610WS100",null,null,"HSS5X3X1/4",null,null,"HSS127X76.2X6.4",null,null,"HSS6X3X1/2",null,null,"HSS152.4X76.2X12.7",null,null,"SHS91.5X91.5X5.4",null,null,null,null,null,null,null,null,null,null,null,null,null,null,null,null,null,null,null,null,null,null,null,null,null,null,null,null,null,"RHCF300X200X12.5",null,null,"YB-H350X175X6X10",null,null,"C230X22",null,null,"C230X22",null,null,null,null,null,"TUBO180X90X17.5",null,null,null,null,null,null,null,null,null,null,null,null,"P 267.4X7",null,null,"CFSHS200X200X5",null,null,"Тп160x140x7",null,null,"03_Tp_80x60x5",null,null,"03_Тп_80х60х5",null,null,null,null,null,null,null,null,null,"TUBO180X90X17.5"]
["460EB57",null,null,"HSS4X4X5/16",null,null,"HSS101.6X101.6X7.9",null,null,"HSS5X5X1/4",null,null,"HSS127X127X6.4",null,null,"SHS110X110X4",null,null,null,null,null,null,null,null,null,null,null,null,null,null,null,null,null,null,null,null,null,null,null,null,null,null,null,null,null,"SHCF40X40X2.5",null,null,"YB-H400X250X8X12",null,null,"C75X6",null,null,"C75X6",null,null,null,null,null,"TUBO200X140X22.2",null,null,null,null,null,null,null,null,null,null,null,null,"P 500.0X9",null,null,"RHS80X40X4",null,null,"Тп180x80x7,5",null,null,"03_Tp_90x50x5,5",null,null,"03_Тп_90х50х5,5",null,null,null,null,null,null,null,null,null,"TUBO200X140X22.2"]
["295SC77",null,null,"HSS3-1/2X2-1/2X1/8",null,null,"HSS88.9X63.5X3.2",null,null,"HSS4-1/2X4-1/2X1/8",null,null,"HSS114.3X114.3X3.2",null,null,"SHS125X125X8",null,null,null,null,null,null,null,null,null,null,null,null,null,null,null,null,null,null,null,null,null,null,null,null,null,null,null,null,null,"SHCF100X100X6",null,null,"YB-H500X250X12X25",null,null,"MC200X12.6",null,null,"MC200X12.6",null,null,null,null,null,"TUBO220X154X20",null,null,null,null,null,null,null,null,null,null,null,null,"P 711.2X9",null,null,"RHS150X100X10",null,null,"Тп200x80x4,5",null,null,"03_Tp_100x50x6,5",null,null,"03_Тп_100х50х6,5",null,null,null,null,null,null,null,null,null,"TUBO220X154X20"]
["650NB89",null,null,"HSS2-1/2X2-1/2X5/16",null,null,"HSS63.5X63.5X7.9",null,null,"HSS3-1/2X3-1/2X3/16",null,null,"HSS88.9X88.9X4.8",null,null,"SHS175X175X6",null,null,null,null,null,null,null,null,null,null,null,null,null,null,null,null,null,null,null,null,null,null,null,null,null,null,null,null,null,"SHCF180X180X10",null,null,"YB-H800X300X12X30",null,null,"2L25X25X4.8X20",null,null,"2L25X25X4.8X20",null,null,null,null,null,"TUBO240X168X10",null,null,null,null,null,null,null,null,null,null,null,null,"T 62.5X125X6.5/9",null,null,"RHS250X120X10",null,null,"Тп200x120x8",null,null,"03_Tp_120x60x5,5",null,null,"03_Тп_120х60х5,5",null,null,null,null,null,null,null,null,null,"TUBO240X168X10"]
["675NB101",null,null,"HSS2-1/2X2-1/2X1/4",null,null,"HSS63.5X63.5X6.4",null,null,"HSS3-1/2X3-1/2X1/8",null,null,"HSS88.9X88.9X3.2",null,null,"SHS175X175X8",null,null,null,null,null,null,null,null,null,null,null,null,null,null,null,null,null,null,null,null,null,null,null,null,null,null,null,null,null,"SHCF180X180X12",null,null,"YB-H800X350X12X20",null,null,"2L25X25X6.4",null,null,"2L25X25X6.4",null,null,null,null,null,"TUBO240X168X12.5",null,null,null,null,null,null,null,null,null,null,null,null,"T 75X75X5/7",null,null,"RHS250X120X12.5",null,null,"Тп200x160x5",null,null,"03_Tp_120x60x6",null,null,"03_Тп_120х60х6",null,null,null,null,null,null,null,null,null,"TUBO240X168X12.5"]
["355.6X9.5CHS",null,null,"C12X20.7",null,null,"C310X30.8",null,null,"HSS3X1X3/16",null,null,"HSS76.2X25.4X4.8",null,null,"SHS225X225X5.4",null,null,null,null,null,null,null,null,null,null,null,null,null,null,null,null,null,null,null,null,null,null,null,null,null,null,null,null,null,"UKPFC300X100X46",null,null,"YB-H1000X500X14X25",null,null,"2L38X38X3.2X16",null,null,"2L38X38X3.2X16",null,null,null,null,null,"TUBO260X182X10",null,null,null,null,null,null,null,null,null,null,null,null,"T 175X175X7/11",null,null,"RHS300X200X8",null,null,"Тп240x120x5,5",null,null,"03_Tp_140x120x4",null,null,"03_Тп_140х120х4",null,null,null,null,null,null,null,null,null,"TUBO260X182X10"]
["165.1X3.5CHS",null,null,"C3X6",null,null,"C75X8.9",null,null,"HSS2X1-1/2X1/8",null,null,"HSS50.8X38.1X3.2",null,null,"SHS300X300X16",null,null,null,null,null,null,null,null,null,null,null,null,null,null,null,null,null,null,null,null,null,null,null,null,null,null,null,null,null,"UKB914X419X343",null,null,"YB-LWH125X75X4X6",null,null,"2L44X44X4.8X12",null,null,"2L44X44X4.8X12",null,null,null,null,null,"TUBO280X280X17.5",null,null,null,null,null,null,null,null,null,null,null,null,"T 225X200X9/14",null,null,"RHS350X250X12.5",null,null,"Тп250x150x8",null,null,"03_Tp_160x40x6,5",null,null,"03_Тп_160х40х6,5",null,null,null,null,null,null,null,null,null,"TUBO280X280X17.5"]
["88.9X3.2CHS",null,null,"MC10X28.5",null,null,"MC250X42.4",null,null,"C7X9.8",null,null,"C180X14.6",null,null,"SHS375X375X12",null,null,null,null,null,null,null,null,null,null,null,null,null,null,null,null,null,null,null,null,null,null,null,null,null,null,null,null,null,"UKB610X229X113",null,null,"YB-LWH404X300X8X12",null,null,"2L51X38X4.8LLBB",null,null,"2L51X38X4.8LLBB",null,null,null,null,null,"TUBO280X140X10",null,null,null,null,null,null,null,null,null,null,null,null,"T 445X299X15/23",null,null,"RHS400X200X16",null,null,"Тп300x100x9,5",null,null,"03_Tp_160x120x5,5",null,null,"03_Тп_160х120х5,5",null,null,null,null,null,null,null,null,null,"TUBO280X140X10"]
["33.7X2.6CHS",null,null,"2L8X8X1-1/8X3/4",null,null,"2L203X203X28.6X19",null,null,"MC12X35",null,null,"MC310X52",null,null,"CHS15X1.8",null,null,null,null,null,null,null,null,null,null,null,null,null,null,null,null,null,null,null,null,null,null,null,null,null,null,null,null,null,"UKB457X191X67",null,null,"YB-WH200X200X5X8",null,null,"2L51X51X3.2X8",null,null,"2L51X51X3.2X8",null,null,null,null,null,"TUBO300X210X30",null,null,null,null,null,null,null,null,null,null,null,null,null,null,null,"U40X35",null,null,"Тп320x180x11",null,null,"03_Tp_180x80x5,5",null,null,"03_Тп_180х80х5,5",null,null,null,null,null,null,null,null,null,"TUBO300X210X30"]
["180BT22.4",null,null,"2L6X6X1X3/4",null,null,"2L152X152X25.4X19",null,null,"MC6X15.3",null,null,"MC150X22.8",null,null,"CHS30X4",null,null,null,null,null,null,null,null,null,null,null,null,null,null,null,null,null,null,null,null,null,null,null,null,null,null,null,null,null,"UKB305X165X46",null,null,"YB-WH300X250X6X12",null,null,"2L51X51X7.9X16",null,null,"2L51X51X7.9X16",null,null,null,null,null,"TUBO320X224X12.5",null,null,null,null,null,null,null,null,null,null,null,null,null,null,null,"UPE80",null,null,"Тп350x300x8,5",null,null,"03_Tp_180x140x7",null,null,"03_Тп_180х140х7",null,null,null,null,null,null,null,null,null,"TUBO320X224X12.5"]
["100BT9.1",null,null,"2L6X6X9/16",null,null,"2L152X152X14.3",null,null,"2L12X12X1-3/8X1-1/2",null,null,"2L305X305X34.9X38",null,null,"CHS35X2.6",null,null,null,null,null,null,null,null,null,null,null,null,null,null,null,null,null,null,null,null,null,null,null,null,null,null,null,null,null,"UKB254X146X31",null,null,"YB-WH350X175X4.5X8",null,null,"2L64X51X4.8X8LLBB",null,null,"2L64X51X4.8X8LLBB",null,null,null,null,null,"TUBO320X224X40",null,null,null,null,null,null,null,null,null,null,null,null,null,null,null,"UPE300",null,null,"Тп380x220x7",null,null,"03_Tp_200x80x4",null,null,"03_Тп_200х80х4",null,null,null,null,null,null,null,null,null,"TUBO320X224X40"]
[null,null,null,"2L5X5X5/8",null,null,"2L127X127X15.9",null,null,"2L10X10X1X1-1/2",null,null,"2L254X254X25.4X38",null,null,"CHS55X2.6",null,null,null,null,null,null,null,null,null,null,null,null,null,null,null,null,null,null,null,null,null,null,null,null,null,null,null,null,null,"UKC305X305X283",null,null,"YB-WH350X300X8X14",null,null,"2L64X51X6.4X20SLBB",null,null,"2L64X51X6.4X20SLBB",null,null,null,null,null,"TUBO340X238X16",null,null,null,null,null,null,null,null,null,null,null,null,null,null,null,"2L100X12/30/",null,null,"Тк50x6",null,null,"03_Tp_200x120x5,5",null,null,"03_Тп_200х120х5,5",null,null,null,null,null,null,null,null,null,"TUBO340X238X16"]
[null,null,null,"2L4X4X1/2",null,null,"2L102X102X12.7",null,null,"2L8X8X5/8X3/4",null,null,"2L203X203X15.9X19",null,null,"CHS70X2.9",null,null,null,null,null,null,null,null,null,null,null,null,null,null,null,null,null,null,null,null,null,null,null,null,null,null,null,null,null,"UKC152X152X44",null,null,"YB-WH400X250X8X14",null,null,"2L64X51X9.5X16LLBB",null,null,"2L64X51X9.5X16LLBB",null,null,null,null,null,"TUBO360X360X25",null,null,null,null,null,null,null,null,null,null,null,null,null,null,null,"2L100X15/25/",null,null,"Тк80x3",null,null,"03_Tp_220x100x6",null,null,"03_Тп_220х100х6",null,null,null,null,null,null,null,null,null,{"$f":"IF(OFFSET($A643,0,($CQ$2-1)*3)=0,\"\",OFFSET($A643,0,($CQ$2-1)*3))","v":"TUBO360X360X25"}]
[null,null,null,"2L3-1/2X3-1/2X5/16X3/8",null,null,"2L89X89X7.9X9",null,null,"2L6X6X7/16",null,null,"2L152X152X11.1",null,null,"CHS95X2.9",null,null,null,null,null,null,null,null,null,null,null,null,null,null,null,null,null,null,null,null,null,null,null,null,null,null,null,null,null,"CHHF42.4X2.6",null,null,"YB-WH450X250X10X16",null,null,"2L64X64X7.9X12",null,null,"2L64X64X7.9X12",null,null,null,null,null,"TUBO360X180X35",null,null,null,null,null,null,null,null,null,null,null,null,null,null,null,"2L100X150X12/50/",null,null,"Тк100x4,5",null,null,"03_Tp_240x160x9",null,null,"03_Тп_240х160х9",null,null,null,null,null,null,null,null,null,"TUBO360X180X35"]
[null,null,null,"2L3X3X1/4X3/4",null,null,"2L76X76X6.4X19",null,null,"2L5X5X1/2X3/8",null,null,"2L127X127X12.7X9",null,null,"CHS115X3.6",null,null,null,null,null,null,null,null,null,null,null,null,null,null,null,null,null,null,null,null,null,null,null,null,null,null,null,null,null,"CHHF114.3X3.6",null,null,"YB-WH500X250X8X12",null,null,"2L76X51X13X20LLBB",null,null,"2L76X51X13X20LLBB",null,null,null,null,null,"TUBO380X190X12.5",null,null,null,null,null,null,null,null,null,null,null,null,null,null,null,"2L100X50X10/25/",null,null,"Тк140x4",null,null,"03_Tp_260x130x9,5",null,null,"03_Тп_260х130х9,5",null,null,null,null,null,null,null,null,null,"TUBO380X190X12.5"]
[null,null,null,"2L2X2X3/16",null,null,"2L51X51X4.8",null,null,"2L4X4X5/16X3/4",null,null,"2L102X102X7.9X19",null,null,"CHS155X4.5",null,null,null,null,null,null,null,null,null,null,null,null,null,null,null,null,null,null,null,null,null,null,null,null,null,null,null,null,null,"CHHF244.5X14.2",null,null,"YB-WH600X300X10X16",null,null,"2L76X51X7.9X8LLBB",null,null,"2L76X51X7.9X8LLBB",null,null,null,null,null,"TUBO400X200X16",null,null,null,null,null,null,null,null,null,null,null,null,null,null,null,"2L100X50X8/0/",null,null,"Тк180x5,5",null,null,"03_Tp_320x180x6",null,null,"03_Тп_320х180х6",null,null,null,null,null,null,null,null,null,"TUBO400X200X16"]
[null,null,null,"2L2X2X1/8X3/4",null,null,"2L51X51X3.2X19",null,null,"2L3-1/2X3-1/2X1/2X3/8",null,null,"2L89X89X12.7X9",null,null,"CHS185X2.9",null,null,null,null,null,null,null,null,null,null,null,null,null,null,null,null,null,null,null,null,null,null,null,null,null,null,null,null,null,"CHHF273X12.5",null,null,"YB-WH600X400X8X14",null,null,"2L76X51X7.9X12SLBB",null,null,"2L76X51X7.9X12SLBB",null,null,null,null,null,"TUBO400X200X28",null,null,null,null,null,null,null,null,null,null,null,null,null,null,null,"2L100X50X8/25/",null,null,"Тк180x8",null,null,"03_Tp_320x180x8,5",null,null,"03_Тп_320х180х8,5",null,null,null,null,null,null,null,null,null,"TUBO400X200X28"]
[null,null,null,"2L8X6X7/16X3/4LLBB",null,null,"2L203X152X11.1X19LLBB",null,null,"2L3X3X3/8X3/8",null,null,"2L76X76X9.5X9",null,null,"CHS240X6",null,null,null,null,null,null,null,null,null,null,null,null,null,null,null,null,null,null,null,null,null,null,null,null,null,null,null,null,null,"CHHF457X16",null,null,"YB-WH700X350X10X25",null,null,"2L76X64X13X10LLBB",null,null,"2L76X64X13X10LLBB",null,null,null,null,null,"UPN140*",null,null,null,null,null,null,null,null,null,null,null,null,null,null,null,"2L100X65X10/20/",null,null,"Тк250x7,5",null,null,"03_Tp_350x300x6",null,null,"03_Тп_350х300х6",null,null,null,null,null,null,null,null,null,"UPN140*"]
[null,null,null,"2L7X4X1/2LLBB",null,null,"2L178X102X12.7LLBB",null,null,"2L2X2X3/8X3/4",null,null,"2L51X51X9.5X19",null,null,null,null,null,null,null,null,null,null,null,null,null,null,null,null,null,null,null,null,null,null,null,null,null,null,null,null,null,null,null,null,"UKT178X305X41",null,null,"YB-WH800X350X10X18",null,null,"2L76X64X6.4X16LLBB",null,null,"2L76X64X6.4X16LLBB",null,null,null,null,null,"2L20X3/8/",null,null,null,null,null,null,null,null,null,null,null,null,null,null,null,"2L100X65X7/8/",null,null,"Шв20В2",null,null,"10_Tk_15x0,8",null,null,"10_Тк_15х0,8",null,null,null,null,null,null,null,null,null,"2L20X3/8/"]
[null,null,null,"2L6X4X1/2X3/4LLBB",null,null,"2L152X102X12.7X19LLBB",null,null,"2L8X6X5/8X3/8LLBB",null,null,"2L203X152X15.9X9LLBB",null,null,null,null,null,null,null,null,null,null,null,null,null,null,null,null,null,null,null,null,null,null,null,null,null,null,null,null,null,null,null,null,"UKT152X229X37",null,null,"YB-WH900X350X12X22",null,null,"2L76X64X9.5X12SLBB",null,null,"2L76X64X9.5X12SLBB",null,null,null,null,null,"2L25X3/10/",null,null,null,null,null,null,null,null,null,null,null,null,null,null,null,"2L100X7/0/",null,null,"Шу5У",null,null,"10_Tk_30x0,9",null,null,"10_Тк_30х0,9",null,null,null,null,null,null,null,null,null,"2L25X3/10/"]
[null,null,null,"2L5X3-1/2X3/4X3/4LLBB",null,null,"2L127X89X19X19LLBB",null,null,"2L8X4X5/8X3/8LLBB",null,null,"2L203X102X15.9X9LLBB",null,null,null,null,null,null,null,null,null,null,null,null,null,null,null,null,null,null,null,null,null,null,null,null,null,null,null,null,null,null,null,null,"UKT127X152X24",null,null,"YB-WH1100X400X14X30",null,null,"2L76X76X4.8X16",null,null,"2L76X76X4.8X16",null,null,null,null,null,"2L25X5/8/",null,null,null,null,null,null,null,null,null,null,null,null,null,null,null,"2L100X75X10/8/",null,null,"Шэ10Э",null,null,"10_Tk_35x5,0",null,null,"10_Тк_35х5,0",null,null,null,null,null,null,null,null,null,"2L25X5/8/"]
[null,null,null,"2L5X3-1/2X1/2X3/8LLBB",null,null,"2L127X89X12.7X9LLBB",null,null,"2L8X4X1/2LLBB",null,null,"2L203X102X12.7LLBB",null,null,null,null,null,null,null,null,null,null,null,null,null,null,null,null,null,null,null,null,null,null,null,null,null,null,null,null,null,null,null,null,"UKT102X152X13",null,null,"YB-WH1100X500X12X22",null,null,"2L76X76X6.4X12",null,null,"2L76X76X6.4X12",null,null,null,null,null,"2L25X5/25/",null,null,null,null,null,null,null,null,null,null,null,null,null,null,null,"2L100X75X12/20/",null,null,"Шэ20Э",null,null,"10_Tk_40x3,0",null,null,"10_Тк_40х3,0",null,null,null,null,null,null,null,null,null,"2L25X5/25/"]
[null,null,null,"2L5X3X5/16X3/8LLBB",null,null,"2L127X76X7.9X9LLBB",null,null,"2L6X4X7/8LLBB",null,null,"2L152X102X22.2LLBB",null,null,null,null,null,null,null,null,null,null,null,null,null,null,null,null,null,null,null,null,null,null,null,null,null,null,null,null,null,null,null,null,"UKT203X102X43",null,null,"YB-WH1200X450X14X36",null,null,"2L89X64X13X12LLBB",null,null,"2L89X64X13X12LLBB",null,null,null,null,null,"2L30X4/20/",null,null,null,null,null,null,null,null,null,null,null,null,null,null,null,"2L100X8/15/",null,null,"Шс26Са",null,null,"10_Tk_45x6,0",null,null,"10_Тк_45х6,0",null,null,null,null,null,null,null,null,null,"2L30X4/20/"]
[null,null,null,"2L4X3X1/4X3/8LLBB",null,null,"2L102X76X6.4X9LLBB",null,null,"2L6X3-1/2X5/16LLBB",null,null,"2L152X89X7.9LLBB",null,null,null,null,null,null,null,null,null,null,null,null,null,null,null,null,null,null,null,null,null,null,null,null,null,null,null,null,null,null,null,null,null,null,null,"YB-WH1300X600X20X50",null,null,"2L89X64X9.5LLBB",null,null,"2L89X64X9.5LLBB",null,null,null,null,null,"2L35X3/10/",null,null,null,null,null,null,null,null,null,null,null,null,null,null,null,"2L110X12/0/",null,null,"LL(6)80x6",null,null,"10_Tk_60x7,5",null,null,"10_Тк_60х7,5",null,null,null,null,null,null,null,null,null,"2L35X3/10/"]
[null,null,null,"2L3-1/2X2-1/2X3/8X3/8LLBB",null,null,"2L89X64X9.5X9LLBB",null,null,"2L5X3X1/2LLBB",null,null,"2L127X76X12.7LLBB",null,null,null,null,null,null,null,null,null,null,null,null,null,null,null,null,null,null,null,null,null,null,null,null,null,null,null,null,null,null,null,null,null,null,null,"YB-WH1500X550X18X30",null,null,"2L89X76X13X16SLBB",null,null,"2L89X76X13X16SLBB",null,null,null,null,null,"2L35X4/8/",null,null,null,null,null,null,null,null,null,null,null,null,null,null,null,"2L110X14/8/",null,null,"LL(10)70x5",null,null,"10_Tk_80x6,0",null,null,"10_Тк_80х6,0",null,null,null,null,null,null,null,null,null,"2L35X4/8/"]
[null,null,null,"2L3X2-1/2X1/4X3/8LLBB",null,null,"2L76X64X6.4X9LLBB",null,null,"2L4X3-1/2X5/16LLBB",null,null,"2L102X89X7.9LLBB",null,null,null,null,null,null,null,null,null,null,null,null,null,null,null,null,null,null,null,null,null,null,null,null,null,null,null,null,null,null,null,null,null,null,null,"YB-WH1600X700X18X40",null,null,"2L89X76X7.9X12LLBB",null,null,"2L89X76X7.9X12LLBB",null,null,null,null,null,"2L35X6/6/",null,null,null,null,null,null,null,null,null,null,null,null,null,null,null,"2L110X7/6/",null,null,"LL(12)100x7",null,null,"10_Tk_100x4,0",null,null,"10_Тк_100х4,0",null,null,null,null,null,null,null,null,null,"2L35X6/6/"]
[null,null,null,"2L2-1/2X2X5/16X3/4LLBB",null,null,"2L64X51X7.9X19LLBB",null,null,"2L3-1/2X3X7/16X3/8LLBB",null,null,"2L89X76X11.1X9LLBB",null,null,null,null,null,null,null,null,null,null,null,null,null,null,null,null,null,null,null,null,null,null,null,null,null,null,null,null,null,null,null,null,null,null,null,"YB-WH1800X600X18X40",null,null,"2L89X89X13X8",null,null,"2L89X89X13X8",null,null,null,null,null,"2L40X4/12/",null,null,null,null,null,null,null,null,null,null,null,null,null,null,null,"2L110X8/10/",null,null,"LL(14)180x12",null,null,"10_Tk_120x7,0",null,null,"10_Тк_120х7,0",null,null,null,null,null,null,null,null,null,"2L40X4/12/"]
[null,null,null,"2L8X6X1X3/4SLBB",null,null,"2L203X152X25.4X19SLBB",null,null,"2L3-1/2X2-1/2X3/8X3/8LLBB",null,null,"2L89X64X9.5X9LLBB",null,null,null,null,null,null,null,null,null,null,null,null,null,null,null,null,null,null,null,null,null,null,null,null,null,null,null,null,null,null,null,null,null,null,null,"YB-WH1800X750X18X40",null,null,"2L89X89X7.9X16",null,null,"2L89X89X7.9X16",null,null,null,null,null,"2L40X5/30/",null,null,null,null,null,null,null,null,null,null,null,null,null,null,null,"2L110X9/25/",null,null,"LL(16)180x12",null,null,"10_Tk_150x4,5",null,null,"10_Тк_150х4,5",null,null,null,null,null,null,null,null,null,"2L40X5/30/"]
[null,null,null,"2L8X6X9/16X3/4SLBB",null,null,"2L203X152X14.3X19SLBB",null,null,"2L3X2-1/2X7/16X3/8LLBB",null,null,"2L76X64X11.1X9LLBB",null,null,null,null,null,null,null,null,null,null,null,null,null,null,null,null,null,null,null,null,null,null,null,null,null,null,null,null,null,null,null,null,null,null,null,"YB-WH1900X700X20X50",null,null,"2L102X76X11X10LLBB",null,null,"2L102X76X11X10LLBB",null,null,null,null,null,"2L40X6/40/",null,null,null,null,null,null,null,null,null,null,null,null,null,null,null,"2L120X10/30/",null,null,"LL(20)200x12",null,null,"10_Tk_160x5,0",null,null,"10_Тк_160х5,0",null,null,null,null,null,null,null,null,null,{"$f":"IF(OFFSET($A963,0,($CQ$2-1)*3)=0,\"\",OFFSET($A963,0,($CQ$2-1)*3))","v":"2L40X6/40/"}]
[null,null,null,"2L8X4X7/16SLBB",null,null,"2L203X102X11.1SLBB",null,null,"2L3X2X1/4X3/4LLBB",null,null,"2L76X51X6.4X19LLBB",null,null,null,null,null,null,null,null,null,null,null,null,null,null,null,null,null,null,null,null,null,null,null,null,null,null,null,null,null,null,null,null,null,null,null,"YB-WH2000X750X20X50",null,null,"2L102X76X16X10SLBB",null,null,"2L102X76X16X10SLBB",null,null,null,null,null,"2L45X4.5/6/",null,null,null,null,null,null,null,null,null,null,null,null,null,null,null,"2L120X12/6/",null,null,"LLн(4)75x50x5",null,null,"10_Tk_180x12,0",null,null,"10_Тк_180х12,0",null,null,null,null,null,null,null,null,null,"2L45X4.5/6/"]
[null,null,null,"2L6X4X3/4SLBB",null,null,"2L152X102X19SLBB",null,null,"2L2-1/2X1-1/2X3/16X3/4LLBB",null,null,"2L64X38X4.8X19LLBB",null,null,null,null,null,null,null,null,null,null,null,null,null,null,null,null,null,null,null,null,null,null,null,null,null,null,null,null,null,null,null,null,null,null,null,"JG-LH150X100X4.5X6",null,null,"2L102X76X7.9X8LLBB",null,null,"2L102X76X7.9X8LLBB",null,null,null,null,null,"2L45X6/0/",null,null,null,null,null,null,null,null,null,null,null,null,null,null,null,"2L120X15/50/",null,null,"LLн(20)125x80x10",null,null,"10_Tk_200x11,0",null,null,"10_Тк_200х11,0",null,null,null,null,null,null,null,null,null,"2L45X6/0/"]
[null,null,null,"2L6X3-1/2X5/16X3/8SLBB",null,null,"2L152X89X7.9X9SLBB",null,null,"2L8X4X3/4SLBB",null,null,"2L203X102X19SLBB",null,null,null,null,null,null,null,null,null,null,null,null,null,null,null,null,null,null,null,null,null,null,null,null,null,null,null,null,null,null,null,null,null,null,null,"JG-LH250X200X4.5X9",null,null,"2L102X89X11X12LLBB",null,null,"2L102X89X11X12LLBB",null,null,null,null,null,"2L50X5/20/",null,null,null,null,null,null,null,null,null,null,null,null,null,null,null,"2L120X60X8/15/",null,null,"2Шп(6)18aП",null,null,"10_Tk_300x10,0",null,null,"10_Тк_300х10,0",null,null,null,null,null,null,null,null,null,"2L50X5/20/"]
[null,null,null,"2L5X3-1/2X3/4X3/8SLBB",null,null,"2L127X89X19X9SLBB",null,null,"2L8X4X5/8SLBB",null,null,"2L203X102X15.9SLBB",null,null,null,null,null,null,null,null,null,null,null,null,null,null,null,null,null,null,null,null,null,null,null,null,null,null,null,null,null,null,null,null,null,null,null,"JG-LH250X200X6X9",null,null,"2L102X89X11X16SLBB",null,null,"2L102X89X11X16SLBB",null,null,null,null,null,"2L50X5/40/",null,null,null,null,null,null,null,null,null,null,null,null,null,null,null,"2L120X60X8/30/",null,null,"2Шп(6)24П",null,null,"10_Tk_300x11,5",null,null,"10_Тк_300х11,5",null,null,null,null,null,null,null,null,null,"2L50X5/40/"]
[null,null,null,"2L5X3X7/16X3/8SLBB",null,null,"2L127X76X11.1X9SLBB",null,null,"2L7X4X7/16SLBB",null,null,"2L178X102X11.1SLBB",null,null,null,null,null,null,null,null,null,null,null,null,null,null,null,null,null,null,null,null,null,null,null,null,null,null,null,null,null,null,null,null,null,null,null,"JG-LH300X200X6X9",null,null,"2L102X89X6.4X12LLBB",null,null,"2L102X89X6.4X12LLBB",null,null,null,null,null,"2L50X7/30/",null,null,null,null,null,null,null,null,null,null,null,null,null,null,null,"2L120X80X10/25/",null,null,"2Шп(8)33П",null,null,"10_Tk_350x6,0",null,null,"10_Тк_350х6,0",null,null,null,null,null,null,null,null,null,"2L50X7/30/"]
[null,null,null,"2L4X3X5/8X3/4SLBB",null,null,"2L102X76X15.9X19SLBB",null,null,"2L6X4X3/8X3/8SLBB",null,null,"2L152X102X9.5X9SLBB",null,null,null,null,null,null,null,null,null,null,null,null,null,null,null,null,null,null,null,null,null,null,null,null,null,null,null,null,null,null,null,null,null,null,null,"JG-LH350X200X4.5X9",null,null,"2L102X89X9.5X12SLBB",null,null,"2L102X89X9.5X12SLBB",null,null,null,null,null,"2L55X4/0/",null,null,null,null,null,null,null,null,null,null,null,null,null,null,null,"2L120X80X14/50/",null,null,"2Шп(12)12П",null,null,"10_Tk_350x18,5",null,null,"10_Тк_350х18,5",null,null,null,null,null,null,null,null,null,"2L55X4/0/"]
[null,null,null,"2L3-1/2X3X3/8X3/4SLBB",null,null,"2L89X76X9.5X19SLBB",null,null,"2L5X3-1/2X1/2X3/8SLBB",null,null,"2L127X89X12.7X9SLBB",null,null,null,null,null,null,null,null,null,null,null,null,null,null,null,null,null,null,null,null,null,null,null,null,null,null,null,null,null,null,null,null,null,null,null,"JG-LH400X200X6X9",null,null,"2L102X102X16X16",null,null,"2L102X102X16X16",null,null,null,null,null,"2L55X5/50/",null,null,null,null,null,null,null,null,null,null,null,null,null,null,null,"2L120X9/40/",null,null,"2Шп(16)16aП",null,null,"10_Tk_400x14,0",null,null,"10_Тк_400х14,0",null,null,null,null,null,null,null,null,null,"2L55X5/50/"]
[null,null,null,"2L3X2-1/2X5/16X3/4SLBB",null,null,"2L76X64X7.9X19SLBB",null,null,"2L4X3-1/2X3/8X3/8SLBB",null,null,"2L102X89X9.5X9SLBB",null,null,null,null,null,null,null,null,null,null,null,null,null,null,null,null,null,null,null,null,null,null,null,null,null,null,null,null,null,null,null,null,null,null,null,"JG-LH500X250X6X9",null,null,"2L127X76X11X10LLBB",null,null,"2L127X76X11X10LLBB",null,null,null,null,null,"2L60X4/25/",null,null,null,null,null,null,null,null,null,null,null,null,null,null,null,"2L130X65X8/20/",null,null,"2Шп(25)6,5П",null,null,"10_Tk_450x14,0",null,null,"10_Тк_450х14,0",null,null,null,null,null,null,null,null,null,"2L60X4/25/"]
[null,null,null,"2L3X2X3/16X3/4SLBB",null,null,"2L76X51X4.8X19SLBB",null,null,"2L4X3X1/4X3/8SLBB",null,null,"2L102X76X6.4X9SLBB",null,null,null,null,null,null,null,null,null,null,null,null,null,null,null,null,null,null,null,null,null,null,null,null,null,null,null,null,null,null,null,null,null,null,null,"GB-I30B",null,null,"2L127X76X6.4SLBB",null,null,"2L127X76X6.4SLBB",null,null,null,null,null,"2L60X6/20/",null,null,null,null,null,null,null,null,null,null,null,null,null,null,null,"2L150X100X12/15/",null,null,"2Шп(30)12П",null,null,"10_Tk_500x10,5",null,null,"10_Тк_500х10,5",null,null,null,null,null,null,null,null,null,"2L60X6/20/"]
[null,null,null,"W44X262",null,null,"W1100X390",null,null,"2L3-1/2X2-1/2X3/8X3/8SLBB",null,null,"2L89X64X9.5X9SLBB",null,null,null,null,null,null,null,null,null,null,null,null,null,null,null,null,null,null,null,null,null,null,null,null,null,null,null,null,null,null,null,null,null,null,null,"GB-I56B",null,null,"2L127X76X7.9X20LLBB",null,null,"2L127X76X7.9X20LLBB",null,null,null,null,null,"2L60X10/15/",null,null,null,null,null,null,null,null,null,null,null,null,null,null,null,"2L150X12/12/",null,null,"2Шп(40)16aП",null,null,"10_Tp_15x10x1,0",null,null,"10_Тп_15х10х1,0",null,null,null,null,null,null,null,null,null,"2L60X10/15/"]
[null,null,null,"W40X397",null,null,"W1000X591",null,null,"2L3-1/2X2-1/2X1/4SLBB",null,null,"2L89X64X6.4SLBB",null,null,null,null,null,null,null,null,null,null,null,null,null,null,null,null,null,null,null,null,null,null,null,null,null,null,null,null,null,null,null,null,null,null,null,"YB-I10",null,null,"2L127X76X9.5X8SLBB",null,null,"2L127X76X9.5X8SLBB",null,null,null,null,null,"2L60X10/50/",null,null,null,null,null,null,null,null,null,null,null,null,null,null,null,"2L150X12/40/",null,null,"2Шп(40)24П",null,null,"10_Tp_20x10x1,5",null,null,"10_Тп_20х10х1,5",null,null,null,null,null,null,null,null,null,"2L60X10/50/"]
[null,null,null,"W36X194",null,null,"W920X289",null,null,"2L3X2X3/16X3/4SLBB",null,null,"2L76X51X4.8X19SLBB",null,null,null,null,null,null,null,null,null,null,null,null,null,null,null,null,null,null,null,null,null,null,null,null,null,null,null,null,null,null,null,null,null,null,null,"GB-SSP42X2.5",null,null,"2L127X89X19X8LLBB",null,null,"2L127X89X19X8LLBB",null,null,null,null,null,"2L70X5/6/",null,null,null,null,null,null,null,null,null,null,null,null,null,null,null,"2L15X3/6/",null,null,"2Шп(100)22П",null,null,"10_Tp_30x20x0,8",null,null,"10_Тп_30х20х0,8",null,null,null,null,null,null,null,null,null,{"$f":"IF(OFFSET($A1219,0,($CQ$2-1)*3)=0,\"\",OFFSET($A1219,0,($CQ$2-1)*3))","v":"2L70X5/6/"}]
[null,null,null,"W33X221",null,null,"W840X329",null,null,"2L2-1/2X2X3/16X3/4SLBB",null,null,"2L64X51X4.8X19SLBB",null,null,null,null,null,null,null,null,null,null,null,null,null,null,null,null,null,null,null,null,null,null,null,null,null,null,null,null,null,null,null,null,null,null,null,"GB-SSP50X2.5",null,null,"2L127X89X6.4X8LLBB",null,null,"2L127X89X6.4X8LLBB",null,null,null,null,null,"2L70X6/8/",null,null,null,null,null,null,null,null,null,null,null,null,null,null,null,"2L180X15/8/",null,null,"2Шп(150)14П",null,null,"10_Tp_35x15x1,5",null,null,"10_Тп_35х15х1,5",null,null,null,null,null,null,null,null,null,"2L70X6/8/"]
[null,null,null,"W27X336",null,null,"W690X500",null,null,"W40X331",null,null,"W1000X494",null,null,null,null,null,null,null,null,null,null,null,null,null,null,null,null,null,null,null,null,null,null,null,null,null,null,null,null,null,null,null,null,null,null,null,"GB-SSP60X5.5",null,null,"2L127X89X9.5X8SLBB",null,null,"2L127X89X9.5X8SLBB",null,null,null,null,null,"2L70X8/15/",null,null,null,null,null,null,null,null,null,null,null,null,null,null,null,"2L200X16/12/",null,null,"2Шп(200)24П",null,null,"10_Tp_40x15x2,0",null,null,"10_Тп_40х15х2,0",null,null,null,null,null,null,null,null,null,"2L70X8/15/"]
[null,null,null,"W24X207",null,null,"W610X307",null,null,"W36X302",null,null,"W920X449",null,null,null,null,null,null,null,null,null,null,null,null,null,null,null,null,null,null,null,null,null,null,null,null,null,null,null,null,null,null,null,null,null,null,null,"GB-SSP68X5.5",null,null,"2L127X127X16",null,null,"2L127X127X16",null,null,null,null,null,"2L75X5/12/",null,null,null,null,null,null,null,null,null,null,null,null,null,null,null,"2L200X20/10/",null,null,"2Шп(250)33П",null,null,"10_Tp_40x30x1,5",null,null,"10_Тп_40х30х1,5",null,null,null,null,null,null,null,null,null,"2L75X5/12/"]
[null,null,null,"W24X104",null,null,"W610X155",null,null,"W36X210",null,null,"W920X313",null,null,null,null,null,null,null,null,null,null,null,null,null,null,null,null,null,null,null,null,null,null,null,null,null,null,null,null,null,null,null,null,null,null,null,"GB-SSP70X5.5",null,null,"2L127X127X19X8",null,null,"2L127X127X19X8",null,null,null,null,null,"2L75X6/0/",null,null,null,null,null,null,null,null,null,null,null,null,null,null,null,"2L200X20/50/",null,null,"2Шп(300)12П",null,null,"10_Tp_45x20x2,5",null,null,"10_Тп_45х20х2,5",null,null,null,null,null,null,null,null,null,"2L75X6/0/"]
[null,null,null,"W21X50",null,null,"W530X74",null,null,"W30X261",null,null,"W760X389",null,null,null,null,null,null,null,null,null,null,null,null,null,null,null,null,null,null,null,null,null,null,null,null,null,null,null,null,null,null,null,null,null,null,null,"GB-SSP89X3.5",null,null,"2L127X127X9.5X8",null,null,"2L127X127X9.5X8",null,null,null,null,null,"2L80X6/8/",null,null,null,null,null,null,null,null,null,null,null,null,null,null,null,"2L20X3/8/",null,null,"2Шп(400)20П",null,null,"10_Tp_50x35x2,0",null,null,"10_Тп_50х35х2,0",null,null,null,null,null,null,null,null,null,"2L80X6/8/"]
[null,null,null,"W18X50",null,null,"W460X74",null,null,"W27X178",null,null,"W690X265",null,null,null,null,null,null,null,null,null,null,null,null,null,null,null,null,null,null,null,null,null,null,null,null,null,null,null,null,null,null,null,null,null,null,null,"GB-SSP102X6",null,null,"2L152X89X16X10LLBB",null,null,"2L152X89X16X10LLBB",null,null,null,null,null,"2L80X8/6/",null,null,null,null,null,null,null,null,null,null,null,null,null,null,null,"2L20X30X4/6/",null,null,"2Шп(500)27П",null,null,"10_Tp_60x30x2,0",null,null,"10_Тп_60х30х2,0",null,null,null,null,null,null,null,null,null,"2L80X8/6/"]
[null,null,null,"W14X311",null,null,"W360X463",null,null,"W24X76",null,null,"W610X113",null,null,null,null,null,null,null,null,null,null,null,null,null,null,null,null,null,null,null,null,null,null,null,null,null,null,null,null,null,null,null,null,null,null,null,"GB-SSP121X6",null,null,"2L152X89X9.5X10SLBB",null,null,"2L152X89X9.5X10SLBB",null,null,null,null,null,"2L80X12/12/",null,null,null,null,null,null,null,null,null,null,null,null,null,null,null,"2L20X35X5/10/",null,null,"2Шп(700)8П",null,null,"10_Tp_70x30x6,0",null,null,"10_Тп_70х30х6,0",null,null,null,null,null,null,null,null,null,"2L80X12/12/"]
[null,null,null,"W14X38",null,null,"W360X57.8",null,null,"W21X48",null,null,"W530X72",null,null,null,null,null,null,null,null,null,null,null,null,null,null,null,null,null,null,null,null,null,null,null,null,null,null,null,null,null,null,null,null,null,null,null,"GB-SSP133X7.5",null,null,"2L152X102X13X8LLBB",null,null,"2L152X102X13X8LLBB",null,null,null,null,null,"2L90X7/10/",null,null,null,null,null,null,null,null,null,null,null,null,null,null,null,"2L20X40X3/0/",null,null,"2Шп(800)14П",null,null,"10_Tp_80x40x4,0",null,null,"10_Тп_80х40х4,0",null,null,null,null,null,null,null,null,null,"2L90X7/10/"]
[null,null,null,"W12X230",null,null,"W310X342",null,null,"W18X192",null,null,"W460X286",null,null,null,null,null,null,null,null,null,null,null,null,null,null,null,null,null,null,null,null,null,null,null,null,null,null,null,null,null,null,null,null,null,null,null,"GB-SSP140X8",null,null,"2L152X102X13X20SLBB",null,null,"2L152X102X13X20SLBB",null,null,null,null,null,"2L90X8/6/",null,null,null,null,null,null,null,null,null,null,null,null,null,null,null,"2L20X40X3/6/",null,null,"2Шп(800)30П",null,null,"10_Tp_80x50x4,0",null,null,"10_Тп_80х50х4,0",null,null,null,null,null,null,null,null,null,"2L90X8/6/"]
[null,null,null,"W12X19",null,null,"W310X28.3",null,null,"W16X57",null,null,"W410X85",null,null,null,null,null,null,null,null,null,null,null,null,null,null,null,null,null,null,null,null,null,null,null,null,null,null,null,null,null,null,null,null,null,null,null,"GB-SSP159X4.5",null,null,"2L152X102X16X16SLBB",null,null,"2L152X102X16X16SLBB",null,null,null,null,null,"2L90X10/6/",null,null,null,null,null,null,null,null,null,null,null,null,null,null,null,"2L20X40X5/6/",null,null,"2Шу(6)5У",null,null,"10_Tp_90x40x4,0",null,null,"10_Тп_90х40х4,0",null,null,null,null,null,null,null,null,null,"2L90X10/6/"]
[null,null,null,"W8X67",null,null,"W200X100",null,null,"W14X257",null,null,"W360X382",null,null,null,null,null,null,null,null,null,null,null,null,null,null,null,null,null,null,null,null,null,null,null,null,null,null,null,null,null,null,null,null,null,null,null,"GB-SSP180X5.5",null,null,"2L152X102X22X12LLBB",null,null,"2L152X102X22X12LLBB",null,null,null,null,null,"2L100X6/0/",null,null,null,null,null,null,null,null,null,null,null,null,null,null,null,"2L25X4/50/",null,null,"2Шу(8)10У",null,null,"10_Tp_90x60x7,0",null,null,"10_Тп_90х60х7,0",null,null,null,null,null,null,null,null,null,"2L100X6/0/"]
[null,null,null,"M12X11.8",null,null,"M310X17.6",null,null,"W12X305",null,null,"W310X454",null,null,null,null,null,null,null,null,null,null,null,null,null,null,null,null,null,null,null,null,null,null,null,null,null,null,null,null,null,null,null,null,null,null,null,"GB-SSP203X10",null,null,"2L152X102X9.5X12SLBB",null,null,"2L152X102X9.5X12SLBB",null,null,null,null,null,"2L100X8/10/",null,null,null,null,null,null,null,null,null,null,null,null,null,null,null,"2L25X5/0/",null,null,"2Шу(10)20У",null,null,"10_Tp_100x60x6,0",null,null,"10_Тп_100х60х6,0",null,null,null,null,null,null,null,null,null,"2L100X8/10/"]
[null,null,null,"M4X3.2",null,null,"M100X4.8",null,null,"W12X72",null,null,"W310X107",null,null,null,null,null,null,null,null,null,null,null,null,null,null,null,null,null,null,null,null,null,null,null,null,null,null,null,null,null,null,null,null,null,null,null,"GB-SSP245X6.5",null,null,"2L152X152X13X12",null,null,"2L152X152X13X12",null,null,null,null,null,"2L100X9/20/",null,null,null,null,null,null,null,null,null,null,null,null,null,null,null,"2L30X20X3/15/",null,null,"2Шу(12)16У",null,null,"10_Tp_110x50x4,0",null,null,"10_Тп_110х50х4,0",null,null,null,null,null,null,null,null,null,"2L100X9/20/"]
[null,null,null,"HP18X135",null,null,"HP460X202",null,null,"W8X58",null,null,"W200X86",null,null,null,null,null,null,null,null,null,null,null,null,null,null,null,null,null,null,null,null,null,null,null,null,null,null,null,null,null,null,null,null,null,null,null,"GB-SSP351X9",null,null,"2L152X152X6.4",null,null,"2L152X152X6.4",null,null,null,null,null,"2L100X14/20/",null,null,null,null,null,null,null,null,null,null,null,null,null,null,null,"2L30X3/15/",null,null,"2Шу(20)10У",null,null,"10_Tp_120x60x8,0",null,null,"10_Тп_120х60х8,0",null,null,null,null,null,null,null,null,null,"2L100X14/20/"]
[null,null,null,"HSS16X0.375",null,null,"HSS406.4X9.5",null,null,"M12X10.8",null,null,"M310X16.1",null,null,null,null,null,null,null,null,null,null,null,null,null,null,null,null,null,null,null,null,null,null,null,null,null,null,null,null,null,null,null,null,null,null,null,"GB-SSP426X13",null,null,"2L178X102X11X12SLBB",null,null,"2L178X102X11X12SLBB",null,null,null,null,null,"2L110X6/40/",null,null,null,null,null,null,null,null,null,null,null,null,null,null,null,"2L30X45X4/30/",null,null,"2Шу(25)20У",null,null,"10_Tp_140x100x4,0",null,null,"10_Тп_140х100х4,0",null,null,null,null,null,null,null,null,null,"2L110X6/40/"]
[null,null,null,"HSS16X0.312",null,null,"HSS406.4X7.9",null,null,"M12X10",null,null,"M310X14.9",null,null,null,null,null,null,null,null,null,null,null,null,null,null,null,null,null,null,null,null,null,null,null,null,null,null,null,null,null,null,null,null,null,null,null,"GB-SSP426X14",null,null,"2L178X102X11X16LLBB",null,null,"2L178X102X11X16LLBB",null,null,null,null,null,"2L110X6/50/",null,null,null,null,null,null,null,null,null,null,null,null,null,null,null,"2L30X45X4/40/",null,null,"2Шу(25)22У",null,null,"10_Tp_140x100x4,5",null,null,"10_Тп_140х100х4,5",null,null,null,null,null,null,null,null,null,"2L110X6/50/"]
[null,null,null,"HSS8.625X0.322",null,null,"HSS219.1X8.2",null,null,"S12X50",null,null,"S310X74",null,null,null,null,null,null,null,null,null,null,null,null,null,null,null,null,null,null,null,null,null,null,null,null,null,null,null,null,null,null,null,null,null,null,null,"GB-SSP500X9",null,null,"2L178X102X16X20SLBB",null,null,"2L178X102X16X20SLBB",null,null,null,null,null,"2L110X9/12/",null,null,null,null,null,null,null,null,null,null,null,null,null,null,null,"2L30X5/10/",null,null,"2Шу(40)8У",null,null,"10_Tp_150x80x7,0",null,null,"10_Тп_150х80х7,0",null,null,null,null,null,null,null,null,null,"2L110X9/12/"]
[null,null,null,"HSS6.625X0.312",null,null,"HSS168.3X7.9",null,null,"HP16X88",null,null,"HP410X131",null,null,null,null,null,null,null,null,null,null,null,null,null,null,null,null,null,null,null,null,null,null,null,null,null,null,null,null,null,null,null,null,null,null,null,"GB-SSP560X9",null,null,"2L178X102X9.5X20SLBB",null,null,"2L178X102X9.5X20SLBB",null,null,null,null,null,"2L110X12/20/",null,null,null,null,null,null,null,null,null,null,null,null,null,null,null,"2L30X60X5/15/",null,null,"2Шу(50)18У",null,null,"10_Tp_150x130x6,0",null,null,"10_Тп_150х130х6,0",null,null,null,null,null,null,null,null,null,"2L110X12/20/"]
[null,null,null,"HSS5X0.375",null,null,"HSS127X9.5",null,null,"HSS16.000X0.312",null,null,"HSS406.4X7.9",null,null,null,null,null,null,null,null,null,null,null,null,null,null,null,null,null,null,null,null,null,null,null,null,null,null,null,null,null,null,null,null,null,null,null,"GB-SSP630X14",null,null,"2L203X102X19X16LLBB",null,null,"2L203X102X19X16LLBB",null,null,null,null,null,"2L120X8/15/",null,null,null,null,null,null,null,null,null,null,null,null,null,null,null,"2L35X20X4/12/",null,null,"2Шу(100)22У",null,null,"10_Tp_160x100x4,0",null,null,"10_Тп_160х100х4,0",null,null,null,null,null,null,null,null,null,"2L120X8/15/"]
[null,null,null,"HSS3X0.250",null,null,"HSS76.2X6.4",null,null,"HSS8.625X0.500",null,null,"HSS219.1X12.7",null,null,null,null,null,null,null,null,null,null,null,null,null,null,null,null,null,null,null,null,null,null,null,null,null,null,null,null,null,null,null,null,null,null,null,"GB-SPWSP377X8",null,null,"2L203X152X13X16SLBB",null,null,"2L203X152X13X16SLBB",null,null,null,null,null,"2L120X10/30/",null,null,null,null,null,null,null,null,null,null,null,null,null,null,null,"2L35X3.5/25/",null,null,"2Шу(200)5У",null,null,"10_Tp_160x140x7,5",null,null,"10_Тп_160х140х7,5",null,null,null,null,null,null,null,null,null,"2L120X10/30/"]
[null,null,null,"HSS2.500X0.188",null,null,"HSS63.5X4.8",null,null,"HSS7.000X0.500",null,null,"HSS177.8X12.7",null,null,null,null,null,null,null,null,null,null,null,null,null,null,null,null,null,null,null,null,null,null,null,null,null,null,null,null,null,null,null,null,null,null,null,"GB-SPWSP457X6",null,null,"2L203X152X14X16SLBB",null,null,"2L203X152X14X16SLBB",null,null,null,null,null,"2L120X11/40/",null,null,null,null,null,null,null,null,null,null,null,null,null,null,null,"2L35X3/30/",null,null,"2Шу(200)24У",null,null,"10_Tp_180x80x4,5",null,null,"10_Тп_180х80х4,5",null,null,null,null,null,null,null,null,null,"2L120X11/40/"]
[null,null,null,"PIPE5STD",null,null,"PIPE127STD",null,null,"HSS6.625X0.280",null,null,"HSS168.3X7.1",null,null,null,null,null,null,null,null,null,null,null,null,null,null,null,null,null,null,null,null,null,null,null,null,null,null,null,null,null,null,null,null,null,null,null,"GB-SPWSP508X7",null,null,"2L203X152X19LLBB",null,null,"2L203X152X19LLBB",null,null,null,null,null,"2L120X13/8/",null,null,null,null,null,null,null,null,null,null,null,null,null,null,null,"2L35X4/8/",null,null,"2Шу(250)18aУ",null,null,"10_Tp_180x80x12,0",null,null,"10_Тп_180х80х12,0",null,null,null,null,null,null,null,null,null,"2L120X13/8/"]
[null,null,null,"PIPE1/2XS",null,null,"PIPE13XS",null,null,"HSS5.000X0.125",null,null,"HSS127X3.2",null,null,null,null,null,null,null,null,null,null,null,null,null,null,null,null,null,null,null,null,null,null,null,null,null,null,null,null,null,null,null,null,null,null,null,"GB-SPWSP610X9",null,null,"2L203X152X25SLBB",null,null,"2L203X152X25SLBB",null,null,null,null,null,"2L120X18/15/",null,null,null,null,null,null,null,null,null,null,null,null,null,null,null,"2L40X20X3/12/",null,null,"2Шу(300)36У",null,null,"10_Tp_180x120x7,5",null,null,"10_Тп_180х120х7,5",null,null,null,null,null,null,null,null,null,"2L120X18/15/"]
[null,null,null,"WT20X124.5",null,null,"WT500X185.5",null,null,"HSS3.000X0.216",null,null,"HSS76.2X5.5",null,null,null,null,null,null,null,null,null,null,null,null,null,null,null,null,null,null,null,null,null,null,null,null,null,null,null,null,null,null,null,null,null,null,null,"GB-SPWSP711X6",null,null,"2L203X203X14X16",null,null,"2L203X203X14X16",null,null,null,null,null,"2L150X15/12/",null,null,null,null,null,null,null,null,null,null,null,null,null,null,null,"2L40X20X5/10/",null,null,"2Шу(500)6,5У",null,null,"10_Tp_200x40x4,5",null,null,"10_Тп_200х40х4,5",null,null,null,null,null,null,null,null,null,"2L150X15/12/"]
[null,null,null,"WT18X115.5",null,null,"WT460X171.9",null,null,"PIPE18STD",null,null,"PIPE450STD",null,null,null,null,null,null,null,null,null,null,null,null,null,null,null,null,null,null,null,null,null,null,null,null,null,null,null,null,null,null,null,null,null,null,null,"GB-SPWSP813X8",null,null,"2L203X203X25X20",null,null,"2L203X203X25X20",null,null,null,null,null,"2L180X15/25/",null,null,null,null,null,null,null,null,null,null,null,null,null,null,null,"2L40X25X5/20/",null,null,"2Шу(600)18У",null,null,"10_Tp_200x120x4,5",null,null,"10_Тп_200х120х4,5",null,null,null,null,null,null,null,null,null,"2L180X15/25/"]
[null,null,null,"WT16.5X131.5",null,null,"WT420X196",null,null,"PIPE1-1/4STD",null,null,"PIPE32STD",null,null,null,null,null,null,null,null,null,null,null,null,null,null,null,null,null,null,null,null,null,null,null,null,null,null,null,null,null,null,null,null,null,null,null,"GB-SPWSP820X14",null,null,"W1000X591",null,null,"W1000X591",null,null,null,null,null,"2L180X18/50/",null,null,null,null,null,null,null,null,null,null,null,null,null,null,null,"2L40X3/40/",null,null,"2Шу(700)12У",null,null,"10_Tp_200x160x5,5",null,null,"10_Тп_200х160х5,5",null,null,null,null,null,null,null,null,null,"2L180X18/50/"]
[null,null,null,"WT13.5X97",null,null,"WT345X144.5",null,null,"PIPE2XXS",null,null,"PIPE50XXS",null,null,null,null,null,null,null,null,null,null,null,null,null,null,null,null,null,null,null,null,null,null,null,null,null,null,null,null,null,null,null,null,null,null,null,"GB-SPWSP1120X11",null,null,"W920X381",null,null,"W920X381",null,null,null,null,null,"2L200X18/50/",null,null,null,null,null,null,null,null,null,null,null,null,null,null,null,"2L40X6/40/",null,null,"Дб(СТО)10Б1",null,null,"10_Tp_240x120x6,5",null,null,"10_Тп_240х120х6,5",null,null,null,null,null,null,null,null,null,"2L200X18/50/"]
[null,null,null,"WT13.5X57",null,null,"WT345X85",null,null,"WT20X327.5",null,null,"WT500X488",null,null,null,null,null,null,null,null,null,null,null,null,null,null,null,null,null,null,null,null,null,null,null,null,null,null,null,null,null,null,null,null,null,null,null,"GB-SPWSP1120X16",null,null,"W920X253",null,null,"W920X253",null,null,null,null,null,"2L200X20/12/",null,null,null,null,null,null,null,null,null,null,null,null,null,null,null,"2L40X60X5/10/",null,null,"Дб(СТО)16Б1",null,null,"10_Tp_240x120x9,0",null,null,"10_Тп_240х120х9,0",null,null,null,null,null,null,null,null,null,"2L200X20/12/"]
[null,null,null,"WT12X38",null,null,"WT305X56.5",null,null,"WT20X91.5",null,null,"WT500X136",null,null,null,null,null,null,null,null,null,null,null,null,null,null,null,null,null,null,null,null,null,null,null,null,null,null,null,null,null,null,null,null,null,null,null,"YB-STWSP42X2",null,null,"W760X389",null,null,"W760X389",null,null,null,null,null,"2L30X20X3/10/",null,null,null,null,null,null,null,null,null,null,null,null,null,null,null,"2L40X60X7/0/",null,null,"Дб(СТО)60Б2",null,null,"10_Tp_240x160x6,5",null,null,"10_Тп_240х160х6,5",null,null,null,null,null,null,null,null,null,"2L30X20X3/10/"]
[null,null,null,"WT9X96",null,null,"WT230X143",null,null,"WT18X67.5",null,null,"WT460X100.5",null,null,null,null,null,null,null,null,null,null,null,null,null,null,null,null,null,null,null,null,null,null,null,null,null,null,null,null,null,null,null,null,null,null,null,"YB-STWSP70X3",null,null,"W690X140",null,null,"W690X140",null,null,null,null,null,"2L30X20X5/30/",null,null,null,null,null,null,null,null,null,null,null,null,null,null,null,"2L40X80X6/25/",null,null,"Дш(СТО)80Ш2",null,null,"10_Tp_250x150x9,0",null,null,"10_Тп_250х150х9,0",null,null,null,null,null,null,null,null,null,"2L30X20X5/30/"]
[null,null,null,"WT8X22.5",null,null,"WT205X33.5",null,null,"WT15X66",null,null,"WT380X98",null,null,null,null,null,null,null,null,null,null,null,null,null,null,null,null,null,null,null,null,null,null,null,null,null,null,null,null,null,null,null,null,null,null,null,"YB-STWSP95X3.5",null,null,"W610X82",null,null,"W610X82",null,null,null,null,null,"2L35X20X5/50/",null,null,null,null,null,null,null,null,null,null,null,null,null,null,null,"2L40X80X8/40/",null,null,"Дсм(СТО)30М",null,null,"10_Tp_260x140x7,0",null,null,"10_Тп_260х140х7,0",null,null,null,null,null,null,null,null,null,"2L35X20X5/50/"]
[null,null,null,"WT7X88",null,null,"WT180X131",null,null,"WT13.5X47",null,null,"WT345X70",null,null,null,null,null,null,null,null,null,null,null,null,null,null,null,null,null,null,null,null,null,null,null,null,null,null,null,null,null,null,null,null,null,null,null,"YB-STWSP127X4",null,null,"W460X384",null,null,"W460X315",null,null,null,null,null,"2L40X20X4/40/",null,null,null,null,null,null,null,null,null,null,null,null,null,null,null,"2L45X30X4/30/",null,null,"Дк20К2",null,null,"10_Tp_260x240x11,0",null,null,"10_Тп_260х240х11,0",null,null,null,null,null,null,null,null,null,"2L40X20X4/40/"]
[null,null,null,"WT7X54.5",null,null,"WT180X81",null,null,"WT12X139.5",null,null,"WT305X207.5",null,null,null,null,null,null,null,null,null,null,null,null,null,null,null,null,null,null,null,null,null,null,null,null,null,null,null,null,null,null,null,null,null,null,null,"YB-STWSP133X4.5",null,null,"W460X235",null,null,"W460X193",null,null,null,null,null,"2L40X20X5/10/",null,null,null,null,null,null,null,null,null,null,null,null,null,null,null,"2L45X30X5/0/",null,null,"Дк26К3",null,null,"10_Tp_300x100x7,0",null,null,"10_Тп_300х100х7,0",null,null,null,null,null,null,null,null,null,"2L40X20X5/10/"]
[null,null,null,"WT6X29",null,null,"WT155X43",null,null,"WT10.5X34",null,null,"WT265X50.5",null,null,null,null,null,null,null,null,null,null,null,null,null,null,null,null,null,null,null,null,null,null,null,null,null,null,null,null,null,null,null,null,null,null,null,"TM100X150X6X9",null,null,"W360X818",null,null,"W360X592",null,null,null,null,null,"2L45X30X4/8/",null,null,null,null,null,null,null,null,null,null,null,null,null,null,null,"2L45X4.5/8/",null,null,"Ддб35ДБ1",null,null,"10_Tp_320x180x10,0",null,null,"10_Тп_320х180х10,0",null,null,null,null,null,null,null,null,null,"2L45X30X4/8/"]
[null,null,null,"WT5X38.5",null,null,"WT125X57.5",null,null,"WT9X71.5",null,null,"WT230X106.5",null,null,null,null,null,null,null,null,null,null,null,null,null,null,null,null,null,null,null,null,null,null,null,null,null,null,null,null,null,null,null,null,null,null,null,"TN62.5X60X6X8",null,null,"W360X216",null,null,"W360X147",null,null,null,null,null,"2L45X30X5/20/",null,null,null,null,null,null,null,null,null,null,null,null,null,null,null,"2L45X5/15/",null,null,"Дб18Б2",null,null,"10_Tp_350x150x11,0",null,null,"10_Тп_350х150х11,0",null,null,null,null,null,null,null,null,null,"2L45X30X5/20/"]
[null,null,null,"WT4X7.5",null,null,"WT100X11.25",null,null,"WT8X13",null,null,"WT205X19.4",null,null,null,null,null,null,null,null,null,null,null,null,null,null,null,null,null,null,null,null,null,null,null,null,null,null,null,null,null,null,null,null,null,null,null,"TN250X200X10X16",null,null,"W310X253",null,null,"W310X158",null,null,null,null,null,"2L60X30X5/40/",null,null,null,null,null,null,null,null,null,null,null,null,null,null,null,"2L50X100X10/30/",null,null,"Дб100Б1",null,null,"10_Tp_350x250x18,0",null,null,"10_Тп_350х250х18,0",null,null,null,null,null,null,null,null,null,"2L60X30X5/40/"]
[null,null,null,"MT4X3.25",null,null,"MT100X4.85",null,null,"WT7X72.5",null,null,"WT180X108",null,null,null,null,null,null,null,null,null,null,null,null,null,null,null,null,null,null,null,null,null,null,null,null,null,null,null,null,null,null,null,null,null,null,null,null,null,null,"W310X24",null,null,"W250X115",null,null,null,null,null,"2L60X40X5/30/",null,null,null,null,null,null,null,null,null,null,null,null,null,null,null,"2L50X100X7/25/",null,null,"Дш60Ш1",null,null,"10_Tp_380x220x7,5",null,null,"10_Тп_380х220х7,5",null,null,null,null,null,null,null,null,null,"2L60X40X5/30/"]
[null,null,null,"ST4X11.5",null,null,"ST100X17",null,null,"WT6X85",null,null,"WT155X126.5",null,null,null,null,null,null,null,null,null,null,null,null,null,null,null,null,null,null,null,null,null,null,null,null,null,null,null,null,null,null,null,null,null,null,null,null,null,null,"W200X52",null,null,"W200X22",null,null,null,null,null,"2L65X50X5/0/",null,null,null,null,null,null,null,null,null,null,null,null,null,null,null,"2L50X4/50/",null,null,"О60,0x3,2",null,null,"80_Tk_120x6",null,null,"80_Тк_120х6",null,null,null,null,null,null,null,null,null,"2L65X50X5/0/"]
[null,null,null,null,null,null,null,null,null,"WT6X20",null,null,"WT155X30",null,null,null,null,null,null,null,null,null,null,null,null,null,null,null,null,null,null,null,null,null,null,null,null,null,null,null,null,null,null,null,null,null,null,null,null,null,null,"W150X18",null,null,"S610X158",null,null,null,null,null,"2L65X50X6/10/",null,null,null,null,null,null,null,null,null,null,null,null,null,null,null,"2L50X6/0/",null,null,"О73,0x3,5",null,null,"80_Tk_180x8",null,null,"80_Тк_180х8",null,null,null,null,null,null,null,null,null,"2L65X50X6/10/"]
[null,null,null,null,null,null,null,null,null,"WT5X30",null,null,"WT125X44.5",null,null,null,null,null,null,null,null,null,null,null,null,null,null,null,null,null,null,null,null,null,null,null,null,null,null,null,null,null,null,null,null,null,null,null,null,null,null,"S510X112",null,null,"S310X60.7",null,null,null,null,null,"2L65X50X7/15/",null,null,null,null,null,null,null,null,null,null,null,null,null,null,null,"2L50X65X5/12/",null,null,"О83,0x3,5",null,null,"80_Tp_140x100x5",null,null,"80_Тп_140х100х5",null,null,null,null,null,null,null,null,null,"2L65X50X7/15/"]
[null,null,null,null,null,null,null,null,null,"WT4X5",null,null,"WT100X7.5",null,null,null,null,null,null,null,null,null,null,null,null,null,null,null,null,null,null,null,null,null,null,null,null,null,null,null,null,null,null,null,null,null,null,null,null,null,null,"M250X11.9",null,null,"M100X8.9",null,null,null,null,null,"2L75X50X5/30/",null,null,null,null,null,null,null,null,null,null,null,null,null,null,null,"2L50X65X7/25/",null,null,"О108,0x3,2",null,null,"80_Tp_200x160x7",null,null,"80_Тп_200х160х7",null,null,null,null,null,null,null,null,null,"2L75X50X5/30/"]
[null,null,null,null,null,null,null,null,null,"ST12X60.5",null,null,"ST305X90",null,null,null,null,null,null,null,null,null,null,null,null,null,null,null,null,null,null,null,null,null,null,null,null,null,null,null,null,null,null,null,null,null,null,null,null,null,null,"WWF1800X617",null,null,"WWF1600X431",null,null,null,null,null,"2L75X50X8/0/",null,null,null,null,null,null,null,null,null,null,null,null,null,null,null,"2L50X7/50/",null,null,"О133,0x3,5",null,null,"Tk_70x2",null,null,"Тк_70х2",null,null,null,null,null,null,null,null,null,"2L75X50X8/0/"]
[null,null,null,null,null,null,null,null,null,"ST2.5X5",null,null,"ST65X7.5",null,null,null,null,null,null,null,null,null,null,null,null,null,null,null,null,null,null,null,null,null,null,null,null,null,null,null,null,null,null,null,null,null,null,null,null,null,null,"WWF1100X273",null,null,"WWF1000X223",null,null,null,null,null,"2L80X40X6/6/",null,null,null,null,null,null,null,null,null,null,null,null,null,null,null,"2L50X75X6/6/",null,null,"О159,0x3,2",null,null,"Tk_90x3,5",null,null,"Тк_90х3,5",null,null,null,null,null,null,null,null,null,"2L80X40X6/6/"]
[null,null,null,null,null,null,null,null,null,"ST1.5X2.85",null,null,"ST37.5X4.25",null,null,null,null,null,null,null,null,null,null,null,null,null,null,null,null,null,null,null,null,null,null,null,null,null,null,null,null,null,null,null,null,null,null,null,null,null,null,"WWF1000X340",null,null,"WWF900X309",null,null,null,null,null,"2L80X40X6/15/",null,null,null,null,null,null,null,null,null,null,null,null,null,null,null,"2L50X75X7/12/",null,null,"О159,0x4,5",null,null,"Tk_90x5,5",null,null,"Тк_90х5,5",null,null,null,null,null,null,null,null,null,"2L80X40X6/15/"]
[null,null,null,null,null,null,null,null,null,null,null,null,null,null,null,null,null,null,null,null,null,null,null,null,null,null,null,null,null,null,null,null,null,null,null,null,null,null,null,null,null,null,null,null,null,null,null,null,null,null,null,"WWF700X175",null,null,"WWF600X793",null,null,null,null,null,"2L80X40X8/12/",null,null,null,null,null,null,null,null,null,null,null,null,null,null,null,"2L50X8/10/",null,null,"О177,8x4,0",null,null,"Tk_120x5",null,null,"Тк_120х5",null,null,null,null,null,null,null,null,null,"2L80X40X8/12/"]
[null,null,null,null,null,null,null,null,null,null,null,null,null,null,null,null,null,null,null,null,null,null,null,null,null,null,null,null,null,null,null,null,null,null,null,null,null,null,null,null,null,null,null,null,null,null,null,null,null,null,null,"WWF500X223",null,null,"WWF450X248",null,null,null,null,null,"2L80X60X7/25/",null,null,null,null,null,null,null,null,null,null,null,null,null,null,null,"2L55X4/20/",null,null,"О219,0x4,5",null,null,"Tk_160x4",null,null,"Тк_160х4",null,null,null,null,null,null,null,null,null,"2L80X60X7/25/"]
[null,null,null,null,null,null,null,null,null,null,null,null,null,null,null,null,null,null,null,null,null,null,null,null,null,null,null,null,null,null,null,null,null,null,null,null,null,null,null,null,null,null,null,null,null,null,null,null,null,null,null,"SLB75X4.5",null,null,"HS356X16",null,null,null,null,null,"2L100X50X6/20/",null,null,null,null,null,null,null,null,null,null,null,null,null,null,null,"2L55X8/15/",null,null,"О273,0x3,5",null,null,"Tk_200x5",null,null,"Тк_200х5",null,null,null,null,null,null,null,null,null,"2L100X50X6/20/"]
[null,null,null,null,null,null,null,null,null,null,null,null,null,null,null,null,null,null,null,null,null,null,null,null,null,null,null,null,null,null,null,null,null,null,null,null,null,null,null,null,null,null,null,null,null,null,null,null,null,null,null,"HS273X6.4",null,null,"HS178X13",null,null,null,null,null,"2L100X50X7/50/",null,null,null,null,null,null,null,null,null,null,null,null,null,null,null,"2L60X10/40/",null,null,"О273,0x16,0",null,null,"Tk_250x6",null,null,"Тк_250х6",null,null,null,null,null,null,null,null,null,"2L100X50X7/50/"]
[null,null,null,null,null,null,null,null,null,null,null,null,null,null,null,null,null,null,null,null,null,null,null,null,null,null,null,null,null,null,null,null,null,null,null,null,null,null,null,null,null,null,null,null,null,null,null,null,null,null,null,"HS141X4.8",null,null,"HS114X9.5",null,null,null,null,null,"2L100X65X7/8/",null,null,null,null,null,null,null,null,null,null,null,null,null,null,null,"2L60X120X8/8/",null,null,"О325,0x17,5",null,null,"Tk_300x12",null,null,"Тк_300х12",null,null,null,null,null,null,null,null,null,"2L100X65X7/8/"]
[null,null,null,null,null,null,null,null,null,null,null,null,null,null,null,null,null,null,null,null,null,null,null,null,null,null,null,null,null,null,null,null,null,null,null,null,null,null,null,null,null,null,null,null,null,null,null,null,null,null,null,"HS73X4.8",null,null,"HS60X3.2",null,null,null,null,null,"2L100X65X9/6/",null,null,null,null,null,null,null,null,null,null,null,null,null,null,null,"2L60X30X6/6/",null,null,"О355,6x17,5",null,null,"Tk_350x7,5",null,null,"Тк_350х7,5",null,null,null,null,null,null,null,null,null,"2L100X65X9/6/"]
[null,null,null,null,null,null,null,null,null,null,null,null,null,null,null,null,null,null,null,null,null,null,null,null,null,null,null,null,null,null,null,null,null,null,null,null,null,null,null,null,null,null,null,null,null,null,null,null,null,null,null,"HS60X6.4",null,null,"HA406X6.4",null,null,null,null,null,"2L100X65X9/20/",null,null,null,null,null,null,null,null,null,null,null,null,null,null,null,"2L60X4/15/",null,null,"О355,6x22,0",null,null,"Tk_350x10",null,null,"Тк_350х10",null,null,null,null,null,null,null,null,null,"2L100X65X9/20/"]
[null,null,null,null,null,null,null,null,null,null,null,null,null,null,null,null,null,null,null,null,null,null,null,null,null,null,null,null,null,null,null,null,null,null,null,null,null,null,null,null,null,null,null,null,null,null,null,null,null,null,null,"HA152X9.5",null,null,"HA141X4.8",null,null,null,null,null,"2L100X75X8/25/",null,null,null,null,null,null,null,null,null,null,null,null,null,null,null,"2L60X40X7/20/",null,null,"О406,4x14,0",null,null,"Tk_400x13,5",null,null,"Тк_400х13,5",null,null,null,null,null,null,null,null,null,"2L100X75X8/25/"]
[null,null,null,null,null,null,null,null,null,null,null,null,null,null,null,null,null,null,null,null,null,null,null,null,null,null,null,null,null,null,null,null,null,null,null,null,null,null,null,null,null,null,null,null,null,null,null,null,null,null,null,"HA127X3.2",null,null,"HA102X3.2",null,null,null,null,null,"2L100X75X10/40/",null,null,null,null,null,null,null,null,null,null,null,null,null,null,null,"2L60X5/30/",null,null,"О426,0x6,0",null,null,"Tk_400x21",null,null,"Тк_400х21",null,null,null,null,null,null,null,null,null,"2L100X75X10/40/"]
[null,null,null,null,null,null,null,null,null,null,null,null,null,null,null,null,null,null,null,null,null,null,null,null,null,null,null,null,null,null,null,null,null,null,null,null,null,null,null,null,null,null,null,null,null,null,null,null,null,null,null,"WT460X223",null,null,"WT460X135.5",null,null,null,null,null,"2L110X75X10/6/",null,null,null,null,null,null,null,null,null,null,null,null,null,null,null,"2L60X8/6/",null,null,"О530,0x12,0",null,null,"Tk_450x18,5",null,null,"Тк_450х18,5",null,null,null,null,null,null,null,null,null,"2L110X75X10/6/"]
[null,null,null,null,null,null,null,null,null,null,null,null,null,null,null,null,null,null,null,null,null,null,null,null,null,null,null,null,null,null,null,null,null,null,null,null,null,null,null,null,null,null,null,null,null,null,null,null,null,null,null,"WT380X80.5",null,null,"WT345X70",null,null,null,null,null,"2L120X60X10/12/",null,null,null,null,null,null,null,null,null,null,null,null,null,null,null,"2L60X80X7/10/",null,null,"О630,0x19,0",null,null,"Tk_500x18",null,null,"Тк_500х18",null,null,null,null,null,null,null,null,null,"2L120X60X10/12/"]
[null,null,null,null,null,null,null,null,null,null,null,null,null,null,null,null,null,null,null,null,null,null,null,null,null,null,null,null,null,null,null,null,null,null,null,null,null,null,null,null,null,null,null,null,null,null,null,null,null,null,null,"WT345X132.5",null,null,"WT305X120.5",null,null,null,null,null,"2L120X60X10/20/",null,null,null,null,null,null,null,null,null,null,null,null,null,null,null,"2L60X80X7/15/",null,null,"О630,0x21,0",null,null,"Tk_500x19",null,null,"Тк_500х19",null,null,null,null,null,null,null,null,null,"2L120X60X10/20/"]
[null,null,null,null,null,null,null,null,null,null,null,null,null,null,null,null,null,null,null,null,null,null,null,null,null,null,null,null,null,null,null,null,null,null,null,null,null,null,null,null,null,null,null,null,null,null,null,null,null,null,null,"WT265X54.5",null,null,"WT230X79",null,null,null,null,null,"2L120X80X10/40/",null,null,null,null,null,null,null,null,null,null,null,null,null,null,null,"2L65X100X10/30/",null,null,"Тш20ШТ2",null,null,"Tp_60x30x3,5",null,null,"Тп_60х30х3,5",null,null,null,null,null,null,null,null,null,"2L120X80X10/40/"]
[null,null,null,null,null,null,null,null,null,null,null,null,null,null,null,null,null,null,null,null,null,null,null,null,null,null,null,null,null,null,null,null,null,null,null,null,null,null,null,null,null,null,null,null,null,null,null,null,null,null,null,"WT205X66",null,null,"WT205X23",null,null,null,null,null,"2L120X80X14/30/",null,null,null,null,null,null,null,null,null,null,null,null,null,null,null,"2L65X100X7/25/",null,null,null,null,null,"Tp_70x50x5",null,null,"Тп_70х50х5",null,null,null,null,null,null,null,null,null,"2L120X80X14/30/"]
[null,null,null,null,null,null,null,null,null,null,null,null,null,null,null,null,null,null,null,null,null,null,null,null,null,null,null,null,null,null,null,null,null,null,null,null,null,null,null,null,null,null,null,null,null,null,null,null,null,null,null,"WT180X143.5",null,null,"WT180X67",null,null,null,null,null,"2L130X65X12/0/",null,null,null,null,null,null,null,null,null,null,null,null,null,null,null,"2L65X100X9/50/",null,null,null,null,null,"Tp_80x70x4",null,null,"Тп_80х70х4",null,null,null,null,null,null,null,null,null,"2L130X65X12/0/"]
[null,null,null,null,null,null,null,null,null,null,null,null,null,null,null,null,null,null,null,null,null,null,null,null,null,null,null,null,null,null,null,null,null,null,null,null,null,null,null,null,null,null,null,null,null,null,null,null,null,null,null,"WT180X50.5",null,null,"WT180X19.5",null,null,null,null,null,"2L150X100X10/0/",null,null,null,null,null,null,null,null,null,null,null,null,null,null,null,"2L65X130X10/50/",null,null,null,null,null,"Tp_90x50x5",null,null,"Тп_90х50х5",null,null,null,null,null,null,null,null,null,"2L150X100X10/0/"]
[null,null,null,null,null,null,null,null,null,null,null,null,null,null,null,null,null,null,null,null,null,null,null,null,null,null,null,null,null,null,null,null,null,null,null,null,null,null,null,null,null,null,null,null,null,null,null,null,null,null,null,"WT155X14",null,null,"WT125X44.5",null,null,null,null,null,"2L20X30X3/10/",null,null,null,null,null,null,null,null,null,null,null,null,null,null,null,"2L65X50X5/0/",null,null,null,null,null,"Tp_100x60x5,5",null,null,"Тп_100х60х5,5",null,null,null,null,null,null,null,null,null,"2L20X30X3/10/"]
[null,null,null,null,null,null,null,null,null,null,null,null,null,null,null,null,null,null,null,null,null,null,null,null,null,null,null,null,null,null,null,null,null,null,null,null,null,null,null,null,null,null,null,null,null,null,null,null,null,null,null,"WT125X65.5",null,null,"WT125X24.5",null,null,null,null,null,"2L20X30X3/30/",null,null,null,null,null,null,null,null,null,null,null,null,null,null,null,"2L65X50X5/25/",null,null,null,null,null,"Tp_120x40x3,5",null,null,"Тп_120х40х3,5",null,null,null,null,null,null,null,null,null,"2L20X30X3/30/"]
[null,null,null,null,null,null,null,null,null,null,null,null,null,null,null,null,null,null,null,null,null,null,null,null,null,null,null,null,null,null,null,null,null,null,null,null,null,null,null,null,null,null,null,null,null,null,null,null,null,null,null,"WT100X23",null,null,"WT75X18.5",null,null,null,null,null,"2L20X30X5/25/",null,null,null,null,null,null,null,null,null,null,null,null,null,null,null,"2L65X50X7/20/",null,null,null,null,null,"Tp_120x80x5",null,null,"Тп_120х80х5",null,null,null,null,null,null,null,null,null,"2L20X30X5/25/"]
[null,null,null,null,null,null,null,null,null,null,null,null,null,null,null,null,null,null,null,null,null,null,null,null,null,null,null,null,null,null,null,null,null,null,null,null,null,null,null,null,null,null,null,null,null,null,null,null,null,null,null,"WWT250X190.5",null,null,"WWT225X204.5",null,null,null,null,null,"2L20X35X5/50/",null,null,null,null,null,null,null,null,null,null,null,null,null,null,null,"2L65X6/40/",null,null,null,null,null,"Tp_140x110x6",null,null,"Тп_140х110х6",null,null,null,null,null,null,null,null,null,"2L20X35X5/50/"]
[null,null,null,null,null,null,null,null,null,null,null,null,null,null,null,null,null,null,null,null,null,null,null,null,null,null,null,null,null,null,null,null,null,null,null,null,null,null,null,null,null,null,null,null,null,null,null,null,null,null,null,"WWT225X114",null,null,"WWT200X110",null,null,null,null,null,"2L20X40X4/6/",null,null,null,null,null,null,null,null,null,null,null,null,null,null,null,"2L65X7/6/",null,null,null,null,null,"Tp_150x50x3,5",null,null,"Тп_150х50х3,5",null,null,null,null,null,null,null,null,null,"2L20X40X4/6/"]
[null,null,null,null,null,null,null,null,null,null,null,null,null,null,null,null,null,null,null,null,null,null,null,null,null,null,null,null,null,null,null,null,null,null,null,null,null,null,null,null,null,null,null,null,null,null,null,null,null,null,null,null,null,null,null,null,null,null,null,null,"2L25X40X5/8/",null,null,null,null,null,null,null,null,null,null,null,null,null,null,null,"2L70X6/8/",null,null,null,null,null,"Tp_160x80x4,5",null,null,"Тп_160х80х4,5",null,null,null,null,null,null,null,null,null,"2L25X40X5/8/"]
[null,null,null,null,null,null,null,null,null,null,null,null,null,null,null,null,null,null,null,null,null,null,null,null,null,null,null,null,null,null,null,null,null,null,null,null,null,null,null,null,null,null,null,null,null,null,null,null,null,null,null,null,null,null,null,null,null,null,null,null,"2L30X45X5/15/",null,null,null,null,null,null,null,null,null,null,null,null,null,null,null,"2L75X100X10/12/",null,null,null,null,null,"Tp_160x140x4,5",null,null,"Тп_160х140х4,5",null,null,null,null,null,null,null,null,null,"2L30X45X5/15/"]
[null,null,null,null,null,null,null,null,null,null,null,null,null,null,null,null,null,null,null,null,null,null,null,null,null,null,null,null,null,null,null,null,null,null,null,null,null,null,null,null,null,null,null,null,null,null,null,null,null,null,null,null,null,null,null,null,null,null,null,null,"2L30X45X5/50/",null,null,null,null,null,null,null,null,null,null,null,null,null,null,null,"2L75X100X10/40/",null,null,null,null,null,"Tp_160x140x7",null,null,"Тп_160х140х7",null,null,null,null,null,null,null,null,null,"2L30X45X5/50/"]
[null,null,null,null,null,null,null,null,null,null,null,null,null,null,null,null,null,null,null,null,null,null,null,null,null,null,null,null,null,null,null,null,null,null,null,null,null,null,null,null,null,null,null,null,null,null,null,null,null,null,null,null,null,null,null,null,null,null,null,null,"2L30X60X5/50/",null,null,null,null,null,null,null,null,null,null,null,null,null,null,null,"2L75X100X8/40/",null,null,null,null,null,"Tp_180x100x4,5",null,null,"Тп_180х100х4,5",null,null,null,null,null,null,null,null,null,"2L30X60X5/50/"]
[null,null,null,null,null,null,null,null,null,null,null,null,null,null,null,null,null,null,null,null,null,null,null,null,null,null,null,null,null,null,null,null,null,null,null,null,null,null,null,null,null,null,null,null,null,null,null,null,null,null,null,null,null,null,null,null,null,null,null,null,"2L40X60X6/8/",null,null,null,null,null,null,null,null,null,null,null,null,null,null,null,"2L75X110X8/8/",null,null,null,null,null,"Tp_180x140x8",null,null,"Тп_180х140х8",null,null,null,null,null,null,null,null,null,"2L40X60X6/8/"]
[null,null,null,null,null,null,null,null,null,null,null,null,null,null,null,null,null,null,null,null,null,null,null,null,null,null,null,null,null,null,null,null,null,null,null,null,null,null,null,null,null,null,null,null,null,null,null,null,null,null,null,null,null,null,null,null,null,null,null,null,"2L50X65X5/6/",null,null,null,null,null,null,null,null,null,null,null,null,null,null,null,"2L75X50X5/6/",null,null,null,null,null,"Tp_200x100x6",null,null,"Тп_200х100х6",null,null,null,null,null,null,null,null,null,"2L50X65X5/6/"]
[null,null,null,null,null,null,null,null,null,null,null,null,null,null,null,null,null,null,null,null,null,null,null,null,null,null,null,null,null,null,null,null,null,null,null,null,null,null,null,null,null,null,null,null,null,null,null,null,null,null,null,null,null,null,null,null,null,null,null,null,"2L50X65X7/12/",null,null,null,null,null,null,null,null,null,null,null,null,null,null,null,"2L75X50X8/10/",null,null,null,null,null,"Tp_200x160x8",null,null,"Тп_200х160х8",null,null,null,null,null,null,null,null,null,"2L50X65X7/12/"]
[null,null,null,null,null,null,null,null,null,null,null,null,null,null,null,null,null,null,null,null,null,null,null,null,null,null,null,null,null,null,null,null,null,null,null,null,null,null,null,null,null,null,null,null,null,null,null,null,null,null,null,null,null,null,null,null,null,null,null,null,"2L50X65X8/12/",null,null,null,null,null,null,null,null,null,null,null,null,null,null,null,"2L75X6/10/",null,null,null,null,null,"Tp_200x160x13,5",null,null,"Тп_200х160х13,5",null,null,null,null,null,null,null,null,null,"2L50X65X8/12/"]
[null,null,null,null,null,null,null,null,null,null,null,null,null,null,null,null,null,null,null,null,null,null,null,null,null,null,null,null,null,null,null,null,null,null,null,null,null,null,null,null,null,null,null,null,null,null,null,null,null,null,null,null,null,null,null,null,null,null,null,null,"2L50X75X5/40/",null,null,null,null,null,null,null,null,null,null,null,null,null,null,null,"2L75X7/30/",null,null,null,null,null,"Tp_220x140x5,5",null,null,"Тп_220х140х5,5",null,null,null,null,null,null,null,null,null,"2L50X75X5/40/"]
[null,null,null,null,null,null,null,null,null,null,null,null,null,null,null,null,null,null,null,null,null,null,null,null,null,null,null,null,null,null,null,null,null,null,null,null,null,null,null,null,null,null,null,null,null,null,null,null,null,null,null,null,null,null,null,null,null,null,null,null,"2L50X75X8/6/",null,null,null,null,null,null,null,null,null,null,null,null,null,null,null,"2L80X12/6/",null,null,null,null,null,"Tp_240x120x10",null,null,"Тп_240х120х10",null,null,null,null,null,null,null,null,null,"2L50X75X8/6/"]
[null,null,null,null,null,null,null,null,null,null,null,null,null,null,null,null,null,null,null,null,null,null,null,null,null,null,null,null,null,null,null,null,null,null,null,null,null,null,null,null,null,null,null,null,null,null,null,null,null,null,null,null,null,null,null,null,null,null,null,null,"2L40X80X6/12/",null,null,null,null,null,null,null,null,null,null,null,null,null,null,null,"2L80X120X14/10/",null,null,null,null,null,"Tp_240x160x7,5",null,null,"Тп_240х160х7,5",null,null,null,null,null,null,null,null,null,"2L40X80X6/12/"]
[null,null,null,null,null,null,null,null,null,null,null,null,null,null,null,null,null,null,null,null,null,null,null,null,null,null,null,null,null,null,null,null,null,null,null,null,null,null,null,null,null,null,null,null,null,null,null,null,null,null,null,null,null,null,null,null,null,null,null,null,"2L40X80X8/8/",null,null,null,null,null,null,null,null,null,null,null,null,null,null,null,"2L80X120X8/8/",null,null,null,null,null,"Tp_250x150x6,5",null,null,"Тп_250х150х6,5",null,null,null,null,null,null,null,null,null,"2L40X80X8/8/"]
[null,null,null,null,null,null,null,null,null,null,null,null,null,null,null,null,null,null,null,null,null,null,null,null,null,null,null,null,null,null,null,null,null,null,null,null,null,null,null,null,null,null,null,null,null,null,null,null,null,null,null,null,null,null,null,null,null,null,null,null,"2L60X80X7/25/",null,null,null,null,null,null,null,null,null,null,null,null,null,null,null,"2L80X40X7/20/",null,null,null,null,null,"Tp_260x140x6",null,null,"Тп_260х140х6",null,null,null,null,null,null,null,null,null,"2L60X80X7/25/"]
[null,null,null,null,null,null,null,null,null,null,null,null,null,null,null,null,null,null,null,null,null,null,null,null,null,null,null,null,null,null,null,null,null,null,null,null,null,null,null,null,null,null,null,null,null,null,null,null,null,null,null,null,null,null,null,null,null,null,null,null,"2L60X80X10/20/",null,null,null,null,null,null,null,null,null,null,null,null,null,null,null,"2L80X6/15/",null,null,null,null,null,"Tp_260x240x10",null,null,"Тп_260х240х10",null,null,null,null,null,null,null,null,null,{"$f":"IF(OFFSET($A2819,0,($CQ$2-1)*3)=0,\"\",OFFSET($A2819,0,($CQ$2-1)*3))","v":"2L60X80X10/20/"}]
[null,null,null,null,null,null,null,null,null,null,null,null,null,null,null,null,null,null,null,null,null,null,null,null,null,null,null,null,null,null,null,null,null,null,null,null,null,null,null,null,null,null,null,null,null,null,null,null,null,null,null,null,null,null,null,null,null,null,null,null,"2L50X100X6/0/",null,null,null,null,null,null,null,null,null,null,null,null,null,null,null,"2L80X6/50/",null,null,null,null,null,"Tp_300x100x6",null,null,"Тп_300х100х6",null,null,null,null,null,null,null,null,null,"2L50X100X6/0/"]
[null,null,null,null,null,null,null,null,null,null,null,null,null,null,null,null,null,null,null,null,null,null,null,null,null,null,null,null,null,null,null,null,null,null,null,null,null,null,null,null,null,null,null,null,null,null,null,null,null,null,null,null,null,null,null,null,null,null,null,null,"2L50X100X8/10/",null,null,null,null,null,null,null,null,null,null,null,null,null,null,null,"2L80X60X7/0/",null,null,null,null,null,"Tp_300x200x12",null,null,"Тп_300х200х12",null,null,null,null,null,null,null,null,null,"2L50X100X8/10/"]
[null,null,null,null,null,null,null,null,null,null,null,null,null,null,null,null,null,null,null,null,null,null,null,null,null,null,null,null,null,null,null,null,null,null,null,null,null,null,null,null,null,null,null,null,null,null,null,null,null,null,null,null,null,null,null,null,null,null,null,null,"2L65X100X7/10/",null,null,null,null,null,null,null,null,null,null,null,null,null,null,null,"2L80X7/0/",null,null,null,null,null,"Tp_350x250x18,5",null,null,"Тп_350х250х18,5",null,null,null,null,null,null,null,null,null,"2L65X100X7/10/"]
[null,null,null,null,null,null,null,null,null,null,null,null,null,null,null,null,null,null,null,null,null,null,null,null,null,null,null,null,null,null,null,null,null,null,null,null,null,null,null,null,null,null,null,null,null,null,null,null,null,null,null,null,null,null,null,null,null,null,null,null,"2L65X100X9/20/",null,null,null,null,null,null,null,null,null,null,null,null,null,null,null,"2L90X10/15/",null,null,null,null,null,"Tp_400x200x11",null,null,"Тп_400х200х11",null,null,null,null,null,null,null,null,null,"2L65X100X9/20/"]
[null,null,null,null,null,null,null,null,null,null,null,null,null,null,null,null,null,null,null,null,null,null,null,null,null,null,null,null,null,null,null,null,null,null,null,null,null,null,null,null,null,null,null,null,null,null,null,null,null,null,null,null,null,null,null,null,null,null,null,null,"2L65X100X11/15/",null,null,null,null,null,null,null,null,null,null,null,null,null,null,null,"2L90X6/12/",null,null,null,null,null,"Tp_400x300x11",null,null,"Тп_400х300х11",null,null,null,null,null,null,null,null,null,"2L65X100X11/15/"]
[null,null,null,null,null,null,null,null,null,null,null,null,null,null,null,null,null,null,null,null,null,null,null,null,null,null,null,null,null,null,null,null,null,null,null,null,null,null,null,null,null,null,null,null,null,null,null,null,null,null,null,null,null,null,null,null,null,null,null,null,"2L65X100X11/50/",null,null,null,null,null,null,null,null,null,null,null,null,null,null,null,"2L90X6/40/",null,null,null,null,null,"Tp_400x300x13,5",null,null,"Тп_400х300х13,5",null,null,null,null,null,null,null,null,null,"2L65X100X11/50/"]
[null,null,null,null,null,null,null,null,null,null,null,null,null,null,null,null,null,null,null,null,null,null,null,null,null,null,null,null,null,null,null,null,null,null,null,null,null,null,null,null,null,null,null,null,null,null,null,null,null,null,null,null,null,null,null,null,null,null,null,null,"2L75X100X12/30/",null,null,null,null,null,null,null,null,null,null,null,null,null,null,null,"2L90X9/25/",null,null,null,null,null,"Tp_400x350x15",null,null,"Тп_400х350х15",null,null,null,null,null,null,null,null,null,"2L75X100X12/30/"]
[null,null,null,null,null,null,null,null,null,null,null,null,null,null,null,null,null,null,null,null,null,null,null,null,null,null,null,null,null,null,null,null,null,null,null,null,null,null,null,null,null,null,null,null,null,null,null,null,null,null,null,null,null,null,null,null,null,null,null,null,"2L75X110X10/8/",null,null,null,null,null,null,null,null,null,null,null,null,null,null,null,"2U30X15/30/",null,null,null,null,null,"90_Shv_20V-1",null,null,"90_Шв_20В-1",null,null,null,null,null,null,null,null,null,"2L75X110X10/8/"]
[null,null,null,null,null,null,null,null,null,null,null,null,null,null,null,null,null,null,null,null,null,null,null,null,null,null,null,null,null,null,null,null,null,null,null,null,null,null,null,null,null,null,null,null,null,null,null,null,null,null,null,null,null,null,null,null,null,null,null,null,"2L60X120X10/15/",null,null,null,null,null,null,null,null,null,null,null,null,null,null,null,"2U30X33/50/",null,null,null,null,null,"Shu_6,5U",null,null,"Шу_6,5У",null,null,null,null,null,null,null,null,null,"2L60X120X10/15/"]
[null,null,null,null,null,null,null,null,null,null,null,null,null,null,null,null,null,null,null,null,null,null,null,null,null,null,null,null,null,null,null,null,null,null,null,null,null,null,null,null,null,null,null,null,null,null,null,null,null,null,null,null,null,null,null,null,null,null,null,null,"2L80X120X10/30/",null,null,null,null,null,null,null,null,null,null,null,null,null,null,null,"2U40X20/700/",null,null,null,null,null,"She_20E",null,null,"ШЭ_20Э",null,null,null,null,null,null,null,null,null,"2L80X120X10/30/"]
[null,null,null,null,null,null,null,null,null,null,null,null,null,null,null,null,null,null,null,null,null,null,null,null,null,null,null,null,null,null,null,null,null,null,null,null,null,null,null,null,null,null,null,null,null,null,null,null,null,null,null,null,null,null,null,null,null,null,null,null,"2L80X120X14/20/",null,null,null,null,null,null,null,null,null,null,null,null,null,null,null,"2U40X35/600/",null,null,null,null,null,"Shs_26S",null,null,"Шс_26С",null,null,null,null,null,null,null,null,null,"2L80X120X14/20/"]
[null,null,null,null,null,null,null,null,null,null,null,null,null,null,null,null,null,null,null,null,null,null,null,null,null,null,null,null,null,null,null,null,null,null,null,null,null,null,null,null,null,null,null,null,null,null,null,null,null,null,null,null,null,null,null,null,null,null,null,null,"2L65X130X8/8/",null,null,null,null,null,null,null,null,null,null,null,null,null,null,null,"2U50X25/12/",null,null,null,null,null,"Shl_16L",null,null,"Шл_16Л",null,null,null,null,null,null,null,null,null,"2L65X130X8/8/"]
[null,null,null,null,null,null,null,null,null,null,null,null,null,null,null,null,null,null,null,null,null,null,null,null,null,null,null,null,null,null,null,null,null,null,null,null,null,null,null,null,null,null,null,null,null,null,null,null,null,null,null,null,null,null,null,null,null,null,null,null,"2L65X130X12/6/",null,null,null,null,null,null,null,null,null,null,null,null,null,null,null,"2U50X38/12/",null,null,null,null,null,"2L(6)_63х5",null,null,"2L(6)_63х5",null,null,null,null,null,null,null,null,null,"2L65X130X12/6/"]
[null,null,null,null,null,null,null,null,null,null,null,null,null,null,null,null,null,null,null,null,null,null,null,null,null,null,null,null,null,null,null,null,null,null,null,null,null,null,null,null,null,null,null,null,null,null,null,null,null,null,null,null,null,null,null,null,null,null,null,null,"2L100X150X12/12/",null,null,null,null,null,null,null,null,null,null,null,null,null,null,null,"2U60X30/200/",null,null,null,null,null,"2L(10)_75х6",null,null,"2L(10)_75х6",null,null,null,null,null,null,null,null,null,"2L100X150X12/12/"]
[null,null,null,null,null,null,null,null,null,null,null,null,null,null,null,null,null,null,null,null,null,null,null,null,null,null,null,null,null,null,null,null,null,null,null,null,null,null,null,null,null,null,null,null,null,null,null,null,null,null,null,null,null,null,null,null,null,null,null,null,"2U25X12*/25/",null,null,null,null,null,null,null,null,null,null,null,null,null,null,null,"2U65X42/300/",null,null,null,null,null,"2L(12)_140х9",null,null,"2L(12)_140х9",null,null,null,null,null,null,null,null,null,"2U25X12*/25/"]
[null,null,null,null,null,null,null,null,null,null,null,null,null,null,null,null,null,null,null,null,null,null,null,null,null,null,null,null,null,null,null,null,null,null,null,null,null,null,null,null,null,null,null,null,null,null,null,null,null,null,null,null,null,null,null,null,null,null,null,null,"2U30X15/30/",null,null,null,null,null,null,null,null,null,null,null,null,null,null,null,"2UPN100/40/",null,null,null,null,null,"2L(14)_200х14",null,null,"2L(14)_200х14",null,null,null,null,null,null,null,null,null,{"$f":"IF(OFFSET($A3139,0,($CQ$2-1)*3)=0,\"\",OFFSET($A3139,0,($CQ$2-1)*3))","v":"2U30X15/30/"}]
[null,null,null,null,null,null,null,null,null,null,null,null,null,null,null,null,null,null,null,null,null,null,null,null,null,null,null,null,null,null,null,null,null,null,null,null,null,null,null,null,null,null,null,null,null,null,null,null,null,null,null,null,null,null,null,null,null,null,null,null,"2U30X15/200/",null,null,null,null,null,null,null,null,null,null,null,null,null,null,null,"2UPN100/600/",null,null,null,null,null,"2L(16)_125х8",null,null,"2L(16)_125х8",null,null,null,null,null,null,null,null,null,"2U30X15/200/"]
[null,null,null,null,null,null,null,null,null,null,null,null,null,null,null,null,null,null,null,null,null,null,null,null,null,null,null,null,null,null,null,null,null,null,null,null,null,null,null,null,null,null,null,null,null,null,null,null,null,null,null,null,null,null,null,null,null,null,null,null,"2U30X15*/200/",null,null,null,null,null,null,null,null,null,null,null,null,null,null,null,"2UPN120/600/",null,null,null,null,null,"2L(20)_200х14",null,null,"2L(20)_200х14",null,null,null,null,null,null,null,null,null,"2U30X15*/200/"]
[null,null,null,null,null,null,null,null,null,null,null,null,null,null,null,null,null,null,null,null,null,null,null,null,null,null,null,null,null,null,null,null,null,null,null,null,null,null,null,null,null,null,null,null,null,null,null,null,null,null,null,null,null,null,null,null,null,null,null,null,"2U30X33/500/",null,null,null,null,null,null,null,null,null,null,null,null,null,null,null,"2UPN160/0/",null,null,null,null,null,"2Ln(6)_50х32х4",null,null,"2Lн(6)_50х32х4",null,null,null,null,null,null,null,null,null,"2U30X33/500/"]
[null,null,null,null,null,null,null,null,null,null,null,null,null,null,null,null,null,null,null,null,null,null,null,null,null,null,null,null,null,null,null,null,null,null,null,null,null,null,null,null,null,null,null,null,null,null,null,null,null,null,null,null,null,null,null,null,null,null,null,null,"2U40X20/20/",null,null,null,null,null,null,null,null,null,null,null,null,null,null,null,"2UPN180/30/",null,null,null,null,null,"2Shp(4)_20P",null,null,"2Шп(4)_20П",null,null,null,null,null,null,null,null,null,"2U40X20/20/"]
[null,null,null,null,null,null,null,null,null,null,null,null,null,null,null,null,null,null,null,null,null,null,null,null,null,null,null,null,null,null,null,null,null,null,null,null,null,null,null,null,null,null,null,null,null,null,null,null,null,null,null,null,null,null,null,null,null,null,null,null,"2U40X20*/6/",null,null,null,null,null,null,null,null,null,null,null,null,null,null,null,"2UPN200/150/",null,null,null,null,null,"2Shp(6)_18P",null,null,"2Шп(6)_18П",null,null,null,null,null,null,null,null,null,"2U40X20*/6/"]
[null,null,null,null,null,null,null,null,null,null,null,null,null,null,null,null,null,null,null,null,null,null,null,null,null,null,null,null,null,null,null,null,null,null,null,null,null,null,null,null,null,null,null,null,null,null,null,null,null,null,null,null,null,null,null,null,null,null,null,null,"2U40X35/15/",null,null,null,null,null,null,null,null,null,null,null,null,null,null,null,"2UPN220/250/",null,null,null,null,null,"2Shp(8)_33P",null,null,"2Шп(8)_33П",null,null,null,null,null,null,null,null,null,"2U40X35/15/"]
[null,null,null,null,null,null,null,null,null,null,null,null,null,null,null,null,null,null,null,null,null,null,null,null,null,null,null,null,null,null,null,null,null,null,null,null,null,null,null,null,null,null,null,null,null,null,null,null,null,null,null,null,null,null,null,null,null,null,null,null,"2U40X35/50/",null,null,null,null,null,null,null,null,null,null,null,null,null,null,null,"2UPN220/50/",null,null,null,null,null,"2Shp(10)_8P",null,null,"2Шп(10)_8П",null,null,null,null,null,null,null,null,null,{"$f":"IF(OFFSET($A3267,0,($CQ$2-1)*3)=0,\"\",OFFSET($A3267,0,($CQ$2-1)*3))","v":"2U40X35/50/"}]
[null,null,null,null,null,null,null,null,null,null,null,null,null,null,null,null,null,null,null,null,null,null,null,null,null,null,null,null,null,null,null,null,null,null,null,null,null,null,null,null,null,null,null,null,null,null,null,null,null,null,null,null,null,null,null,null,null,null,null,null,"2U50X25/30/",null,null,null,null,null,null,null,null,null,null,null,null,null,null,null,"2UPN240/40/",null,null,null,null,null,"2Shp(12)_10P",null,null,"2Шп(12)_10П",null,null,null,null,null,null,null,null,null,"2U50X25/30/"]
[null,null,null,null,null,null,null,null,null,null,null,null,null,null,null,null,null,null,null,null,null,null,null,null,null,null,null,null,null,null,null,null,null,null,null,null,null,null,null,null,null,null,null,null,null,null,null,null,null,null,null,null,null,null,null,null,null,null,null,null,"2U50X25*/300/",null,null,null,null,null,null,null,null,null,null,null,null,null,null,null,"2UPN260/8/",null,null,null,null,null,"2Shp(16)_27P",null,null,"2Шп(16)_27П",null,null,null,null,null,null,null,null,null,"2U50X25*/300/"]
[null,null,null,null,null,null,null,null,null,null,null,null,null,null,null,null,null,null,null,null,null,null,null,null,null,null,null,null,null,null,null,null,null,null,null,null,null,null,null,null,null,null,null,null,null,null,null,null,null,null,null,null,null,null,null,null,null,null,null,null,"2U50X38/300/",null,null,null,null,null,null,null,null,null,null,null,null,null,null,null,"2UPN280/8/",null,null,null,null,null,"2Shp(20)_36P",null,null,"2Шп(20)_36П",null,null,null,null,null,null,null,null,null,"2U50X38/300/"]
[null,null,null,null,null,null,null,null,null,null,null,null,null,null,null,null,null,null,null,null,null,null,null,null,null,null,null,null,null,null,null,null,null,null,null,null,null,null,null,null,null,null,null,null,null,null,null,null,null,null,null,null,null,null,null,null,null,null,null,null,"2U60X30/700/",null,null,null,null,null,null,null,null,null,null,null,null,null,null,null,"2UPN80/100/",null,null,null,null,null,"2Shp(30)_14P",null,null,"2Шп(30)_14П",null,null,null,null,null,null,null,null,null,"2U60X30/700/"]
[null,null,null,null,null,null,null,null,null,null,null,null,null,null,null,null,null,null,null,null,null,null,null,null,null,null,null,null,null,null,null,null,null,null,null,null,null,null,null,null,null,null,null,null,null,null,null,null,null,null,null,null,null,null,null,null,null,null,null,null,"2U65X42/8/",null,null,null,null,null,null,null,null,null,null,null,null,null,null,null,"IPE330",null,null,null,null,null,"2Shp(40)_24P",null,null,"2Шп(40)_24П",null,null,null,null,null,null,null,null,null,"2U65X42/8/"]
[null,null,null,null,null,null,null,null,null,null,null,null,null,null,null,null,null,null,null,null,null,null,null,null,null,null,null,null,null,null,null,null,null,null,null,null,null,null,null,null,null,null,null,null,null,null,null,null,null,null,null,null,null,null,null,null,null,null,null,null,"2U65X42/10/",null,null,null,null,null,null,null,null,null,null,null,null,null,null,null,"IPE300",null,null,null,null,null,"2Shp(40)_27P",null,null,"2Шп(40)_27П",null,null,null,null,null,null,null,null,null,"2U65X42/10/"]
[null,null,null,null,null,null,null,null,null,null,null,null,null,null,null,null,null,null,null,null,null,null,null,null,null,null,null,null,null,null,null,null,null,null,null,null,null,null,null,null,null,null,null,null,null,null,null,null,null,null,null,null,null,null,null,null,null,null,null,null,"2UPN80/30/",null,null,null,null,null,null,null,null,null,null,null,null,null,null,null,"HEB400",null,null,null,null,null,"2Shp(100)_10P",null,null,"2Шп(100)_10П",null,null,null,null,null,null,null,null,null,"2UPN80/30/"]
[null,null,null,null,null,null,null,null,null,null,null,null,null,null,null,null,null,null,null,null,null,null,null,null,null,null,null,null,null,null,null,null,null,null,null,null,null,null,null,null,null,null,null,null,null,null,null,null,null,null,null,null,null,null,null,null,null,null,null,null,"2UPN100/150/",null,null,null,null,null,null,null,null,null,null,null,null,null,null,null,"HEA140",null,null,null,null,null,"2Shp(150)_20P",null,null,"2Шп(150)_20П",null,null,null,null,null,null,null,null,null,"2UPN100/150/"]
[null,null,null,null,null,null,null,null,null,null,null,null,null,null,null,null,null,null,null,null,null,null,null,null,null,null,null,null,null,null,null,null,null,null,null,null,null,null,null,null,null,null,null,null,null,null,null,null,null,null,null,null,null,null,null,null,null,null,null,null,"2UPN120/150/",null,null,null,null,null,null,null,null,null,null,null,null,null,null,null,"HEM550",null,null,null,null,null,"2Shp(200)_27P",null,null,"2Шп(200)_27П",null,null,null,null,null,null,null,null,null,"2UPN120/150/"]
[null,null,null,null,null,null,null,null,null,null,null,null,null,null,null,null,null,null,null,null,null,null,null,null,null,null,null,null,null,null,null,null,null,null,null,null,null,null,null,null,null,null,null,null,null,null,null,null,null,null,null,null,null,null,null,null,null,null,null,null,"2UPN140/6/",null,null,null,null,null,null,null,null,null,null,null,null,null,null,null,"IPN140",null,null,null,null,null,"2Shp(250)_14P",null,null,"2Шп(250)_14П",null,null,null,null,null,null,null,null,null,"2UPN140/6/"]
[null,null,null,null,null,null,null,null,null,null,null,null,null,null,null,null,null,null,null,null,null,null,null,null,null,null,null,null,null,null,null,null,null,null,null,null,null,null,null,null,null,null,null,null,null,null,null,null,null,null,null,null,null,null,null,null,null,null,null,null,"2UPN140*/500/",null,null,null,null,null,null,null,null,null,null,null,null,null,null,null,"CHS60.3X3.6",null,null,null,null,null,"2Shp(400)_16P",null,null,"2Шп(400)_16П",null,null,null,null,null,null,null,null,null,"2UPN140*/500/"]
[null,null,null,null,null,null,null,null,null,null,null,null,null,null,null,null,null,null,null,null,null,null,null,null,null,null,null,null,null,null,null,null,null,null,null,null,null,null,null,null,null,null,null,null,null,null,null,null,null,null,null,null,null,null,null,null,null,null,null,null,"2UPN160/6/",null,null,null,null,null,null,null,null,null,null,null,null,null,null,null,"CHS76.1X3.2",null,null,null,null,null,"2Shp(400)_22P",null,null,"2Шп(400)_22П",null,null,null,null,null,null,null,null,null,"2UPN160/6/"]
[null,null,null,null,null,null,null,null,null,null,null,null,null,null,null,null,null,null,null,null,null,null,null,null,null,null,null,null,null,null,null,null,null,null,null,null,null,null,null,null,null,null,null,null,null,null,null,null,null,null,null,null,null,null,null,null,null,null,null,null,"2UPN160*/15/",null,null,null,null,null,null,null,null,null,null,null,null,null,null,null,"CHS139.7X6",null,null,null,null,null,"2Shp(600)_5P",null,null,"2Шп(600)_5П",null,null,null,null,null,null,null,null,null,"2UPN160*/15/"]
[null,null,null,null,null,null,null,null,null,null,null,null,null,null,null,null,null,null,null,null,null,null,null,null,null,null,null,null,null,null,null,null,null,null,null,null,null,null,null,null,null,null,null,null,null,null,null,null,null,null,null,null,null,null,null,null,null,null,null,null,"2UPN180/10/",null,null,null,null,null,null,null,null,null,null,null,null,null,null,null,"CHS193.7X12",null,null,null,null,null,"2Shp(700)_6,5P",null,null,"2Шп(700)_6,5П",null,null,null,null,null,null,null,null,null,"2UPN180/10/"]
[null,null,null,null,null,null,null,null,null,null,null,null,null,null,null,null,null,null,null,null,null,null,null,null,null,null,null,null,null,null,null,null,null,null,null,null,null,null,null,null,null,null,null,null,null,null,null,null,null,null,null,null,null,null,null,null,null,null,null,null,"2UPN180*/50/",null,null,null,null,null,null,null,null,null,null,null,null,null,null,null,"CHS323.9X6.3",null,null,null,null,null,"2Shp(800)_22P",null,null,"2Шп(800)_22П",null,null,null,null,null,null,null,null,null,"2UPN180*/50/"]
[null,null,null,null,null,null,null,null,null,null,null,null,null,null,null,null,null,null,null,null,null,null,null,null,null,null,null,null,null,null,null,null,null,null,null,null,null,null,null,null,null,null,null,null,null,null,null,null,null,null,null,null,null,null,null,null,null,null,null,null,"2UPN200/50/",null,null,null,null,null,null,null,null,null,null,null,null,null,null,null,"CHS457X12",null,null,null,null,null,"2Shu(4)_30U",null,null,"2Шу(4)_30У",null,null,null,null,null,null,null,null,null,"2UPN200/50/"]
[null,null,null,null,null,null,null,null,null,null,null,null,null,null,null,null,null,null,null,null,null,null,null,null,null,null,null,null,null,null,null,null,null,null,null,null,null,null,null,null,null,null,null,null,null,null,null,null,null,null,null,null,null,null,null,null,null,null,null,null,"2UPN220/250/",null,null,null,null,null,null,null,null,null,null,null,null,null,null,null,"CHS457X40",null,null,null,null,null,"2Shu(8)_10U",null,null,"2Шу(8)_10У",null,null,null,null,null,null,null,null,null,"2UPN220/250/"]
[null,null,null,null,null,null,null,null,null,null,null,null,null,null,null,null,null,null,null,null,null,null,null,null,null,null,null,null,null,null,null,null,null,null,null,null,null,null,null,null,null,null,null,null,null,null,null,null,null,null,null,null,null,null,null,null,null,null,null,null,"2UPN220/700/",null,null,null,null,null,null,null,null,null,null,null,null,null,null,null,"CHS508X50",null,null,null,null,null,"2Shu(8)_18U",null,null,"2Шу(8)_18У",null,null,null,null,null,null,null,null,null,"2UPN220/700/"]
[null,null,null,null,null,null,null,null,null,null,null,null,null,null,null,null,null,null,null,null,null,null,null,null,null,null,null,null,null,null,null,null,null,null,null,null,null,null,null,null,null,null,null,null,null,null,null,null,null,null,null,null,null,null,null,null,null,null,null,null,"2UPN240/700/",null,null,null,null,null,null,null,null,null,null,null,null,null,null,null,"CFCHS33.7X3",null,null,null,null,null,"2Shu(10)_22U",null,null,"2Шу(10)_22У",null,null,null,null,null,null,null,null,null,"2UPN240/700/"]
[null,null,null,null,null,null,null,null,null,null,null,null,null,null,null,null,null,null,null,null,null,null,null,null,null,null,null,null,null,null,null,null,null,null,null,null,null,null,null,null,null,null,null,null,null,null,null,null,null,null,null,null,null,null,null,null,null,null,null,null,"2UPN280/10/",null,null,null,null,null,null,null,null,null,null,null,null,null,null,null,"CFCHS88.9X5",null,null,null,null,null,"2Shu(16)_6,5U",null,null,"2Шу(16)_6,5У",null,null,null,null,null,null,null,null,null,"2UPN280/10/"]
[null,null,null,null,null,null,null,null,null,null,null,null,null,null,null,null,null,null,null,null,null,null,null,null,null,null,null,null,null,null,null,null,null,null,null,null,null,null,null,null,null,null,null,null,null,null,null,null,null,null,null,null,null,null,null,null,null,null,null,null,"2UPN300/25/",null,null,null,null,null,null,null,null,null,null,null,null,null,null,null,"CFCHS219.1X4",null,null,null,null,null,"2Shu(20)_18U",null,null,"2Шу(20)_18У",null,null,null,null,null,null,null,null,null,"2UPN300/25/"]
[null,null,null,null,null,null,null,null,null,null,null,null,null,null,null,null,null,null,null,null,null,null,null,null,null,null,null,null,null,null,null,null,null,null,null,null,null,null,null,null,null,null,null,null,null,null,null,null,null,null,null,null,null,null,null,null,null,null,null,null,"ILS160",null,null,null,null,null,null,null,null,null,null,null,null,null,null,null,"CFCHS273X12.5",null,null,null,null,null,"2Shu(25)_22U",null,null,"2Шу(25)_22У",null,null,null,null,null,null,null,null,null,"ILS160"]
[null,null,null,null,null,null,null,null,null,null,null,null,null,null,null,null,null,null,null,null,null,null,null,null,null,null,null,null,null,null,null,null,null,null,null,null,null,null,null,null,null,null,null,null,null,null,null,null,null,null,null,null,null,null,null,null,null,null,null,null,"IPE200R",null,null,null,null,null,null,null,null,null,null,null,null,null,null,null,"CFCHS355.6X6.3",null,null,null,null,null,"2Shu(30)_10U",null,null,"2Шу(30)_10У",null,null,null,null,null,null,null,null,null,"IPE200R"]
[null,null,null,null,null,null,null,null,null,null,null,null,null,null,null,null,null,null,null,null,null,null,null,null,null,null,null,null,null,null,null,null,null,null,null,null,null,null,null,null,null,null,null,null,null,null,null,null,null,null,null,null,null,null,null,null,null,null,null,null,"ILS330",null,null,null,null,null,null,null,null,null,null,null,null,null,null,null,"CFCHS508X6.3",null,null,null,null,null,"2Shu(40)_8U",null,null,"2Шу(40)_8У",null,null,null,null,null,null,null,null,null,"ILS330"]
[null,null,null,null,null,null,null,null,null,null,null,null,null,null,null,null,null,null,null,null,null,null,null,null,null,null,null,null,null,null,null,null,null,null,null,null,null,null,null,null,null,null,null,null,null,null,null,null,null,null,null,null,null,null,null,null,null,null,null,null,"IPE550O",null,null,null,null,null,null,null,null,null,null,null,null,null,null,null,"CFCHS610X10.3",null,null,null,null,null,"2Shu(50)_18aU",null,null,"2Шу(50)_18aУ",null,null,null,null,null,null,null,null,null,"IPE550O"]
[null,null,null,null,null,null,null,null,null,null,null,null,null,null,null,null,null,null,null,null,null,null,null,null,null,null,null,null,null,null,null,null,null,null,null,null,null,null,null,null,null,null,null,null,null,null,null,null,null,null,null,null,null,null,null,null,null,null,null,null,"HLS160",null,null,null,null,null,null,null,null,null,null,null,null,null,null,null,"CFCHS660X23.8",null,null,null,null,null,"2Shu(100)_36U",null,null,"2Шу(100)_36У",null,null,null,null,null,null,null,null,null,"HLS160"]
[null,null,null,null,null,null,null,null,null,null,null,null,null,null,null,null,null,null,null,null,null,null,null,null,null,null,null,null,null,null,null,null,null,null,null,null,null,null,null,null,null,null,null,null,null,null,null,null,null,null,null,null,null,null,null,null,null,null,null,null,"HE240M",null,null,null,null,null,null,null,null,null,null,null,null,null,null,null,"CFCHS762X6.4",null,null,null,null,null,"2Shu(150)_40U",null,null,"2Шу(150)_40У",null,null,null,null,null,null,null,null,null,"HE240M"]
[null,null,null,null,null,null,null,null,null,null,null,null,null,null,null,null,null,null,null,null,null,null,null,null,null,null,null,null,null,null,null,null,null,null,null,null,null,null,null,null,null,null,null,null,null,null,null,null,null,null,null,null,null,null,null,null,null,null,null,null,"HE400A",null,null,null,null,null,null,null,null,null,null,null,null,null,null,null,"CFCHS813X19.1",null,null,null,null,null,"2Shu(250)_18aU",null,null,"2Шу(250)_18aУ",null,null,null,null,null,null,null,null,null,"HE400A"]
[null,null,null,null,null,null,null,null,null,null,null,null,null,null,null,null,null,null,null,null,null,null,null,null,null,null,null,null,null,null,null,null,null,null,null,null,null,null,null,null,null,null,null,null,null,null,null,null,null,null,null,null,null,null,null,null,null,null,null,null,"HE450A",null,null,null,null,null,null,null,null,null,null,null,null,null,null,null,"CFCHS813X27",null,null,null,null,null,"2Shu(250)_30U",null,null,"2Шу(250)_30У",null,null,null,null,null,null,null,null,null,"HE450A"]
[null,null,null,null,null,null,null,null,null,null,null,null,null,null,null,null,null,null,null,null,null,null,null,null,null,null,null,null,null,null,null,null,null,null,null,null,null,null,null,null,null,null,null,null,null,null,null,null,null,null,null,null,null,null,null,null,null,null,null,null,"HE650M",null,null,null,null,null,null,null,null,null,null,null,null,null,null,null,"CFCHS914X9.5",null,null,null,null,null,"2Shu(300)_40U",null,null,"2Шу(300)_40У",null,null,null,null,null,null,null,null,null,"HE650M"]
[null,null,null,null,null,null,null,null,null,null,null,null,null,null,null,null,null,null,null,null,null,null,null,null,null,null,null,null,null,null,null,null,null,null,null,null,null,null,null,null,null,null,null,null,null,null,null,null,null,null,null,null,null,null,null,null,null,null,null,null,"H400X393",null,null,null,null,null,null,null,null,null,null,null,null,null,null,null,"CFCHS965X19.1",null,null,null,null,null,"2Shu(500)_16U",null,null,"2Шу(500)_16У",null,null,null,null,null,null,null,null,null,"H400X393"]
[null,null,null,null,null,null,null,null,null,null,null,null,null,null,null,null,null,null,null,null,null,null,null,null,null,null,null,null,null,null,null,null,null,null,null,null,null,null,null,null,null,null,null,null,null,null,null,null,null,null,null,null,null,null,null,null,null,null,null,null,"TUBO-D139.7X4",null,null,null,null,null,null,null,null,null,null,null,null,null,null,null,"CFCHS1016X25.4",null,null,null,null,null,"2Shu(600)_18aU",null,null,"2Шу(600)_18aУ",null,null,null,null,null,null,null,null,null,"TUBO-D139.7X4"]
[null,null,null,null,null,null,null,null,null,null,null,null,null,null,null,null,null,null,null,null,null,null,null,null,null,null,null,null,null,null,null,null,null,null,null,null,null,null,null,null,null,null,null,null,null,null,null,null,null,null,null,null,null,null,null,null,null,null,null,null,"T-IPE100/.65/",null,null,null,null,null,null,null,null,null,null,null,null,null,null,null,"CFCHS1118X19.1",null,null,null,null,null,"2Shu(700)_40U",null,null,"2Шу(700)_40У",null,null,null,null,null,null,null,null,null,"T-IPE100/.65/"]
[null,null,null,null,null,null,null,null,null,null,null,null,null,null,null,null,null,null,null,null,null,null,null,null,null,null,null,null,null,null,null,null,null,null,null,null,null,null,null,null,null,null,null,null,null,null,null,null,null,null,null,null,null,null,null,null,null,null,null,null,"T-IPE120/.6/",null,null,null,null,null,null,null,null,null,null,null,null,null,null,null,"CFCHS1168X11.1",null,null,null,null,null,"2Shu(800)_12U",null,null,"2Шу(800)_12У",null,null,null,null,null,null,null,null,null,"T-IPE120/.6/"]
[null,null,null,null,null,null,null,null,null,null,null,null,null,null,null,null,null,null,null,null,null,null,null,null,null,null,null,null,null,null,null,null,null,null,null,null,null,null,null,null,null,null,null,null,null,null,null,null,null,null,null,null,null,null,null,null,null,null,null,null,"T-IPE200/.45/",null,null,null,null,null,null,null,null,null,null,null,null,null,null,null,"CFCHS1270X10.3",null,null,null,null,null,"93_Db_18B1",null,null,"93_Дб_18Б1",null,null,null,null,null,null,null,null,null,"T-IPE200/.45/"]
[null,null,null,null,null,null,null,null,null,null,null,null,null,null,null,null,null,null,null,null,null,null,null,null,null,null,null,null,null,null,null,null,null,null,null,null,null,null,null,null,null,null,null,null,null,null,null,null,null,null,null,null,null,null,null,null,null,null,null,null,"T-IPE330/.45/",null,null,null,null,null,null,null,null,null,null,null,null,null,null,null,"CFCHS1372X20.6",null,null,null,null,null,"93_Dsh_40SH2",null,null,"93_Дш_40Ш2",null,null,null,null,null,null,null,null,null,"T-IPE330/.45/"]
[null,null,null,null,null,null,null,null,null,null,null,null,null,null,null,null,null,null,null,null,null,null,null,null,null,null,null,null,null,null,null,null,null,null,null,null,null,null,null,null,null,null,null,null,null,null,null,null,null,null,null,null,null,null,null,null,null,null,null,null,"T-IPE450/.4/",null,null,null,null,null,null,null,null,null,null,null,null,null,null,null,"CFCHS1473X22.2",null,null,null,null,null,"93_Dsh_90SH1",null,null,"93_Дш_90Ш1",null,null,null,null,null,null,null,null,null,"T-IPE450/.4/"]
[null,null,null,null,null,null,null,null,null,null,null,null,null,null,null,null,null,null,null,null,null,null,null,null,null,null,null,null,null,null,null,null,null,null,null,null,null,null,null,null,null,null,null,null,null,null,null,null,null,null,null,null,null,null,null,null,null,null,null,null,"T-HE100A/.45/",null,null,null,null,null,null,null,null,null,null,null,null,null,null,null,"CFCHS1829X11.9",null,null,null,null,null,"93_Ds_40ES",null,null,"93_Дс_40ЕС",null,null,null,null,null,null,null,null,null,"T-HE100A/.45/"]
[null,null,null,null,null,null,null,null,null,null,null,null,null,null,null,null,null,null,null,null,null,null,null,null,null,null,null,null,null,null,null,null,null,null,null,null,null,null,null,null,null,null,null,null,null,null,null,null,null,null,null,null,null,null,null,null,null,null,null,null,"T-HE120B/.5/",null,null,null,null,null,null,null,null,null,null,null,null,null,null,null,"T-HEA100/.45/",null,null,null,null,null,"83_Dk_30K1",null,null,"83_Дк_30К1",null,null,null,null,null,null,null,null,null,"T-HE120B/.5/"]
[null,null,null,null,null,null,null,null,null,null,null,null,null,null,null,null,null,null,null,null,null,null,null,null,null,null,null,null,null,null,null,null,null,null,null,null,null,null,null,null,null,null,null,null,null,null,null,null,null,null,null,null,null,null,null,null,null,null,null,null,"T-HE140B/.55/",null,null,null,null,null,null,null,null,null,null,null,null,null,null,null,"T-HEB120/.5/",null,null,null,null,null,"Du_27",null,null,"Ду_27",null,null,null,null,null,null,null,null,null,"T-HE140B/.55/"]
[null,null,null,null,null,null,null,null,null,null,null,null,null,null,null,null,null,null,null,null,null,null,null,null,null,null,null,null,null,null,null,null,null,null,null,null,null,null,null,null,null,null,null,null,null,null,null,null,null,null,null,null,null,null,null,null,null,null,null,null,"T-HE140M/.65/",null,null,null,null,null,null,null,null,null,null,null,null,null,null,null,"T-HEA140/.6/",null,null,null,null,null,"Du_60",null,null,"Ду_60",null,null,null,null,null,null,null,null,null,"T-HE140M/.65/"]
[null,null,null,null,null,null,null,null,null,null,null,null,null,null,null,null,null,null,null,null,null,null,null,null,null,null,null,null,null,null,null,null,null,null,null,null,null,null,null,null,null,null,null,null,null,null,null,null,null,null,null,null,null,null,null,null,null,null,null,null,"T-HE180B/.4/",null,null,null,null,null,null,null,null,null,null,null,null,null,null,null,"T-HEA180/.65/",null,null,null,null,null,"83_Db_30B2",null,null,"83_Дб_30Б2",null,null,null,null,null,null,null,null,null,"T-HE180B/.4/"]
[null,null,null,null,null,null,null,null,null,null,null,null,null,null,null,null,null,null,null,null,null,null,null,null,null,null,null,null,null,null,null,null,null,null,null,null,null,null,null,null,null,null,null,null,null,null,null,null,null,null,null,null,null,null,null,null,null,null,null,null,"T-HE200B/.55/",null,null,null,null,null,null,null,null,null,null,null,null,null,null,null,"T-HEA220/.5/",null,null,null,null,null,"83_Db_100B3",null,null,"83_Дб_100Б3",null,null,null,null,null,null,null,null,null,"T-HE200B/.55/"]
[null,null,null,null,null,null,null,null,null,null,null,null,null,null,null,null,null,null,null,null,null,null,null,null,null,null,null,null,null,null,null,null,null,null,null,null,null,null,null,null,null,null,null,null,null,null,null,null,null,null,null,null,null,null,null,null,null,null,null,null,"T-HE240A/.45/",null,null,null,null,null,null,null,null,null,null,null,null,null,null,null,"T-HEB260/.4/",null,null,null,null,null,"74_Ds_14S",null,null,"74_Дс_14С",null,null,null,null,null,null,null,null,null,"T-HE240A/.45/"]
[null,null,null,null,null,null,null,null,null,null,null,null,null,null,null,null,null,null,null,null,null,null,null,null,null,null,null,null,null,null,null,null,null,null,null,null,null,null,null,null,null,null,null,null,null,null,null,null,null,null,null,null,null,null,null,null,null,null,null,null,"T-HE260A/.5/",null,null,null,null,null,null,null,null,null,null,null,null,null,null,null,"T-HEA300/.45/",null,null,null,null,null,"Db_18B1",null,null,"Дб_18Б1",null,null,null,null,null,null,null,null,null,"T-HE260A/.5/"]
[null,null,null,null,null,null,null,null,null,null,null,null,null,null,null,null,null,null,null,null,null,null,null,null,null,null,null,null,null,null,null,null,null,null,null,null,null,null,null,null,null,null,null,null,null,null,null,null,null,null,null,null,null,null,null,null,null,null,null,null,"T-HE260B/.45/",null,null,null,null,null,null,null,null,null,null,null,null,null,null,null,"T-HEB300/.4/",null,null,null,null,null,"Db_20B3",null,null,"Дб_20Б3",null,null,null,null,null,null,null,null,null,"T-HE260B/.45/"]
[null,null,null,null,null,null,null,null,null,null,null,null,null,null,null,null,null,null,null,null,null,null,null,null,null,null,null,null,null,null,null,null,null,null,null,null,null,null,null,null,null,null,null,null,null,null,null,null,null,null,null,null,null,null,null,null,null,null,null,null,"T-HE280M/.5/",null,null,null,null,null,null,null,null,null,null,null,null,null,null,null,"T-HEB340/.45/",null,null,null,null,null,"Db_50B5",null,null,"Дб_50Б5",null,null,null,null,null,null,null,null,null,"T-HE280M/.5/"]
[null,null,null,null,null,null,null,null,null,null,null,null,null,null,null,null,null,null,null,null,null,null,null,null,null,null,null,null,null,null,null,null,null,null,null,null,null,null,null,null,null,null,null,null,null,null,null,null,null,null,null,null,null,null,null,null,null,null,null,null,"T-HE300M/.65/",null,null,null,null,null,null,null,null,null,null,null,null,null,null,null,"T-HEA400/.6/",null,null,null,null,null,"Dsh_25SH1",null,null,"Дш_25Ш1",null,null,null,null,null,null,null,null,null,"T-HE300M/.65/"]
[null,null,null,null,null,null,null,null,null,null,null,null,null,null,null,null,null,null,null,null,null,null,null,null,null,null,null,null,null,null,null,null,null,null,null,null,null,null,null,null,null,null,null,null,null,null,null,null,null,null,null,null,null,null,null,null,null,null,null,null,"T-HE340B/.65/",null,null,null,null,null,null,null,null,null,null,null,null,null,null,null,"T-HEB500/.6/",null,null,null,null,null,"Dsh_45SH3",null,null,"Дш_45Ш3",null,null,null,null,null,null,null,null,null,"T-HE340B/.65/"]
[null,null,null,null,null,null,null,null,null,null,null,null,null,null,null,null,null,null,null,null,null,null,null,null,null,null,null,null,null,null,null,null,null,null,null,null,null,null,null,null,null,null,null,null,null,null,null,null,null,null,null,null,null,null,null,null,null,null,null,null,"T-HE360B/.6/",null,null,null,null,null,null,null,null,null,null,null,null,null,null,null,"T-HEA600/.55/",null,null,null,null,null,"Dsh_60SH6",null,null,"Дш_60Ш6",null,null,null,null,null,null,null,null,null,"T-HE360B/.6/"]
[null,null,null,null,null,null,null,null,null,null,null,null,null,null,null,null,null,null,null,null,null,null,null,null,null,null,null,null,null,null,null,null,null,null,null,null,null,null,null,null,null,null,null,null,null,null,null,null,null,null,null,null,null,null,null,null,null,null,null,null,"T-HE400M/.65/",null,null,null,null,null,null,null,null,null,null,null,null,null,null,null,"T-IPE140/.6/",null,null,null,null,null,"Dk_25K2",null,null,"Дк_25К2",null,null,null,null,null,null,null,null,null,"T-HE400M/.65/"]
[null,null,null,null,null,null,null,null,null,null,null,null,null,null,null,null,null,null,null,null,null,null,null,null,null,null,null,null,null,null,null,null,null,null,null,null,null,null,null,null,null,null,null,null,null,null,null,null,null,null,null,null,null,null,null,null,null,null,null,null,"T-HE450A/.6/",null,null,null,null,null,null,null,null,null,null,null,null,null,null,null,"T-IPE160/.55/",null,null,null,null,null,"Dk_25K7",null,null,"Дк_25К7",null,null,null,null,null,null,null,null,null,"T-HE450A/.6/"]
[null,null,null,null,null,null,null,null,null,null,null,null,null,null,null,null,null,null,null,null,null,null,null,null,null,null,null,null,null,null,null,null,null,null,null,null,null,null,null,null,null,null,null,null,null,null,null,null,null,null,null,null,null,null,null,null,null,null,null,null,"T-HE500A/.6/",null,null,null,null,null,null,null,null,null,null,null,null,null,null,null,"T-IPE220/.55/",null,null,null,null,null,"Dk_30K15",null,null,"Дк_30К15",null,null,null,null,null,null,null,null,null,"T-HE500A/.6/"]
[null,null,null,null,null,null,null,null,null,null,null,null,null,null,null,null,null,null,null,null,null,null,null,null,null,null,null,null,null,null,null,null,null,null,null,null,null,null,null,null,null,null,null,null,null,null,null,null,null,null,null,null,null,null,null,null,null,null,null,null,"T-HE550M/.55/",null,null,null,null,null,null,null,null,null,null,null,null,null,null,null,"T-IPE360/.5/",null,null,null,null,null,"Dk_35K22",null,null,"Дк_35К22",null,null,null,null,null,null,null,null,null,"T-HE550M/.55/"]
[null,null,null,null,null,null,null,null,null,null,null,null,null,null,null,null,null,null,null,null,null,null,null,null,null,null,null,null,null,null,null,null,null,null,null,null,null,null,null,null,null,null,null,null,null,null,null,null,null,null,null,null,null,null,null,null,null,null,null,null,null,null,null,null,null,null,null,null,null,null,null,null,null,null,null,null,"T-IPE550/.55/",null,null,null,null,null,"Ds_25S1",null,null,"Дс_25С1",null,null,null,null,null,null,null,null,null,""]
[null,null,null,null,null,null,null,null,null,null,null,null,null,null,null,null,null,null,null,null,null,null,null,null,null,null,null,null,null,null,null,null,null,null,null,null,null,null,null,null,null,null,null,null,null,null,null,null,null,null,null,null,null,null,null,null,null,null,null,null,null,null,null,null,null,null,null,null,null,null,null,null,null,null,null,null,null,null,null,null,null,null,"Ddb_30Db2",null,null,"Ддб_30Дб2",null,null,null,null,null,null,null,null,null,""]
[null,null,null,null,null,null,null,null,null,null,null,null,null,null,null,null,null,null,null,null,null,null,null,null,null,null,null,null,null,null,null,null,null,null,null,null,null,null,null,null,null,null,null,null,null,null,null,null,null,null,null,null,null,null,null,null,null,null,null,null,null,null,null,null,null,null,null,null,null,null,null,null,null,null,null,null,null,null,null,null,null,null,"Ddb_35Db1",null,null,"Ддб_35Дб1",null,null,null,null,null,null,null,null,null,{"$f":"IF(OFFSET($A4419,0,($CQ$2-1)*3)=0,\"\",OFFSET($A4419,0,($CQ$2-1)*3))","v":""}]
[null,null,null,null,null,null,null,null,null,null,null,null,null,null,null,null,null,null,null,null,null,null,null,null,null,null,null,null,null,null,null,null,null,null,null,null,null,null,null,null,null,null,null,null,null,null,null,null,null,null,null,null,null,null,null,null,null,null,null,null,null,null,null,null,null,null,null,null,null,null,null,null,null,null,null,null,null,null,null,null,null,null,"Ddb_45Db4",null,null,"Ддб_45Дб4",null,null,null,null,null,null,null,null,null,""]
[null,null,null,null,null,null,null,null,null,null,null,null,null,null,null,null,null,null,null,null,null,null,null,null,null,null,null,null,null,null,null,null,null,null,null,null,null,null,null,null,null,null,null,null,null,null,null,null,null,null,null,null,null,null,null,null,null,null,null,null,null,null,null,null,null,null,null,null,null,null,null,null,null,null,null,null,null,null,null,null,null,null,"Ddk_14Дк1",null,null,"Ддк_14Дк1",null,null,null,null,null,null,null,null,null,""]
[null,null,null,null,null,null,null,null,null,null,null,null,null,null,null,null,null,null,null,null,null,null,null,null,null,null,null,null,null,null,null,null,null,null,null,null,null,null,null,null,null,null,null,null,null,null,null,null,null,null,null,null,null,null,null,null,null,null,null,null,null,null,null,null,null,null,null,null,null,null,null,null,null,null,null,null,null,null,null,null,null,null,"10_О_60,0x3,0",null,null,"10_О_60,0х3,0",null,null,null,null,null,null,null,null,null,""]
[null,null,null,null,null,null,null,null,null,null,null,null,null,null,null,null,null,null,null,null,null,null,null,null,null,null,null,null,null,null,null,null,null,null,null,null,null,null,null,null,null,null,null,null,null,null,null,null,null,null,null,null,null,null,null,null,null,null,null,null,null,null,null,null,null,null,null,null,null,null,null,null,null,null,null,null,null,null,null,null,null,null,"10_О_76,0x3,8",null,null,"10_О_76,0х3,8",null,null,null,null,null,null,null,null,null,""]
[null,null,null,null,null,null,null,null,null,null,null,null,null,null,null,null,null,null,null,null,null,null,null,null,null,null,null,null,null,null,null,null,null,null,null,null,null,null,null,null,null,null,null,null,null,null,null,null,null,null,null,null,null,null,null,null,null,null,null,null,null,null,null,null,null,null,null,null,null,null,null,null,null,null,null,null,null,null,null,null,null,null,"10_О_83,0x4,0",null,null,"10_О_83,0х4,0",null,null,null,null,null,null,null,null,null,""]
[null,null,null,null,null,null,null,null,null,null,null,null,null,null,null,null,null,null,null,null,null,null,null,null,null,null,null,null,null,null,null,null,null,null,null,null,null,null,null,null,null,null,null,null,null,null,null,null,null,null,null,null,null,null,null,null,null,null,null,null,null,null,null,null,null,null,null,null,null,null,null,null,null,null,null,null,null,null,null,null,null,null,"10_О_108,0x3,0",null,null,"10_О_108,0х3,0",null,null,null,null,null,null,null,null,null,""]
[null,null,null,null,null,null,null,null,null,null,null,null,null,null,null,null,null,null,null,null,null,null,null,null,null,null,null,null,null,null,null,null,null,null,null,null,null,null,null,null,null,null,null,null,null,null,null,null,null,null,null,null,null,null,null,null,null,null,null,null,null,null,null,null,null,null,null,null,null,null,null,null,null,null,null,null,null,null,null,null,null,null,"10_О_127,0x4,5",null,null,"10_О_127,0х4,5",null,null,null,null,null,null,null,null,null,""]
[null,null,null,null,null,null,null,null,null,null,null,null,null,null,null,null,null,null,null,null,null,null,null,null,null,null,null,null,null,null,null,null,null,null,null,null,null,null,null,null,null,null,null,null,null,null,null,null,null,null,null,null,null,null,null,null,null,null,null,null,null,null,null,null,null,null,null,null,null,null,null,null,null,null,null,null,null,null,null,null,null,null,"10_О_152,0x5,0",null,null,"10_О_152,0х5,0",null,null,null,null,null,null,null,null,null,""]
[null,null,null,null,null,null,null,null,null,null,null,null,null,null,null,null,null,null,null,null,null,null,null,null,null,null,null,null,null,null,null,null,null,null,null,null,null,null,null,null,null,null,null,null,null,null,null,null,null,null,null,null,null,null,null,null,null,null,null,null,null,null,null,null,null,null,null,null,null,null,null,null,null,null,null,null,null,null,null,null,null,null,"10_О_168,0x4,5",null,null,"10_О_168,0х4,5",null,null,null,null,null,null,null,null,null,""]
[null,null,null,null,null,null,null,null,null,null,null,null,null,null,null,null,null,null,null,null,null,null,null,null,null,null,null,null,null,null,null,null,null,null,null,null,null,null,null,null,null,null,null,null,null,null,null,null,null,null,null,null,null,null,null,null,null,null,null,null,null,null,null,null,null,null,null,null,null,null,null,null,null,null,null,null,null,null,null,null,null,null,"10_О_193,7x8,0",null,null,"10_О_193,7х8,0",null,null,null,null,null,null,null,null,null,""]
[null,null,null,null,null,null,null,null,null,null,null,null,null,null,null,null,null,null,null,null,null,null,null,null,null,null,null,null,null,null,null,null,null,null,null,null,null,null,null,null,null,null,null,null,null,null,null,null,null,null,null,null,null,null,null,null,null,null,null,null,null,null,null,null,null,null,null,null,null,null,null,null,null,null,null,null,null,null,null,null,null,null,"10_О_244,5x3,2",null,null,"10_О_244,5х3,2",null,null,null,null,null,null,null,null,null,""]
[null,null,null,null,null,null,null,null,null,null,null,null,null,null,null,null,null,null,null,null,null,null,null,null,null,null,null,null,null,null,null,null,null,null,null,null,null,null,null,null,null,null,null,null,null,null,null,null,null,null,null,null,null,null,null,null,null,null,null,null,null,null,null,null,null,null,null,null,null,null,null,null,null,null,null,null,null,null,null,null,null,null,"10_О_273,0x8,0",null,null,"10_О_273,0х8,0",null,null,null,null,null,null,null,null,null,""]
[null,null,null,null,null,null,null,null,null,null,null,null,null,null,null,null,null,null,null,null,null,null,null,null,null,null,null,null,null,null,null,null,null,null,null,null,null,null,null,null,null,null,null,null,null,null,null,null,null,null,null,null,null,null,null,null,null,null,null,null,null,null,null,null,null,null,null,null,null,null,null,null,null,null,null,null,null,null,null,null,null,null,"10_О_273,0x16,0",null,null,"10_О_273,0х16,0",null,null,null,null,null,null,null,null,null,""]
[null,null,null,null,null,null,null,null,null,null,null,null,null,null,null,null,null,null,null,null,null,null,null,null,null,null,null,null,null,null,null,null,null,null,null,null,null,null,null,null,null,null,null,null,null,null,null,null,null,null,null,null,null,null,null,null,null,null,null,null,null,null,null,null,null,null,null,null,null,null,null,null,null,null,null,null,null,null,null,null,null,null,"10_О_325,0x12,0",null,null,"10_О_325,0х12,0",null,null,null,null,null,null,null,null,null,""]
[null,null,null,null,null,null,null,null,null,null,null,null,null,null,null,null,null,null,null,null,null,null,null,null,null,null,null,null,null,null,null,null,null,null,null,null,null,null,null,null,null,null,null,null,null,null,null,null,null,null,null,null,null,null,null,null,null,null,null,null,null,null,null,null,null,null,null,null,null,null,null,null,null,null,null,null,null,null,null,null,null,null,"10_О_355,6x17,0",null,null,"10_О_355,6х17,0",null,null,null,null,null,null,null,null,null,""]
[null,null,null,null,null,null,null,null,null,null,null,null,null,null,null,null,null,null,null,null,null,null,null,null,null,null,null,null,null,null,null,null,null,null,null,null,null,null,null,null,null,null,null,null,null,null,null,null,null,null,null,null,null,null,null,null,null,null,null,null,null,null,null,null,null,null,null,null,null,null,null,null,null,null,null,null,null,null,null,null,null,null,"10_О_377,0x20,0",null,null,"10_О_377,0х20,0",null,null,null,null,null,null,null,null,null,""]
[null,null,null,null,null,null,null,null,null,null,null,null,null,null,null,null,null,null,null,null,null,null,null,null,null,null,null,null,null,null,null,null,null,null,null,null,null,null,null,null,null,null,null,null,null,null,null,null,null,null,null,null,null,null,null,null,null,null,null,null,null,null,null,null,null,null,null,null,null,null,null,null,null,null,null,null,null,null,null,null,null,null,"10_О_406,4x20,0",null,null,"10_О_406,4х20,0",null,null,null,null,null,null,null,null,null,""]
[null,null,null,null,null,null,null,null,null,null,null,null,null,null,null,null,null,null,null,null,null,null,null,null,null,null,null,null,null,null,null,null,null,null,null,null,null,null,null,null,null,null,null,null,null,null,null,null,null,null,null,null,null,null,null,null,null,null,null,null,null,null,null,null,null,null,null,null,null,null,null,null,null,null,null,null,null,null,null,null,null,null,"10_О_426,0x8,0",null,null,"10_О_426,0х8,0",null,null,null,null,null,null,null,null,null,""]
[null,null,null,null,null,null,null,null,null,null,null,null,null,null,null,null,null,null,null,null,null,null,null,null,null,null,null,null,null,null,null,null,null,null,null,null,null,null,null,null,null,null,null,null,null,null,null,null,null,null,null,null,null,null,null,null,null,null,null,null,null,null,null,null,null,null,null,null,null,null,null,null,null,null,null,null,null,null,null,null,null,null,"10_О_530,0x11,0",null,null,"10_О_530,0х11,0",null,null,null,null,null,null,null,null,null,""]
[null,null,null,null,null,null,null,null,null,null,null,null,null,null,null,null,null,null,null,null,null,null,null,null,null,null,null,null,null,null,null,null,null,null,null,null,null,null,null,null,null,null,null,null,null,null,null,null,null,null,null,null,null,null,null,null,null,null,null,null,null,null,null,null,null,null,null,null,null,null,null,null,null,null,null,null,null,null,null,null,null,null,"10_О_630,0x14,0",null,null,"10_О_630,0х14,0",null,null,null,null,null,null,null,null,null,""]
[null,null,null,null,null,null,null,null,null,null,null,null,null,null,null,null,null,null,null,null,null,null,null,null,null,null,null,null,null,null,null,null,null,null,null,null,null,null,null,null,null,null,null,null,null,null,null,null,null,null,null,null,null,null,null,null,null,null,null,null,null,null,null,null,null,null,null,null,null,null,null,null,null,null,null,null,null,null,null,null,null,null,"O_70x3,5",null,null,"O_70х3,5",null,null,null,null,null,null,null,null,null,""]
[null,null,null,null,null,null,null,null,null,null,null,null,null,null,null,null,null,null,null,null,null,null,null,null,null,null,null,null,null,null,null,null,null,null,null,null,null,null,null,null,null,null,null,null,null,null,null,null,null,null,null,null,null,null,null,null,null,null,null,null,null,null,null,null,null,null,null,null,null,null,null,null,null,null,null,null,null,null,null,null,null,null,"O_83x6,0",null,null,"O_83х6,0",null,null,null,null,null,null,null,null,null,""]
[null,null,null,null,null,null,null,null,null,null,null,null,null,null,null,null,null,null,null,null,null,null,null,null,null,null,null,null,null,null,null,null,null,null,null,null,null,null,null,null,null,null,null,null,null,null,null,null,null,null,null,null,null,null,null,null,null,null,null,null,null,null,null,null,null,null,null,null,null,null,null,null,null,null,null,null,null,null,null,null,null,null,"O_114x4,0",null,null,"O_114х4,0",null,null,null,null,null,null,null,null,null,""]
[null,null,null,null,null,null,null,null,null,null,null,null,null,null,null,null,null,null,null,null,null,null,null,null,null,null,null,null,null,null,null,null,null,null,null,null,null,null,null,null,null,null,null,null,null,null,null,null,null,null,null,null,null,null,null,null,null,null,null,null,null,null,null,null,null,null,null,null,null,null,null,null,null,null,null,null,null,null,null,null,null,null,"O_114x8,0",null,null,"O_114х8,0",null,null,null,null,null,null,null,null,null,""]
[null,null,null,null,null,null,null,null,null,null,null,null,null,null,null,null,null,null,null,null,null,null,null,null,null,null,null,null,null,null,null,null,null,null,null,null,null,null,null,null,null,null,null,null,null,null,null,null,null,null,null,null,null,null,null,null,null,null,null,null,null,null,null,null,null,null,null,null,null,null,null,null,null,null,null,null,null,null,null,null,null,null,"O_133x4,0",null,null,"O_133х4,0",null,null,null,null,null,null,null,null,null,""]
[null,null,null,null,null,null,null,null,null,null,null,null,null,null,null,null,null,null,null,null,null,null,null,null,null,null,null,null,null,null,null,null,null,null,null,null,null,null,null,null,null,null,null,null,null,null,null,null,null,null,null,null,null,null,null,null,null,null,null,null,null,null,null,null,null,null,null,null,null,null,null,null,null,null,null,null,null,null,null,null,null,null,"O_146x11,0",null,null,"O_146х11,0",null,null,null,null,null,null,null,null,null,""]
[null,null,null,null,null,null,null,null,null,null,null,null,null,null,null,null,null,null,null,null,null,null,null,null,null,null,null,null,null,null,null,null,null,null,null,null,null,null,null,null,null,null,null,null,null,null,null,null,null,null,null,null,null,null,null,null,null,null,null,null,null,null,null,null,null,null,null,null,null,null,null,null,null,null,null,null,null,null,null,null,null,null,"O_159x13,0",null,null,"O_159х13,0",null,null,null,null,null,null,null,null,null,""]
[null,null,null,null,null,null,null,null,null,null,null,null,null,null,null,null,null,null,null,null,null,null,null,null,null,null,null,null,null,null,null,null,null,null,null,null,null,null,null,null,null,null,null,null,null,null,null,null,null,null,null,null,null,null,null,null,null,null,null,null,null,null,null,null,null,null,null,null,null,null,null,null,null,null,null,null,null,null,null,null,null,null,"O_193,7x4,0",null,null,"O_193,7х4,0",null,null,null,null,null,null,null,null,null,""]
[null,null,null,null,null,null,null,null,null,null,null,null,null,null,null,null,null,null,null,null,null,null,null,null,null,null,null,null,null,null,null,null,null,null,null,null,null,null,null,null,null,null,null,null,null,null,null,null,null,null,null,null,null,null,null,null,null,null,null,null,null,null,null,null,null,null,null,null,null,null,null,null,null,null,null,null,null,null,null,null,null,null,"O_193,7x8,0",null,null,"O_193,7х8,0",null,null,null,null,null,null,null,null,null,""]
[null,null,null,null,null,null,null,null,null,null,null,null,null,null,null,null,null,null,null,null,null,null,null,null,null,null,null,null,null,null,null,null,null,null,null,null,null,null,null,null,null,null,null,null,null,null,null,null,null,null,null,null,null,null,null,null,null,null,null,null,null,null,null,null,null,null,null,null,null,null,null,null,null,null,null,null,null,null,null,null,null,null,"O_245x5,0",null,null,"O_245х5,0",null,null,null,null,null,null,null,null,null,""]
[null,null,null,null,null,null,null,null,null,null,null,null,null,null,null,null,null,null,null,null,null,null,null,null,null,null,null,null,null,null,null,null,null,null,null,null,null,null,null,null,null,null,null,null,null,null,null,null,null,null,null,null,null,null,null,null,null,null,null,null,null,null,null,null,null,null,null,null,null,null,null,null,null,null,null,null,null,null,null,null,null,null,"O_273x19,0",null,null,"O_273х19,0",null,null,null,null,null,null,null,null,null,""]
[null,null,null,null,null,null,null,null,null,null,null,null,null,null,null,null,null,null,null,null,null,null,null,null,null,null,null,null,null,null,null,null,null,null,null,null,null,null,null,null,null,null,null,null,null,null,null,null,null,null,null,null,null,null,null,null,null,null,null,null,null,null,null,null,null,null,null,null,null,null,null,null,null,null,null,null,null,null,null,null,null,null,"O_356x8,0",null,null,"O_356х8,0",null,null,null,null,null,null,null,null,null,""]
[null,null,null,null,null,null,null,null,null,null,null,null,null,null,null,null,null,null,null,null,null,null,null,null,null,null,null,null,null,null,null,null,null,null,null,null,null,null,null,null,null,null,null,null,null,null,null,null,null,null,null,null,null,null,null,null,null,null,null,null,null,null,null,null,null,null,null,null,null,null,null,null,null,null,null,null,null,null,null,null,null,null,"O_377x15,0",null,null,"O_377х15,0",null,null,null,null,null,null,null,null,null,""]
[null,null,null,null,null,null,null,null,null,null,null,null,null,null,null,null,null,null,null,null,null,null,null,null,null,null,null,null,null,null,null,null,null,null,null,null,null,null,null,null,null,null,null,null,null,null,null,null,null,null,null,null,null,null,null,null,null,null,null,null,null,null,null,null,null,null,null,null,null,null,null,null,null,null,null,null,null,null,null,null,null,null,"O_426x7,0",null,null,"O_426х7,0",null,null,null,null,null,null,null,null,null,{"$f":"IF(OFFSET($A5123,0,($CQ$2-1)*3)=0,\"\",OFFSET($A5123,0,($CQ$2-1)*3))","v":""}]
[null,null,null,null,null,null,null,null,null,null,null,null,null,null,null,null,null,null,null,null,null,null,null,null,null,null,null,null,null,null,null,null,null,null,null,null,null,null,null,null,null,null,null,null,null,null,null,null,null,null,null,null,null,null,null,null,null,null,null,null,null,null,null,null,null,null,null,null,null,null,null,null,null,null,null,null,null,null,null,null,null,null,"O_457x9,0",null,null,"O_457х9,0",null,null,null,null,null,null,null,null,null,""]
[null,null,null,null,null,null,null,null,null,null,null,null,null,null,null,null,null,null,null,null,null,null,null,null,null,null,null,null,null,null,null,null,null,null,null,null,null,null,null,null,null,null,null,null,null,null,null,null,null,null,null,null,null,null,null,null,null,null,null,null,null,null,null,null,null,null,null,null,null,null,null,null,null,null,null,null,null,null,null,null,null,null,"O_457x18,0",null,null,"O_457х18,0",null,null,null,null,null,null,null,null,null,""]
[null,null,null,null,null,null,null,null,null,null,null,null,null,null,null,null,null,null,null,null,null,null,null,null,null,null,null,null,null,null,null,null,null,null,null,null,null,null,null,null,null,null,null,null,null,null,null,null,null,null,null,null,null,null,null,null,null,null,null,null,null,null,null,null,null,null,null,null,null,null,null,null,null,null,null,null,null,null,null,null,null,null,"O_508x28,0",null,null,"O_508х28,0",null,null,null,null,null,null,null,null,null,""]
[null,null,null,null,null,null,null,null,null,null,null,null,null,null,null,null,null,null,null,null,null,null,null,null,null,null,null,null,null,null,null,null,null,null,null,null,null,null,null,null,null,null,null,null,null,null,null,null,null,null,null,null,null,null,null,null,null,null,null,null,null,null,null,null,null,null,null,null,null,null,null,null,null,null,null,null,null,null,null,null,null,null,"O_530x25,0",null,null,"O_530х25,0",null,null,null,null,null,null,null,null,null,""]
[null,null,null,null,null,null,null,null,null,null,null,null,null,null,null,null,null,null,null,null,null,null,null,null,null,null,null,null,null,null,null,null,null,null,null,null,null,null,null,null,null,null,null,null,null,null,null,null,null,null,null,null,null,null,null,null,null,null,null,null,null,null,null,null,null,null,null,null,null,null,null,null,null,null,null,null,null,null,null,null,null,null,"O_630x29,0",null,null,"O_630х29,0",null,null,null,null,null,null,null,null,null,""]
[null,null,null,null,null,null,null,null,null,null,null,null,null,null,null,null,null,null,null,null,null,null,null,null,null,null,null,null,null,null,null,null,null,null,null,null,null,null,null,null,null,null,null,null,null,null,null,null,null,null,null,null,null,null,null,null,null,null,null,null,null,null,null,null,null,null,null,null,null,null,null,null,null,null,null,null,null,null,null,null,null,null,"O_720x26,0",null,null,"O_720х26,0",null,null,null,null,null,null,null,null,null,""]
[null,null,null,null,null,null,null,null,null,null,null,null,null,null,null,null,null,null,null,null,null,null,null,null,null,null,null,null,null,null,null,null,null,null,null,null,null,null,null,null,null,null,null,null,null,null,null,null,null,null,null,null,null,null,null,null,null,null,null,null,null,null,null,null,null,null,null,null,null,null,null,null,null,null,null,null,null,null,null,null,null,null,"O_720x27,0",null,null,"O_720х27,0",null,null,null,null,null,null,null,null,null,""]
[null,null,null,null,null,null,null,null,null,null,null,null,null,null,null,null,null,null,null,null,null,null,null,null,null,null,null,null,null,null,null,null,null,null,null,null,null,null,null,null,null,null,null,null,null,null,null,null,null,null,null,null,null,null,null,null,null,null,null,null,null,null,null,null,null,null,null,null,null,null,null,null,null,null,null,null,null,null,null,null,null,null,"O_820x22,0",null,null,"O_820х22,0",null,null,null,null,null,null,null,null,null,""]
[null,null,null,null,null,null,null,null,null,null,null,null,null,null,null,null,null,null,null,null,null,null,null,null,null,null,null,null,null,null,null,null,null,null,null,null,null,null,null,null,null,null,null,null,null,null,null,null,null,null,null,null,null,null,null,null,null,null,null,null,null,null,null,null,null,null,null,null,null,null,null,null,null,null,null,null,null,null,null,null,null,null,"O_1220x27,0",null,null,"O_1220х27,0",null,null,null,null,null,null,null,null,null,""]
[null,null,null,null,null,null,null,null,null,null,null,null,null,null,null,null,null,null,null,null,null,null,null,null,null,null,null,null,null,null,null,null,null,null,null,null,null,null,null,null,null,null,null,null,null,null,null,null,null,null,null,null,null,null,null,null,null,null,null,null,null,null,null,null,null,null,null,null,null,null,null,null,null,null,null,null,null,null,null,null,null,null,"O_1220x48,0",null,null,"O_1220х48,0",null,null,null,null,null,null,null,null,null,""]
[null,null,null,null,null,null,null,null,null,null,null,null,null,null,null,null,null,null,null,null,null,null,null,null,null,null,null,null,null,null,null,null,null,null,null,null,null,null,null,null,null,null,null,null,null,null,null,null,null,null,null,null,null,null,null,null,null,null,null,null,null,null,null,null,null,null,null,null,null,null,null,null,null,null,null,null,null,null,null,null,null,null,"O_1420x21,0",null,null,"O_1420х21,0",null,null,null,null,null,null,null,null,null,""]
[null,null,null,null,null,null,null,null,null,null,null,null,null,null,null,null,null,null,null,null,null,null,null,null,null,null,null,null,null,null,null,null,null,null,null,null,null,null,null,null,null,null,null,null,null,null,null,null,null,null,null,null,null,null,null,null,null,null,null,null,null,null,null,null,null,null,null,null,null,null,null,null,null,null,null,null,null,null,null,null,null,null,"O_1420x22,0",null,null,"O_1420х22,0",null,null,null,null,null,null,null,null,null,""]
[null,null,null,null,null,null,null,null,null,null,null,null,null,null,null,null,null,null,null,null,null,null,null,null,null,null,null,null,null,null,null,null,null,null,null,null,null,null,null,null,null,null,null,null,null,null,null,null,null,null,null,null,null,null,null,null,null,null,null,null,null,null,null,null,null,null,null,null,null,null,null,null,null,null,null,null,null,null,null,null,null,null,"O_1420x23,0",null,null,"O_1420х23,0",null,null,null,null,null,null,null,null,null,""]
[null,null,null,null,null,null,null,null,null,null,null,null,null,null,null,null,null,null,null,null,null,null,null,null,null,null,null,null,null,null,null,null,null,null,null,null,null,null,null,null,null,null,null,null,null,null,null,null,null,null,null,null,null,null,null,null,null,null,null,null,null,null,null,null,null,null,null,null,null,null,null,null,null,null,null,null,null,null,null,null,null,null,"O_1420x24,0",null,null,"O_1420х24,0",null,null,null,null,null,null,null,null,null,""]
[null,null,null,null,null,null,null,null,null,null,null,null,null,null,null,null,null,null,null,null,null,null,null,null,null,null,null,null,null,null,null,null,null,null,null,null,null,null,null,null,null,null,null,null,null,null,null,null,null,null,null,null,null,null,null,null,null,null,null,null,null,null,null,null,null,null,null,null,null,null,null,null,null,null,null,null,null,null,null,null,null,null,"O_1420x25,0",null,null,"O_1420х25,0",null,null,null,null,null,null,null,null,null,""]
[null,null,null,null,null,null,null,null,null,null,null,null,null,null,null,null,null,null,null,null,null,null,null,null,null,null,null,null,null,null,null,null,null,null,null,null,null,null,null,null,null,null,null,null,null,null,null,null,null,null,null,null,null,null,null,null,null,null,null,null,null,null,null,null,null,null,null,null,null,null,null,null,null,null,null,null,null,null,null,null,null,null,"O_1420x26,0",null,null,"O_1420х26,0",null,null,null,null,null,null,null,null,null,{"$f":"IF(OFFSET($A5315,0,($CQ$2-1)*3)=0,\"\",OFFSET($A5315,0,($CQ$2-1)*3))","v":""}]
[null,null,null,null,null,null,null,null,null,null,null,null,null,null,null,null,null,null,null,null,null,null,null,null,null,null,null,null,null,null,null,null,null,null,null,null,null,null,null,null,null,null,null,null,null,null,null,null,null,null,null,null,null,null,null,null,null,null,null,null,null,null,null,null,null,null,null,null,null,null,null,null,null,null,null,null,null,null,null,null,null,null,"O_1420x27,0",null,null,"O_1420х27,0",null,null,null,null,null,null,null,null,null,""]
[null,null,null,null,null,null,null,null,null,null,null,null,null,null,null,null,null,null,null,null,null,null,null,null,null,null,null,null,null,null,null,null,null,null,null,null,null,null,null,null,null,null,null,null,null,null,null,null,null,null,null,null,null,null,null,null,null,null,null,null,null,null,null,null,null,null,null,null,null,null,null,null,null,null,null,null,null,null,null,null,null,null,"O_1420x28,0",null,null,"O_1420х28,0",null,null,null,null,null,null,null,null,null,""]
[null,null,null,null,null,null,null,null,null,null,null,null,null,null,null,null,null,null,null,null,null,null,null,null,null,null,null,null,null,null,null,null,null,null,null,null,null,null,null,null,null,null,null,null,null,null,null,null,null,null,null,null,null,null,null,null,null,null,null,null,null,null,null,null,null,null,null,null,null,null,null,null,null,null,null,null,null,null,null,null,null,null,"O_1420x29,0",null,null,"O_1420х29,0",null,null,null,null,null,null,null,null,null,""]
[null,null,null,null,null,null,null,null,null,null,null,null,null,null,null,null,null,null,null,null,null,null,null,null,null,null,null,null,null,null,null,null,null,null,null,null,null,null,null,null,null,null,null,null,null,null,null,null,null,null,null,null,null,null,null,null,null,null,null,null,null,null,null,null,null,null,null,null,null,null,null,null,null,null,null,null,null,null,null,null,null,null,"O_1420x30,0",null,null,"O_1420х30,0",null,null,null,null,null,null,null,null,null,""]
[null,null,null,null,null,null,null,null,null,null,null,null,null,null,null,null,null,null,null,null,null,null,null,null,null,null,null,null,null,null,null,null,null,null,null,null,null,null,null,null,null,null,null,null,null,null,null,null,null,null,null,null,null,null,null,null,null,null,null,null,null,null,null,null,null,null,null,null,null,null,null,null,null,null,null,null,null,null,null,null,null,null,"O_1420x31,0",null,null,"O_1420х31,0",null,null,null,null,null,null,null,null,null,""]
[null,null,null,null,null,null,null,null,null,null,null,null,null,null,null,null,null,null,null,null,null,null,null,null,null,null,null,null,null,null,null,null,null,null,null,null,null,null,null,null,null,null,null,null,null,null,null,null,null,null,null,null,null,null,null,null,null,null,null,null,null,null,null,null,null,null,null,null,null,null,null,null,null,null,null,null,null,null,null,null,null,null,"O_1420x32,0",null,null,"O_1420х32,0",null,null,null,null,null,null,null,null,null,""]
[null,null,null,null,null,null,null,null,null,null,null,null,null,null,null,null,null,null,null,null,null,null,null,null,null,null,null,null,null,null,null,null,null,null,null,null,null,null,null,null,null,null,null,null,null,null,null,null,null,null,null,null,null,null,null,null,null,null,null,null,null,null,null,null,null,null,null,null,null,null,null,null,null,null,null,null,null,null,null,null,null,null,"O_1420x33,0",null,null,"O_1420х33,0",null,null,null,null,null,null,null,null,null,""]
[null,null,null,null,null,null,null,null,null,null,null,null,null,null,null,null,null,null,null,null,null,null,null,null,null,null,null,null,null,null,null,null,null,null,null,null,null,null,null,null,null,null,null,null,null,null,null,null,null,null,null,null,null,null,null,null,null,null,null,null,null,null,null,null,null,null,null,null,null,null,null,null,null,null,null,null,null,null,null,null,null,null,"O_1420x34,0",null,null,"O_1420х34,0",null,null,null,null,null,null,null,null,null,""]
[null,null,null,null,null,null,null,null,null,null,null,null,null,null,null,null,null,null,null,null,null,null,null,null,null,null,null,null,null,null,null,null,null,null,null,null,null,null,null,null,null,null,null,null,null,null,null,null,null,null,null,null,null,null,null,null,null,null,null,null,null,null,null,null,null,null,null,null,null,null,null,null,null,null,null,null,null,null,null,null,null,null,"O_1420x35,0",null,null,"O_1420х35,0",null,null,null,null,null,null,null,null,null,""]
[null,null,null,null,null,null,null,null,null,null,null,null,null,null,null,null,null,null,null,null,null,null,null,null,null,null,null,null,null,null,null,null,null,null,null,null,null,null,null,null,null,null,null,null,null,null,null,null,null,null,null,null,null,null,null,null,null,null,null,null,null,null,null,null,null,null,null,null,null,null,null,null,null,null,null,null,null,null,null,null,null,null,"O_1420x36,0",null,null,"O_1420х36,0",null,null,null,null,null,null,null,null,null,""]
[null,null,null,null,null,null,null,null,null,null,null,null,null,null,null,null,null,null,null,null,null,null,null,null,null,null,null,null,null,null,null,null,null,null,null,null,null,null,null,null,null,null,null,null,null,null,null,null,null,null,null,null,null,null,null,null,null,null,null,null,null,null,null,null,null,null,null,null,null,null,null,null,null,null,null,null,null,null,null,null,null,null,"O_1420x37,0",null,null,"O_1420х37,0",null,null,null,null,null,null,null,null,null,""]
[null,null,null,null,null,null,null,null,null,null,null,null,null,null,null,null,null,null,null,null,null,null,null,null,null,null,null,null,null,null,null,null,null,null,null,null,null,null,null,null,null,null,null,null,null,null,null,null,null,null,null,null,null,null,null,null,null,null,null,null,null,null,null,null,null,null,null,null,null,null,null,null,null,null,null,null,null,null,null,null,null,null,"O_1420x38,0",null,null,"O_1420х38,0",null,null,null,null,null,null,null,null,null,""]
[null,null,null,null,null,null,null,null,null,null,null,null,null,null,null,null,null,null,null,null,null,null,null,null,null,null,null,null,null,null,null,null,null,null,null,null,null,null,null,null,null,null,null,null,null,null,null,null,null,null,null,null,null,null,null,null,null,null,null,null,null,null,null,null,null,null,null,null,null,null,null,null,null,null,null,null,null,null,null,null,null,null,"O_1420x39,0",null,null,"O_1420х39,0",null,null,null,null,null,null,null,null,null,""]
[null,null,null,null,null,null,null,null,null,null,null,null,null,null,null,null,null,null,null,null,null,null,null,null,null,null,null,null,null,null,null,null,null,null,null,null,null,null,null,null,null,null,null,null,null,null,null,null,null,null,null,null,null,null,null,null,null,null,null,null,null,null,null,null,null,null,null,null,null,null,null,null,null,null,null,null,null,null,null,null,null,null,"O_1420x40,0",null,null,"O_1420х40,0",null,null,null,null,null,null,null,null,null,""]
[null,null,null,null,null,null,null,null,null,null,null,null,null,null,null,null,null,null,null,null,null,null,null,null,null,null,null,null,null,null,null,null,null,null,null,null,null,null,null,null,null,null,null,null,null,null,null,null,null,null,null,null,null,null,null,null,null,null,null,null,null,null,null,null,null,null,null,null,null,null,null,null,null,null,null,null,null,null,null,null,null,null,"O_1420x41,0",null,null,"O_1420х41,0",null,null,null,null,null,null,null,null,null,""]
[null,null,null,null,null,null,null,null,null,null,null,null,null,null,null,null,null,null,null,null,null,null,null,null,null,null,null,null,null,null,null,null,null,null,null,null,null,null,null,null,null,null,null,null,null,null,null,null,null,null,null,null,null,null,null,null,null,null,null,null,null,null,null,null,null,null,null,null,null,null,null,null,null,null,null,null,null,null,null,null,null,null,"O_1420x42,0",null,null,"O_1420х42,0",null,null,null,null,null,null,null,null,null,""]
[null,null,null,null,null,null,null,null,null,null,null,null,null,null,null,null,null,null,null,null,null,null,null,null,null,null,null,null,null,null,null,null,null,null,null,null,null,null,null,null,null,null,null,null,null,null,null,null,null,null,null,null,null,null,null,null,null,null,null,null,null,null,null,null,null,null,null,null,null,null,null,null,null,null,null,null,null,null,null,null,null,null,"O_1420x43,0",null,null,"O_1420х43,0",null,null,null,null,null,null,null,null,null,""]
[null,null,null,null,null,null,null,null,null,null,null,null,null,null,null,null,null,null,null,null,null,null,null,null,null,null,null,null,null,null,null,null,null,null,null,null,null,null,null,null,null,null,null,null,null,null,null,null,null,null,null,null,null,null,null,null,null,null,null,null,null,null,null,null,null,null,null,null,null,null,null,null,null,null,null,null,null,null,null,null,null,null,"O_1420x44,0",null,null,"O_1420х44,0",null,null,null,null,null,null,null,null,null,""]
[null,null,null,null,null,null,null,null,null,null,null,null,null,null,null,null,null,null,null,null,null,null,null,null,null,null,null,null,null,null,null,null,null,null,null,null,null,null,null,null,null,null,null,null,null,null,null,null,null,null,null,null,null,null,null,null,null,null,null,null,null,null,null,null,null,null,null,null,null,null,null,null,null,null,null,null,null,null,null,null,null,null,"O_1420x45,0",null,null,"O_1420х45,0",null,null,null,null,null,null,null,null,null,""]
[null,null,null,null,null,null,null,null,null,null,null,null,null,null,null,null,null,null,null,null,null,null,null,null,null,null,null,null,null,null,null,null,null,null,null,null,null,null,null,null,null,null,null,null,null,null,null,null,null,null,null,null,null,null,null,null,null,null,null,null,null,null,null,null,null,null,null,null,null,null,null,null,null,null,null,null,null,null,null,null,null,null,"O_1420x46,0",null,null,"O_1420х46,0",null,null,null,null,null,null,null,null,null,""]
[null,null,null,null,null,null,null,null,null,null,null,null,null,null,null,null,null,null,null,null,null,null,null,null,null,null,null,null,null,null,null,null,null,null,null,null,null,null,null,null,null,null,null,null,null,null,null,null,null,null,null,null,null,null,null,null,null,null,null,null,null,null,null,null,null,null,null,null,null,null,null,null,null,null,null,null,null,null,null,null,null,null,"O_1420x47,0",null,null,"O_1420х47,0",null,null,null,null,null,null,null,null,null,""]
[null,null,null,null,null,null,null,null,null,null,null,null,null,null,null,null,null,null,null,null,null,null,null,null,null,null,null,null,null,null,null,null,null,null,null,null,null,null,null,null,null,null,null,null,null,null,null,null,null,null,null,null,null,null,null,null,null,null,null,null,null,null,null,null,null,null,null,null,null,null,null,null,null,null,null,null,null,null,null,null,null,null,"O_1420x48,0",null,null,"O_1420х48,0",null,null,null,null,null,null,null,null,null,""]
[null,null,null,null,null,null,null,null,null,null,null,null,null,null,null,null,null,null,null,null,null,null,null,null,null,null,null,null,null,null,null,null,null,null,null,null,null,null,null,null,null,null,null,null,null,null,null,null,null,null,null,null,null,null,null,null,null,null,null,null,null,null,null,null,null,null,null,null,null,null,null,null,null,null,null,null,null,null,null,null,null,null,"Tk_10KТ1",null,null,"Тк_10KТ1",null,null,null,null,null,null,null,null,null,""]
[null,null,null,null,null,null,null,null,null,null,null,null,null,null,null,null,null,null,null,null,null,null,null,null,null,null,null,null,null,null,null,null,null,null,null,null,null,null,null,null,null,null,null,null,null,null,null,null,null,null,null,null,null,null,null,null,null,null,null,null,null,null,null,null,null,null,null,null,null,null,null,null,null,null,null,null,null,null,null,null,null,null,"Tk_10KТ2",null,null,"Тк_10KТ2",null,null,null,null,null,null,null,null,null,""]
[null,null,null,null,null,null,null,null,null,null,null,null,null,null,null,null,null,null,null,null,null,null,null,null,null,null,null,null,null,null,null,null,null,null,null,null,null,null,null,null,null,null,null,null,null,null,null,null,null,null,null,null,null,null,null,null,null,null,null,null,null,null,null,null,null,null,null,null,null,null,null,null,null,null,null,null,null,null,null,null,null,null,"Tk_11,5KТ1",null,null,"Тк_11,5KТ1",null,null,null,null,null,null,null,null,null,""]
[null,null,null,null,null,null,null,null,null,null,null,null,null,null,null,null,null,null,null,null,null,null,null,null,null,null,null,null,null,null,null,null,null,null,null,null,null,null,null,null,null,null,null,null,null,null,null,null,null,null,null,null,null,null,null,null,null,null,null,null,null,null,null,null,null,null,null,null,null,null,null,null,null,null,null,null,null,null,null,null,null,null,"Tk_11,5KТ2",null,null,"Тк_11,5KТ2",null,null,null,null,null,null,null,null,null,""]
[null,null,null,null,null,null,null,null,null,null,null,null,null,null,null,null,null,null,null,null,null,null,null,null,null,null,null,null,null,null,null,null,null,null,null,null,null,null,null,null,null,null,null,null,null,null,null,null,null,null,null,null,null,null,null,null,null,null,null,null,null,null,null,null,null,null,null,null,null,null,null,null,null,null,null,null,null,null,null,null,null,null,"Tk_13KТ1",null,null,"Тк_13KТ1",null,null,null,null,null,null,null,null,null,""]
[null,null,null,null,null,null,null,null,null,null,null,null,null,null,null,null,null,null,null,null,null,null,null,null,null,null,null,null,null,null,null,null,null,null,null,null,null,null,null,null,null,null,null,null,null,null,null,null,null,null,null,null,null,null,null,null,null,null,null,null,null,null,null,null,null,null,null,null,null,null,null,null,null,null,null,null,null,null,null,null,null,null,"Tk_13KТ2",null,null,"Тк_13KТ2",null,null,null,null,null,null,null,null,null,""]
[null,null,null,null,null,null,null,null,null,null,null,null,null,null,null,null,null,null,null,null,null,null,null,null,null,null,null,null,null,null,null,null,null,null,null,null,null,null,null,null,null,null,null,null,null,null,null,null,null,null,null,null,null,null,null,null,null,null,null,null,null,null,null,null,null,null,null,null,null,null,null,null,null,null,null,null,null,null,null,null,null,null,"Tk_13KТ3",null,null,"Тк_13KТ3",null,null,null,null,null,null,null,null,null,""]
[null,null,null,null,null,null,null,null,null,null,null,null,null,null,null,null,null,null,null,null,null,null,null,null,null,null,null,null,null,null,null,null,null,null,null,null,null,null,null,null,null,null,null,null,null,null,null,null,null,null,null,null,null,null,null,null,null,null,null,null,null,null,null,null,null,null,null,null,null,null,null,null,null,null,null,null,null,null,null,null,null,null,"Tk_15KТ1",null,null,"Тк_15KТ1",null,null,null,null,null,null,null,null,null,""]
[null,null,null,null,null,null,null,null,null,null,null,null,null,null,null,null,null,null,null,null,null,null,null,null,null,null,null,null,null,null,null,null,null,null,null,null,null,null,null,null,null,null,null,null,null,null,null,null,null,null,null,null,null,null,null,null,null,null,null,null,null,null,null,null,null,null,null,null,null,null,null,null,null,null,null,null,null,null,null,null,null,null,"Tk_15KТ2",null,null,"Тк_15KТ2",null,null,null,null,null,null,null,null,null,""]
[null,null,null,null,null,null,null,null,null,null,null,null,null,null,null,null,null,null,null,null,null,null,null,null,null,null,null,null,null,null,null,null,null,null,null,null,null,null,null,null,null,null,null,null,null,null,null,null,null,null,null,null,null,null,null,null,null,null,null,null,null,null,null,null,null,null,null,null,null,null,null,null,null,null,null,null,null,null,null,null,null,null,"Tk_15KТ3",null,null,"Тк_15KТ3",null,null,null,null,null,null,null,null,null,""]
[null,null,null,null,null,null,null,null,null,null,null,null,null,null,null,null,null,null,null,null,null,null,null,null,null,null,null,null,null,null,null,null,null,null,null,null,null,null,null,null,null,null,null,null,null,null,null,null,null,null,null,null,null,null,null,null,null,null,null,null,null,null,null,null,null,null,null,null,null,null,null,null,null,null,null,null,null,null,null,null,null,null,"Tk_17,5KТ1",null,null,"Тк_17,5KТ1",null,null,null,null,null,null,null,null,null,""]
[null,null,null,null,null,null,null,null,null,null,null,null,null,null,null,null,null,null,null,null,null,null,null,null,null,null,null,null,null,null,null,null,null,null,null,null,null,null,null,null,null,null,null,null,null,null,null,null,null,null,null,null,null,null,null,null,null,null,null,null,null,null,null,null,null,null,null,null,null,null,null,null,null,null,null,null,null,null,null,null,null,null,"Tk_17,5KТ2",null,null,"Тк_17,5KТ2",null,null,null,null,null,null,null,null,null,""]
[null,null,null,null,null,null,null,null,null,null,null,null,null,null,null,null,null,null,null,null,null,null,null,null,null,null,null,null,null,null,null,null,null,null,null,null,null,null,null,null,null,null,null,null,null,null,null,null,null,null,null,null,null,null,null,null,null,null,null,null,null,null,null,null,null,null,null,null,null,null,null,null,null,null,null,null,null,null,null,null,null,null,"Tk_20KТ1",null,null,"Тк_20KТ1",null,null,null,null,null,null,null,null,null,""]
[null,null,null,null,null,null,null,null,null,null,null,null,null,null,null,null,null,null,null,null,null,null,null,null,null,null,null,null,null,null,null,null,null,null,null,null,null,null,null,null,null,null,null,null,null,null,null,null,null,null,null,null,null,null,null,null,null,null,null,null,null,null,null,null,null,null,null,null,null,null,null,null,null,null,null,null,null,null,null,null,null,null,"Tk_20KТ2",null,null,"Тк_20KТ2",null,null,null,null,null,null,null,null,null,""]
[null,null,null,null,null,null,null,null,null,null,null,null,null,null,null,null,null,null,null,null,null,null,null,null,null,null,null,null,null,null,null,null,null,null,null,null,null,null,null,null,null,null,null,null,null,null,null,null,null,null,null,null,null,null,null,null,null,null,null,null,null,null,null,null,null,null,null,null,null,null,null,null,null,null,null,null,null,null,null,null,null,null,"Tsh_13SHT1",null,null,"Тш_13ШТ1",null,null,null,null,null,null,null,null,null,""]
[null,null,null,null,null,null,null,null,null,null,null,null,null,null,null,null,null,null,null,null,null,null,null,null,null,null,null,null,null,null,null,null,null,null,null,null,null,null,null,null,null,null,null,null,null,null,null,null,null,null,null,null,null,null,null,null,null,null,null,null,null,null,null,null,null,null,null,null,null,null,null,null,null,null,null,null,null,null,null,null,null,null,"Tsh_13SHT2",null,null,"Тш_13ШТ2",null,null,null,null,null,null,null,null,null,""]
[null,null,null,null,null,null,null,null,null,null,null,null,null,null,null,null,null,null,null,null,null,null,null,null,null,null,null,null,null,null,null,null,null,null,null,null,null,null,null,null,null,null,null,null,null,null,null,null,null,null,null,null,null,null,null,null,null,null,null,null,null,null,null,null,null,null,null,null,null,null,null,null,null,null,null,null,null,null,null,null,null,null,"Tsh_15SHT1",null,null,"Тш_15ШТ1",null,null,null,null,null,null,null,null,null,""]
[null,null,null,null,null,null,null,null,null,null,null,null,null,null,null,null,null,null,null,null,null,null,null,null,null,null,null,null,null,null,null,null,null,null,null,null,null,null,null,null,null,null,null,null,null,null,null,null,null,null,null,null,null,null,null,null,null,null,null,null,null,null,null,null,null,null,null,null,null,null,null,null,null,null,null,null,null,null,null,null,null,null,"Tsh_15SHT2",null,null,"Тш_15ШТ2",null,null,null,null,null,null,null,null,null,""]
[null,null,null,null,null,null,null,null,null,null,null,null,null,null,null,null,null,null,null,null,null,null,null,null,null,null,null,null,null,null,null,null,null,null,null,null,null,null,null,null,null,null,null,null,null,null,null,null,null,null,null,null,null,null,null,null,null,null,null,null,null,null,null,null,null,null,null,null,null,null,null,null,null,null,null,null,null,null,null,null,null,null,"Tsh_15SHT3",null,null,"Тш_15ШТ3",null,null,null,null,null,null,null,null,null,""]
[null,null,null,null,null,null,null,null,null,null,null,null,null,null,null,null,null,null,null,null,null,null,null,null,null,null,null,null,null,null,null,null,null,null,null,null,null,null,null,null,null,null,null,null,null,null,null,null,null,null,null,null,null,null,null,null,null,null,null,null,null,null,null,null,null,null,null,null,null,null,null,null,null,null,null,null,null,null,null,null,null,null,"Tsh_17,5SHT1",null,null,"Тш_17,5ШТ1",null,null,null,null,null,null,null,null,null,""]
[null,null,null,null,null,null,null,null,null,null,null,null,null,null,null,null,null,null,null,null,null,null,null,null,null,null,null,null,null,null,null,null,null,null,null,null,null,null,null,null,null,null,null,null,null,null,null,null,null,null,null,null,null,null,null,null,null,null,null,null,null,null,null,null,null,null,null,null,null,null,null,null,null,null,null,null,null,null,null,null,null,null,"Tsh_17,5SHT2",null,null,"Тш_17,5ШТ2",null,null,null,null,null,null,null,null,null,""]
[null,null,null,null,null,null,null,null,null,null,null,null,null,null,null,null,null,null,null,null,null,null,null,null,null,null,null,null,null,null,null,null,null,null,null,null,null,null,null,null,null,null,null,null,null,null,null,null,null,null,null,null,null,null,null,null,null,null,null,null,null,null,null,null,null,null,null,null,null,null,null,null,null,null,null,null,null,null,null,null,null,null,"Tsh_17,5SHT3",null,null,"Тш_17,5ШТ3",null,null,null,null,null,null,null,null,null,""]
[null,null,null,null,null,null,null,null,null,null,null,null,null,null,null,null,null,null,null,null,null,null,null,null,null,null,null,null,null,null,null,null,null,null,null,null,null,null,null,null,null,null,null,null,null,null,null,null,null,null,null,null,null,null,null,null,null,null,null,null,null,null,null,null,null,null,null,null,null,null,null,null,null,null,null,null,null,null,null,null,null,null,"Tsh_20SHT1",null,null,"Тш_20ШТ1",null,null,null,null,null,null,null,null,null,""]
[null,null,null,null,null,null,null,null,null,null,null,null,null,null,null,null,null,null,null,null,null,null,null,null,null,null,null,null,null,null,null,null,null,null,null,null,null,null,null,null,null,null,null,null,null,null,null,null,null,null,null,null,null,null,null,null,null,null,null,null,null,null,null,null,null,null,null,null,null,null,null,null,null,null,null,null,null,null,null,null,null,null,"Tsh_20SHT2",null,null,"Тш_20ШТ2",null,null,null,null,null,null,null,null,null,""]
[null,null,null,null,null,null,null,null,null,null,null,null,null,null,null,null,null,null,null,null,null,null,null,null,null,null,null,null,null,null,null,null,null,null,null,null,null,null,null,null,null,null,null,null,null,null,null,null,null,null,null,null,null,null,null,null,null,null,null,null,null,null,null,null,null,null,null,null,null,null,null,null,null,null,null,null,null,null,null,null,null,null,"Tsh_20SHT3",null,null,"Тш_20ШТ3",null,null,null,null,null,null,null,null,null,""]
[null,null,null,null,null,null,null,null,null,null,null,null,null,null,null,null,null,null,null,null,null,null,null,null,null,null,null,null,null,null,null,null,null,null,null,null,null,null,null,null,null,null,null,null,null,null,null,null,null,null,null,null,null,null,null,null,null,null,null,null,null,null,null,null,null,null,null,null,null,null,null,null,null,null,null,null,null,null,null,null,null,null,"Tsh_25SHT1",null,null,"Тш_25ШТ1",null,null,null,null,null,null,null,null,null,""]
[null,null,null,null,null,null,null,null,null,null,null,null,null,null,null,null,null,null,null,null,null,null,null,null,null,null,null,null,null,null,null,null,null,null,null,null,null,null,null,null,null,null,null,null,null,null,null,null,null,null,null,null,null,null,null,null,null,null,null,null,null,null,null,null,null,null,null,null,null,null,null,null,null,null,null,null,null,null,null,null,null,null,"Tsh_25SHT2",null,null,"Тш_25ШТ2",null,null,null,null,null,null,null,null,null,""]
[null,null,null,null,null,null,null,null,null,null,null,null,null,null,null,null,null,null,null,null,null,null,null,null,null,null,null,null,null,null,null,null,null,null,null,null,null,null,null,null,null,null,null,null,null,null,null,null,null,null,null,null,null,null,null,null,null,null,null,null,null,null,null,null,null,null,null,null,null,null,null,null,null,null,null,null,null,null,null,null,null,null,"Tsh_25SHT3",null,null,"Тш_25ШТ3",null,null,null,null,null,null,null,null,null,""]
[null,null,null,null,null,null,null,null,null,null,null,null,null,null,null,null,null,null,null,null,null,null,null,null,null,null,null,null,null,null,null,null,null,null,null,null,null,null,null,null,null,null,null,null,null,null,null,null,null,null,null,null,null,null,null,null,null,null,null,null,null,null,null,null,null,null,null,null,null,null,null,null,null,null,null,null,null,null,null,null,null,null,"Tsh_25SHT4",null,null,"Тш_25ШТ4",null,null,null,null,null,null,null,null,null,""]
[null,null,null,null,null,null,null,null,null,null,null,null,null,null,null,null,null,null,null,null,null,null,null,null,null,null,null,null,null,null,null,null,null,null,null,null,null,null,null,null,null,null,null,null,null,null,null,null,null,null,null,null,null,null,null,null,null,null,null,null,null,null,null,null,null,null,null,null,null,null,null,null,null,null,null,null,null,null,null,null,null,null,"Tsh_30SHT1",null,null,"Тш_30ШТ1",null,null,null,null,null,null,null,null,null,""]
[null,null,null,null,null,null,null,null,null,null,null,null,null,null,null,null,null,null,null,null,null,null,null,null,null,null,null,null,null,null,null,null,null,null,null,null,null,null,null,null,null,null,null,null,null,null,null,null,null,null,null,null,null,null,null,null,null,null,null,null,null,null,null,null,null,null,null,null,null,null,null,null,null,null,null,null,null,null,null,null,null,null,"Tsh_30SHT2",null,null,"Тш_30ШТ2",null,null,null,null,null,null,null,null,null,""]
[null,null,null,null,null,null,null,null,null,null,null,null,null,null,null,null,null,null,null,null,null,null,null,null,null,null,null,null,null,null,null,null,null,null,null,null,null,null,null,null,null,null,null,null,null,null,null,null,null,null,null,null,null,null,null,null,null,null,null,null,null,null,null,null,null,null,null,null,null,null,null,null,null,null,null,null,null,null,null,null,null,null,"Tsh_30SHT3",null,null,"Тш_30ШТ3",null,null,null,null,null,null,null,null,null,""]
[null,null,null,null,null,null,null,null,null,null,null,null,null,null,null,null,null,null,null,null,null,null,null,null,null,null,null,null,null,null,null,null,null,null,null,null,null,null,null,null,null,null,null,null,null,null,null,null,null,null,null,null,null,null,null,null,null,null,null,null,null,null,null,null,null,null,null,null,null,null,null,null,null,null,null,null,null,null,null,null,null,null,"Tsh_30SHT4",null,null,"Тш_30ШТ4",null,null,null,null,null,null,null,null,null,""]